Workbook

Sheet Overall
A2: No. | B2: Name | C2: Team | D2: 2022-08-01 | E2: 2022-09-01 | F2: 2022-10-01 | G2: 2022-11-01 | H2: 2022-12-01 | I2: 2023-01-01 | J2: 2023-02-01 | K2: 2023-03-01 | L2: 2023-04-01 | M2: 2023-05-01 | N2: Total
A3: 1 | B3: Dean Kelly | C3: Drean Team | D3: =HLOOKUP(B3,August!$H$1:$CF$83,83,FALSE) -> 180 | E3: =HLOOKUP(B3,September!$H$1:$CF$37,37,FALSE) -> 78 | F3: =HLOOKUP(B3,October!$H$1:$CF$78,78,FALSE) -> 244 | G3: =HLOOKUP(B3,November!$H$1:$CF$39,39,FALSE) -> 70 | H3: =HLOOKUP(B3,December!$H$1:$CF$37,37,FALSE) -> 75 | I3: =HLOOKUP(B3,January!$H$1:$CF$53,53,FALSE) -> 34 | N3: =SUM(D3:M3) -> 681
A4: 2 | B4: Rory Ellard | C4: Ipspich | D4: =HLOOKUP(B4,August!$H$1:$CF$83,83,FALSE) -> 205 | E4: =HLOOKUP(B4,September!$H$1:$CF$37,37,FALSE) -> 58 | F4: =HLOOKUP(B4,October!$H$1:$CF$78,78,FALSE) -> 219 | G4: =HLOOKUP(B4,November!$H$1:$CF$39,39,FALSE) -> 65 | H4: =HLOOKUP(B4,December!$H$1:$CF$37,37,FALSE) -> 90 | I4: =HLOOKUP(B4,January!$H$1:$CF$53,53,FALSE) -> 39 | N4: =SUM(D4:M4) -> 676
A5: 3 | B5: James Keville | C5: Doesn't Mata | D5: =HLOOKUP(B5,August!$H$1:$CF$83,83,FALSE) -> 205 | E5: =HLOOKUP(B5,September!$H$1:$CF$37,37,FALSE) -> 63 | F5: =HLOOKUP(B5,October!$H$1:$CF$78,78,FALSE) -> 204 | G5: =HLOOKUP(B5,November!$H$1:$CF$39,39,FALSE) -> 75 | H5: =HLOOKUP(B5,December!$H$1:$CF$37,37,FALSE) -> 70 | I5: =HLOOKUP(B5,January!$H$1:$CF$53,53,FALSE) -> 49 | N5: =SUM(D5:M5) -> 666
A6: 4 | B6: Graham Pierpoint | C6: Klopp's Kops | D6: =HLOOKUP(B6,August!$H$1:$CF$83,83,FALSE) -> 190 | E6: =HLOOKUP(B6,September!$H$1:$CF$37,37,FALSE) -> 58 | F6: =HLOOKUP(B6,October!$H$1:$CF$78,78,FALSE) -> 239 | G6: =HLOOKUP(B6,November!$H$1:$CF$39,39,FALSE) -> 60 | H6: =HLOOKUP(B6,December!$H$1:$CF$37,37,FALSE) -> 70 | I6: =HLOOKUP(B6,January!$H$1:$CF$53,53,FALSE) -> 44 | N6: =SUM(D6:M6) -> 661
A7: 5 | B7: Philip Jordan | C7: Frankie's Army | D7: =HLOOKUP(B7,August!$H$1:$CF$83,83,FALSE) -> 197 | E7: =HLOOKUP(B7,September!$H$1:$CF$37,37,FALSE) -> 75 | F7: =HLOOKUP(B7,October!$H$1:$CF$78,78,FALSE) -> 216 | G7: =HLOOKUP(B7,November!$H$1:$CF$39,39,FALSE) -> 71 | H7: =HLOOKUP(B7,December!$H$1:$CF$37,37,FALSE) -> 73 | I7: =HLOOKUP(B7,January!$H$1:$CF$53,53,FALSE) -> 27 | N7: =SUM(D7:M7) -> 659
A8: 6 | B8: Anastas Popov | C8: Super Strong Saints | D8: =HLOOKUP(B8,August!$H$1:$CF$83,83,FALSE) -> 204 | E8: =HLOOKUP(B8,September!$H$1:$CF$37,37,FALSE) -> 74 | F8: =HLOOKUP(B8,October!$H$1:$CF$78,78,FALSE) -> 196 | G8: =HLOOKUP(B8,November!$H$1:$CF$39,39,FALSE) -> 67 | H8: =HLOOKUP(B8,December!$H$1:$CF$37,37,FALSE) -> 69 | I8: =HLOOKUP(B8,January!$H$1:$CF$53,53,FALSE) -> 34 | N8: =SUM(D8:M8) -> 644
A9: 7 | B9: Sean Cleary | C9: Sean's Superstars | D9: =HLOOKUP(B9,August!$H$1:$CF$83,83,FALSE) -> 200 | E9: =HLOOKUP(B9,September!$H$1:$CF$37,37,FALSE) -> 73 | F9: =HLOOKUP(B9,October!$H$1:$CF$78,78,FALSE) -> 219 | G9: =HLOOKUP(B9,November!$H$1:$CF$39,39,FALSE) -> 55 | H9: =HLOOKUP(B9,December!$H$1:$CF$37,37,FALSE) -> 65 | I9: =HLOOKUP(B9,January!$H$1:$CF$53,53,FALSE) -> 29 | N9: =SUM(D9:M9) -> 641
A10: 8 | B10: Gary McGurk | C10: Darwin Innit! | D10: =HLOOKUP(B10,August!$H$1:$CF$83,83,FALSE) -> 190 | E10: =HLOOKUP(B10,September!$H$1:$CF$37,37,FALSE) -> 48 | F10: =HLOOKUP(B10,October!$H$1:$CF$78,78,FALSE) -> 259 | G10: =HLOOKUP(B10,November!$H$1:$CF$39,39,FALSE) -> 65 | H10: =HLOOKUP(B10,December!$H$1:$CF$37,37,FALSE) -> 60 | I10: =HLOOKUP(B10,January!$H$1:$CF$53,53,FALSE) -> 14 | N10: =SUM(D10:M10) -> 636
A11: 9 | B11: Jonathan Fox | C11: For Fox Sake, Not Again | D11: =HLOOKUP(B11,August!$H$1:$CF$83,83,FALSE) -> 170 | E11: =HLOOKUP(B11,September!$H$1:$CF$37,37,FALSE) -> 73 | F11: =HLOOKUP(B11,October!$H$1:$CF$78,78,FALSE) -> 229 | G11: =HLOOKUP(B11,November!$H$1:$CF$39,39,FALSE) -> 65 | H11: =HLOOKUP(B11,December!$H$1:$CF$37,37,FALSE) -> 75 | I11: =HLOOKUP(B11,January!$H$1:$CF$53,53,FALSE) -> 24 | N11: =SUM(D11:M11) -> 636
A12: 10 | B12: Phil Doyle | C12: FC Muertos Errantes | D12: =HLOOKUP(B12,August!$H$1:$CF$83,83,FALSE) -> 186 | E12: =HLOOKUP(B12,September!$H$1:$CF$37,37,FALSE) -> 64 | F12: =HLOOKUP(B12,October!$H$1:$CF$78,78,FALSE) -> 195 | G12: =HLOOKUP(B12,November!$H$1:$CF$39,39,FALSE) -> 71 | H12: =HLOOKUP(B12,December!$H$1:$CF$37,37,FALSE) -> 73 | I12: =HLOOKUP(B12,January!$H$1:$CF$53,53,FALSE) -> 41 | N12: =SUM(D12:M12) -> 630
A13: 11 | B13: Ciaran Rooney | C13: Wax On Wax Off | D13: =HLOOKUP(B13,August!$H$1:$CF$83,83,FALSE) -> 160 | E13: =HLOOKUP(B13,September!$H$1:$CF$37,37,FALSE) -> 68 | F13: =HLOOKUP(B13,October!$H$1:$CF$78,78,FALSE) -> 209 | G13: =HLOOKUP(B13,November!$H$1:$CF$39,39,FALSE) -> 80 | H13: =HLOOKUP(B13,December!$H$1:$CF$37,37,FALSE) -> 80 | I13: =HLOOKUP(B13,January!$H$1:$CF$53,53,FALSE) -> 29 | N13: =SUM(D13:M13) -> 626
A14: 12 | B14: Gerry Draper | C14: Everton 10 | D14: =HLOOKUP(B14,August!$H$1:$CF$83,83,FALSE) -> 165 | E14: =HLOOKUP(B14,September!$H$1:$CF$37,37,FALSE) -> 48 | F14: =HLOOKUP(B14,October!$H$1:$CF$78,78,FALSE) -> 229 | G14: =HLOOKUP(B14,November!$H$1:$CF$39,39,FALSE) -> 80 | H14: =HLOOKUP(B14,December!$H$1:$CF$37,37,FALSE) -> 70 | I14: =HLOOKUP(B14,January!$H$1:$CF$53,53,FALSE) -> 34 | N14: =SUM(D14:M14) -> 626
A15: 13 | B15: Keith Ryan | C15: Ain't No Mountain High Enough | D15: =HLOOKUP(B15,August!$H$1:$CF$83,83,FALSE) -> 200 | E15: =HLOOKUP(B15,September!$H$1:$CF$37,37,FALSE) -> 58 | F15: =HLOOKUP(B15,October!$H$1:$CF$78,78,FALSE) -> 194 | G15: =HLOOKUP(B15,November!$H$1:$CF$39,39,FALSE) -> 65 | H15: =HLOOKUP(B15,December!$H$1:$CF$37,37,FALSE) -> 80 | I15: =HLOOKUP(B15,January!$H$1:$CF$53,53,FALSE) -> 29 | N15: =SUM(D15:M15) -> 626
A16: 14 | B16: Chris Keohan | C16: Chicken Tikka Mo Salah | D16: =HLOOKUP(B16,August!$H$1:$CF$83,83,FALSE) -> 167 | E16: =HLOOKUP(B16,September!$H$1:$CF$37,37,FALSE) -> 80 | F16: =HLOOKUP(B16,October!$H$1:$CF$78,78,FALSE) -> 196 | G16: =HLOOKUP(B16,November!$H$1:$CF$39,39,FALSE) -> 91 | H16: =HLOOKUP(B16,December!$H$1:$CF$37,37,FALSE) -> 58 | I16: =HLOOKUP(B16,January!$H$1:$CF$53,53,FALSE) -> 27 | N16: =SUM(D16:M16) -> 619
A17: 15 | B17: Dave McGinley | C17: Clucko > Seanie O'Shea | D17: =HLOOKUP(B17,August!$H$1:$CF$83,83,FALSE) -> 185 | E17: =HLOOKUP(B17,September!$H$1:$CF$37,37,FALSE) -> 53 | F17: =HLOOKUP(B17,October!$H$1:$CF$78,78,FALSE) -> 234 | G17: =HLOOKUP(B17,November!$H$1:$CF$39,39,FALSE) -> 55 | H17: =HLOOKUP(B17,December!$H$1:$CF$37,37,FALSE) -> 70 | I17: =HLOOKUP(B17,January!$H$1:$CF$53,53,FALSE) -> 19 | N17: =SUM(D17:M17) -> 616
A18: 16 | B18: Dylan Delaney | C18: Only Kruls and Horses | D18: =HLOOKUP(B18,August!$H$1:$CF$83,83,FALSE) -> 170 | E18: =HLOOKUP(B18,September!$H$1:$CF$37,37,FALSE) -> 63 | F18: =HLOOKUP(B18,October!$H$1:$CF$78,78,FALSE) -> 219 | G18: =HLOOKUP(B18,November!$H$1:$CF$39,39,FALSE) -> 70 | H18: =HLOOKUP(B18,December!$H$1:$CF$37,37,FALSE) -> 65 | I18: =HLOOKUP(B18,January!$H$1:$CF$53,53,FALSE) -> 29 | N18: =SUM(D18:M18) -> 616
A19: 17 | B19: Dylan O'Riordan | C19: Yurty Ahearn's Golden Spoon | D19: =HLOOKUP(B19,August!$H$1:$CF$83,83,FALSE) -> 152 | E19: =HLOOKUP(B19,September!$H$1:$CF$37,37,FALSE) -> 65 | F19: =HLOOKUP(B19,October!$H$1:$CF$78,78,FALSE) -> 211 | G19: =HLOOKUP(B19,November!$H$1:$CF$39,39,FALSE) -> 76 | H19: =HLOOKUP(B19,December!$H$1:$CF$37,37,FALSE) -> 78 | I19: =HLOOKUP(B19,January!$H$1:$CF$53,53,FALSE) -> 32 | N19: =SUM(D19:M19) -> 614
A20: 18 | B20: Paul Moore | C20: TAA - The Scouser In Our Team | D20: =HLOOKUP(B20,August!$H$1:$CF$83,83,FALSE) -> 205 | E20: =HLOOKUP(B20,September!$H$1:$CF$37,37,FALSE) -> 48 | F20: =HLOOKUP(B20,October!$H$1:$CF$78,78,FALSE) -> 199 | G20: =HLOOKUP(B20,November!$H$1:$CF$39,39,FALSE) -> 45 | H20: =HLOOKUP(B20,December!$H$1:$CF$37,37,FALSE) -> 60 | I20: =HLOOKUP(B20,January!$H$1:$CF$53,53,FALSE) -> 49 | N20: =SUM(D20:M20) -> 606
A21: 19 | B21: Frank McSweeney | C21: Pool Abu | D21: =HLOOKUP(B21,August!$H$1:$CF$83,83,FALSE) -> 180 | E21: =HLOOKUP(B21,September!$H$1:$CF$37,37,FALSE) -> 63 | F21: =HLOOKUP(B21,October!$H$1:$CF$78,78,FALSE) -> 194 | G21: =HLOOKUP(B21,November!$H$1:$CF$39,39,FALSE) -> 70 | H21: =HLOOKUP(B21,December!$H$1:$CF$37,37,FALSE) -> 70 | I21: =HLOOKUP(B21,January!$H$1:$CF$53,53,FALSE) -> 24 | N21: =SUM(D21:M21) -> 601
A22: 20 | B22: Gareth Pierpoint | C22: Allison Wonderland | D22: =HLOOKUP(B22,August!$H$1:$CF$83,83,FALSE) -> 155 | E22: =HLOOKUP(B22,September!$H$1:$CF$37,37,FALSE) -> 68 | F22: =HLOOKUP(B22,October!$H$1:$CF$78,78,FALSE) -> 214 | G22: =HLOOKUP(B22,November!$H$1:$CF$39,39,FALSE) -> 80 | H22: =HLOOKUP(B22,December!$H$1:$CF$37,37,FALSE) -> 65 | I22: =HLOOKUP(B22,January!$H$1:$CF$53,53,FALSE) -> 19 | N22: =SUM(D22:M22) -> 601
A23: 21 | B23: John Brophy | C23: Carrig ABU | D23: =HLOOKUP(B23,August!$H$1:$CF$83,83,FALSE) -> 180 | E23: =HLOOKUP(B23,September!$H$1:$CF$37,37,FALSE) -> 58 | F23: =HLOOKUP(B23,October!$H$1:$CF$78,78,FALSE) -> 214 | G23: =HLOOKUP(B23,November!$H$1:$CF$39,39,FALSE) -> 60 | H23: =HLOOKUP(B23,December!$H$1:$CF$37,37,FALSE) -> 65 | I23: =HLOOKUP(B23,January!$H$1:$CF$53,53,FALSE) -> 24 | N23: =SUM(D23:M23) -> 601
A24: 22 | B24: Simon Scanlon | C24: Braygulls Utd Celtic | D24: =HLOOKUP(B24,August!$H$1:$CF$83,83,FALSE) -> 160 | E24: =HLOOKUP(B24,September!$H$1:$CF$37,37,FALSE) -> 58 | F24: =HLOOKUP(B24,October!$H$1:$CF$78,78,FALSE) -> 219 | G24: =HLOOKUP(B24,November!$H$1:$CF$39,39,FALSE) -> 55 | H24: =HLOOKUP(B24,December!$H$1:$CF$37,37,FALSE) -> 75 | I24: =HLOOKUP(B24,January!$H$1:$CF$53,53,FALSE) -> 34 | N24: =SUM(D24:M24) -> 601
A25: 23 | B25: Aidan Scanlon | C25: St Pats | D25: =HLOOKUP(B25,August!$H$1:$CF$83,83,FALSE) -> 160 | E25: =HLOOKUP(B25,September!$H$1:$CF$37,37,FALSE) -> 48 | F25: =HLOOKUP(B25,October!$H$1:$CF$78,78,FALSE) -> 224 | G25: =HLOOKUP(B25,November!$H$1:$CF$39,39,FALSE) -> 70 | H25: =HLOOKUP(B25,December!$H$1:$CF$37,37,FALSE) -> 75 | I25: =HLOOKUP(B25,January!$H$1:$CF$53,53,FALSE) -> 19 | N25: =SUM(D25:M25) -> 596
A26: 24 | B26: Bobby Hynes | C26: Dancing In The Dark | D26: =HLOOKUP(B26,August!$H$1:$CF$83,83,FALSE) -> 170 | E26: =HLOOKUP(B26,September!$H$1:$CF$37,37,FALSE) -> 53 | F26: =HLOOKUP(B26,October!$H$1:$CF$78,78,FALSE) -> 204 | G26: =HLOOKUP(B26,November!$H$1:$CF$39,39,FALSE) -> 60 | H26: =HLOOKUP(B26,December!$H$1:$CF$37,37,FALSE) -> 90 | I26: =HLOOKUP(B26,January!$H$1:$CF$53,53,FALSE) -> 19 | N26: =SUM(D26:M26) -> 596
A27: 25 | B27: Ciaran O'Hart | C27: Riverchapel Plate | D27: =HLOOKUP(B27,August!$H$1:$CF$83,83,FALSE) -> 193 | E27: =HLOOKUP(B27,September!$H$1:$CF$37,37,FALSE) -> 63 | F27: =HLOOKUP(B27,October!$H$1:$CF$78,78,FALSE) -> 187 | G27: =HLOOKUP(B27,November!$H$1:$CF$39,39,FALSE) -> 56 | H27: =HLOOKUP(B27,December!$H$1:$CF$37,37,FALSE) -> 73 | I27: =HLOOKUP(B27,January!$H$1:$CF$53,53,FALSE) -> 19 | N27: =SUM(D27:M27) -> 591
A28: 26 | B28: Craig Calvert | C28: Ten Fags Army | D28: =HLOOKUP(B28,August!$H$1:$CF$83,83,FALSE) -> 165 | E28: =HLOOKUP(B28,September!$H$1:$CF$37,37,FALSE) -> 63 | F28: =HLOOKUP(B28,October!$H$1:$CF$78,78,FALSE) -> 189 | G28: =HLOOKUP(B28,November!$H$1:$CF$39,39,FALSE) -> 75 | H28: =HLOOKUP(B28,December!$H$1:$CF$37,37,FALSE) -> 75 | I28: =HLOOKUP(B28,January!$H$1:$CF$53,53,FALSE) -> 24 | N28: =SUM(D28:M28) -> 591
A29: 27 | B29: Roisin Joyce | C29: WAW | D29: =HLOOKUP(B29,August!$H$1:$CF$83,83,FALSE) -> 202 | E29: =HLOOKUP(B29,September!$H$1:$CF$37,37,FALSE) -> 49 | F29: =HLOOKUP(B29,October!$H$1:$CF$78,78,FALSE) -> 201 | G29: =HLOOKUP(B29,November!$H$1:$CF$39,39,FALSE) -> 56 | H29: =HLOOKUP(B29,December!$H$1:$CF$37,37,FALSE) -> 68 | I29: =HLOOKUP(B29,January!$H$1:$CF$53,53,FALSE) -> 15 | N29: =SUM(D29:M29) -> 591
A30: 28 | B30: Gavin Morgan | C30: Seventeenth Season Syndrome | D30: =HLOOKUP(B30,August!$H$1:$CF$83,83,FALSE) -> 170 | E30: =HLOOKUP(B30,September!$H$1:$CF$37,37,FALSE) -> 53 | F30: =HLOOKUP(B30,October!$H$1:$CF$78,78,FALSE) -> 214 | G30: =HLOOKUP(B30,November!$H$1:$CF$39,39,FALSE) -> 65 | H30: =HLOOKUP(B30,December!$H$1:$CF$37,37,FALSE) -> 75 | I30: =HLOOKUP(B30,January!$H$1:$CF$53,53,FALSE) -> 9 | N30: =SUM(D30:M30) -> 586
A31: 29 | B31: Tommy Hamill | C31: Omeath All-Stars | D31: =HLOOKUP(B31,August!$H$1:$CF$83,83,FALSE) -> 175 | E31: =HLOOKUP(B31,September!$H$1:$CF$37,37,FALSE) -> 63 | F31: =HLOOKUP(B31,October!$H$1:$CF$78,78,FALSE) -> 214 | G31: =HLOOKUP(B31,November!$H$1:$CF$39,39,FALSE) -> 45 | H31: =HLOOKUP(B31,December!$H$1:$CF$37,37,FALSE) -> 70 | I31: =HLOOKUP(B31,January!$H$1:$CF$53,53,FALSE) -> 14 | N31: =SUM(D31:M31) -> 581
A32: 30 | B32: Robert Hynes | C32: Georgia Best | D32: =HLOOKUP(B32,August!$H$1:$CF$83,83,FALSE) -> 188 | E32: =HLOOKUP(B32,September!$H$1:$CF$37,37,FALSE) -> 56 | F32: =HLOOKUP(B32,October!$H$1:$CF$78,78,FALSE) -> 189 | G32: =HLOOKUP(B32,November!$H$1:$CF$39,39,FALSE) -> 53 | H32: =HLOOKUP(B32,December!$H$1:$CF$37,37,FALSE) -> 59 | I32: =HLOOKUP(B32,January!$H$1:$CF$53,53,FALSE) -> 34 | N32: =SUM(D32:M32) -> 579
A33: 31 | B33: Con McSweeney | C33: Coola_Boolas | D33: =HLOOKUP(B33,August!$H$1:$CF$83,83,FALSE) -> 165 | E33: =HLOOKUP(B33,September!$H$1:$CF$37,37,FALSE) -> 48 | F33: =HLOOKUP(B33,October!$H$1:$CF$78,78,FALSE) -> 194 | G33: =HLOOKUP(B33,November!$H$1:$CF$39,39,FALSE) -> 80 | H33: =HLOOKUP(B33,December!$H$1:$CF$37,37,FALSE) -> 65 | I33: =HLOOKUP(B33,January!$H$1:$CF$53,53,FALSE) -> 24 | N33: =SUM(D33:M33) -> 576
A34: 32 | B34: David Cooney | C34: Tuchel Says It's Chilly | D34: =HLOOKUP(B34,August!$H$1:$CF$83,83,FALSE) -> 190 | E34: =HLOOKUP(B34,September!$H$1:$CF$37,37,FALSE) -> 53 | F34: =HLOOKUP(B34,October!$H$1:$CF$78,78,FALSE) -> 184 | G34: =HLOOKUP(B34,November!$H$1:$CF$39,39,FALSE) -> 55 | H34: =HLOOKUP(B34,December!$H$1:$CF$37,37,FALSE) -> 75 | I34: =HLOOKUP(B34,January!$H$1:$CF$53,53,FALSE) -> 19 | N34: =SUM(D34:M34) -> 576
A35: 33 | B35: Joseph Kavanagh | C35: Cherry Orchard Thieves | D35: =HLOOKUP(B35,August!$H$1:$CF$83,83,FALSE) -> 180 | E35: =HLOOKUP(B35,September!$H$1:$CF$37,37,FALSE) -> 48 | F35: =HLOOKUP(B35,October!$H$1:$CF$78,78,FALSE) -> 199 | G35: =HLOOKUP(B35,November!$H$1:$CF$39,39,FALSE) -> 75 | H35: =HLOOKUP(B35,December!$H$1:$CF$37,37,FALSE) -> 45 | I35: =HLOOKUP(B35,January!$H$1:$CF$53,53,FALSE) -> 29 | N35: =SUM(D35:M35) -> 576
A36: 34 | B36: Brian Prendergast | C36: Up The Arsenal | D36: =HLOOKUP(B36,August!$H$1:$CF$83,83,FALSE) -> 173 | E36: =HLOOKUP(B36,September!$H$1:$CF$37,37,FALSE) -> 71 | F36: =HLOOKUP(B36,October!$H$1:$CF$78,78,FALSE) -> 209 | G36: =HLOOKUP(B36,November!$H$1:$CF$39,39,FALSE) -> 63 | H36: =HLOOKUP(B36,December!$H$1:$CF$37,37,FALSE) -> 39 | I36: =HLOOKUP(B36,January!$H$1:$CF$53,53,FALSE) -> 19 | N36: =SUM(D36:M36) -> 574
A37: 35 | B37: David Lavelle | C37: Black & Amber | D37: =HLOOKUP(B37,August!$H$1:$CF$83,83,FALSE) -> 172 | E37: =HLOOKUP(B37,September!$H$1:$CF$37,37,FALSE) -> 65 | F37: =HLOOKUP(B37,October!$H$1:$CF$78,78,FALSE) -> 171 | G37: =HLOOKUP(B37,November!$H$1:$CF$39,39,FALSE) -> 76 | H37: =HLOOKUP(B37,December!$H$1:$CF$37,37,FALSE) -> 53 | I37: =HLOOKUP(B37,January!$H$1:$CF$53,53,FALSE) -> 37 | N37: =SUM(D37:M37) -> 574
A38: 36 | B38: Aidan White | C38: The Ings vs Watkins Conundrum | D38: =HLOOKUP(B38,August!$H$1:$CF$83,83,FALSE) -> 160 | E38: =HLOOKUP(B38,September!$H$1:$CF$37,37,FALSE) -> 63 | F38: =HLOOKUP(B38,October!$H$1:$CF$78,78,FALSE) -> 189 | G38: =HLOOKUP(B38,November!$H$1:$CF$39,39,FALSE) -> 60 | H38: =HLOOKUP(B38,December!$H$1:$CF$37,37,FALSE) -> 80 | I38: =HLOOKUP(B38,January!$H$1:$CF$53,53,FALSE) -> 19 | N38: =SUM(D38:M38) -> 571
A39: 37 | B39: Ian McSweeney | C39: The Dread Pirate Roberts | D39: =HLOOKUP(B39,August!$H$1:$CF$83,83,FALSE) -> 183 | E39: =HLOOKUP(B39,September!$H$1:$CF$37,37,FALSE) -> 63 | F39: =HLOOKUP(B39,October!$H$1:$CF$78,78,FALSE) -> 187 | G39: =HLOOKUP(B39,November!$H$1:$CF$39,39,FALSE) -> 61 | H39: =HLOOKUP(B39,December!$H$1:$CF$37,37,FALSE) -> 58 | I39: =HLOOKUP(B39,January!$H$1:$CF$53,53,FALSE) -> 19 | N39: =SUM(D39:M39) -> 571
A40: 38 | B40: Sean O'Mairtin | C40: Creweless | D40: =HLOOKUP(B40,August!$H$1:$CF$83,83,FALSE) -> 165 | E40: =HLOOKUP(B40,September!$H$1:$CF$37,37,FALSE) -> 48 | F40: =HLOOKUP(B40,October!$H$1:$CF$78,78,FALSE) -> 184 | G40: =HLOOKUP(B40,November!$H$1:$CF$39,39,FALSE) -> 85 | H40: =HLOOKUP(B40,December!$H$1:$CF$37,37,FALSE) -> 75 | I40: =HLOOKUP(B40,January!$H$1:$CF$53,53,FALSE) -> 14 | N40: =SUM(D40:M40) -> 571
A41: 39 | B41: Cathal Thornton | C41: Game of Stones | D41: =HLOOKUP(B41,August!$H$1:$CF$83,83,FALSE) -> 155 | E41: =HLOOKUP(B41,September!$H$1:$CF$37,37,FALSE) -> 58 | F41: =HLOOKUP(B41,October!$H$1:$CF$78,78,FALSE) -> 219 | G41: =HLOOKUP(B41,November!$H$1:$CF$39,39,FALSE) -> 80 | H41: =HLOOKUP(B41,December!$H$1:$CF$37,37,FALSE) -> 45 | I41: =HLOOKUP(B41,January!$H$1:$CF$53,53,FALSE) -> 4 | N41: =SUM(D41:M41) -> 561
A42: 40 | B42: Darragh Kenny | C42: Fox Hunters | D42: =HLOOKUP(B42,August!$H$1:$CF$83,83,FALSE) -> 195 | E42: =HLOOKUP(B42,September!$H$1:$CF$37,37,FALSE) -> 53 | F42: =HLOOKUP(B42,October!$H$1:$CF$78,78,FALSE) -> 164 | G42: =HLOOKUP(B42,November!$H$1:$CF$39,39,FALSE) -> 60 | H42: =HLOOKUP(B42,December!$H$1:$CF$37,37,FALSE) -> 60 | I42: =HLOOKUP(B42,January!$H$1:$CF$53,53,FALSE) -> 29 | N42: =SUM(D42:M42) -> 561
A43: 41 | B43: Richard Johnston | C43: If All U Have Is A Hammer Then Everything Is…. | D43: =HLOOKUP(B43,August!$H$1:$CF$83,83,FALSE) -> 175 | E43: =HLOOKUP(B43,September!$H$1:$CF$37,37,FALSE) -> 58 | F43: =HLOOKUP(B43,October!$H$1:$CF$78,78,FALSE) -> 169 | G43: =HLOOKUP(B43,November!$H$1:$CF$39,39,FALSE) -> 65 | H43: =HLOOKUP(B43,December!$H$1:$CF$37,37,FALSE) -> 60 | I43: =HLOOKUP(B43,January!$H$1:$CF$53,53,FALSE) -> 34 | N43: =SUM(D43:M43) -> 561
A44: 42 | B44: Joe Behan | C44: In It To Win It I Wish | D44: =HLOOKUP(B44,August!$H$1:$CF$83,83,FALSE) -> 182 | E44: =HLOOKUP(B44,September!$H$1:$CF$37,37,FALSE) -> 42 | F44: =HLOOKUP(B44,October!$H$1:$CF$78,78,FALSE) -> 190 | G44: =HLOOKUP(B44,November!$H$1:$CF$39,39,FALSE) -> 59 | H44: =HLOOKUP(B44,December!$H$1:$CF$37,37,FALSE) -> 77 | I44: =HLOOKUP(B44,January!$H$1:$CF$53,53,FALSE) -> 10 | N44: =SUM(D44:M44) -> 560
A45: 43 | B45: Micheal Joyce | C45: Marsching On | D45: =HLOOKUP(B45,August!$H$1:$CF$83,83,FALSE) -> 160 | E45: =HLOOKUP(B45,September!$H$1:$CF$37,37,FALSE) -> 43 | F45: =HLOOKUP(B45,October!$H$1:$CF$78,78,FALSE) -> 189 | G45: =HLOOKUP(B45,November!$H$1:$CF$39,39,FALSE) -> 70 | H45: =HLOOKUP(B45,December!$H$1:$CF$37,37,FALSE) -> 75 | I45: =HLOOKUP(B45,January!$H$1:$CF$53,53,FALSE) -> 14 | N45: =SUM(D45:M45) -> 551
A46: 44 | B46: Caroline Carroll | C46: Carrie's Crusaders | D46: =HLOOKUP(B46,August!$H$1:$CF$83,83,FALSE) -> 151 | E46: =HLOOKUP(B46,September!$H$1:$CF$37,37,FALSE) -> 46 | F46: =HLOOKUP(B46,October!$H$1:$CF$78,78,FALSE) -> 193 | G46: =HLOOKUP(B46,November!$H$1:$CF$39,39,FALSE) -> 73 | H46: =HLOOKUP(B46,December!$H$1:$CF$37,37,FALSE) -> 62 | I46: =HLOOKUP(B46,January!$H$1:$CF$53,53,FALSE) -> 22 | N46: =SUM(D46:M46) -> 547
A47: 45 | B47: Joe Turner | C47: What Would Jan Molby Do? | D47: =HLOOKUP(B47,August!$H$1:$CF$83,83,FALSE) -> 121 | E47: =HLOOKUP(B47,September!$H$1:$CF$37,37,FALSE) -> 71 | F47: =HLOOKUP(B47,October!$H$1:$CF$78,78,FALSE) -> 188 | G47: =HLOOKUP(B47,November!$H$1:$CF$39,39,FALSE) -> 83 | H47: =HLOOKUP(B47,December!$H$1:$CF$37,37,FALSE) -> 62 | I47: =HLOOKUP(B47,January!$H$1:$CF$53,53,FALSE) -> 22 | N47: =SUM(D47:M47) -> 547
A48: 46 | B48: Brendan Maguire | C48: Cantthinkofone | D48: =HLOOKUP(B48,August!$H$1:$CF$83,83,FALSE) -> 148 | E48: =HLOOKUP(B48,September!$H$1:$CF$37,37,FALSE) -> 56 | F48: =HLOOKUP(B48,October!$H$1:$CF$78,78,FALSE) -> 194 | G48: =HLOOKUP(B48,November!$H$1:$CF$39,39,FALSE) -> 68 | H48: =HLOOKUP(B48,December!$H$1:$CF$37,37,FALSE) -> 59 | I48: =HLOOKUP(B48,January!$H$1:$CF$53,53,FALSE) -> 19 | N48: =SUM(D48:M48) -> 544
A49: 47 | B49: Eoghan Farrelly | C49: Definitely Last Chance Saloon! | D49: =HLOOKUP(B49,August!$H$1:$CF$83,83,FALSE) -> 175 | E49: =HLOOKUP(B49,September!$H$1:$CF$37,37,FALSE) -> 68 | F49: =HLOOKUP(B49,October!$H$1:$CF$78,78,FALSE) -> 149 | G49: =HLOOKUP(B49,November!$H$1:$CF$39,39,FALSE) -> 65 | H49: =HLOOKUP(B49,December!$H$1:$CF$37,37,FALSE) -> 60 | I49: =HLOOKUP(B49,January!$H$1:$CF$53,53,FALSE) -> 24 | N49: =SUM(D49:M49) -> 541
A50: 48 | B50: Niall Carroll | C50: Rubber's Magic Bus | D50: =HLOOKUP(B50,August!$H$1:$CF$83,83,FALSE) -> 155 | E50: =HLOOKUP(B50,September!$H$1:$CF$37,37,FALSE) -> 53 | F50: =HLOOKUP(B50,October!$H$1:$CF$78,78,FALSE) -> 184 | G50: =HLOOKUP(B50,November!$H$1:$CF$39,39,FALSE) -> 65 | H50: =HLOOKUP(B50,December!$H$1:$CF$37,37,FALSE) -> 65 | I50: =HLOOKUP(B50,January!$H$1:$CF$53,53,FALSE) -> 19 | N50: =SUM(D50:M50) -> 541
A51: 49 | B51: Brian Haughton | C51: Jurgen's Mighty Reds | D51: =HLOOKUP(B51,August!$H$1:$CF$83,83,FALSE) -> 154 | E51: =HLOOKUP(B51,September!$H$1:$CF$37,37,FALSE) -> 59 | F51: =HLOOKUP(B51,October!$H$1:$CF$78,78,FALSE) -> 216 | G51: =HLOOKUP(B51,November!$H$1:$CF$39,39,FALSE) -> 47 | H51: =HLOOKUP(B51,December!$H$1:$CF$37,37,FALSE) -> 44 | I51: =HLOOKUP(B51,January!$H$1:$CF$53,53,FALSE) -> 19 | N51: =SUM(D51:M51) -> 539
A52: 50 | B52: Gary Fitzpatrick | C52: Werner's Originals | D52: =HLOOKUP(B52,August!$H$1:$CF$83,83,FALSE) -> 170 | E52: =HLOOKUP(B52,September!$H$1:$CF$37,37,FALSE) -> 58 | F52: =HLOOKUP(B52,October!$H$1:$CF$78,78,FALSE) -> 149 | G52: =HLOOKUP(B52,November!$H$1:$CF$39,39,FALSE) -> 65 | H52: =HLOOKUP(B52,December!$H$1:$CF$37,37,FALSE) -> 65 | I52: =HLOOKUP(B52,January!$H$1:$CF$53,53,FALSE) -> 29 | N52: =SUM(D52:M52) -> 536
A53: 51 | B53: Johno Percy | C53: Mo Money Mo Salah | D53: =HLOOKUP(B53,August!$H$1:$CF$83,83,FALSE) -> 127 | E53: =HLOOKUP(B53,September!$H$1:$CF$37,37,FALSE) -> 55 | F53: =HLOOKUP(B53,October!$H$1:$CF$78,78,FALSE) -> 181 | G53: =HLOOKUP(B53,November!$H$1:$CF$39,39,FALSE) -> 66 | H53: =HLOOKUP(B53,December!$H$1:$CF$37,37,FALSE) -> 78 | I53: =HLOOKUP(B53,January!$H$1:$CF$53,53,FALSE) -> 27 | N53: =SUM(D53:M53) -> 534
A54: 52 | B54: Brian Mullen | C54: Boris Cuts His Hair With A Knife And Fork | D54: =HLOOKUP(B54,August!$H$1:$CF$83,83,FALSE) -> 120 | E54: =HLOOKUP(B54,September!$H$1:$CF$37,37,FALSE) -> 58 | F54: =HLOOKUP(B54,October!$H$1:$CF$78,78,FALSE) -> 196 | G54: =HLOOKUP(B54,November!$H$1:$CF$39,39,FALSE) -> 64 | H54: =HLOOKUP(B54,December!$H$1:$CF$37,37,FALSE) -> 67 | I54: =HLOOKUP(B54,January!$H$1:$CF$53,53,FALSE) -> 27 | N54: =SUM(D54:M54) -> 532
A55: 53 | B55: Andy Dunne | C55: Steve McMahon's Tackle | D55: =HLOOKUP(B55,August!$H$1:$CF$83,83,FALSE) -> 170 | E55: =HLOOKUP(B55,September!$H$1:$CF$37,37,FALSE) -> 53 | F55: =HLOOKUP(B55,October!$H$1:$CF$78,78,FALSE) -> 184 | G55: =HLOOKUP(B55,November!$H$1:$CF$39,39,FALSE) -> 60 | H55: =HLOOKUP(B55,December!$H$1:$CF$37,37,FALSE) -> 50 | I55: =HLOOKUP(B55,January!$H$1:$CF$53,53,FALSE) -> 14 | N55: =SUM(D55:M55) -> 531
A56: 54 | B56: Niall Gregory | C56: Yid Army | D56: =HLOOKUP(B56,August!$H$1:$CF$83,83,FALSE) -> 151 | E56: =HLOOKUP(B56,September!$H$1:$CF$37,37,FALSE) -> 74 | F56: =HLOOKUP(B56,October!$H$1:$CF$78,78,FALSE) -> 170 | G56: =HLOOKUP(B56,November!$H$1:$CF$39,39,FALSE) -> 36 | H56: =HLOOKUP(B56,December!$H$1:$CF$37,37,FALSE) -> 63 | I56: =HLOOKUP(B56,January!$H$1:$CF$53,53,FALSE) -> 36 | N56: =SUM(D56:M56) -> 530
A57: 55 | B57: Liam Keohan | C57: Artekkers | D57: =HLOOKUP(B57,August!$H$1:$CF$83,83,FALSE) -> 125 | E57: =HLOOKUP(B57,September!$H$1:$CF$37,37,FALSE) -> 68 | F57: =HLOOKUP(B57,October!$H$1:$CF$78,78,FALSE) -> 176 | G57: =HLOOKUP(B57,November!$H$1:$CF$39,39,FALSE) -> 69 | H57: =HLOOKUP(B57,December!$H$1:$CF$37,37,FALSE) -> 67 | I57: =HLOOKUP(B57,January!$H$1:$CF$53,53,FALSE) -> 22 | N57: =SUM(D57:M57) -> 527
A58: 56 | B58: Gerry Moore | C58: A Hat Trick of Gabriels | D58: =HLOOKUP(B58,August!$H$1:$CF$83,83,FALSE) -> 183 | E58: =HLOOKUP(B58,September!$H$1:$CF$37,37,FALSE) -> 37 | F58: =HLOOKUP(B58,October!$H$1:$CF$78,78,FALSE) -> 183 | G58: =HLOOKUP(B58,November!$H$1:$CF$39,39,FALSE) -> 46 | H58: =HLOOKUP(B58,December!$H$1:$CF$37,37,FALSE) -> 62 | I58: =HLOOKUP(B58,January!$H$1:$CF$53,53,FALSE) -> 15 | N58: =SUM(D58:M58) -> 526
A59: 57 | B59: Conor MacMahon | C59: Fu@#ing Cowboys Ted | D59: =HLOOKUP(B59,August!$H$1:$CF$83,83,FALSE) -> 143 | E59: =HLOOKUP(B59,September!$H$1:$CF$37,37,FALSE) -> 66 | F59: =HLOOKUP(B59,October!$H$1:$CF$78,78,FALSE) -> 204 | G59: =HLOOKUP(B59,November!$H$1:$CF$39,39,FALSE) -> 58 | H59: =HLOOKUP(B59,December!$H$1:$CF$37,37,FALSE) -> 39 | I59: =HLOOKUP(B59,January!$H$1:$CF$53,53,FALSE) -> 14 | N59: =SUM(D59:M59) -> 524
A60: 58 | B60: Paul Prendergast | C60: The Untouchables | D60: =HLOOKUP(B60,August!$H$1:$CF$83,83,FALSE) -> 122 | E60: =HLOOKUP(B60,September!$H$1:$CF$37,37,FALSE) -> 50 | F60: =HLOOKUP(B60,October!$H$1:$CF$78,78,FALSE) -> 216 | G60: =HLOOKUP(B60,November!$H$1:$CF$39,39,FALSE) -> 76 | H60: =HLOOKUP(B60,December!$H$1:$CF$37,37,FALSE) -> 53 | I60: =HLOOKUP(B60,January!$H$1:$CF$53,53,FALSE) -> 7 | N60: =SUM(D60:M60) -> 524
A61: 59 | B61: Jenny Behan | C61: Offside Again | D61: =HLOOKUP(B61,August!$H$1:$CF$83,83,FALSE) -> 171 | E61: =HLOOKUP(B61,September!$H$1:$CF$37,37,FALSE) -> 51 | F61: =HLOOKUP(B61,October!$H$1:$CF$78,78,FALSE) -> 173 | G61: =HLOOKUP(B61,November!$H$1:$CF$39,39,FALSE) -> 63 | H61: =HLOOKUP(B61,December!$H$1:$CF$37,37,FALSE) -> 47 | I61: =HLOOKUP(B61,January!$H$1:$CF$53,53,FALSE) -> 12 | N61: =SUM(D61:M61) -> 517
A62: 60 | B62: Gerard McCluskey | C62: Breffni_Blues | D62: =HLOOKUP(B62,August!$H$1:$CF$83,83,FALSE) -> 140 | E62: =HLOOKUP(B62,September!$H$1:$CF$37,37,FALSE) -> 56 | F62: =HLOOKUP(B62,October!$H$1:$CF$78,78,FALSE) -> 214 | G62: =HLOOKUP(B62,November!$H$1:$CF$39,39,FALSE) -> 64 | H62: =HLOOKUP(B62,December!$H$1:$CF$37,37,FALSE) -> 37 | I62: =HLOOKUP(B62,January!$H$1:$CF$53,53,FALSE) -> 4 | N62: =SUM(D62:M62) -> 515
A63: 61 | B63: Ciara Walsh | C63: Kirvin Kicks | D63: =HLOOKUP(B63,August!$H$1:$CF$83,83,FALSE) -> 138 | E63: =HLOOKUP(B63,September!$H$1:$CF$37,37,FALSE) -> 54 | F63: =HLOOKUP(B63,October!$H$1:$CF$78,78,FALSE) -> 152 | G63: =HLOOKUP(B63,November!$H$1:$CF$39,39,FALSE) -> 63 | H63: =HLOOKUP(B63,December!$H$1:$CF$37,37,FALSE) -> 79 | I63: =HLOOKUP(B63,January!$H$1:$CF$53,53,FALSE) -> 26 | N63: =SUM(D63:M63) -> 512
A64: 62 | B64: John Hempenstall | C64: Real SoSo Bad | D64: =HLOOKUP(B64,August!$H$1:$CF$83,83,FALSE) -> 156 | E64: =HLOOKUP(B64,September!$H$1:$CF$37,37,FALSE) -> 74 | F64: =HLOOKUP(B64,October!$H$1:$CF$78,78,FALSE) -> 190 | G64: =HLOOKUP(B64,November!$H$1:$CF$39,39,FALSE) -> 56 | H64: =HLOOKUP(B64,December!$H$1:$CF$37,37,FALSE) -> 23 | I64: =HLOOKUP(B64,January!$H$1:$CF$53,53,FALSE) -> 6 | N64: =SUM(D64:M64) -> 505
A65: 63 | B65: Sarah Coward | C65: Nancy's Army | D65: =HLOOKUP(B65,August!$H$1:$CF$83,83,FALSE) -> 143 | E65: =HLOOKUP(B65,September!$H$1:$CF$37,37,FALSE) -> 35 | F65: =HLOOKUP(B65,October!$H$1:$CF$78,78,FALSE) -> 167 | G65: =HLOOKUP(B65,November!$H$1:$CF$39,39,FALSE) -> 78 | H65: =HLOOKUP(B65,December!$H$1:$CF$37,37,FALSE) -> 62 | I65: =HLOOKUP(B65,January!$H$1:$CF$53,53,FALSE) -> 15 | N65: =SUM(D65:M65) -> 500
A66: 64 | B66: Ronan Rafferty | C66: Ragballrovers | D66: =HLOOKUP(B66,August!$H$1:$CF$83,83,FALSE) -> 157 | E66: =HLOOKUP(B66,September!$H$1:$CF$37,37,FALSE) -> 50 | F66: =HLOOKUP(B66,October!$H$1:$CF$78,78,FALSE) -> 161 | G66: =HLOOKUP(B66,November!$H$1:$CF$39,39,FALSE) -> 56 | H66: =HLOOKUP(B66,December!$H$1:$CF$37,37,FALSE) -> 48 | I66: =HLOOKUP(B66,January!$H$1:$CF$53,53,FALSE) -> 27 | N66: =SUM(D66:M66) -> 499
A67: 65 | B67: Christina Morgan | C67: Mwahahahaha | D67: =HLOOKUP(B67,August!$H$1:$CF$83,83,FALSE) -> 124 | E67: =HLOOKUP(B67,September!$H$1:$CF$37,37,FALSE) -> 54 | F67: =HLOOKUP(B67,October!$H$1:$CF$78,78,FALSE) -> 181 | G67: =HLOOKUP(B67,November!$H$1:$CF$39,39,FALSE) -> 47 | H67: =HLOOKUP(B67,December!$H$1:$CF$37,37,FALSE) -> 69 | I67: =HLOOKUP(B67,January!$H$1:$CF$53,53,FALSE) -> 19 | N67: =SUM(D67:M67) -> 494
A68: 66 | B68: Gary Donnelly | C68: GarWin Nunez | D68: =HLOOKUP(B68,August!$H$1:$CF$83,83,FALSE) -> 163 | E68: =HLOOKUP(B68,September!$H$1:$CF$37,37,FALSE) -> 71 | F68: =HLOOKUP(B68,October!$H$1:$CF$78,78,FALSE) -> 164 | G68: =HLOOKUP(B68,November!$H$1:$CF$39,39,FALSE) -> 53 | H68: =HLOOKUP(B68,December!$H$1:$CF$37,37,FALSE) -> 39 | I68: =HLOOKUP(B68,January!$H$1:$CF$53,53,FALSE) -> 4 | N68: =SUM(D68:M68) -> 494
A69: 67 | B69: Lionel Knott | C69: The Best Redabbey Reds | D69: =HLOOKUP(B69,August!$H$1:$CF$83,83,FALSE) -> 163 | E69: =HLOOKUP(B69,September!$H$1:$CF$37,37,FALSE) -> 30 | F69: =HLOOKUP(B69,October!$H$1:$CF$78,78,FALSE) -> 137 | G69: =HLOOKUP(B69,November!$H$1:$CF$39,39,FALSE) -> 83 | H69: =HLOOKUP(B69,December!$H$1:$CF$37,37,FALSE) -> 57 | I69: =HLOOKUP(B69,January!$H$1:$CF$53,53,FALSE) -> 15 | N69: =SUM(D69:M69) -> 485
A70: 68 | B70: Monica Collins | C70: Monica's Legs Eleven | D70: =HLOOKUP(B70,August!$H$1:$CF$83,83,FALSE) -> 128 | E70: =HLOOKUP(B70,September!$H$1:$CF$37,37,FALSE) -> 55 | F70: =HLOOKUP(B70,October!$H$1:$CF$78,78,FALSE) -> 171 | G70: =HLOOKUP(B70,November!$H$1:$CF$39,39,FALSE) -> 56 | H70: =HLOOKUP(B70,December!$H$1:$CF$37,37,FALSE) -> 42 | I70: =HLOOKUP(B70,January!$H$1:$CF$53,53,FALSE) -> 12 | N70: =SUM(D70:M70) -> 464
A71: 69 | B71: John Massey | C71: Geezers On Tour | D71: =HLOOKUP(B71,August!$H$1:$CF$83,83,FALSE) -> 157 | E71: =HLOOKUP(B71,September!$H$1:$CF$37,37,FALSE) -> 65 | F71: =HLOOKUP(B71,October!$H$1:$CF$78,78,FALSE) -> 151 | G71: =HLOOKUP(B71,November!$H$1:$CF$39,39,FALSE) -> 71 | H71: =HLOOKUP(B71,December!$H$1:$CF$37,37,FALSE) -> 13 | I71: =HLOOKUP(B71,January!$H$1:$CF$53,53,FALSE) -> 2 | N71: =SUM(D71:M71) -> 459
A72: 70 | B72: Javier Suarez | C72: Cafu Con Leche | D72: =HLOOKUP(B72,August!$H$1:$CF$83,83,FALSE) -> 157 | E72: =HLOOKUP(B72,September!$H$1:$CF$37,37,FALSE) -> 55 | F72: =HLOOKUP(B72,October!$H$1:$CF$78,78,FALSE) -> 136 | G72: =HLOOKUP(B72,November!$H$1:$CF$39,39,FALSE) -> 26 | H72: =HLOOKUP(B72,December!$H$1:$CF$37,37,FALSE) -> 63 | I72: =HLOOKUP(B72,January!$H$1:$CF$53,53,FALSE) -> 17 | N72: =SUM(D72:M72) -> 454
A73: 71 | B73: Colm Cahill | C73: COYS FC | D73: =HLOOKUP(B73,August!$H$1:$CF$83,83,FALSE) -> 129 | E73: =HLOOKUP(B73,September!$H$1:$CF$37,37,FALSE) -> 57 | F73: =HLOOKUP(B73,October!$H$1:$CF$78,78,FALSE) -> 155 | G73: =HLOOKUP(B73,November!$H$1:$CF$39,39,FALSE) -> 49 | H73: =HLOOKUP(B73,December!$H$1:$CF$37,37,FALSE) -> 37 | I73: =HLOOKUP(B73,January!$H$1:$CF$53,53,FALSE) -> 21 | N73: =SUM(D73:M73) -> 448
A74: 72 | B74: Derek McDonald | C74: Closet Scouser | D74: =HLOOKUP(B74,August!$H$1:$CF$83,83,FALSE) -> 163 | E74: =HLOOKUP(B74,September!$H$1:$CF$37,37,FALSE) -> 73 | F74: =HLOOKUP(B74,October!$H$1:$CF$78,78,FALSE) -> 119 | G74: =HLOOKUP(B74,November!$H$1:$CF$39,39,FALSE) -> 35 | H74: =HLOOKUP(B74,December!$H$1:$CF$37,37,FALSE) -> 15 | I74: =HLOOKUP(B74,January!$H$1:$CF$53,53,FALSE) -> 27 | N74: =SUM(D74:M74) -> 432
A75: 73 | B75: Shane Hempenstall | C75: Ham Salah | D75: =HLOOKUP(B75,August!$H$1:$CF$83,83,FALSE) -> 150 | E75: =HLOOKUP(B75,September!$H$1:$CF$37,37,FALSE) -> 43 | F75: =HLOOKUP(B75,October!$H$1:$CF$78,78,FALSE) -> 156 | G75: =HLOOKUP(B75,November!$H$1:$CF$39,39,FALSE) -> 64 | H75: =HLOOKUP(B75,December!$H$1:$CF$37,37,FALSE) -> 2 | I75: =HLOOKUP(B75,January!$H$1:$CF$53,53,FALSE) -> 2 | N75: =SUM(D75:M75) -> 417
A76: 74 | B76: Andrew Keohan | C76: Allstar Assholes | D76: =HLOOKUP(B76,August!$H$1:$CF$83,83,FALSE) -> 128 | E76: =HLOOKUP(B76,September!$H$1:$CF$37,37,FALSE) -> 38 | F76: =HLOOKUP(B76,October!$H$1:$CF$78,78,FALSE) -> 139 | G76: =HLOOKUP(B76,November!$H$1:$CF$39,39,FALSE) -> 6 | H76: =HLOOKUP(B76,December!$H$1:$CF$37,37,FALSE) -> 8 | I76: =HLOOKUP(B76,January!$H$1:$CF$53,53,FALSE) -> 4 | N76: =SUM(D76:M76) -> 323
A77: 75 | B77: Kieran Killeen | C77: Wanderers | D77: =HLOOKUP(B77,August!$H$1:$CF$83,83,FALSE) -> 105 | E77: =HLOOKUP(B77,September!$H$1:$CF$37,37,FALSE) -> 43 | F77: =HLOOKUP(B77,October!$H$1:$CF$78,78,FALSE) -> 66 | G77: =HLOOKUP(B77,November!$H$1:$CF$39,39,FALSE) -> 4 | H77: =HLOOKUP(B77,December!$H$1:$CF$37,37,FALSE) -> 52 | I77: =HLOOKUP(B77,January!$H$1:$CF$53,53,FALSE) -> 32 | N77: =SUM(D77:M77) -> 302
A78: 76 | B78: Shane Finnan | C78: Interlocking Spurs | D78: =HLOOKUP(B78,August!$H$1:$CF$83,83,FALSE) -> 141 | E78: =HLOOKUP(B78,September!$H$1:$CF$37,37,FALSE) -> 36 | F78: =HLOOKUP(B78,October!$H$1:$CF$78,78,FALSE) -> 93 | G78: =HLOOKUP(B78,November!$H$1:$CF$39,39,FALSE) -> 8 | H78: =HLOOKUP(B78,December!$H$1:$CF$37,37,FALSE) -> 2 | I78: =HLOOKUP(B78,January!$H$1:$CF$53,53,FALSE) -> 2 | N78: =SUM(D78:M78) -> 282
A79: 77 | B79: Ciaran Healy | C79: I Forgot Again This Week | D79: =HLOOKUP(B79,August!$H$1:$CF$83,83,FALSE) -> 160 | E79: =HLOOKUP(B79,September!$H$1:$CF$37,37,FALSE) -> 8 | F79: =HLOOKUP(B79,October!$H$1:$CF$78,78,FALSE) -> 24 | G79: =HLOOKUP(B79,November!$H$1:$CF$39,39,FALSE) -> 10 | H79: =HLOOKUP(B79,December!$H$1:$CF$37,37,FALSE) -> 10 | I79: =HLOOKUP(B79,January!$H$1:$CF$53,53,FALSE) -> 4 | N79: =SUM(D79:M79) -> 216

Sheet August
H1: Aidan Scanlon | I1: Aidan White | J1: Anastas Popov | K1: Andrew Keohan | L1: Andy Dunne | M1: Bobby Hynes | N1: Brendan Maguire | O1: Brian Haughton | P1: Brian Mullen | Q1: Brian Prendergast | R1: Caroline Carroll | S1: Cathal Thornton | T1: Chris Keohan | U1: Christina Morgan | V1: Ciara Walsh | W1: Ciaran Healy | X1: Ciaran O'Hart | Y1: Ciaran Rooney | Z1: Colm Cahill | AA1: Con McSweeney | AB1: Conor MacMahon | AC1: Craig Calvert | AD1: Darragh Kenny | AE1: Dave McGinley | AF1: David Cooney | AG1: David Lavelle | AH1: Dean Kelly | AI1: Derek McDonald | AJ1: Dylan Delaney | AK1: Dylan O'Riordan | AL1: Eoghan Farrelly | AM1: Frank McSweeney | AN1: Gareth Pierpoint | AO1: Gary Donnelly | AP1: Gary Fitzpatrick | AQ1: Gary McGurk | AR1: Gavin Morgan | AS1: Gerard McCluskey | AT1: Gerry Draper | AU1: Gerry Moore | AV1: Graham Pierpoint | AW1: Ian McSweeney | AX1: James Keville | AY1: Javier Suarez | AZ1: Jenny Behan | BA1: Joe Behan | BB1: Joe Turner | BC1: John Brophy | BD1: John Hempenstall | BE1: John Massey | BF1: Johno Percy | BG1: Jonathan Fox | BH1: Joseph Kavanagh | BI1: Keith Ryan | BJ1: Kieran Killeen | BK1: Liam Keohan | BL1: Lionel Knott | BM1: Micheal Joyce | BN1: Monica Collins | BO1: Niall Carroll | BP1: Niall Gregory | BQ1: Paul Moore | BR1: Paul Prendergast | BS1: Phil Doyle | BT1: Philip Jordan | BU1: Richard Johnston | BV1: Robert Hynes | BW1: Roisin Joyce | BX1: Ronan Rafferty | BY1: Rory Ellard | BZ1: Sarah Coward | CA1: Sean Cleary | CB1: Sean O'Mairtin | CC1: Shane Finnan | CD1: Shane Hempenstall | CE1: Simon Scanlon | CF1: Tommy Hamill
A2: Date | B2: Teams | F2: Time
A3: 2022-08-05 | B3: Crystal Palace | C3: 0 | D3: 2 | E3: Arsenal | F3: 19:45:00 | H3: 5 | I3: 5 | J3: 10 | K3: 0 | L3: 0 | M3: 5 | N3: 10 | O3: 5 | P3: 10 | Q3: 5 | R3: 0 | S3: 0 | T3: 5 | U3: 0 | V3: 5 | W3: 5 | X3: 5 | Y3: 5 | Z3: 5 | AA3: 5 | AB3: 5 | AC3: 0 | AD3: 0 | AE3: 0 | AF3: 5 | AG3: 10 | AH3: 0 | AI3: 5 | AJ3: 5 | AK3: 5 | AL3: 5 | AM3: 0 | AN3: 5 | AO3: 5 | AP3: 0 | AQ3: 5 | AR3: 10 | AS3: - | AT3: 0 | AU3: 5 | AV3: 10 | AW3: 10 | AX3: 5 | AY3: 5 | AZ3: 0 | BA3: 5 | BB3: 0 | BC3: 5 | BD3: 10 | BE3: 5 | BF3: 0 | BG3: 5 | BH3: 5 | BI3: 10 | BJ3: 0 | BK3: 5 | BL3: 0 | BM3: 0 | BN3: 5 | BO3: 0 | BP3: 0 | BQ3: 5 | BR3: 0 | BS3: 0 | BT3: 10 | BU3: 0 | BV3: 0 | BW3: 0 | BX3: 0 | BY3: 5 | BZ3: 0 | CA3: 5 | CB3: 0 | CC3: 5 | CD3: 5 | CE3: 0 | CF3: 0
A4: 2022-08-06 | B4: Fulham | C4: 2 | D4: 2 | E4: Liverpool | F4: 12:30:00 | H4: 0 | I4: 0 | J4: 0 | K4: 0 | L4: 0 | M4: 0 | N4: 0 | O4: 0 | P4: 0 | Q4: 0 | R4: 0 | S4: 0 | T4: 0 | U4: 0 | V4: 10 | W4: 0 | X4: 0 | Y4: 0 | Z4: 0 | AA4: 0 | AB4: 0 | AC4: 0 | AD4: 0 | AE4: 0 | AF4: 0 | AG4: 0 | AH4: 0 | AI4: 0 | AJ4: 0 | AK4: 0 | AL4: 0 | AM4: 0 | AN4: 0 | AO4: 0 | AP4: 0 | AQ4: 0 | AR4: 0 | AS4: 0 | AT4: 0 | AU4: 0 | AV4: 0 | AW4: 0 | AX4: 0 | AY4: 0 | AZ4: 0 | BA4: 0 | BB4: 0 | BC4: 0 | BD4: 0 | BE4: 0 | BF4: 0 | BG4: 0 | BH4: 0 | BI4: 0 | BJ4: 0 | BK4: 0 | BL4: 0 | BM4: 0 | BN4: 0 | BO4: 0 | BP4: 0 | BQ4: 0 | BR4: 0 | BS4: 0 | BT4: 0 | BU4: 0 | BV4: 0 | BW4: 0 | BX4: 0 | BY4: 0 | BZ4: 0 | CA4: 0 | CB4: 0 | CC4: 0 | CD4: 0 | CE4: 0 | CF4: 0
A5: 2022-08-06 | B5: Bournemouth | C5: 2 | D5: 0 | E5: Aston Villa | F5: 15:00:00 | H5: 0 | I5: 0 | J5: 0 | K5: 0 | L5: 0 | M5: 0 | N5: 0 | O5: 0 | P5: 0 | Q5: 0 | R5: 0 | S5: 5 | T5: 0 | U5: 0 | V5: 0 | W5: 0 | X5: 5 | Y5: 0 | Z5: 0 | AA5: 0 | AB5: 0 | AC5: 0 | AD5: 0 | AE5: 5 | AF5: 0 | AG5: 0 | AH5: 0 | AI5: 0 | AJ5: 0 | AK5: 0 | AL5: 0 | AM5: 0 | AN5: 0 | AO5: 0 | AP5: 0 | AQ5: 0 | AR5: 0 | AS5: 5 | AT5: 0 | AU5: 0 | AV5: 0 | AW5: 0 | AX5: 0 | AY5: 0 | AZ5: 0 | BA5: 0 | BB5: 0 | BC5: 0 | BD5: 0 | BE5: 0 | BF5: 0 | BG5: 0 | BH5: 0 | BI5: 0 | BJ5: 0 | BK5: 0 | BL5: 0 | BM5: 5 | BN5: 0 | BO5: 0 | BP5: 0 | BQ5: 0 | BR5: 0 | BS5: 0 | BT5: 0 | BU5: 0 | BV5: 0 | BW5: 5 | BX5: 0 | BY5: 0 | BZ5: 0 | CA5: 0 | CB5: 0 | CC5: 0 | CD5: 0 | CE5: 0 | CF5: 0
A6: 2022-08-06 | B6: Leeds Utd | C6: 2 | D6: 1 | E6: Wolves | F6: 15:00:00 | H6: 0 | I6: 0 | J6: 0 | K6: 0 | L6: 10 | M6: 0 | N6: 5 | O6: 0 | P6: 0 | Q6: 10 | R6: 0 | S6: 0 | T6: 0 | U6: 5 | V6: 0 | W6: 0 | X6: 0 | Y6: 0 | Z6: 0 | AA6: 10 | AB6: 0 | AC6: 0 | AD6: 0 | AE6: 0 | AF6: 10 | AG6: 0 | AH6: 0 | AI6: 0 | AJ6: 10 | AK6: 0 | AL6: 10 | AM6: 5 | AN6: 0 | AO6: 0 | AP6: 0 | AQ6: 5 | AR6: 0 | AS6: 10 | AT6: 0 | AU6: 0 | AV6: 0 | AW6: 0 | AX6: 10 | AY6: 0 | AZ6: 10 | BA6: 10 | BB6: 5 | BC6: 10 | BD6: 0 | BE6: 0 | BF6: 0 | BG6: 5 | BH6: 0 | BI6: 0 | BJ6: 0 | BK6: 0 | BL6: 10 | BM6: 0 | BN6: 0 | BO6: 0 | BP6: 10 | BQ6: 5 | BR6: 5 | BS6: 10 | BT6: 0 | BU6: 0 | BV6: 10 | BW6: 0 | BX6: 0 | BY6: 0 | BZ6: 0 | CA6: 0 | CB6: 5 | CC6: 0 | CD6: 0 | CE6: 0 | CF6: 5
A7: 2022-08-06 | B7: Newcastle | C7: 2 | D7: 0 | E7: Nottingham Forest | F7: 15:00:00 | H7: 5 | I7: 5 | J7: 10 | K7: 10 | L7: 5 | M7: 5 | N7: 5 | O7: 10 | P7: 0 | Q7: 10 | R7: 10 | S7: 10 | T7: 10 | U7: 10 | V7: 5 | W7: 10 | X7: 10 | Y7: 10 | Z7: 5 | AA7: 10 | AB7: 10 | AC7: 5 | AD7: 10 | AE7: 5 | AF7: 0 | AG7: 5 | AH7: 10 | AI7: 5 | AJ7: 5 | AK7: 0 | AL7: 5 | AM7: 0 | AN7: 10 | AO7: 5 | AP7: 5 | AQ7: 10 | AR7: 10 | AS7: 10 | AT7: 5 | AU7: 5 | AV7: 10 | AW7: 0 | AX7: 5 | AY7: 5 | AZ7: 10 | BA7: 10 | BB7: 5 | BC7: 10 | BD7: 10 | BE7: 10 | BF7: 5 | BG7: 5 | BH7: 5 | BI7: 5 | BJ7: 0 | BK7: 10 | BL7: 5 | BM7: 5 | BN7: 0 | BO7: 5 | BP7: 10 | BQ7: 10 | BR7: 5 | BS7: 10 | BT7: 5 | BU7: 0 | BV7: 5 | BW7: 5 | BX7: 0 | BY7: 10 | BZ7: 5 | CA7: 10 | CB7: 5 | CC7: 5 | CD7: 5 | CE7: 5 | CF7: 5
A8: 2022-08-06 | B8: Spurs | C8: 4 | D8: 1 | E8: Southampton | F8: 15:00:00 | H8: 5 | I8: 5 | J8: 5 | K8: 5 | L8: 5 | M8: 5 | N8: 5 | O8: 5 | P8: 5 | Q8: 5 | R8: 5 | S8: 5 | T8: 5 | U8: 5 | V8: 5 | W8: 5 | X8: 5 | Y8: 5 | Z8: 5 | AA8: 5 | AB8: 5 | AC8: 5 | AD8: 5 | AE8: 5 | AF8: 5 | AG8: 5 | AH8: 5 | AI8: 5 | AJ8: 5 | AK8: 5 | AL8: 5 | AM8: 5 | AN8: 5 | AO8: 5 | AP8: 5 | AQ8: 5 | AR8: 5 | AS8: 0 | AT8: 5 | AU8: 5 | AV8: 5 | AW8: 5 | AX8: 5 | AY8: 5 | AZ8: 0 | BA8: 5 | BB8: 5 | BC8: 5 | BD8: 5 | BE8: 5 | BF8: 5 | BG8: 5 | BH8: 5 | BI8: 5 | BJ8: 5 | BK8: 5 | BL8: 5 | BM8: 5 | BN8: 5 | BO8: 5 | BP8: 5 | BQ8: 5 | BR8: 5 | BS8: 5 | BT8: 5 | BU8: 10 | BV8: 5 | BW8: 5 | BX8: 5 | BY8: 5 | BZ8: 5 | CA8: 5 | CB8: 5 | CC8: 5 | CD8: 5 | CE8: 5 | CF8: 5
A9: 2022-08-06 | B9: Everton | C9: 0 | D9: 1 | E9: Chelsea | F9: 17:30:00 | H9: 5 | I9: 5 | J9: 10 | K9: 5 | L9: 5 | M9: 5 | N9: 5 | O9: 5 | P9: 5 | Q9: 5 | R9: 10 | S9: 5 | T9: 5 | U9: 0 | V9: 5 | W9: 5 | X9: 0 | Y9: 5 | Z9: 10 | AA9: 5 | AB9: 5 | AC9: 5 | AD9: 5 | AE9: 5 | AF9: 5 | AG9: 5 | AH9: 5 | AI9: 0 | AJ9: 5 | AK9: 5 | AL9: 5 | AM9: 5 | AN9: 10 | AO9: 5 | AP9: 5 | AQ9: 10 | AR9: 10 | AS9: 0 | AT9: 5 | AU9: 5 | AV9: 5 | AW9: 5 | AX9: 10 | AY9: 5 | AZ9: 5 | BA9: 5 | BB9: 0 | BC9: 10 | BD9: 0 | BE9: 5 | BF9: 5 | BG9: 10 | BH9: 5 | BI9: 5 | BJ9: 5 | BK9: 5 | BL9: 5 | BM9: 5 | BN9: 5 | BO9: 0 | BP9: 0 | BQ9: 5 | BR9: 5 | BS9: 5 | BT9: 5 | BU9: 5 | BV9: 5 | BW9: 5 | BX9: 0 | BY9: 5 | BZ9: 0 | CA9: 5 | CB9: 5 | CC9: 5 | CD9: 5 | CE9: 5 | CF9: 5
A10: 2022-08-07 | B10: Leicester | C10: 2 | D10: 2 | E10: Brentford | F10: 15:00:00 | H10: 0 | I10: 0 | J10: 0 | K10: 0 | L10: 0 | M10: 5 | N10: 0 | O10: 0 | P10: 0 | Q10: 0 | R10: 0 | S10: 0 | T10: 0 | U10: 0 | V10: 0 | W10: 0 | X10: 5 | Y10: 5 | Z10: 0 | AA10: 0 | AB10: 0 | AC10: 0 | AD10: 0 | AE10: 5 | AF10: 0 | AG10: 0 | AH10: 0 | AI10: 0 | AJ10: 10 | AK10: 0 | AL10: 5 | AM10: 0 | AN10: 0 | AO10: 10 | AP10: 0 | AQ10: 0 | AR10: 0 | AS10: 5 | AT10: 0 | AU10: 5 | AV10: 0 | AW10: 0 | AX10: 0 | AY10: 0 | AZ10: 0 | BA10: 0 | BB10: 0 | BC10: 0 | BD10: 0 | BE10: 0 | BF10: 0 | BG10: 0 | BH10: 5 | BI10: 0 | BJ10: 0 | BK10: 0 | BL10: 5 | BM10: 5 | BN10: 0 | BO10: 0 | BP10: 0 | BQ10: 0 | BR10: 0 | BS10: 0 | BT10: 5 | BU10: 0 | BV10: 5 | BW10: 0 | BX10: 0 | BY10: 5 | BZ10: 0 | CA10: 0 | CB10: 0 | CC10: 0 | CD10: 5 | CE10: 0 | CF10: 5
A11: 2022-08-07 | B11: Man Utd | C11: 1 | D11: 2 | E11: Brighton | F11: 14:00:00 | H11: 0 | I11: 0 | J11: 0 | K11: 0 | L11: 0 | M11: 0 | N11: 0 | O11: 0 | P11: 0 | Q11: 0 | R11: 0 | S11: 0 | T11: 0 | U11: 0 | V11: 0 | W11: 0 | X11: 0 | Y11: 0 | Z11: 0 | AA11: 0 | AB11: 0 | AC11: 0 | AD11: 0 | AE11: 0 | AF11: 0 | AG11: 0 | AH11: 0 | AI11: 0 | AJ11: 0 | AK11: 0 | AL11: 0 | AM11: 0 | AN11: 0 | AO11: 0 | AP11: 0 | AQ11: 0 | AR11: 0 | AS11: 0 | AT11: 0 | AU11: 0 | AV11: 0 | AW11: 0 | AX11: 0 | AY11: 0 | AZ11: 0 | BA11: 0 | BB11: 0 | BC11: 0 | BD11: 0 | BE11: 0 | BF11: 0 | BG11: 0 | BH11: 0 | BI11: 0 | BJ11: 0 | BK11: 0 | BL11: 0 | BM11: 0 | BN11: 0 | BO11: 0 | BP11: 0 | BQ11: 0 | BR11: 0 | BS11: 0 | BT11: 0 | BU11: 0 | BV11: 0 | BW11: 0 | BX11: 0 | BY11: 0 | BZ11: 0 | CA11: 0 | CB11: 0 | CC11: 0 | CD11: 0 | CE11: 0 | CF11: 0
A12: 2022-08-07 | B12: West Ham | C12: 0 | D12: 2 | E12: Man City | F12: 16:30:00 | H12: 5 | I12: 5 | J12: 10 | K12: 5 | L12: 5 | M12: 5 | N12: 0 | O12: 5 | P12: 5 | Q12: 5 | R12: 10 | S12: 5 | T12: 10 | U12: 5 | V12: 5 | W12: 5 | X12: 0 | Y12: 5 | Z12: 0 | AA12: 5 | AB12: 5 | AC12: 5 | AD12: 5 | AE12: 5 | AF12: 5 | AG12: 5 | AH12: 5 | AI12: 0 | AJ12: 5 | AK12: 5 | AL12: 5 | AM12: 0 | AN12: 5 | AO12: 0 | AP12: 5 | AQ12: 0 | AR12: 5 | AS12: 5 | AT12: 5 | AU12: 5 | AV12: 10 | AW12: 5 | AX12: 5 | AY12: 5 | AZ12: 5 | BA12: 5 | BB12: 5 | BC12: 5 | BD12: 10 | BE12: 5 | BF12: 5 | BG12: 10 | BH12: 5 | BI12: 10 | BJ12: 5 | BK12: 5 | BL12: 5 | BM12: 5 | BN12: 5 | BO12: 5 | BP12: 5 | BQ12: 5 | BR12: 0 | BS12: 5 | BT12: 5 | BU12: 5 | BV12: 5 | BW12: 5 | BX12: 5 | BY12: 5 | BZ12: 10 | CA12: 5 | CB12: 0 | CC12: 0 | CD12: 10 | CE12: 0 | CF12: 5
A13: 2022-08-13 | B13: Aston Villa | C13: 2 | D13: 1 | E13: Everton | F13: 12:30:00 | H13: 0 | I13: 5 | J13: 5 | K13: 0 | L13: 5 | M13: 5 | N13: 0 | O13: 5 | P13: 0 | Q13: 0 | R13: 5 | S13: 0 | T13: 0 | U13: 0 | V13: 0 | W13: 5 | X13: 10 | Y13: 10 | Z13: 0 | AA13: 0 | AB13: 0 | AC13: 0 | AD13: 10 | AE13: 0 | AF13: 0 | AG13: 10 | AH13: 0 | AI13: 0 | AJ13: 0 | AK13: 0 | AL13: 0 | AM13: 10 | AN13: 5 | AO13: 0 | AP13: 5 | AQ13: 5 | AR13: 0 | AS13: 10 | AT13: 0 | AU13: 5 | AV13: 0 | AW13: 10 | AX13: 0 | AY13: 0 | AZ13: 5 | BA13: 5 | BB13: 0 | BC13: 0 | BD13: 0 | BE13: 5 | BF13: 0 | BG13: 10 | BH13: 5 | BI13: 0 | BJ13: 10 | BK13: 10 | BL13: 5 | BM13: 5 | BN13: 5 | BO13: 0 | BP13: 5 | BQ13: 10 | BR13: 0 | BS13: 5 | BT13: 0 | BU13: 5 | BV13: 5 | BW13: 5 | BX13: 0 | BY13: 10 | BZ13: 0 | CA13: 0 | CB13: 0 | CC13: 5 | CD13: 0 | CE13: 5 | CF13: 0
A14: 2022-08-13 | B14: Arsenal | C14: 4 | D14: 2 | E14: Leicester | F14: 15:00:00 | H14: 5 | I14: 5 | J14: 5 | K14: 5 | L14: 5 | M14: 5 | N14: 5 | O14: 5 | P14: 5 | Q14: 5 | R14: 5 | S14: 5 | T14: 5 | U14: 5 | V14: 0 | W14: 5 | X14: 5 | Y14: 5 | Z14: 5 | AA14: 5 | AB14: 5 | AC14: 5 | AD14: 5 | AE14: 5 | AF14: 5 | AG14: 5 | AH14: 5 | AI14: 5 | AJ14: 5 | AK14: 5 | AL14: 5 | AM14: 0 | AN14: 5 | AO14: 5 | AP14: 5 | AQ14: 5 | AR14: 5 | AS14: 5 | AT14: 5 | AU14: 5 | AV14: 5 | AW14: 5 | AX14: 5 | AY14: 5 | AZ14: 5 | BA14: 5 | BB14: 5 | BC14: 5 | BD14: 5 | BE14: 5 | BF14: 5 | BG14: 5 | BH14: 5 | BI14: 5 | BJ14: 0 | BK14: 5 | BL14: 0 | BM14: 5 | BN14: 5 | BO14: 5 | BP14: 0 | BQ14: 5 | BR14: 5 | BS14: 5 | BT14: 5 | BU14: 5 | BV14: 5 | BW14: 5 | BX14: 0 | BY14: 5 | BZ14: 5 | CA14: 5 | CB14: 5 | CC14: 5 | CD14: 5 | CE14: 0 | CF14: 5
A15: 2022-08-13 | B15: Brighton | C15: 0 | D15: 0 | E15: Newcastle | F15: 15:00:00 | H15: 0 | I15: 0 | J15: 5 | K15: 0 | L15: 0 | M15: 5 | N15: 5 | O15: 0 | P15: 5 | Q15: 5 | R15: 0 | S15: 5 | T15: 5 | U15: 5 | V15: 5 | W15: 0 | X15: 5 | Y15: 5 | Z15: 5 | AA15: 5 | AB15: 0 | AC15: 0 | AD15: 0 | AE15: 5 | AF15: 5 | AG15: 0 | AH15: 0 | AI15: 5 | AJ15: 0 | AK15: 5 | AL15: 5 | AM15: 0 | AN15: 0 | AO15: 5 | AP15: 5 | AQ15: 5 | AR15: 0 | AS15: 0 | AT15: 0 | AU15: 5 | AV15: 0 | AW15: 0 | AX15: 5 | AY15: 5 | AZ15: 0 | BA15: 5 | BB15: 0 | BC15: 5 | BD15: 5 | BE15: 5 | BF15: 0 | BG15: 0 | BH15: 0 | BI15: 0 | BJ15: 5 | BK15: 0 | BL15: 5 | BM15: 5 | BN15: 0 | BO15: 5 | BP15: 5 | BQ15: 5 | BR15: 0 | BS15: 0 | BT15: 0 | BU15: 0 | BV15: 5 | BW15: 5 | BX15: 0 | BY15: 5 | BZ15: 0 | CA15: 5 | CB15: 5 | CC15: 5 | CD15: 0 | CE15: 0 | CF15: 0
A16: 2022-08-13 | B16: Man City | C16: 4 | D16: 0 | E16: Bournemouth | F16: 15:00:00 | H16: 5 | I16: 5 | J16: 5 | K16: 5 | L16: 5 | M16: 10 | N16: 5 | O16: 5 | P16: 5 | Q16: 10 | R16: 5 | S16: 5 | T16: 5 | U16: 5 | V16: 5 | W16: 5 | X16: 5 | Y16: 5 | Z16: 5 | AA16: 10 | AB16: 5 | AC16: 5 | AD16: 10 | AE16: 5 | AF16: 10 | AG16: 10 | AH16: 5 | AI16: 5 | AJ16: 5 | AK16: 5 | AL16: 10 | AM16: 5 | AN16: 5 | AO16: 5 | AP16: 5 | AQ16: 5 | AR16: 5 | AS16: 5 | AT16: 5 | AU16: 5 | AV16: 10 | AW16: 5 | AX16: 10 | AY16: 10 | AZ16: 5 | BA16: 10 | BB16: 5 | BC16: 5 | BD16: 5 | BE16: 10 | BF16: 5 | BG16: 5 | BH16: 5 | BI16: 10 | BJ16: 5 | BK16: 5 | BL16: 5 | BM16: 5 | BN16: 5 | BO16: 10 | BP16: 5 | BQ16: 5 | BR16: 5 | BS16: 10 | BT16: 10 | BU16: 5 | BV16: 5 | BW16: 5 | BX16: 10 | BY16: 10 | BZ16: 5 | CA16: 10 | CB16: 5 | CC16: 10 | CD16: 5 | CE16: 10 | CF16: 5
A17: 2022-08-13 | B17: Southampton | C17: 2 | D17: 2 | E17: Leeds Utd | F17: 15:00:00 | H17: 5 | I17: 5 | J17: 0 | K17: 0 | L17: 0 | M17: 5 | N17: 0 | O17: 0 | P17: 0 | Q17: 0 | R17: 5 | S17: 0 | T17: 0 | U17: 0 | V17: 0 | W17: 0 | X17: 0 | Y17: 0 | Z17: 0 | AA17: 0 | AB17: 5 | AC17: 0 | AD17: 0 | AE17: 5 | AF17: 10 | AG17: 0 | AH17: 10 | AI17: 0 | AJ17: 0 | AK17: 0 | AL17: 5 | AM17: 0 | AN17: 0 | AO17: 0 | AP17: 0 | AQ17: 5 | AR17: 0 | AS17: 0 | AT17: 0 | AU17: 5 | AV17: 5 | AW17: 10 | AX17: 0 | AY17: 5 | AZ17: 0 | BA17: 10 | BB17: 5 | BC17: 0 | BD17: 5 | BE17: 0 | BF17: 0 | BG17: 0 | BH17: 0 | BI17: 10 | BJ17: 0 | BK17: 0 | BL17: 5 | BM17: 0 | BN17: 0 | BO17: 5 | BP17: 0 | BQ17: 5 | BR17: 0 | BS17: 5 | BT17: 0 | BU17: 10 | BV17: 5 | BW17: 0 | BX17: 0 | BY17: 0 | BZ17: 0 | CA17: 0 | CB17: 5 | CC17: 0 | CD17: 0 | CE17: 0 | CF17: 5
A18: 2022-08-13 | B18: Wolves | C18: 0 | D18: 0 | E18: Fulham | F18: 15:00:00 | H18: 5 | I18: 0 | J18: 5 | K18: 5 | L18: 0 | M18: 0 | N18: 5 | O18: 10 | P18: 0 | Q18: 0 | R18: 0 | S18: 0 | T18: 0 | U18: 0 | V18: 0 | W18: 0 | X18: 5 | Y18: 0 | Z18: 0 | AA18: 0 | AB18: 0 | AC18: 5 | AD18: 5 | AE18: 0 | AF18: 0 | AG18: 5 | AH18: 0 | AI18: 5 | AJ18: 0 | AK18: 0 | AL18: 0 | AM18: 0 | AN18: 0 | AO18: 0 | AP18: 0 | AQ18: 0 | AR18: 0 | AS18: 0 | AT18: 0 | AU18: 5 | AV18: 0 | AW18: 0 | AX18: 0 | AY18: 0 | AZ18: 0 | BA18: 0 | BB18: 0 | BC18: 0 | BD18: 5 | BE18: 5 | BF18: 0 | BG18: 0 | BH18: 0 | BI18: 5 | BJ18: 0 | BK18: 0 | BL18: 5 | BM18: 5 | BN18: 0 | BO18: 5 | BP18: 5 | BQ18: 5 | BR18: 0 | BS18: 10 | BT18: 0 | BU18: 0 | BV18: 5 | BW18: 5 | BX18: 5 | BY18: 0 | BZ18: 10 | CA18: 5 | CB18: 0 | CC18: 0 | CD18: 5 | CE18: 0 | CF18: 0
A19: 2022-08-13 | B19: Brentford | C19: 4 | D19: 0 | E19: Man Utd | F19: 17:30:00 | H19: 0 | I19: 0 | J19: 5 | K19: 0 | L19: 5 | M19: 0 | N19: 0 | O19: 0 | P19: 0 | Q19: 0 | R19: 0 | S19: 0 | T19: 0 | U19: 5 | V19: 0 | W19: 0 | X19: 0 | Y19: 0 | Z19: 0 | AA19: 0 | AB19: 0 | AC19: 0 | AD19: 0 | AE19: 0 | AF19: 0 | AG19: 0 | AH19: 5 | AI19: 0 | AJ19: 0 | AK19: 0 | AL19: 0 | AM19: 0 | AN19: 0 | AO19: 0 | AP19: 0 | AQ19: 0 | AR19: 0 | AS19: 0 | AT19: 5 | AU19: 0 | AV19: 0 | AW19: 0 | AX19: 0 | AY19: 0 | AZ19: 5 | BA19: 0 | BB19: 0 | BC19: 0 | BD19: 0 | BE19: 5 | BF19: 0 | BG19: 0 | BH19: 0 | BI19: 0 | BJ19: 0 | BK19: 0 | BL19: 5 | BM19: 0 | BN19: 5 | BO19: 0 | BP19: 5 | BQ19: 0 | BR19: 0 | BS19: 0 | BT19: 0 | BU19: 5 | BV19: 0 | BW19: 5 | BX19: 0 | BY19: 0 | BZ19: 0 | CA19: 0 | CB19: 0 | CC19: 0 | CD19: 5 | CE19: 0 | CF19: 0
A20: 2022-08-14 | B20: Nottingham Forest | C20: 1 | D20: 0 | E20: West Ham | F20: 14:00:00 | H20: 0 | I20: 0 | J20: 10 | K20: 0 | L20: 0 | M20: 0 | N20: 0 | O20: 5 | P20: 0 | Q20: 0 | R20: 5 | S20: 0 | T20: 10 | U20: 0 | V20: 0 | W20: 0 | X20: 0 | Y20: 0 | Z20: 0 | AA20: 0 | AB20: 0 | AC20: 10 | AD20: 0 | AE20: 0 | AF20: 0 | AG20: 0 | AH20: 0 | AI20: 0 | AJ20: 0 | AK20: 0 | AL20: 0 | AM20: 0 | AN20: 0 | AO20: 0 | AP20: 10 | AQ20: 0 | AR20: 0 | AS20: 0 | AT20: 0 | AU20: 0 | AV20: 0 | AW20: 0 | AX20: 0 | AY20: 0 | AZ20: 5 | BA20: 0 | BB20: 0 | BC20: 0 | BD20: 0 | BE20: 0 | BF20: 0 | BG20: 0 | BH20: 0 | BI20: 0 | BJ20: 0 | BK20: 0 | BL20: 5 | BM20: 0 | BN20: 5 | BO20: 5 | BP20: 5 | BQ20: 0 | BR20: 0 | BS20: 0 | BT20: 0 | BU20: 0 | BV20: 0 | BW20: 5 | BX20: 0 | BY20: 0 | BZ20: 0 | CA20: 0 | CB20: 0 | CC20: 0 | CD20: 0 | CE20: 0 | CF20: 0
A21: 2022-08-14 | B21: Chelsea | C21: 2 | D21: 2 | E21: Spurs | F21: 16:30:00 | H21: 10 | I21: 0 | J21: 5 | K21: 0 | L21: 0 | M21: 5 | N21: 0 | O21: 0 | P21: 0 | Q21: 0 | R21: 0 | S21: 0 | T21: 0 | U21: 0 | V21: 0 | W21: 0 | X21: 0 | Y21: 0 | Z21: 0 | AA21: 5 | AB21: 0 | AC21: 10 | AD21: 5 | AE21: 5 | AF21: 0 | AG21: 5 | AH21: 0 | AI21: 10 | AJ21: 0 | AK21: 0 | AL21: 0 | AM21: 5 | AN21: 5 | AO21: 5 | AP21: 0 | AQ21: 10 | AR21: 0 | AS21: 5 | AT21: 5 | AU21: 10 | AV21: 10 | AW21: 0 | AX21: 10 | AY21: 0 | AZ21: 0 | BA21: 10 | BB21: 0 | BC21: 5 | BD21: 0 | BE21: 0 | BF21: 5 | BG21: 0 | BH21: 10 | BI21: 10 | BJ21: 0 | BK21: 0 | BL21: 5 | BM21: 10 | BN21: 0 | BO21: 5 | BP21: 0 | BQ21: 0 | BR21: 5 | BS21: 0 | BT21: 5 | BU21: 0 | BV21: 0 | BW21: 10 | BX21: 10 | BY21: 5 | BZ21: 0 | CA21: 10 | CB21: 10 | CC21: 0 | CD21: 10 | CE21: 5 | CF21: 0
A22: 2022-08-15 | B22: Liverpool | C22: 1 | D22: 1 | E22: Crystal Palace | F22: 20:00:00 | H22: 0 | I22: 0 | J22: 0 | K22: 0 | L22: 0 | M22: 0 | N22: 0 | O22: 0 | P22: 0 | Q22: 0 | R22: 0 | S22: 0 | T22: 0 | U22: 0 | V22: 0 | W22: 0 | X22: 0 | Y22: 0 | Z22: 0 | AA22: 0 | AB22: 0 | AC22: 0 | AD22: 0 | AE22: 0 | AF22: 0 | AG22: 0 | AH22: 0 | AI22: 0 | AJ22: 0 | AK22: 0 | AL22: 0 | AM22: 0 | AN22: 0 | AO22: 0 | AP22: 0 | AQ22: 0 | AR22: 0 | AS22: 0 | AT22: 0 | AU22: 0 | AV22: 0 | AW22: 0 | AX22: 0 | AY22: 0 | AZ22: 0 | BA22: 0 | BB22: 0 | BC22: 0 | BD22: 0 | BE22: 0 | BF22: 0 | BG22: 0 | BH22: 0 | BI22: 0 | BJ22: 0 | BK22: 0 | BL22: 0 | BM22: 0 | BN22: 0 | BO22: 0 | BP22: 0 | BQ22: 0 | BR22: 0 | BS22: 0 | BT22: 0 | BU22: 0 | BV22: 0 | BW22: 0 | BX22: 0 | BY22: 0 | BZ22: 0 | CA22: 0 | CB22: 0 | CC22: 0 | CD22: 0 | CE22: 0 | CF22: 0
A23: 2022-08-20 | B23: Spurs | C23: 1 | D23: 0 | E23: Wolves | F23: 12:30:00 | H23: 5 | I23: 5 | J23: 5 | K23: 5 | L23: 5 | M23: 5 | N23: 5 | O23: 5 | P23: 5 | Q23: 5 | R23: 5 | S23: 5 | T23: 5 | U23: 5 | V23: 5 | W23: 10 | X23: 5 | Y23: 5 | Z23: 5 | AA23: 5 | AB23: 5 | AC23: 5 | AD23: 5 | AE23: 5 | AF23: 5 | AG23: 5 | AH23: 10 | AI23: 5 | AJ23: 5 | AK23: 5 | AL23: 5 | AM23: 5 | AN23: 5 | AO23: 5 | AP23: 5 | AQ23: 5 | AR23: 5 | AS23: 5 | AT23: 5 | AU23: 5 | AV23: 5 | AW23: 5 | AX23: 5 | AY23: 5 | AZ23: 5 | BA23: 5 | BB23: 5 | BC23: 5 | BD23: 5 | BE23: 5 | BF23: 5 | BG23: 5 | BH23: 5 | BI23: 5 | BJ23: 0 | BK23: 5 | BL23: 5 | BM23: 5 | BN23: 5 | BO23: 0 | BP23: 5 | BQ23: 5 | BR23: 0 | BS23: 5 | BT23: 5 | BU23: 5 | BV23: 5 | BW23: 5 | BX23: 5 | BY23: 5 | BZ23: 5 | CA23: 5 | CB23: 5 | CC23: 5 | CD23: 5 | CE23: 5 | CF23: 5
A24: 2022-08-20 | B24: Crystal Palace | C24: 3 | D24: 1 | E24: Aston Villa | F24: 15:00:00 | H24: 0 | I24: 0 | J24: 5 | K24: 5 | L24: 0 | M24: 0 | N24: 0 | O24: 5 | P24: 0 | Q24: 5 | R24: 5 | S24: 5 | T24: 0 | U24: 5 | V24: 0 | W24: 5 | X24: 5 | Y24: 0 | Z24: 0 | AA24: 0 | AB24: 0 | AC24: 5 | AD24: 5 | AE24: 5 | AF24: 5 | AG24: 5 | AH24: 5 | AI24: 5 | AJ24: 5 | AK24: 0 | AL24: 5 | AM24: 0 | AN24: 0 | AO24: 5 | AP24: 0 | AQ24: 0 | AR24: 5 | AS24: 5 | AT24: 5 | AU24: 5 | AV24: 0 | AW24: 0 | AX24: 0 | AY24: 5 | AZ24: 5 | BA24: 5 | BB24: 5 | BC24: 5 | BD24: 5 | BE24: 0 | BF24: 5 | BG24: 5 | BH24: 0 | BI24: 0 | BJ24: 0 | BK24: 0 | BL24: 5 | BM24: 0 | BN24: 5 | BO24: 0 | BP24: 0 | BQ24: 5 | BR24: 5 | BS24: 0 | BT24: 5 | BU24: 0 | BV24: 0 | BW24: 5 | BX24: 5 | BY24: 5 | BZ24: 5 | CA24: 0 | CB24: 0 | CC24: 5 | CD24: 0 | CE24: 5 | CF24: 0
A25: 2022-08-20 | B25: Everton | C25: 1 | D25: 1 | E25: Nottingham Forest | F25: 15:00:00 | H25: 5 | I25: 10 | J25: 0 | K25: 0 | L25: 0 | M25: 0 | N25: 0 | O25: 10 | P25: 0 | Q25: 10 | R25: 0 | S25: 10 | T25: 0 | U25: 0 | V25: 0 | W25: 0 | X25: 0 | Y25: 0 | Z25: 0 | AA25: 0 | AB25: 5 | AC25: 5 | AD25: 10 | AE25: 0 | AF25: 10 | AG25: 10 | AH25: 0 | AI25: 0 | AJ25: 10 | AK25: 0 | AL25: 0 | AM25: 0 | AN25: 0 | AO25: 5 | AP25: 10 | AQ25: 0 | AR25: 0 | AS25: 0 | AT25: 0 | AU25: 5 | AV25: 0 | AW25: 0 | AX25: 10 | AY25: 0 | AZ25: 0 | BA25: 10 | BB25: 0 | BC25: 10 | BD25: 0 | BE25: 10 | BF25: 0 | BG25: 0 | BH25: 10 | BI25: 10 | BJ25: 0 | BK25: 0 | BL25: 0 | BM25: 10 | BN25: 10 | BO25: 0 | BP25: 10 | BQ25: 0 | BR25: 0 | BS25: 5 | BT25: 10 | BU25: 0 | BV25: 10 | BW25: 0 | BX25: 10 | BY25: 0 | BZ25: 0 | CA25: 0 | CB25: 0 | CC25: 0 | CD25: 0 | CE25: 0 | CF25: 0
A26: 2022-08-20 | B26: Fulham | C26: 3 | D26: 2 | E26: Brentford | F26: 15:00:00 | H26: 5 | I26: 0 | J26: 0 | K26: 0 | L26: 0 | M26: 0 | N26: 0 | O26: 0 | P26: 0 | Q26: 0 | R26: 0 | S26: 5 | T26: 5 | U26: 5 | V26: 0 | W26: 5 | X26: 0 | Y26: 0 | Z26: 0 | AA26: 0 | AB26: 0 | AC26: 0 | AD26: 0 | AE26: 0 | AF26: 0 | AG26: 5 | AH26: 0 | AI26: 5 | AJ26: 0 | AK26: 0 | AL26: 0 | AM26: 5 | AN26: 0 | AO26: 0 | AP26: 0 | AQ26: 0 | AR26: 0 | AS26: 0 | AT26: 0 | AU26: 0 | AV26: 0 | AW26: 0 | AX26: 5 | AY26: 5 | AZ26: 0 | BA26: 0 | BB26: 0 | BC26: 0 | BD26: 0 | BE26: 0 | BF26: 0 | BG26: 5 | BH26: 0 | BI26: 0 | BJ26: 0 | BK26: 5 | BL26: 0 | BM26: 0 | BN26: 0 | BO26: 0 | BP26: 5 | BQ26: 0 | BR26: 0 | BS26: 0 | BT26: 5 | BU26: 0 | BV26: 5 | BW26: 0 | BX26: 0 | BY26: 0 | BZ26: 5 | CA26: 0 | CB26: 5 | CC26: 0 | CD26: 0 | CE26: 0 | CF26: 0
A27: 2022-08-20 | B27: Leicester | C27: 1 | D27: 2 | E27: Southampton | F27: 15:00:00 | H27: 0 | I27: 0 | J27: 0 | K27: 0 | L27: 0 | M27: 0 | N27: 0 | O27: 0 | P27: 0 | Q27: 0 | R27: 0 | S27: 0 | T27: 0 | U27: 0 | V27: 5 | W27: 0 | X27: 0 | Y27: 0 | Z27: 0 | AA27: 0 | AB27: 0 | AC27: 0 | AD27: 0 | AE27: 0 | AF27: 10 | AG27: 0 | AH27: 0 | AI27: 0 | AJ27: 0 | AK27: 0 | AL27: 0 | AM27: 0 | AN27: 0 | AO27: 0 | AP27: 0 | AQ27: 0 | AR27: 0 | AS27: 10 | AT27: 0 | AU27: 0 | AV27: 0 | AW27: 0 | AX27: 0 | AY27: 0 | AZ27: 0 | BA27: 0 | BB27: 0 | BC27: 0 | BD27: 0 | BE27: 0 | BF27: 0 | BG27: 0 | BH27: 0 | BI27: 0 | BJ27: 0 | BK27: 0 | BL27: 0 | BM27: 0 | BN27: 0 | BO27: 10 | BP27: 0 | BQ27: 0 | BR27: 0 | BS27: 0 | BT27: 0 | BU27: 0 | BV27: 0 | BW27: 0 | BX27: 0 | BY27: 0 | BZ27: 0 | CA27: 0 | CB27: 0 | CC27: 0 | CD27: 0 | CE27: 0 | CF27: 0
A28: 2022-08-20 | B28: Bournemouth | C28: 0 | D28: 3 | E28: Arsenal | F28: 17:30:00 | H28: 5 | I28: 5 | J28: 5 | K28: 5 | L28: 5 | M28: 5 | N28: 10 | O28: 5 | P28: 5 | Q28: 5 | R28: 10 | S28: 5 | T28: 5 | U28: 5 | V28: 5 | W28: 0 | X28: 5 | Y28: 5 | Z28: 5 | AA28: 5 | AB28: 10 | AC28: 5 | AD28: 5 | AE28: 5 | AF28: 5 | AG28: 5 | AH28: 5 | AI28: 0 | AJ28: 5 | AK28: 5 | AL28: 5 | AM28: 5 | AN28: 5 | AO28: 5 | AP28: 5 | AQ28: 5 | AR28: 5 | AS28: 5 | AT28: 5 | AU28: 5 | AV28: 5 | AW28: 5 | AX28: 5 | AY28: 5 | AZ28: 5 | BA28: 5 | BB28: 5 | BC28: 5 | BD28: 5 | BE28: 5 | BF28: 5 | BG28: 5 | BH28: 5 | BI28: 10 | BJ28: 5 | BK28: 10 | BL28: 5 | BM28: 5 | BN28: 5 | BO28: 5 | BP28: 0 | BQ28: 5 | BR28: 5 | BS28: 5 | BT28: 5 | BU28: 5 | BV28: 5 | BW28: 5 | BX28: 5 | BY28: 10 | BZ28: 5 | CA28: 10 | CB28: 5 | CC28: 5 | CD28: 10 | CE28: 5 | CF28: 5
A29: 2022-08-21 | B29: Leeds Utd | C29: 3 | D29: 0 | E29: Chelsea | F29: 14:00:00 | H29: 0 | I29: 0 | J29: 0 | K29: 0 | L29: 0 | M29: 0 | N29: 0 | O29: 0 | P29: 0 | Q29: 0 | R29: 0 | S29: 0 | T29: 0 | U29: 0 | V29: 0 | W29: 5 | X29: 0 | Y29: 0 | Z29: 0 | AA29: 0 | AB29: 0 | AC29: 0 | AD29: 0 | AE29: 0 | AF29: 0 | AG29: 0 | AH29: 0 | AI29: 5 | AJ29: 0 | AK29: 0 | AL29: 0 | AM29: 0 | AN29: 0 | AO29: 0 | AP29: 0 | AQ29: 0 | AR29: 0 | AS29: 0 | AT29: 0 | AU29: 0 | AV29: 0 | AW29: 0 | AX29: 0 | AY29: 0 | AZ29: 0 | BA29: 0 | BB29: 0 | BC29: 0 | BD29: 0 | BE29: 0 | BF29: 0 | BG29: 0 | BH29: 0 | BI29: 0 | BJ29: 0 | BK29: 0 | BL29: 0 | BM29: 0 | BN29: 0 | BO29: 0 | BP29: 0 | BQ29: 0 | BR29: 0 | BS29: 0 | BT29: 0 | BU29: 0 | BV29: 0 | BW29: 0 | BX29: 0 | BY29: 0 | BZ29: 0 | CA29: 0 | CB29: 0 | CC29: 0 | CD29: 0 | CE29: 0 | CF29: 0
A30: 2022-08-21 | B30: West Ham | C30: 0 | D30: 2 | E30: Brighton | F30: 14:00:00 | H30: 0 | I30: 0 | J30: 0 | K30: 0 | L30: 0 | M30: 0 | N30: 0 | O30: 0 | P30: 0 | Q30: 0 | R30: 0 | S30: 0 | T30: 0 | U30: 0 | V30: 0 | W30: 0 | X30: 0 | Y30: 5 | Z30: 5 | AA30: 0 | AB30: 0 | AC30: 0 | AD30: 0 | AE30: 0 | AF30: 0 | AG30: 0 | AH30: 0 | AI30: 0 | AJ30: 0 | AK30: 0 | AL30: 0 | AM30: 5 | AN30: 0 | AO30: 0 | AP30: 0 | AQ30: 0 | AR30: 0 | AS30: 0 | AT30: 0 | AU30: 0 | AV30: 0 | AW30: 5 | AX30: 0 | AY30: 0 | AZ30: 0 | BA30: 0 | BB30: 0 | BC30: 0 | BD30: 0 | BE30: 0 | BF30: 5 | BG30: 0 | BH30: 0 | BI30: 0 | BJ30: 0 | BK30: 0 | BL30: 0 | BM30: 0 | BN30: 0 | BO30: 0 | BP30: 0 | BQ30: 0 | BR30: 0 | BS30: 0 | BT30: 0 | BU30: 0 | BV30: 0 | BW30: 5 | BX30: 0 | BY30: 0 | BZ30: 0 | CA30: 0 | CB30: 0 | CC30: 0 | CD30: 5 | CE30: 0 | CF30: 0
A31: 2022-08-21 | B31: Newcastle | C31: 3 | D31: 3 | E31: Man City | F31: 16:30:00 | H31: 0 | I31: 0 | J31: 0 | K31: 0 | L31: 0 | M31: 0 | N31: 0 | O31: 0 | P31: 0 | Q31: 0 | R31: 0 | S31: 0 | T31: 0 | U31: 0 | V31: 0 | W31: 0 | X31: 0 | Y31: 0 | Z31: 0 | AA31: 0 | AB31: 0 | AC31: 0 | AD31: 0 | AE31: 0 | AF31: 0 | AG31: 0 | AH31: 0 | AI31: 0 | AJ31: 0 | AK31: 0 | AL31: 0 | AM31: 0 | AN31: 0 | AO31: 0 | AP31: 0 | AQ31: 5 | AR31: 0 | AS31: 0 | AT31: 0 | AU31: 5 | AV31: 0 | AW31: 0 | AX31: 0 | AY31: 0 | AZ31: 5 | BA31: 0 | BB31: 0 | BC31: 0 | BD31: 0 | BE31: 0 | BF31: 0 | BG31: 0 | BH31: 0 | BI31: 0 | BJ31: 0 | BK31: 0 | BL31: 0 | BM31: 0 | BN31: 0 | BO31: 0 | BP31: 0 | BQ31: 5 | BR31: 0 | BS31: 0 | BT31: 0 | BU31: 0 | BV31: 0 | BW31: 0 | BX31: 0 | BY31: 0 | BZ31: 0 | CA31: 0 | CB31: 5 | CC31: 0 | CD31: 0 | CE31: 0 | CF31: 0
A32: 2022-08-22 | B32: Man Utd | C32: 2 | D32: 1 | E32: Liverpool | F32: 20:00:00 | H32: 0 | I32: 0 | J32: 0 | K32: 0 | L32: 0 | M32: 0 | N32: 0 | O32: 0 | P32: 0 | Q32: 0 | R32: 0 | S32: 0 | T32: 0 | U32: 0 | V32: 0 | W32: 5 | X32: 0 | Y32: 0 | Z32: 0 | AA32: 0 | AB32: 0 | AC32: 0 | AD32: 10 | AE32: 0 | AF32: 0 | AG32: 0 | AH32: 0 | AI32: 10 | AJ32: 0 | AK32: 0 | AL32: 0 | AM32: 0 | AN32: 0 | AO32: 0 | AP32: 0 | AQ32: 0 | AR32: 0 | AS32: 0 | AT32: 0 | AU32: 0 | AV32: 0 | AW32: 0 | AX32: 0 | AY32: 0 | AZ32: 5 | BA32: 0 | BB32: 0 | BC32: 0 | BD32: 0 | BE32: 0 | BF32: 0 | BG32: 0 | BH32: 0 | BI32: 0 | BJ32: 0 | BK32: 0 | BL32: 0 | BM32: 0 | BN32: 0 | BO32: 0 | BP32: 10 | BQ32: 0 | BR32: 0 | BS32: 0 | BT32: 10 | BU32: 0 | BV32: 0 | BW32: 0 | BX32: 10 | BY32: 0 | BZ32: 0 | CA32: 0 | CB32: 0 | CC32: 0 | CD32: 0 | CE32: 5 | CF32: 0
A33: 2022-08-27 | B33: Southampton | C33: 0 | D33: 1 | E33: Man Utd | F33: 12:30:00 | H33: 5 | I33: 5 | J33: 5 | K33: 5 | L33: 0 | M33: 5 | N33: 10 | O33: 5 | P33: 0 | Q33: 5 | R33: 5 | S33: 0 | T33: 5 | U33: 0 | V33: 5 | W33: 0 | X33: 5 | Y33: 5 | Z33: 0 | AA33: 5 | AB33: 5 | AC33: 5 | AD33: 5 | AE33: 5 | AF33: 0 | AG33: 0 | AH33: 5 | AI33: 5 | AJ33: 5 | AK33: 5 | AL33: 5 | AM33: 5 | AN33: 5 | AO33: 5 | AP33: 5 | AQ33: 0 | AR33: 5 | AS33: 0 | AT33: 5 | AU33: 0 | AV33: 5 | AW33: 5 | AX33: 5 | AY33: 5 | AZ33: 5 | BA33: 5 | BB33: 5 | BC33: 0 | BD33: 5 | BE33: 5 | BF33: 0 | BG33: 10 | BH33: 0 | BI33: 5 | BJ33: 0 | BK33: 5 | BL33: 5 | BM33: 0 | BN33: 5 | BO33: 5 | BP33: 0 | BQ33: 0 | BR33: 0 | BS33: 5 | BT33: 5 | BU33: 5 | BV33: 5 | BW33: 0 | BX33: 5 | BY33: 5 | BZ33: 5 | CA33: 5 | CB33: 5 | CC33: 5 | CD33: 5 | CE33: 0 | CF33: 5
A34: 2022-08-27 | B34: Brentford | C34: 1 | D34: 1 | E34: Everton | F34: 15:00:00 | H34: 5 | I34: 0 | J34: 0 | K34: 0 | L34: 0 | M34: 0 | N34: 10 | O34: 10 | P34: 0 | Q34: 0 | R34: 0 | S34: 0 | T34: 0 | U34: 0 | V34: 5 | W34: 0 | X34: 10 | Y34: 0 | Z34: 0 | AA34: 0 | AB34: 0 | AC34: 0 | AD34: 0 | AE34: 0 | AF34: 0 | AG34: 0 | AH34: 10 | AI34: 10 | AJ34: 0 | AK34: 10 | AL34: 0 | AM34: 0 | AN34: 0 | AO34: 10 | AP34: 0 | AQ34: 0 | AR34: 0 | AS34: 0 | AT34: 0 | AU34: 0 | AV34: 0 | AW34: 10 | AX34: 0 | AY34: 10 | AZ34: 0 | BA34: 0 | BB34: 0 | BC34: 0 | BD34: 0 | BE34: 0 | BF34: 0 | BG34: 0 | BH34: 10 | BI34: 0 | BJ34: 0 | BK34: 0 | BL34: 0 | BM34: 0 | BN34: 0 | BO34: 0 | BP34: 0 | BQ34: 0 | BR34: 0 | BS34: 5 | BT34: 10 | BU34: 5 | BV34: 0 | BW34: 0 | BX34: 0 | BY34: 0 | BZ34: 0 | CA34: 10 | CB34: 0 | CC34: 0 | CD34: 10 | CE34: 5 | CF34: 10
A35: 2022-08-27 | B35: Brighton | C35: 1 | D35: 0 | E35: Leeds Utd | F35: 15:00:00 | H35: 5 | I35: 0 | J35: 0 | K35: 0 | L35: 5 | M35: 0 | N35: 0 | O35: 0 | P35: 0 | Q35: 0 | R35: 5 | S35: 5 | T35: 0 | U35: 0 | V35: 0 | W35: 10 | X35: 10 | Y35: 5 | Z35: 0 | AA35: 0 | AB35: 0 | AC35: 0 | AD35: 0 | AE35: 5 | AF35: 5 | AG35: 10 | AH35: 0 | AI35: 5 | AJ35: 5 | AK35: 5 | AL35: 0 | AM35: 0 | AN35: 5 | AO35: 0 | AP35: 5 | AQ35: 5 | AR35: 10 | AS35: 10 | AT35: 0 | AU35: 0 | AV35: 0 | AW35: 0 | AX35: 0 | AY35: 0 | AZ35: 0 | BA35: 0 | BB35: 10 | BC35: 5 | BD35: 0 | BE35: 0 | BF35: 0 | BG35: 10 | BH35: 0 | BI35: 5 | BJ35: 10 | BK35: 0 | BL35: 0 | BM35: 0 | BN35: 0 | BO35: 5 | BP35: 0 | BQ35: 5 | BR35: 5 | BS35: 0 | BT35: 5 | BU35: 0 | BV35: 10 | BW35: 0 | BX35: 5 | BY35: 5 | BZ35: 0 | CA35: 5 | CB35: 10 | CC35: 5 | CD35: 0 | CE35: 0 | CF35: 0
A36: 2022-08-27 | B36: Chelsea | C36: 2 | D36: 1 | E36: Leicester | F36: 15:00:00 | H36: 5 | I36: 5 | J36: 5 | K36: 0 | L36: 10 | M36: 5 | N36: 5 | O36: 5 | P36: 5 | Q36: 5 | R36: 5 | S36: 0 | T36: 5 | U36: 5 | V36: 0 | W36: 5 | X36: 5 | Y36: 5 | Z36: 5 | AA36: 5 | AB36: 5 | AC36: 5 | AD36: 5 | AE36: 5 | AF36: 5 | AG36: 5 | AH36: 5 | AI36: 5 | AJ36: 5 | AK36: 0 | AL36: 5 | AM36: 5 | AN36: 5 | AO36: 5 | AP36: 5 | AQ36: 10 | AR36: 5 | AS36: 5 | AT36: 10 | AU36: 5 | AV36: 5 | AW36: 10 | AX36: 10 | AY36: 5 | AZ36: 5 | BA36: 5 | BB36: 5 | BC36: 5 | BD36: 5 | BE36: 5 | BF36: 5 | BG36: 5 | BH36: 10 | BI36: 5 | BJ36: 5 | BK36: 5 | BL36: 5 | BM36: 5 | BN36: 0 | BO36: 5 | BP36: 5 | BQ36: 5 | BR36: 5 | BS36: 5 | BT36: 5 | BU36: 5 | BV36: 5 | BW36: 10 | BX36: 5 | BY36: 5 | BZ36: 5 | CA36: 10 | CB36: 5 | CC36: 5 | CD36: 5 | CE36: 10 | CF36: 5
A37: 2022-08-27 | B37: Liverpool | C37: 9 | D37: 0 | E37: Bournemouth | F37: 15:00:00 | H37: 5 | I37: 5 | J37: 5 | K37: 5 | L37: 5 | M37: 5 | N37: 5 | O37: 5 | P37: 5 | Q37: 5 | R37: 5 | S37: 5 | T37: 5 | U37: 5 | V37: 5 | W37: 5 | X37: 5 | Y37: 5 | Z37: 5 | AA37: 5 | AB37: 5 | AC37: 5 | AD37: 5 | AE37: 5 | AF37: 5 | AG37: 5 | AH37: 5 | AI37: 5 | AJ37: 5 | AK37: 5 | AL37: 5 | AM37: 5 | AN37: 5 | AO37: 5 | AP37: 5 | AQ37: 5 | AR37: 5 | AS37: 5 | AT37: 5 | AU37: 5 | AV37: 5 | AW37: 5 | AX37: 5 | AY37: 5 | AZ37: 5 | BA37: 5 | BB37: 5 | BC37: 5 | BD37: 5 | BE37: 5 | BF37: 5 | BG37: 5 | BH37: 5 | BI37: 5 | BJ37: 5 | BK37: 5 | BL37: 5 | BM37: 5 | BN37: 5 | BO37: 5 | BP37: 5 | BQ37: 5 | BR37: 5 | BS37: 5 | BT37: 5 | BU37: 5 | BV37: 5 | BW37: 5 | BX37: 5 | BY37: 5 | BZ37: 5 | CA37: 5 | CB37: 5 | CC37: 5 | CD37: 5 | CE37: 5 | CF37: 5
A38: 2022-08-27 | B38: Man City | C38: 4 | D38: 2 | E38: Crystal Palace | F38: 15:00:00 | H38: 5 | I38: 5 | J38: 5 | K38: 5 | L38: 5 | M38: 5 | N38: 5 | O38: 5 | P38: 5 | Q38: 5 | R38: 5 | S38: 5 | T38: 5 | U38: 5 | V38: 5 | W38: 5 | X38: 5 | Y38: 5 | Z38: 5 | AA38: 5 | AB38: 5 | AC38: 5 | AD38: 5 | AE38: 5 | AF38: 5 | AG38: 5 | AH38: 5 | AI38: 5 | AJ38: 5 | AK38: 10 | AL38: 5 | AM38: 5 | AN38: 5 | AO38: 10 | AP38: 5 | AQ38: 5 | AR38: 5 | AS38: 0 | AT38: 5 | AU38: 0 | AV38: 5 | AW38: 5 | AX38: 5 | AY38: 5 | AZ38: 5 | BA38: 10 | BB38: 5 | BC38: 5 | BD38: 5 | BE38: 5 | BF38: 5 | BG38: 5 | BH38: 5 | BI38: 5 | BJ38: 5 | BK38: 5 | BL38: 5 | BM38: 5 | BN38: 5 | BO38: 5 | BP38: 5 | BQ38: 5 | BR38: 5 | BS38: 5 | BT38: 5 | BU38: 5 | BV38: 5 | BW38: 5 | BX38: 5 | BY38: 5 | BZ38: 0 | CA38: 5 | CB38: 5 | CC38: 5 | CD38: 5 | CE38: 5 | CF38: 5
A39: 2022-08-27 | B39: Arsenal | C39: 2 | D39: 1 | E39: Fulham | F39: 17:30:00 | H39: 5 | I39: 5 | J39: 10 | K39: 5 | L39: 10 | M39: 5 | N39: 5 | O39: 5 | P39: 5 | Q39: 10 | R39: 5 | S39: 5 | T39: 10 | U39: 0 | V39: 0 | W39: 5 | X39: 5 | Y39: 5 | Z39: 5 | AA39: 5 | AB39: 5 | AC39: 5 | AD39: 5 | AE39: 5 | AF39: 5 | AG39: 5 | AH39: 5 | AI39: 5 | AJ39: 5 | AK39: 10 | AL39: 5 | AM39: 0 | AN39: 5 | AO39: 5 | AP39: 5 | AQ39: 5 | AR39: 5 | AS39: 0 | AT39: 5 | AU39: 5 | AV39: 5 | AW39: 5 | AX39: 5 | AY39: 5 | AZ39: 0 | BA39: 5 | BB39: 5 | BC39: 5 | BD39: 5 | BE39: 5 | BF39: 5 | BG39: 5 | BH39: 5 | BI39: 5 | BJ39: 5 | BK39: 5 | BL39: 10 | BM39: 5 | BN39: 5 | BO39: 5 | BP39: 0 | BQ39: 5 | BR39: 5 | BS39: 5 | BT39: 5 | BU39: 10 | BV39: 0 | BW39: 10 | BX39: 10 | BY39: 5 | BZ39: 5 | CA39: 5 | CB39: 5 | CC39: 5 | CD39: 5 | CE39: 5 | CF39: 5
A40: 2022-08-28 | B40: Aston Villa | C40: 0 | D40: 1 | E40: West Ham | F40: 14:00:00 | H40: 0 | I40: 5 | J40: 0 | K40: 5 | L40: 0 | M40: 0 | N40: 0 | O40: 0 | P40: 0 | Q40: 0 | R40: 0 | S40: 0 | T40: 5 | U40: 0 | V40: 5 | W40: 0 | X40: 0 | Y40: 0 | Z40: 0 | AA40: 5 | AB40: 5 | AC40: 0 | AD40: 10 | AE40: 0 | AF40: 0 | AG40: 0 | AH40: 0 | AI40: 0 | AJ40: 0 | AK40: 0 | AL40: 0 | AM40: 0 | AN40: 0 | AO40: 0 | AP40: 0 | AQ40: 0 | AR40: 0 | AS40: 0 | AT40: 5 | AU40: 0 | AV40: 0 | AW40: 0 | AX40: 0 | AY40: 0 | AZ40: 10 | BA40: 0 | BB40: 0 | BC40: 0 | BD40: 0 | BE40: 0 | BF40: 0 | BG40: 0 | BH40: 0 | BI40: 0 | BJ40: 0 | BK40: 5 | BL40: 0 | BM40: 0 | BN40: 0 | BO40: 0 | BP40: 0 | BQ40: 5 | BR40: 0 | BS40: 5 | BT40: 10 | BU40: 0 | BV40: 0 | BW40: 0 | BX40: 0 | BY40: 0 | BZ40: 10 | CA40: 0 | CB40: 0 | CC40: 5 | CD40: 0 | CE40: 0 | CF40: 5
A41: 2022-08-28 | B41: Wolves | C41: 1 | D41: 1 | E41: Newcastle | F41: 14:00:00 | H41: 0 | I41: 0 | J41: 0 | K41: 0 | L41: 0 | M41: 10 | N41: 0 | O41: 0 | P41: 0 | Q41: 0 | R41: 0 | S41: 0 | T41: 0 | U41: 0 | V41: 0 | W41: 0 | X41: 0 | Y41: 0 | Z41: 0 | AA41: 0 | AB41: 0 | AC41: 10 | AD41: 0 | AE41: 0 | AF41: 5 | AG41: 0 | AH41: 5 | AI41: 0 | AJ41: 10 | AK41: 0 | AL41: 0 | AM41: 10 | AN41: 0 | AO41: 0 | AP41: 10 | AQ41: 0 | AR41: 0 | AS41: 0 | AT41: 10 | AU41: 5 | AV41: 10 | AW41: 10 | AX41: 10 | AY41: 5 | AZ41: 0 | BA41: 0 | BB41: 5 | BC41: 0 | BD41: 0 | BE41: 0 | BF41: 0 | BG41: 0 | BH41: 0 | BI41: 0 | BJ41: 0 | BK41: 0 | BL41: 0 | BM41: 0 | BN41: 0 | BO41: 0 | BP41: 0 | BQ41: 10 | BR41: 0 | BS41: 0 | BT41: 0 | BU41: 0 | BV41: 10 | BW41: 10 | BX41: 10 | BY41: 0 | BZ41: 0 | CA41: 10 | CB41: 5 | CC41: 0 | CD41: 0 | CE41: 0 | CF41: 10
A42: 2022-08-28 | B42: Nottingham Forest | C42: 0 | D42: 2 | E42: Spurs | F42: 16:30:00 | H42: 5 | I42: 5 | J42: 10 | K42: 5 | L42: 10 | M42: 5 | N42: 10 | O42: 5 | P42: 5 | Q42: 5 | R42: 10 | S42: 10 | T42: 10 | U42: 5 | V42: 5 | W42: 0 | X42: 5 | Y42: 5 | Z42: 5 | AA42: 10 | AB42: 5 | AC42: 5 | AD42: 5 | AE42: 5 | AF42: 10 | AG42: 0 | AH42: 5 | AI42: 5 | AJ42: 5 | AK42: 10 | AL42: 10 | AM42: 10 | AN42: 5 | AO42: 10 | AP42: 5 | AQ42: 5 | AR42: 10 | AS42: 0 | AT42: 10 | AU42: 5 | AV42: 10 | AW42: 5 | AX42: 5 | AY42: 0 | AZ42: 5 | BA42: 10 | BB42: 5 | BC42: 10 | BD42: 10 | BE42: 10 | BF42: 5 | BG42: 5 | BH42: 10 | BI42: 10 | BJ42: 0 | BK42: 5 | BL42: 10 | BM42: 5 | BN42: 5 | BO42: 5 | BP42: 10 | BQ42: 5 | BR42: 10 | BS42: 5 | BT42: 10 | BU42: 5 | BV42: 5 | BW42: 5 | BX42: 5 | BY42: 10 | BZ42: 5 | CA42: 5 | CB42: 5 | CC42: 5 | CD42: 5 | CE42: 0 | CF42: 5
A43: 2022-08-30 | B43: Crystal Palace | C43: 1 | D43: 1 | E43: Brentford | F43: 19:30:00 | H43: 0 | I43: 10 | J43: 0 | K43: 0 | L43: 10 | M43: 0 | N43: 0 | O43: 0 | P43: 0 | Q43: 0 | R43: 0 | S43: 0 | T43: 0 | U43: 0 | V43: 5 | W43: 0 | X43: 0 | Y43: 0 | Z43: 0 | AA43: 0 | AB43: 5 | AC43: 0 | AD43: 0 | AE43: 0 | AF43: 0 | AG43: 0 | AH43: 0 | AI43: 5 | AJ43: 0 | AK43: 10 | AL43: 10 | AM43: 10 | AN43: 0 | AO43: 5 | AP43: 0 | AQ43: 0 | AR43: 0 | AS43: 0 | AT43: 0 | AU43: 10 | AV43: 0 | AW43: 10 | AX43: 10 | AY43: 0 | AZ43: 5 | BA43: 0 | BB43: 0 | BC43: 0 | BD43: 0 | BE43: 0 | BF43: 0 | BG43: 0 | BH43: 0 | BI43: 10 | BJ43: 0 | BK43: 0 | BL43: 0 | BM43: 0 | BN43: 0 | BO43: 0 | BP43: 0 | BQ43: 10 | BR43: 0 | BS43: 0 | BT43: 0 | BU43: 5 | BV43: 10 | BW43: 10 | BX43: 0 | BY43: 10 | BZ43: 0 | CA43: 10 | CB43: 0 | CC43: 10 | CD43: 0 | CE43: 0 | CF43: 0
A44: 2022-08-30 | B44: Fulham | C44: 2 | D44: 1 | E44: Brighton | F44: 19:30:00 | H44: 0 | I44: 0 | J44: 0 | K44: 0 | L44: 10 | M44: 0 | N44: 0 | O44: 0 | P44: 0 | Q44: 10 | R44: 0 | S44: 10 | T44: 0 | U44: 5 | V44: 0 | W44: 5 | X44: 10 | Y44: 0 | Z44: 10 | AA44: 0 | AB44: 0 | AC44: 0 | AD44: 0 | AE44: 10 | AF44: 0 | AG44: 5 | AH44: 0 | AI44: 10 | AJ44: 0 | AK44: 5 | AL44: 0 | AM44: 10 | AN44: 0 | AO44: 0 | AP44: 0 | AQ44: 0 | AR44: 5 | AS44: 5 | AT44: 0 | AU44: 0 | AV44: 0 | AW44: 0 | AX44: 0 | AY44: 5 | AZ44: 0 | BA44: 0 | BB44: 0 | BC44: 0 | BD44: 0 | BE44: 5 | BF44: 0 | BG44: 0 | BH44: 0 | BI44: 0 | BJ44: 5 | BK44: 0 | BL44: 10 | BM44: 0 | BN44: 0 | BO44: 0 | BP44: 5 | BQ44: 5 | BR44: 5 | BS44: 0 | BT44: 5 | BU44: 5 | BV44: 10 | BW44: 0 | BX44: 0 | BY44: 0 | BZ44: 0 | CA44: 10 | CB44: 0 | CC44: 5 | CD44: 0 | CE44: 10 | CF44: 0
A45: 2022-08-30 | B45: Southampton | C45: 2 | D45: 1 | E45: Chelsea | F45: 19:45:00 | H45: 0 | I45: 0 | J45: 0 | K45: 0 | L45: 0 | M45: 0 | N45: 0 | O45: 0 | P45: 0 | Q45: 10 | R45: 0 | S45: 0 | T45: 0 | U45: 5 | V45: 0 | W45: 5 | X45: 0 | Y45: 0 | Z45: 5 | AA45: 0 | AB45: 0 | AC45: 0 | AD45: 0 | AE45: 10 | AF45: 0 | AG45: 0 | AH45: 0 | AI45: 0 | AJ45: 0 | AK45: 0 | AL45: 0 | AM45: 5 | AN45: 0 | AO45: 0 | AP45: 0 | AQ45: 0 | AR45: 0 | AS45: 5 | AT45: 0 | AU45: 0 | AV45: 0 | AW45: 0 | AX45: 0 | AY45: 0 | AZ45: 0 | BA45: 0 | BB45: 0 | BC45: 0 | BD45: 0 | BE45: 0 | BF45: 0 | BG45: 0 | BH45: 0 | BI45: 0 | BJ45: 5 | BK45: 0 | BL45: 0 | BM45: 0 | BN45: 0 | BO45: 0 | BP45: 0 | BQ45: 0 | BR45: 0 | BS45: 0 | BT45: 0 | BU45: 0 | BV45: 0 | BW45: 0 | BX45: 0 | BY45: 0 | BZ45: 0 | CA45: 0 | CB45: 0 | CC45: 0 | CD45: 0 | CE45: 10 | CF45: 0
A46: 2022-08-30 | B46: Leeds Utd | C46: 1 | D46: 1 | E46: Everton | F46: 20:00:00 | H46: 0 | I46: 0 | J46: 0 | K46: 0 | L46: 0 | M46: 0 | N46: 0 | O46: 0 | P46: 10 | Q46: 0 | R46: 0 | S46: 0 | T46: 10 | U46: 0 | V46: 10 | W46: 0 | X46: 0 | Y46: 0 | Z46: 0 | AA46: 0 | AB46: 0 | AC46: 0 | AD46: 0 | AE46: 0 | AF46: 0 | AG46: 0 | AH46: 10 | AI46: 0 | AJ46: 0 | AK46: 0 | AL46: 0 | AM46: 5 | AN46: 0 | AO46: 0 | AP46: 0 | AQ46: 10 | AR46: 10 | AS46: 0 | AT46: 0 | AU46: 0 | AV46: 10 | AW46: 0 | AX46: 0 | AY46: 0 | AZ46: 0 | BA46: 0 | BB46: 0 | BC46: 0 | BD46: 0 | BE46: 0 | BF46: 0 | BG46: 0 | BH46: 10 | BI46: 0 | BJ46: 0 | BK46: 0 | BL46: 0 | BM46: 5 | BN46: 0 | BO46: 10 | BP46: 0 | BQ46: 0 | BR46: 0 | BS46: 0 | BT46: 0 | BU46: 0 | BV46: 0 | BW46: 0 | BX46: 0 | BY46: 10 | BZ46: 10 | CA46: 0 | CB46: 0 | CC46: 0 | CD46: 0 | CE46: 0 | CF46: 10
A47: 2022-08-31 | B47: Arsenal | C47: 2 | D47: 1 | E47: Aston Villa | F47: 19:30:00 | H47: 5 | I47: 5 | J47: 5 | K47: 5 | L47: 5 | M47: 5 | N47: 5 | O47: 5 | P47: 5 | Q47: 5 | R47: 5 | S47: 5 | T47: 5 | U47: 5 | V47: 5 | W47: 5 | X47: 5 | Y47: 5 | Z47: 5 | AA47: 5 | AB47: 10 | AC47: 5 | AD47: 5 | AE47: 5 | AF47: 5 | AG47: 5 | AH47: 5 | AI47: 5 | AJ47: 5 | AK47: 5 | AL47: 5 | AM47: 5 | AN47: 5 | AO47: 10 | AP47: 5 | AQ47: 5 | AR47: 5 | AS47: 5 | AT47: 10 | AU47: 5 | AV47: 5 | AW47: 5 | AX47: 10 | AY47: 5 | AZ47: 5 | BA47: 5 | BB47: 5 | BC47: 5 | BD47: 5 | BE47: 5 | BF47: 5 | BG47: 5 | BH47: 5 | BI47: 5 | BJ47: 5 | BK47: 5 | BL47: 5 | BM47: 5 | BN47: 5 | BO47: 5 | BP47: 0 | BQ47: 5 | BR47: 5 | BS47: 5 | BT47: 5 | BU47: 10 | BV47: 5 | BW47: 5 | BX47: 0 | BY47: 5 | BZ47: 5 | CA47: 5 | CB47: 5 | CC47: 10 | CD47: 5 | CE47: 5 | CF47: 10
A48: 2022-08-31 | B48: Bournemouth | C48: 0 | D48: 0 | E48: Wolves | F48: 19:30:00 | H48: 5 | I48: 0 | J48: 10 | K48: 0 | L48: 0 | M48: 0 | N48: 0 | O48: 0 | P48: 0 | Q48: 0 | R48: 0 | S48: 0 | T48: 0 | U48: 0 | V48: 0 | W48: 0 | X48: 5 | Y48: 0 | Z48: 0 | AA48: 0 | AB48: 0 | AC48: 0 | AD48: 0 | AE48: 5 | AF48: 0 | AG48: 0 | AH48: 5 | AI48: 0 | AJ48: 0 | AK48: 0 | AL48: 0 | AM48: 0 | AN48: 0 | AO48: 0 | AP48: 0 | AQ48: 0 | AR48: 0 | AS48: 0 | AT48: 5 | AU48: 10 | AV48: 0 | AW48: 10 | AX48: 0 | AY48: 0 | AZ48: 5 | BA48: 5 | BB48: 5 | BC48: 5 | BD48: 0 | BE48: 0 | BF48: 0 | BG48: 0 | BH48: 0 | BI48: 0 | BJ48: 0 | BK48: 0 | BL48: 0 | BM48: 5 | BN48: 0 | BO48: 0 | BP48: 0 | BQ48: 10 | BR48: 0 | BS48: 5 | BT48: 0 | BU48: 0 | BV48: 0 | BW48: 5 | BX48: 5 | BY48: 5 | BZ48: 10 | CA48: 0 | CB48: 0 | CC48: 0 | CD48: 5 | CE48: 0 | CF48: 0
A49: 2022-08-31 | B49: Man City | C49: 6 | D49: 0 | E49: Nottingham Forest | F49: 19:30:00 | H49: 5 | I49: 5 | J49: 5 | K49: 5 | L49: 5 | M49: 5 | N49: 5 | O49: 5 | P49: 5 | Q49: 5 | R49: 5 | S49: 5 | T49: 5 | U49: 0 | V49: 10 | W49: 5 | X49: 5 | Y49: 5 | Z49: 10 | AA49: 5 | AB49: 5 | AC49: 5 | AD49: 5 | AE49: 5 | AF49: 5 | AG49: 5 | AH49: 5 | AI49: 5 | AJ49: 5 | AK49: 5 | AL49: 10 | AM49: 5 | AN49: 5 | AO49: 5 | AP49: 5 | AQ49: 5 | AR49: 5 | AS49: 5 | AT49: 5 | AU49: 5 | AV49: 5 | AW49: 5 | AX49: 5 | AY49: 5 | AZ49: 5 | BA49: 5 | BB49: 5 | BC49: 5 | BD49: 5 | BE49: 5 | BF49: 5 | BG49: 5 | BH49: 5 | BI49: 5 | BJ49: 5 | BK49: 5 | BL49: 5 | BM49: 5 | BN49: 5 | BO49: 5 | BP49: 5 | BQ49: 5 | BR49: 5 | BS49: 5 | BT49: 5 | BU49: 5 | BV49: 5 | BW49: 5 | BX49: 5 | BY49: 5 | BZ49: 5 | CA49: 5 | CB49: 5 | CC49: 5 | CD49: 5 | CE49: 5 | CF49: 5
A50: 2022-08-31 | B50: West Ham | C50: 1 | D50: 1 | E50: Spurs | F50: 19:45:00 | H50: 0 | I50: 0 | J50: 0 | K50: 0 | L50: 0 | M50: 10 | N50: 5 | O50: 0 | P50: 0 | Q50: 0 | R50: 5 | S50: 0 | T50: 0 | U50: 5 | V50: 0 | W50: 0 | X50: 10 | Y50: 0 | Z50: 0 | AA50: 5 | AB50: 5 | AC50: 0 | AD50: 10 | AE50: 10 | AF50: 5 | AG50: 0 | AH50: 0 | AI50: 5 | AJ50: 0 | AK50: 0 | AL50: 0 | AM50: 10 | AN50: 10 | AO50: 0 | AP50: 10 | AQ50: 10 | AR50: 0 | AS50: 0 | AT50: 0 | AU50: 10 | AV50: 10 | AW50: 0 | AX50: 0 | AY50: 5 | AZ50: 10 | BA50: 0 | BB50: 0 | BC50: 0 | BD50: 0 | BE50: 0 | BF50: 10 | BG50: 0 | BH50: 0 | BI50: 0 | BJ50: 0 | BK50: 0 | BL50: 0 | BM50: 0 | BN50: 0 | BO50: 0 | BP50: 0 | BQ50: 0 | BR50: 0 | BS50: 10 | BT50: 0 | BU50: 0 | BV50: 0 | BW50: 0 | BX50: 5 | BY50: 0 | BZ50: 0 | CA50: 0 | CB50: 5 | CC50: 0 | CD50: 0 | CE50: 5 | CF50: 0
A51: 2022-08-31 | B51: Liverpool | C51: 2 | D51: 1 | E51: Newcastle | F51: 20:00:00 | H51: 0 | I51: 10 | J51: 10 | K51: 5 | L51: 5 | M51: 5 | N51: 0 | O51: 5 | P51: 0 | Q51: 5 | R51: 10 | S51: 0 | T51: 5 | U51: 5 | V51: 0 | W51: 5 | X51: 5 | Y51: 10 | Z51: 5 | AA51: 5 | AB51: 0 | AC51: 10 | AD51: 10 | AE51: 5 | AF51: 10 | AG51: 10 | AH51: 10 | AI51: 5 | AJ51: 5 | AK51: 5 | AL51: 5 | AM51: 5 | AN51: 5 | AO51: 5 | AP51: 5 | AQ51: 10 | AR51: 5 | AS51: 5 | AT51: 5 | AU51: 5 | AV51: 5 | AW51: 0 | AX51: 10 | AY51: 5 | AZ51: 5 | BA51: 5 | BB51: 5 | BC51: 10 | BD51: 10 | BE51: 0 | BF51: 5 | BG51: 5 | BH51: 10 | BI51: 10 | BJ51: 5 | BK51: 0 | BL51: 5 | BM51: 0 | BN51: 5 | BO51: 0 | BP51: 0 | BQ51: 5 | BR51: 5 | BS51: 10 | BT51: 5 | BU51: 5 | BV51: 5 | BW51: 5 | BX51: 0 | BY51: 10 | BZ51: 10 | CA51: 0 | CB51: 5 | CC51: 5 | CD51: 0 | CE51: 10 | CF51: 10
A53: Golden Boots
A54: Bruno Fernandes - Man United | D54: =COUNT(G54:GV54) -> 3 | E54: =0+0+0+1 -> 1 | X54: =2*$E54 -> 2 | AI54: =2*$E54 -> 2 | AW54: =2*$E54 -> 2
A55: Diogo Jota - Liverpool | D55: 1 | E55: =0+0+0+0+0 -> 0 | BW55: =2*$E55 -> 0
A56: Harry Kane - Tottenham | D56: 52 | E56: =0+1+1+2+0 -> 4 | H56: =2*$E56 -> 8 | I56: 8 | J56: 8 | K56: 8 | L56: 8 | M56: 8 | N56: 8 | O56: 8 | Q56: 8 | S56: =2*$E56 -> 8 | U56: =2*$E56 -> 8 | V56: =2*$E56 -> 8 | W56: =2*$E56 -> 8 | X56: =2*$E56 -> 8 | Y56: =2*$E56 -> 8 | Z56: =2*$E56 -> 8 | AA56: 8 | AB56: 8 | AC56: 8 | AD56: 8 | AE56: 8 | AF56: 8 | AH56: =2*$E56 -> 8 | AJ56: =2*$E56 -> 8 | AL56: =2*$E56 -> 8 | AM56: 8 | AN56: 8 | AO56: 8 | AP56: 8 | AQ56: =2*$E56 -> 8 | AR56: 8 | AT56: 8 | AV56: =2*$E56 -> 8 | AW56: 8 | AX56: =2*$E56 -> 8 | BC56: =2*$E56 -> 8 | BD56: =2*$E56 -> 8 | BG56: =2*$E56 -> 8 | BH56: =2*$E56 -> 8 | BI56: =2*$E56 -> 8 | BM56: =2*$E56 -> 8 | BO56: =2*$E56 -> 8 | BP56: =2*$E56 -> 8 | BQ56: =2*$E56 -> 8 | BS56: =2*$E56 -> 8 | BU56: =2*$E56 -> 8 | BV56: =2*$E56 -> 8 | BY56: =2*$E56 -> 8 | CA56: =2*$E56 -> 8 | CB56: =2*$E56 -> 8 | CE56: =2*$E56 -> 8 | CF56: =2*$E56 -> 8
A57: Kevin de Bruyne - Man City | D57: 4 | E57: =0+1+0+0+0 -> 1 | K57: =2*$E57 -> 2 | BA57: =2*$E57 -> 2 | BL57: =2*$E57 -> 2 | BZ57: =2*$E57 -> 2
A58: Mohamed Salah - Liverpool | D58: 69 | E58: =1+0+1+0+0 -> 2 | H58: =2*$E58 -> 4 | I58: =2*$E58 -> 4 | J58: =2*$E58 -> 4 | L58: =2*$E58 -> 4 | M58: 4 | N58: 4 | O58: 4 | P58: 4 | Q58: 4 | R58: 4 | S58: 4 | T58: 4 | U58: 4 | V58: 4 | W58: 4 | Y58: =2*$E58 -> 4 | AA58: =2*$E58 -> 4 | AB58: =2*$E58 -> 4 | AC58: =2*$E58 -> 4 | AD58: =2*$E58 -> 4 | AE58: =2*$E58 -> 4 | AF58: =2*$E58 -> 4 | AG58: 4 | AH58: =2*$E58 -> 4 | AJ58: 4 | AK58: 4 | AL58: 4 | AM58: 4 | AN58: 4 | AO58: 4 | AP58: 4 | AQ58: =2*$E58 -> 4 | AR58: =2*$E58 -> 4 | AS58: =2*$E58 -> 4 | AT58: 4 | AU58: =2*$E58 -> 4 | AV58: =2*$E58 -> 4 | AX58: =2*$E58 -> 4 | AY58: =2*$E58 -> 4 | AZ58: =2*$E58 -> 4 | BA58: =2*$E58 -> 4 | BB58: =2*$E58 -> 4 | BC58: =2*$E58 -> 4 | BE58: =2*$E58 -> 4 | BF58: =2*$E58 -> 4 | BG58: =2*$E58 -> 4 | BH58: =2*$E58 -> 4 | BI58: 4 | BJ58: =2*$E58 -> 4 | BK58: 4 | BL58: =2*$E58 -> 4 | BM58: =2*$E58 -> 4 | BN58: 4 | BO58: 4 | BQ58: =2*$E58 -> 4 | BR58: 4 | BT58: =2*$E58 -> 4 | BU58: 4 | BV58: 4 | BW58: 4 | BX58: 4 | BY58: 4 | BZ58: =2*$E58 -> 4 | CA58: =2*$E58 -> 4 | CB58: 4 | CC58: 4 | CD58: 4 | CE58: 4 | CF58: 4
A59: Son Heung-min - Tottenham | D59: 23 | E59: =0+0+0+0+0 -> 0 | P59: =2*$E59 -> 0 | R59: =2*$E59 -> 0 | T59: =2*$E59 -> 0 | Z59: =2*$E59 -> 0 | AG59: =2*$E59 -> 0 | AI59: =2*$E59 -> 0 | AK59: =2*$E59 -> 0 | AS59: =2*$E59 -> 0 | AY59: =2*$E59 -> 0 | AZ59: =2*$E59 -> 0 | BB59: =2*$E59 -> 0 | BD59: =2*$E59 -> 0 | BE59: =2*$E59 -> 0 | BF59: =2*$E59 -> 0 | BJ59: =2*$E59 -> 0 | BK59: =2*$E59 -> 0 | BP59: =2*$E59 -> 0 | BR59: =2*$E59 -> 0 | BS59: =2*$E59 -> 0 | BT59: =2*$E59 -> 0 | BX59: =2*$E59 -> 0 | CC59: =2*$E59 -> 0 | CD59: =2*$E59 -> 0
A60: Wilfried Zaha - Crystal Palace | D60: 2 | E60: =0+1+2+0+1 -> 4 | AU60: =2*$E60 -> 8 | BN60: =2*$E60 -> 8
A62: New Kids On The Block 102
A63: Darwin Nunez - Liverpool | D63: =COUNT(G63:GV63) -> 9 | E63: =1+0+0+0+0 -> 1 | J63: =2*$E63 -> 2 | O63: =2*$E63 -> 2 | R63: =2*$E63 -> 2 | U63: =2*$E63 -> 2 | AZ63: =2*$E63 -> 2 | BB63: =2*$E63 -> 2 | BL63: =2*$E63 -> 2 | BZ63: =2*$E63 -> 2 | CC63: =2*$E63 -> 2
A64: Erling Haaland - Man City | D64: =COUNT(G64:GV64) -> 52 | E64: =2+0+1+3+3 -> 9 | H64: =2*$E64 -> 18 | I64: =2*$E64 -> 18 | K64: =2*$E64 -> 18 | L64: =2*$E64 -> 18 | M64: =2*$E64 -> 18 | S64: =2*$E64 -> 18 | T64: =2*$E64 -> 18 | W64: =2*$E64 -> 18 | X64: =2*$E64 -> 18 | Y64: =2*$E64 -> 18 | AA64: =2*$E64 -> 18 | AC64: =2*$E64 -> 18 | AD64: =2*$E64 -> 18 | AE64: =2*$E64 -> 18 | AF64: =2*$E64 -> 18 | AG64: 18 | AH64: =2*$E64 -> 18 | AJ64: 18 | AK64: 18 | AL64: 18 | AM64: 18 | AN64: 18 | AP64: 18 | AQ64: =2*$E64 -> 18 | AR64: =2*$E64 -> 18 | AT64: 18 | AV64: =2*$E64 -> 18 | AW64: 18 | AX64: =2*$E64 -> 18 | AY64: 18 | BC64: =2*$E64 -> 18 | BD64: 18 | BE64: 18 | BF64: 18 | BG64: 18 | BH64: 18 | BI64: 18 | BM64: =2*$E64 -> 18 | BO64: =2*$E64 -> 18 | BP64: 18 | BQ64: 18 | BR64: 18 | BS64: 18 | BT64: 18 | BU64: 18 | BW64: =2*$E64 -> 18 | BX64: =2*$E64 -> 18 | BY64: =2*$E64 -> 18 | CA64: =2*$E64 -> 18 | CB64: =2*$E64 -> 18 | CE64: =2*$E64 -> 18 | CF64: =2*$E64 -> 18
A65: Gabriel Jesus - Arsenal | D65: =COUNT(G65:GV65) -> 13 | E65: =0+2+0+0+1 -> 3 | N65: =2*$E65 -> 6 | P65: =2*$E65 -> 6 | Q65: =2*$E65 -> 6 | Z65: =2*$E65 -> 6 | AB65: =2*$E65 -> 6 | AI65: =2*$E65 -> 6 | AO65: =2*$E65 -> 6 | AU65: =2*$E65 -> 6 | BA65: =2*$E65 -> 6 | BJ65: =2*$E65 -> 6 | BK65: =2*$E65 -> 6 | BV65: =2*$E65 -> 6 | CD65: =2*$E65 -> 6
A66: Raheem Sterling - Chelsea | D66: =COUNT(G66:GV66) -> 3 | E66: =0+0+0+2+1 -> 3 | V66: =2*$E66 -> 6 | AS66: =2*$E66 -> 6 | BN66: =2*$E66 -> 6
A68: Sack Race
A69: Antonio Conte - Tottenham | D69: =COUNT(G69:GV69) -> 1 | Z69: =15*$E69 -> 0
A70: Brendan Rodgers - Leicester City | D70: 5 | X70: =15*$E70 -> 0 | AD70: =15*$E70 -> 0 | BH70: =15*$E70 -> 0 | BZ70: =15*$E70 -> 0 | CD70: =15*$E70 -> 0
A71: Bruno Lage - Wolves | D71: 4 | H71: =15*$E71 -> 0 | AH71: =15*$E71 -> 0 | BL71: =15*$E71 -> 0 | BV71: =15*$E71 -> 0
A72: Eddie Howe - Newcastle United | D72: 1 | AF72: =15*$E72 -> 0
A73: Frank Lampard - Everton | D73: 21 | I73: =15*$E73 -> 0 | L73: =15*$E73 -> 0 | O73: =15*$E73 -> 0 | U73: =15*$E73 -> 0 | W73: =15*$E73 -> 0 | Y73: =15*$E73 -> 0 | AA73: =15*$E73 -> 0 | AN73: =15*$E73 -> 0 | AP73: =15*$E73 -> 0 | AR73: =15*$E73 -> 0 | BA73: =15*$E73 -> 0 | BB73: =15*$E73 -> 0 | BE73: =15*$E73 -> 0 | BG73: =15*$E73 -> 0 | BJ73: =15*$E73 -> 0 | BM73: =15*$E73 -> 0 | BN73: =15*$E73 -> 0 | BT73: =15*$E73 -> 0 | BX73: =15*$E73 -> 0 | CB73: =15*$E73 -> 0 | CE73: =15*$E73 -> 0
A74: Graham Potter - Brighton | D74: 1 | AK74: =15*$E74 -> 0
A75: Jesse Marsch - Leeds United | D75: 14 | M75: =15*$E75 -> 0 | Q75: =15*$E75 -> 0 | R75: =15*$E75 -> 0 | AC75: =15*$E75 -> 0 | AL75: =15*$E75 -> 0 | AM75: =15*$E75 -> 0 | AO75: =15*$E75 -> 0 | AS75: =15*$E75 -> 0 | AU75: =15*$E75 -> 0 | AW75: =15*$E75 -> 0 | AY75: =15*$E75 -> 0 | BD75: =15*$E75 -> 0 | BK75: =15*$E75 -> 0 | BO75: =15*$E75 -> 0
A76: Marco Silva - Fulham | D76: 9 | K76: =15*$E76 -> 0 | S76: =15*$E76 -> 0 | T76: =15*$E76 -> 0 | AB76: =15*$E76 -> 0 | AE76: =15*$E76 -> 0 | AX76: =15*$E76 -> 0 | BC76: =15*$E76 -> 0 | BY76: =15*$E76 -> 0 | CF76: =15*$E76 -> 0
A77: Ralph Hassenhuttl - Southampton | D77: 12 | AG77: =15*$E77 -> 0 | AJ77: =15*$E77 -> 0 | AQ77: =15*$E77 -> 0 | AT77: =15*$E77 -> 0 | AV77: =15*$E77 -> 0 | BF77: =15*$E77 -> 0 | BI77: =15*$E77 -> 0 | BP77: =15*$E77 -> 0 | BQ77: =15*$E77 -> 0 | BS77: =15*$E77 -> 0 | CA77: =15*$E77 -> 0 | CC77: =15*$E77 -> 0
A78: Scott Parker - Bournemouth | D78: 5 | E78: 1 | J78: =15*$E78 -> 15 | P78: =15*$E78 -> 15 | AZ78: =15*$E78 -> 15 | BU78: =15*$E78 -> 15 | BW78: =15*$E78 -> 15
A79: Steve Cooper - Nottingham Forest | D79: 1 | V79: =15*$E79 -> 0
A80: Steven Gerrard - Aston Villa | D80: 1 | AI80: =15*$E80 -> 0
A81: Thomas Frank - Brentford | D81: 2 | N81: =15*$E81 -> 0 | BR81: =15*$E81 -> 0
A83: Total Points - August | H83: =SUM(H$3:H82) -> 160 | I83: =SUM(I$3:I82) -> 160 | J83: =SUM(J$3:J82) -> 204 | K83: =SUM(K$3:K82) -> 128 | L83: =SUM(L$3:L82) -> 170 | M83: =SUM(M$3:M82) -> 170 | N83: =SUM(N$3:N82) -> 148 | O83: =SUM(O$3:O82) -> 154 | P83: =SUM(P$3:P82) -> 120 | Q83: =SUM(Q$3:Q82) -> 173 | R83: =SUM(R$3:R82) -> 151 | S83: =SUM(S$3:S82) -> 155 | T83: =SUM(T$3:T82) -> 167 | U83: =SUM(U$3:U82) -> 124 | V83: =SUM(V$3:V82) -> 138 | W83: =SUM(W$3:W82) -> 160 | X83: =SUM(X$3:X82) -> 193 | Y83: =SUM(Y$3:Y82) -> 160 | Z83: =SUM(Z$3:Z82) -> 129 | AA83: =SUM(AA$3:AA82) -> 165 | AB83: =SUM(AB$3:AB82) -> 143 | AC83: =SUM(AC$3:AC82) -> 165 | AD83: =SUM(AD$3:AD82) -> 195 | AE83: =SUM(AE$3:AE82) -> 185 | AF83: =SUM(AF$3:AF82) -> 190 | AG83: =SUM(AG$3:AG82) -> 172 | AH83: =SUM(AH$3:AH82) -> 180 | AI83: =SUM(AI$3:AI82) -> 163 | AJ83: =SUM(AJ$3:AJ82) -> 170 | AK83: =SUM(AK$3:AK82) -> 152 | AL83: =SUM(AL$3:AL82) -> 175 | AM83: =SUM(AM$3:AM82) -> 180 | AN83: =SUM(AN$3:AN82) -> 155 | AO83: =SUM(AO$3:AO82) -> 163 | AP83: =SUM(AP$3:AP82) -> 170 | AQ83: =SUM(AQ$3:AQ82) -> 190 | AR83: =SUM(AR$3:AR82) -> 170 | AS83: =SUM(AS$3:AS82) -> 140 | AT83: =SUM(AT$3:AT82) -> 165 | AU83: =SUM(AU$3:AU82) -> 183 | AV83: =SUM(AV$3:AV82) -> 190 | AW83: =SUM(AW$3:AW82) -> 183 | AX83: =SUM(AX$3:AX82) -> 205 | AY83: =SUM(AY$3:AY82) -> 157 | AZ83: =SUM(AZ$3:AZ82) -> 171 | BA83: =SUM(BA$3:BA82) -> 182 | BB83: =SUM(BB$3:BB82) -> 121 | BC83: =SUM(BC$3:BC82) -> 180 | BD83: =SUM(BD$3:BD82) -> 156 | BE83: =SUM(BE$3:BE82) -> 157 | BF83: =SUM(BF$3:BF82) -> 127 | BG83: =SUM(BG$3:BG82) -> 170 | BH83: =SUM(BH$3:BH82) -> 180 | BI83: =SUM(BI$3:BI82) -> 200 | BJ83: =SUM(BJ$3:BJ82) -> 105 | BK83: =SUM(BK$3:BK82) -> 125 | BL83: =SUM(BL$3:BL82) -> 163 | BM83: =SUM(BM$3:BM82) -> 160 | BN83: =SUM(BN$3:BN82) -> 128 | BO83: =SUM(BO$3:BO82) -> 155 | BP83: =SUM(BP$3:BP82) -> 151 | BQ83: =SUM(BQ$3:BQ82) -> 205 | BR83: =SUM(BR$3:BR82) -> 122 | BS83: =SUM(BS$3:BS82) -> 186 | BT83: =SUM(BT$3:BT82) -> 197 | BU83: =SUM(BU$3:BU82) -> 175 | BV83: =SUM(BV$3:BV82) -> 188 | BW83: =SUM(BW$3:BW82) -> 202 | BX83: =SUM(BX$3:BX82) -> 157 | BY83: =SUM(BY$3:BY82) -> 205 | BZ83: =SUM(BZ$3:BZ82) -> 143 | CA83: =SUM(CA$3:CA82) -> 200 | CB83: =SUM(CB$3:CB82) -> 165 | CC83: =SUM(CC$3:CC82) -> 141 | CD83: =SUM(CD$3:CD82) -> 150 | CE83: =SUM(CE$3:CE82) -> 160 | CF83: =SUM(CF$3:CF82) -> 175

Sheet September
H1: Aidan Scanlon | I1: Aidan White | J1: Anastas Popov | K1: Andrew Keohan | L1: Andy Dunne | M1: Bobby Hynes | N1: Brendan Maguire | O1: Brian Haughton | P1: Brian Mullen | Q1: Brian Prendergast | R1: Caroline Carroll | S1: Cathal Thornton | T1: Chris Keohan | U1: Christina Morgan | V1: Ciara Walsh | W1: Ciaran Healy | X1: Ciaran O'Hart | Y1: Ciaran Rooney | Z1: Colm Cahill | AA1: Con McSweeney | AB1: Conor MacMahon | AC1: Craig Calvert | AD1: Darragh Kenny | AE1: Dave McGinley | AF1: David Cooney | AG1: David Lavelle | AH1: Dean Kelly | AI1: Derek McDonald | AJ1: Dylan Delaney | AK1: Dylan O'Riordan | AL1: Eoghan Farrelly | AM1: Frank McSweeney | AN1: Gareth Pierpoint | AO1: Gary Donnelly | AP1: Gary Fitzpatrick | AQ1: Gary McGurk | AR1: Gavin Morgan | AS1: Gerard McCluskey | AT1: Gerry Draper | AU1: Gerry Moore | AV1: Graham Pierpoint | AW1: Ian McSweeney | AX1: James Keville | AY1: Javier Suarez | AZ1: Jenny Behan | BA1: Joe Behan | BB1: Joe Turner | BC1: John Brophy | BD1: John Hempenstall | BE1: John Massey | BF1: Johno Percy | BG1: Jonathan Fox | BH1: Joseph Kavanagh | BI1: Keith Ryan | BJ1: Kieran Killeen | BK1: Liam Keohan | BL1: Lionel Knott | BM1: Micheal Joyce | BN1: Monica Collins | BO1: Niall Carroll | BP1: Niall Gregory | BQ1: Paul Moore | BR1: Paul Prendergast | BS1: Phil Doyle | BT1: Philip Jordan | BU1: Richard Johnston | BV1: Robert Hynes | BW1: Roisin Joyce | BX1: Ronan Rafferty | BY1: Rory Ellard | BZ1: Sarah Coward | CA1: Sean Cleary | CB1: Sean O'Mairtin | CC1: Shane Finnan | CD1: Shane Hempenstall | CE1: Simon Scanlon | CF1: Tommy Hamill
A2: Date | B2: Teams | F2: Time
A3: 2022-09-01 | B3: Leicester | C3: 0 | D3: 1 | E3: Man Utd | F3: 20:00:00 | H3: 5 | I3: 10 | J3: 10 | K3: 5 | L3: 0 | M3: 0 | N3: 5 | O3: 5 | P3: 0 | Q3: 10 | R3: 5 | S3: 5 | T3: 10 | U3: 0 | V3: 5 | W3: 0 | X3: 0 | Y3: 5 | Z3: 0 | AA3: 0 | AB3: 5 | AC3: 5 | AD3: 5 | AE3: 5 | AF3: 5 | AG3: 0 | AH3: 5 | AI3: 5 | AJ3: 5 | AK3: 10 | AL3: 5 | AM3: 0 | AN3: 5 | AO3: 5 | AP3: 0 | AQ3: 0 | AR3: 0 | AS3: 0 | AT3: 0 | AU3: 0 | AV3: 5 | AW3: 0 | AX3: 0 | AY3: 0 | AZ3: 5 | BA3: 5 | BB3: 0 | BC3: 0 | BD3: 5 | BE3: 0 | BF3: 0 | BG3: 10 | BH3: 5 | BI3: 10 | BJ3: 0 | BK3: 5 | BL3: 10 | BM3: 5 | BN3: 5 | BO3: 5 | BP3: 5 | BQ3: 0 | BR3: 0 | BS3: 5 | BT3: 5 | BU3: 5 | BV3: 0 | BW3: 5 | BX3: 5 | BY3: 5 | BZ3: 0 | CA3: 5 | CB3: 0 | CC3: 5 | CD3: 5 | CE3: 5 | CF3: 0
A4: 2022-09-03 | B4: Everton | C4: 0 | D4: 0 | E4: Liverpool | F4: 12:30:00 | H4: 0 | I4: 0 | J4: 0 | K4: 0 | L4: 0 | M4: 0 | N4: 0 | O4: 0 | P4: 0 | Q4: 0 | R4: 0 | S4: 0 | T4: 0 | U4: 0 | V4: 5 | W4: - | X4: 0 | Y4: 0 | Z4: 0 | AA4: 5 | AB4: 0 | AC4: 0 | AD4: 0 | AE4: 0 | AF4: 0 | AG4: 0 | AH4: 0 | AI4: 0 | AJ4: 0 | AK4: 0 | AL4: 5 | AM4: 0 | AN4: 0 | AO4: 0 | AP4: 5 | AQ4: 0 | AR4: 0 | AS4: 0 | AT4: 0 | AU4: 0 | AV4: 0 | AW4: 0 | AX4: 0 | AY4: 0 | AZ4: 0 | BA4: 0 | BB4: 0 | BC4: 5 | BD4: 0 | BE4: 0 | BF4: 5 | BG4: 0 | BH4: 0 | BI4: 5 | BJ4: 0 | BK4: 0 | BL4: 0 | BM4: 0 | BN4: 0 | BO4: 5 | BP4: 5 | BQ4: 0 | BR4: 0 | BS4: 5 | BT4: 0 | BU4: 0 | BV4: 0 | BW4: 0 | BX4: 0 | BY4: 0 | BZ4: 0 | CA4: 0 | CB4: 0 | CC4: 0 | CD4: 0 | CE4: 5 | CF4: 0
A5: 2022-09-03 | B5: Brentford | C5: 5 | D5: 2 | E5: Leeds Utd | F5: 15:00:00 | H5: 0 | I5: 0 | J5: 5 | K5: 0 | L5: 0 | M5: 0 | N5: 0 | O5: 0 | P5: 0 | Q5: 0 | R5: 0 | S5: 0 | T5: 0 | U5: 5 | V5: 0 | W5: - | X5: 0 | Y5: 5 | Z5: 5 | AA5: 0 | AB5: 5 | AC5: 0 | AD5: 0 | AE5: 5 | AF5: 5 | AG5: 5 | AH5: 5 | AI5: 5 | AJ5: 0 | AK5: 0 | AL5: 5 | AM5: 5 | AN5: 0 | AO5: 5 | AP5: 0 | AQ5: 0 | AR5: 5 | AS5: 5 | AT5: 0 | AU5: 0 | AV5: 0 | AW5: 0 | AX5: 0 | AY5: 5 | AZ5: 0 | BA5: 0 | BB5: 5 | BC5: 5 | BD5: 5 | BE5: 5 | BF5: 5 | BG5: 5 | BH5: 0 | BI5: 0 | BJ5: 0 | BK5: 0 | BL5: 0 | BM5: 0 | BN5: 0 | BO5: 0 | BP5: 5 | BQ5: 5 | BR5: 5 | BS5: 0 | BT5: 0 | BU5: 0 | BV5: 5 | BW5: 0 | BX5: 5 | BY5: 5 | BZ5: 0 | CA5: 5 | CB5: 5 | CC5: 0 | CD5: 0 | CE5: 5 | CF5: 0
A6: 2022-09-03 | B6: Chelsea | C6: 2 | D6: 1 | E6: West Ham | F6: 15:00:00 | H6: 0 | I6: 10 | J6: 5 | K6: 0 | L6: 5 | M6: 5 | N6: 10 | O6: 10 | P6: 10 | Q6: 10 | R6: 0 | S6: 5 | T6: 10 | U6: 5 | V6: 0 | W6: - | X6: 5 | Y6: 10 | Z6: 5 | AA6: 0 | AB6: 10 | AC6: 10 | AD6: 10 | AE6: 10 | AF6: 10 | AG6: 10 | AH6: 10 | AI6: 10 | AJ6: 10 | AK6: 5 | AL6: 10 | AM6: 5 | AN6: 10 | AO6: 10 | AP6: 10 | AQ6: 5 | AR6: 5 | AS6: 5 | AT6: 0 | AU6: 0 | AV6: 5 | AW6: 5 | AX6: 10 | AY6: 5 | AZ6: 5 | BA6: 5 | BB6: 5 | BC6: 5 | BD6: 5 | BE6: 10 | BF6: 5 | BG6: 5 | BH6: 10 | BI6: 0 | BJ6: 5 | BK6: 10 | BL6: 5 | BM6: 0 | BN6: 5 | BO6: 0 | BP6: 10 | BQ6: 5 | BR6: 5 | BS6: 10 | BT6: 5 | BU6: 10 | BV6: 10 | BW6: 10 | BX6: 5 | BY6: 5 | BZ6: 5 | CA6: 10 | CB6: 10 | CC6: 10 | CD6: 5 | CE6: 0 | CF6: 5
A7: 2022-09-03 | B7: Newcastle | C7: 0 | D7: 0 | E7: Crystal Palace | F7: 15:00:00 | H7: 0 | I7: 0 | J7: 0 | K7: 0 | L7: 0 | M7: 5 | N7: 0 | O7: 0 | P7: 0 | Q7: 0 | R7: 5 | S7: 0 | T7: 0 | U7: 0 | V7: 5 | W7: - | X7: 5 | Y7: 0 | Z7: 0 | AA7: 0 | AB7: 0 | AC7: 0 | AD7: 0 | AE7: 0 | AF7: 0 | AG7: 0 | AH7: 5 | AI7: 0 | AJ7: 0 | AK7: 0 | AL7: 0 | AM7: 5 | AN7: 0 | AO7: 0 | AP7: 0 | AQ7: 0 | AR7: 0 | AS7: 0 | AT7: 0 | AU7: 0 | AV7: 0 | AW7: 5 | AX7: 0 | AY7: 0 | AZ7: 0 | BA7: 0 | BB7: 5 | BC7: 0 | BD7: 0 | BE7: 0 | BF7: 0 | BG7: 0 | BH7: 0 | BI7: 0 | BJ7: 0 | BK7: 0 | BL7: 0 | BM7: 5 | BN7: 0 | BO7: 0 | BP7: 0 | BQ7: 0 | BR7: 0 | BS7: 0 | BT7: 0 | BU7: 0 | BV7: 0 | BW7: 5 | BX7: 0 | BY7: 0 | BZ7: 5 | CA7: 0 | CB7: 0 | CC7: 0 | CD7: 0 | CE7: 0 | CF7: 0
A8: 2022-09-03 | B8: Nottingham Forest | C8: 2 | D8: 3 | E8: Bournemouth | F8: 15:00:00 | H8: 0 | I8: 0 | J8: 0 | K8: 0 | L8: 0 | M8: 0 | N8: 0 | O8: 0 | P8: 0 | Q8: 0 | R8: 0 | S8: 0 | T8: 0 | U8: 5 | V8: 0 | W8: - | X8: 0 | Y8: 0 | Z8: 0 | AA8: 0 | AB8: 0 | AC8: 0 | AD8: 0 | AE8: 0 | AF8: 0 | AG8: 0 | AH8: 0 | AI8: 0 | AJ8: 0 | AK8: 0 | AL8: 0 | AM8: 0 | AN8: 0 | AO8: 0 | AP8: 0 | AQ8: 0 | AR8: 0 | AS8: 0 | AT8: 0 | AU8: 0 | AV8: 0 | AW8: 0 | AX8: 0 | AY8: 5 | AZ8: 0 | BA8: 0 | BB8: 0 | BC8: 0 | BD8: 0 | BE8: 0 | BF8: 0 | BG8: 0 | BH8: 0 | BI8: 0 | BJ8: 0 | BK8: 0 | BL8: 0 | BM8: 0 | BN8: 0 | BO8: 0 | BP8: 5 | BQ8: 0 | BR8: 0 | BS8: 0 | BT8: 0 | BU8: 0 | BV8: 0 | BW8: 0 | BX8: 0 | BY8: 0 | BZ8: 0 | CA8: 0 | CB8: 0 | CC8: 0 | CD8: 0 | CE8: 0 | CF8: 0
A9: 2022-09-03 | B9: Spurs | C9: 2 | D9: 1 | E9: Fulham | F9: 15:00:00 | H9: 5 | I9: 5 | J9: 10 | K9: 5 | L9: 10 | M9: 5 | N9: 5 | O9: 5 | P9: 10 | Q9: 5 | R9: 5 | S9: 10 | T9: 5 | U9: 5 | V9: 5 | W9: - | X9: 5 | Y9: 5 | Z9: 10 | AA9: 5 | AB9: 10 | AC9: 5 | AD9: 5 | AE9: 10 | AF9: 5 | AG9: 5 | AH9: 5 | AI9: 10 | AJ9: 5 | AK9: 10 | AL9: 5 | AM9: 10 | AN9: 5 | AO9: 10 | AP9: 5 | AQ9: 5 | AR9: 5 | AS9: 5 | AT9: 10 | AU9: 0 | AV9: 5 | AW9: 5 | AX9: 10 | AY9: 5 | AZ9: 5 | BA9: 5 | BB9: 5 | BC9: 5 | BD9: 5 | BE9: 5 | BF9: 0 | BG9: 5 | BH9: 5 | BI9: 5 | BJ9: 5 | BK9: 5 | BL9: 5 | BM9: 0 | BN9: 10 | BO9: 10 | BP9: 5 | BQ9: 5 | BR9: 5 | BS9: 5 | BT9: 5 | BU9: 5 | BV9: 5 | BW9: 5 | BX9: 5 | BY9: 5 | BZ9: 5 | CA9: 10 | CB9: 0 | CC9: 10 | CD9: 5 | CE9: 5 | CF9: 10
A10: 2022-09-03 | B10: Wolves | C10: 1 | D10: 0 | E10: Southampton | F10: 15:00:00 | H10: 10 | I10: 0 | J10: 10 | K10: 0 | L10: 0 | M10: 5 | N10: 0 | O10: 10 | P10: 0 | Q10: 5 | R10: 0 | S10: 0 | T10: 10 | U10: 0 | V10: 0 | W10: - | X10: 10 | Y10: 5 | Z10: 0 | AA10: 5 | AB10: 10 | AC10: 0 | AD10: 0 | AE10: 0 | AF10: 0 | AG10: 10 | AH10: 0 | AI10: 5 | AJ10: 0 | AK10: 5 | AL10: 0 | AM10: 0 | AN10: 10 | AO10: 5 | AP10: 5 | AQ10: 10 | AR10: 10 | AS10: 10 | AT10: 5 | AU10: 0 | AV10: 10 | AW10: 0 | AX10: 10 | AY10: 0 | AZ10: 0 | BA10: 0 | BB10: 10 | BC10: 0 | BD10: 0 | BE10: 5 | BF10: 0 | BG10: 0 | BH10: 0 | BI10: 5 | BJ10: 5 | BK10: 5 | BL10: 0 | BM10: 0 | BN10: 0 | BO10: 0 | BP10: 5 | BQ10: 0 | BR10: 0 | BS10: 0 | BT10: 10 | BU10: 0 | BV10: 0 | BW10: 0 | BX10: 0 | BY10: 0 | BZ10: 0 | CA10: 0 | CB10: 0 | CC10: 0 | CD10: 0 | CE10: 0 | CF10: 10
A11: 2022-09-03 | B11: Aston Villa | C11: 1 | D11: 1 | E11: Man City | F11: 17:30:00 | H11: 0 | I11: 0 | J11: 0 | K11: 0 | L11: 0 | M11: 0 | N11: 0 | O11: 0 | P11: 0 | Q11: 0 | R11: 0 | S11: 0 | T11: 0 | U11: 0 | V11: 0 | W11: - | X11: 0 | Y11: 0 | Z11: 0 | AA11: 0 | AB11: 0 | AC11: 0 | AD11: 0 | AE11: 0 | AF11: 0 | AG11: 0 | AH11: 0 | AI11: 0 | AJ11: 0 | AK11: 0 | AL11: 0 | AM11: 0 | AN11: 0 | AO11: 0 | AP11: 0 | AQ11: 0 | AR11: 0 | AS11: 0 | AT11: 0 | AU11: 0 | AV11: 0 | AW11: 0 | AX11: 0 | AY11: 0 | AZ11: 0 | BA11: 0 | BB11: 0 | BC11: 0 | BD11: 0 | BE11: 0 | BF11: 0 | BG11: 0 | BH11: 0 | BI11: 0 | BJ11: 0 | BK11: 0 | BL11: 0 | BM11: 0 | BN11: 0 | BO11: 0 | BP11: 0 | BQ11: 0 | BR11: 0 | BS11: 0 | BT11: 0 | BU11: 0 | BV11: 0 | BW11: 0 | BX11: 0 | BY11: 0 | BZ11: 0 | CA11: 0 | CB11: 0 | CC11: 0 | CD11: 0 | CE11: 0 | CF11: 0
A12: 2022-09-04 | B12: Brighton | C12: 5 | D12: 2 | E12: Leicester | F12: 14:00:00 | H12: 5 | I12: 5 | J12: 5 | K12: 5 | L12: 5 | M12: 0 | N12: 5 | O12: 5 | P12: 5 | Q12: 5 | R12: 5 | S12: 5 | T12: 5 | U12: 5 | V12: 5 | W12: - | X12: 0 | Y12: 5 | Z12: 5 | AA12: 5 | AB12: 0 | AC12: 5 | AD12: 5 | AE12: 5 | AF12: 5 | AG12: 5 | AH12: 5 | AI12: 5 | AJ12: 5 | AK12: 5 | AL12: 5 | AM12: 5 | AN12: 5 | AO12: 5 | AP12: 5 | AQ12: 5 | AR12: 5 | AS12: 5 | AT12: 5 | AU12: 5 | AV12: 0 | AW12: 5 | AX12: 5 | AY12: 0 | AZ12: 5 | BA12: 5 | BB12: 5 | BC12: 5 | BD12: 5 | BE12: 5 | BF12: 5 | BG12: 5 | BH12: 5 | BI12: 5 | BJ12: 0 | BK12: 0 | BL12: 0 | BM12: 5 | BN12: 0 | BO12: 0 | BP12: 0 | BQ12: 5 | BR12: 5 | BS12: 0 | BT12: 5 | BU12: 5 | BV12: 5 | BW12: 5 | BX12: 5 | BY12: 5 | BZ12: 0 | CA12: 5 | CB12: 5 | CC12: 0 | CD12: 5 | CE12: 0 | CF12: 5
A13: 2022-09-04 | B13: Man Utd | C13: 3 | D13: 1 | E13: Arsenal | F13: 16:30:00 | H13: 0 | I13: 0 | J13: 0 | K13: 0 | L13: 0 | M13: 5 | N13: 5 | O13: 5 | P13: 0 | Q13: 10 | R13: 0 | S13: 5 | T13: 0 | U13: 0 | V13: 5 | W13: - | X13: 0 | Y13: 0 | Z13: 0 | AA13: 0 | AB13: 5 | AC13: 5 | AD13: 0 | AE13: 0 | AF13: 0 | AG13: 0 | AH13: 0 | AI13: 5 | AJ13: 5 | AK13: 5 | AL13: 5 | AM13: 0 | AN13: 0 | AO13: 5 | AP13: 5 | AQ13: 0 | AR13: 0 | AS13: 5 | AT13: 0 | AU13: 0 | AV13: 0 | AW13: 0 | AX13: 0 | AY13: 0 | AZ13: 5 | BA13: 0 | BB13: 0 | BC13: 0 | BD13: 5 | BE13: 0 | BF13: 0 | BG13: 0 | BH13: 0 | BI13: 5 | BJ13: 0 | BK13: 5 | BL13: 0 | BM13: 0 | BN13: 5 | BO13: 0 | BP13: 0 | BQ13: 0 | BR13: 0 | BS13: 5 | BT13: 5 | BU13: 0 | BV13: 5 | BW13: 0 | BX13: 5 | BY13: 5 | BZ13: 0 | CA13: 0 | CB13: 0 | CC13: 0 | CD13: 0 | CE13: 10 | CF13: 0
A14: 2022-09-16 | B14: Aston Villa | C14: 1 | D14: 0 | E14: Southampton | F14: 20:00:00 | H14: 5 | I14: 5 | J14: 10 | K14: 5 | L14: 5 | M14: 5 | N14: 5 | O14: 5 | P14: 10 | Q14: 5 | R14: 5 | S14: 0 | T14: 5 | U14: 10 | V14: 5 | W14: 0 | X14: 10 | Y14: 5 | Z14: 5 | AA14: 0 | AB14: 0 | AC14: 0 | AD14: 0 | AE14: 0 | AF14: 0 | AG14: 0 | AH14: 10 | AI14: 0 | AJ14: 5 | AK14: 0 | AL14: 0 | AM14: 5 | AN14: 5 | AO14: 0 | AP14: 0 | AQ14: 10 | AR14: 0 | AS14: 5 | AT14: 5 | AU14: 10 | AV14: 10 | AW14: 0 | AX14: 5 | AY14: 0 | AZ14: 0 | BA14: 0 | BB14: 10 | BC14: 0 | BD14: 5 | BE14: 10 | BF14: 0 | BG14: 10 | BH14: 0 | BI14: 0 | BJ14: 0 | BK14: 5 | BL14: 0 | BM14: 0 | BN14: 0 | BO14: 10 | BP14: 5 | BQ14: 0 | BR14: 5 | BS14: 5 | BT14: 5 | BU14: 10 | BV14: 5 | BW14: 0 | BX14: 0 | BY14: 0 | BZ14: 5 | CA14: 0 | CB14: 5 | CC14: 0 | CD14: 5 | CE14: 0 | CF14: 10
A15: 2022-09-16 | B15: Nottingham Forest | C15: 2 | D15: 3 | E15: Fulham | F15: 20:00:00 | H15: 0 | I15: 0 | J15: 0 | K15: 0 | L15: 0 | M15: 0 | N15: 5 | O15: 0 | P15: 0 | Q15: 0 | R15: 5 | S15: 5 | T15: 5 | U15: 0 | V15: 5 | W15: 0 | X15: 0 | Y15: 5 | Z15: 0 | AA15: 0 | AB15: 5 | AC15: 5 | AD15: 5 | AE15: 0 | AF15: 0 | AG15: 0 | AH15: 0 | AI15: 0 | AJ15: 0 | AK15: 0 | AL15: 5 | AM15: 5 | AN15: 0 | AO15: 0 | AP15: 0 | AQ15: 0 | AR15: 0 | AS15: 0 | AT15: 0 | AU15: 5 | AV15: 0 | AW15: 5 | AX15: 0 | AY15: 5 | AZ15: 0 | BA15: 0 | BB15: 5 | BC15: 0 | BD15: 0 | BE15: 0 | BF15: 5 | BG15: 5 | BH15: 0 | BI15: 0 | BJ15: 0 | BK15: 5 | BL15: 0 | BM15: 0 | BN15: 0 | BO15: 5 | BP15: 0 | BQ15: 5 | BR15: 0 | BS15: 0 | BT15: 5 | BU15: 0 | BV15: 0 | BW15: 5 | BX15: 0 | BY15: 5 | BZ15: 5 | CA15: 5 | CB15: 0 | CC15: 0 | CD15: 0 | CE15: 5 | CF15: 0
A16: 2022-09-17 | B16: Wolves | C16: 0 | D16: 3 | E16: Man City | F16: 12:30:00 | H16: 5 | I16: 10 | J16: 5 | K16: 0 | L16: 5 | M16: 5 | N16: 5 | O16: 5 | P16: 5 | Q16: 5 | R16: 5 | S16: 5 | T16: 10 | U16: 5 | V16: 5 | W16: 0 | X16: 10 | Y16: 5 | Z16: 5 | AA16: 5 | AB16: 5 | AC16: 10 | AD16: 5 | AE16: 5 | AF16: 5 | AG16: 10 | AH16: 5 | AI16: 10 | AJ16: 10 | AK16: 5 | AL16: 5 | AM16: 5 | AN16: 10 | AO16: 5 | AP16: 5 | AQ16: 0 | AR16: 5 | AS16: 0 | AT16: 5 | AU16: 5 | AV16: 5 | AW16: 10 | AX16: 5 | AY16: 5 | AZ16: 10 | BA16: 10 | BB16: 5 | BC16: 10 | BD16: 10 | BE16: 5 | BF16: 10 | BG16: 10 | BH16: 5 | BI16: 5 | BJ16: 5 | BK16: 10 | BL16: 5 | BM16: 5 | BN16: 10 | BO16: 0 | BP16: 0 | BQ16: 5 | BR16: 5 | BS16: 5 | BT16: 10 | BU16: 5 | BV16: 5 | BW16: 5 | BX16: 5 | BY16: 5 | BZ16: 5 | CA16: 10 | CB16: 10 | CC16: 0 | CD16: 0 | CE16: 10 | CF16: 5
A17: 2022-09-17 | B17: Newcastle | C17: 1 | D17: 1 | E17: Bournemouth | F17: 15:00:00 | H17: 0 | I17: 0 | J17: 0 | K17: 0 | L17: 0 | M17: 0 | N17: 0 | O17: 0 | P17: 0 | Q17: 0 | R17: 0 | S17: 0 | T17: 0 | U17: 0 | V17: 0 | W17: 0 | X17: 0 | Y17: 0 | Z17: 0 | AA17: 0 | AB17: 0 | AC17: 0 | AD17: 0 | AE17: 0 | AF17: 0 | AG17: 0 | AH17: 0 | AI17: 0 | AJ17: 0 | AK17: 0 | AL17: 0 | AM17: 0 | AN17: 0 | AO17: 0 | AP17: 0 | AQ17: 0 | AR17: 0 | AS17: 0 | AT17: 0 | AU17: 0 | AV17: 0 | AW17: 10 | AX17: 0 | AY17: 0 | AZ17: 0 | BA17: 0 | BB17: 0 | BC17: 0 | BD17: 0 | BE17: 5 | BF17: 0 | BG17: 0 | BH17: 0 | BI17: 0 | BJ17: 10 | BK17: 0 | BL17: 0 | BM17: 0 | BN17: 10 | BO17: 0 | BP17: 0 | BQ17: 0 | BR17: 0 | BS17: 0 | BT17: 0 | BU17: 0 | BV17: 0 | BW17: 0 | BX17: 0 | BY17: 0 | BZ17: 0 | CA17: 0 | CB17: 0 | CC17: 0 | CD17: 0 | CE17: 0 | CF17: 0
A18: 2022-09-17 | B18: Spurs | C18: 6 | D18: 2 | E18: Leicester | F18: 17:30:00 | H18: 5 | I18: 5 | J18: 5 | K18: 5 | L18: 5 | M18: 5 | N18: 5 | O18: 5 | P18: 5 | Q18: 5 | R18: 5 | S18: 5 | T18: 5 | U18: 5 | V18: 5 | W18: 0 | X18: 5 | Y18: 5 | Z18: 5 | AA18: 5 | AB18: 5 | AC18: 5 | AD18: 5 | AE18: 5 | AF18: 5 | AG18: 5 | AH18: 5 | AI18: 5 | AJ18: 5 | AK18: 5 | AL18: 5 | AM18: 5 | AN18: 5 | AO18: 5 | AP18: 5 | AQ18: 5 | AR18: 5 | AS18: 5 | AT18: 5 | AU18: 5 | AV18: 5 | AW18: 5 | AX18: 5 | AY18: 5 | AZ18: 5 | BA18: 5 | BB18: 5 | BC18: 5 | BD18: 5 | BE18: 0 | BF18: 5 | BG18: 5 | BH18: 5 | BI18: 5 | BJ18: 5 | BK18: 5 | BL18: 5 | BM18: 5 | BN18: 5 | BO18: 5 | BP18: 5 | BQ18: 5 | BR18: 5 | BS18: 5 | BT18: 5 | BU18: 5 | BV18: 5 | BW18: 5 | BX18: 5 | BY18: 5 | BZ18: 0 | CA18: 5 | CB18: 5 | CC18: 5 | CD18: 5 | CE18: 5 | CF18: 5
A19: 2022-09-18 | B19: Brentford | C19: 0 | D19: 3 | E19: Arsenal | F19: 12:00:00 | H19: 0 | I19: 5 | J19: 5 | K19: 0 | L19: 5 | M19: 5 | N19: 0 | O19: 0 | P19: 5 | Q19: 5 | R19: 0 | S19: 5 | T19: 5 | U19: 0 | V19: 0 | W19: 0 | X19: 5 | Y19: 5 | Z19: 5 | AA19: 0 | AB19: 0 | AC19: 0 | AD19: 5 | AE19: 0 | AF19: 5 | AG19: 5 | AH19: 5 | AI19: 5 | AJ19: 5 | AK19: 5 | AL19: 0 | AM19: 5 | AN19: 5 | AO19: 5 | AP19: 5 | AQ19: 0 | AR19: 5 | AS19: 0 | AT19: 5 | AU19: 5 | AV19: 5 | AW19: 5 | AX19: 5 | AY19: 5 | AZ19: 5 | BA19: 5 | BB19: 0 | BC19: 5 | BD19: 5 | BE19: 0 | BF19: 5 | BG19: 5 | BH19: 5 | BI19: 5 | BJ19: 0 | BK19: 5 | BL19: 0 | BM19: 5 | BN19: 5 | BO19: 5 | BP19: 0 | BQ19: 5 | BR19: 5 | BS19: 5 | BT19: 5 | BU19: 5 | BV19: 5 | BW19: 0 | BX19: 0 | BY19: 5 | BZ19: 5 | CA19: 5 | CB19: 0 | CC19: 0 | CD19: 0 | CE19: 0 | CF19: 5
A20: 2022-09-18 | B20: Everton | C20: 1 | D20: 0 | E20: West Ham | F20: 14:15:00 | H20: 0 | I20: 0 | J20: 0 | K20: 5 | L20: 5 | M20: 0 | N20: 0 | O20: 0 | P20: 0 | Q20: 0 | R20: 0 | S20: 0 | T20: 0 | U20: 5 | V20: 0 | W20: 0 | X20: 0 | Y20: 0 | Z20: 0 | AA20: 10 | AB20: 0 | AC20: 5 | AD20: 0 | AE20: 0 | AF20: 0 | AG20: 0 | AH20: 10 | AI20: 0 | AJ20: 0 | AK20: 0 | AL20: 5 | AM20: 0 | AN20: 0 | AO20: 5 | AP20: 0 | AQ20: 0 | AR20: 0 | AS20: 5 | AT20: 0 | AU20: 0 | AV20: 0 | AW20: 0 | AX20: 0 | AY20: 5 | AZ20: 0 | BA20: 0 | BB20: 5 | BC20: 5 | BD20: 5 | BE20: 5 | BF20: 0 | BG20: 0 | BH20: 0 | BI20: 0 | BJ20: 0 | BK20: 0 | BL20: 0 | BM20: 5 | BN20: 0 | BO20: 0 | BP20: 10 | BQ20: 0 | BR20: 0 | BS20: 0 | BT20: 0 | BU20: 0 | BV20: 0 | BW20: 0 | BX20: 0 | BY20: 0 | BZ20: 0 | CA20: 5 | CB20: 0 | CC20: 0 | CD20: 5 | CE20: 0 | CF20: 0
A22: Golden Boots
A23: Bruno Fernandes - Man United | D23: =COUNT(G23:GV23) -> 3 | E23: =0 -> 0 | X23: =2*$E23 -> 0 | AI23: =2*$E23 -> 0 | AW23: =2*$E23 -> 0
A24: Diogo Jota - Liverpool | D24: 1 | E24: =0 -> 0 | BW24: =2*$E24 -> 0
A25: Harry Kane - Tottenham | D25: 52 | E25: =1+1 -> 2 | H25: =2*$E25 -> 4 | I25: 4 | J25: 4 | K25: 4 | L25: 4 | M25: 4 | N25: 4 | O25: 4 | Q25: 4 | S25: =2*$E25 -> 4 | U25: =2*$E25 -> 4 | V25: =2*$E25 -> 4 | W25: =2*$E25 -> 4 | X25: =2*$E25 -> 4 | Y25: =2*$E25 -> 4 | Z25: =2*$E25 -> 4 | AA25: 4 | AB25: 4 | AC25: 4 | AD25: 4 | AE25: 4 | AF25: 4 | AH25: =2*$E25 -> 4 | AJ25: =2*$E25 -> 4 | AL25: =2*$E25 -> 4 | AM25: 4 | AN25: 4 | AO25: 4 | AP25: 4 | AQ25: =2*$E25 -> 4 | AR25: 4 | AT25: 4 | AV25: =2*$E25 -> 4 | AW25: 4 | AX25: =2*$E25 -> 4 | BC25: =2*$E25 -> 4 | BD25: =2*$E25 -> 4 | BG25: =2*$E25 -> 4 | BH25: =2*$E25 -> 4 | BI25: =2*$E25 -> 4 | BM25: =2*$E25 -> 4 | BO25: =2*$E25 -> 4 | BP25: =2*$E25 -> 4 | BQ25: =2*$E25 -> 4 | BS25: =2*$E25 -> 4 | BU25: =2*$E25 -> 4 | BV25: =2*$E25 -> 4 | BY25: =2*$E25 -> 4 | CA25: =2*$E25 -> 4 | CB25: =2*$E25 -> 4 | CE25: =2*$E25 -> 4 | CF25: =2*$E25 -> 4
A26: Kevin de Bruyne - Man City | D26: 4 | E26: =0+0 -> 0 | K26: =2*$E26 -> 0 | BA26: =2*$E26 -> 0 | BL26: =2*$E26 -> 0 | BZ26: =2*$E26 -> 0
A27: Mohamed Salah - Liverpool | D27: 69 | E27: =0 -> 0 | H27: =2*$E27 -> 0 | I27: =2*$E27 -> 0 | J27: =2*$E27 -> 0 | L27: =2*$E27 -> 0 | M27: 0 | N27: 0 | O27: 0 | P27: 0 | Q27: 0 | R27: 0 | S27: 0 | T27: 0 | U27: 0 | V27: 0 | W27: 0 | Y27: =2*$E27 -> 0 | AA27: =2*$E27 -> 0 | AB27: =2*$E27 -> 0 | AC27: =2*$E27 -> 0 | AD27: =2*$E27 -> 0 | AE27: =2*$E27 -> 0 | AF27: =2*$E27 -> 0 | AG27: 0 | AH27: =2*$E27 -> 0 | AJ27: 0 | AK27: 0 | AL27: 0 | AM27: 0 | AN27: 0 | AO27: 0 | AP27: 0 | AQ27: =2*$E27 -> 0 | AR27: =2*$E27 -> 0 | AS27: =2*$E27 -> 0 | AT27: 0 | AU27: =2*$E27 -> 0 | AV27: =2*$E27 -> 0 | AX27: =2*$E27 -> 0 | AY27: =2*$E27 -> 0 | AZ27: =2*$E27 -> 0 | BA27: =2*$E27 -> 0 | BB27: =2*$E27 -> 0 | BC27: =2*$E27 -> 0 | BE27: =2*$E27 -> 0 | BF27: =2*$E27 -> 0 | BG27: =2*$E27 -> 0 | BH27: =2*$E27 -> 0 | BI27: 0 | BJ27: =2*$E27 -> 0 | BK27: 0 | BL27: =2*$E27 -> 0 | BM27: =2*$E27 -> 0 | BN27: 0 | BO27: 0 | BQ27: =2*$E27 -> 0 | BR27: 0 | BT27: =2*$E27 -> 0 | BU27: 0 | BV27: 0 | BW27: 0 | BX27: 0 | BY27: 0 | BZ27: =2*$E27 -> 0 | CA27: =2*$E27 -> 0 | CB27: 0 | CC27: 0 | CD27: 0 | CE27: 0 | CF27: 0
A28: Son Heung-min - Tottenham | D28: 23 | E28: =0+3 -> 3 | P28: =2*$E28 -> 6 | R28: =2*$E28 -> 6 | T28: =2*$E28 -> 6 | Z28: =2*$E28 -> 6 | AG28: =2*$E28 -> 6 | AI28: =2*$E28 -> 6 | AK28: =2*$E28 -> 6 | AS28: =2*$E28 -> 6 | AY28: =2*$E28 -> 6 | AZ28: =2*$E28 -> 6 | BB28: =2*$E28 -> 6 | BD28: =2*$E28 -> 6 | BE28: =2*$E28 -> 6 | BF28: =2*$E28 -> 6 | BJ28: =2*$E28 -> 6 | BK28: =2*$E28 -> 6 | BP28: =2*$E28 -> 6 | BR28: =2*$E28 -> 6 | BS28: =2*$E28 -> 6 | BT28: =2*$E28 -> 6 | BX28: =2*$E28 -> 6 | CC28: =2*$E28 -> 6 | CD28: =2*$E28 -> 6
A29: Wilfried Zaha - Crystal Palace | D29: 2 | E29: =0 -> 0 | AU29: =2*$E29 -> 0 | BN29: =2*$E29 -> 0
A31: New Kids On The Block 102
A32: Darwin Nunez - Liverpool | D32: =COUNT(G32:GV32) -> 9 | E32: =0 -> 0 | J32: =2*$E32 -> 0 | O32: =2*$E32 -> 0 | R32: =2*$E32 -> 0 | U32: =2*$E32 -> 0 | AZ32: =2*$E32 -> 0 | BB32: =2*$E32 -> 0 | BL32: =2*$E32 -> 0 | BZ32: =2*$E32 -> 0 | CC32: =2*$E32 -> 0
A33: Erling Haaland - Man City | D33: =COUNT(G33:GV33) -> 52 | E33: =1+1 -> 2 | H33: =2*$E33 -> 4 | I33: =2*$E33 -> 4 | K33: =2*$E33 -> 4 | L33: =2*$E33 -> 4 | M33: =2*$E33 -> 4 | S33: =2*$E33 -> 4 | T33: =2*$E33 -> 4 | W33: =2*$E33 -> 4 | X33: =2*$E33 -> 4 | Y33: =2*$E33 -> 4 | AA33: =2*$E33 -> 4 | AC33: =2*$E33 -> 4 | AD33: =2*$E33 -> 4 | AE33: =2*$E33 -> 4 | AF33: =2*$E33 -> 4 | AG33: 4 | AH33: =2*$E33 -> 4 | AJ33: 4 | AK33: 4 | AL33: 4 | AM33: 4 | AN33: 4 | AP33: 4 | AQ33: =2*$E33 -> 4 | AR33: =2*$E33 -> 4 | AT33: 4 | AV33: =2*$E33 -> 4 | AW33: 4 | AX33: =2*$E33 -> 4 | AY33: 4 | BC33: =2*$E33 -> 4 | BD33: 4 | BE33: 4 | BF33: 4 | BG33: 4 | BH33: 4 | BI33: 4 | BM33: =2*$E33 -> 4 | BO33: =2*$E33 -> 4 | BP33: 4 | BQ33: 4 | BR33: 4 | BS33: 4 | BT33: 4 | BU33: 4 | BW33: =2*$E33 -> 4 | BX33: =2*$E33 -> 4 | BY33: =2*$E33 -> 4 | CA33: =2*$E33 -> 4 | CB33: =2*$E33 -> 4 | CE33: =2*$E33 -> 4 | CF33: =2*$E33 -> 4
A34: Gabriel Jesus - Arsenal | D34: =COUNT(G34:GV34) -> 13 | E34: =0+1 -> 1 | N34: =2*$E34 -> 2 | P34: =2*$E34 -> 2 | Q34: =2*$E34 -> 2 | Z34: =2*$E34 -> 2 | AB34: =2*$E34 -> 2 | AI34: =2*$E34 -> 2 | AO34: =2*$E34 -> 2 | AU34: =2*$E34 -> 2 | BA34: =2*$E34 -> 2 | BJ34: =2*$E34 -> 2 | BK34: =2*$E34 -> 2 | BV34: =2*$E34 -> 2 | CD34: =2*$E34 -> 2
A35: Raheem Sterling - Chelsea | D35: =COUNT(G35:GV35) -> 3 | E35: =0 -> 0 | V35: =2*$E35 -> 0 | AS35: =2*$E35 -> 0 | BN35: =2*$E35 -> 0
A37: Total Points - September | H37: =SUM(H$3:H36) -> 48 | I37: =SUM(I$3:I36) -> 63 | J37: =SUM(J$3:J36) -> 74 | K37: =SUM(K$3:K36) -> 38 | L37: =SUM(L$3:L36) -> 53 | M37: =SUM(M$3:M36) -> 53 | N37: =SUM(N$3:N36) -> 56 | O37: =SUM(O$3:O36) -> 59 | P37: =SUM(P$3:P36) -> 58 | Q37: =SUM(Q$3:Q36) -> 71 | R37: =SUM(R$3:R36) -> 46 | S37: =SUM(S$3:S36) -> 58 | T37: =SUM(T$3:T36) -> 80 | U37: =SUM(U$3:U36) -> 54 | V37: =SUM(V$3:V36) -> 54 | W37: =SUM(W$3:W36) -> 8 | X37: =SUM(X$3:X36) -> 63 | Y37: =SUM(Y$3:Y36) -> 68 | Z37: =SUM(Z$3:Z36) -> 57 | AA37: =SUM(AA$3:AA36) -> 48 | AB37: =SUM(AB$3:AB36) -> 66 | AC37: =SUM(AC$3:AC36) -> 63 | AD37: =SUM(AD$3:AD36) -> 53 | AE37: =SUM(AE$3:AE36) -> 53 | AF37: =SUM(AF$3:AF36) -> 53 | AG37: =SUM(AG$3:AG36) -> 65 | AH37: =SUM(AH$3:AH36) -> 78 | AI37: =SUM(AI$3:AI36) -> 73 | AJ37: =SUM(AJ$3:AJ36) -> 63 | AK37: =SUM(AK$3:AK36) -> 65 | AL37: =SUM(AL$3:AL36) -> 68 | AM37: =SUM(AM$3:AM36) -> 63 | AN37: =SUM(AN$3:AN36) -> 68 | AO37: =SUM(AO$3:AO36) -> 71 | AP37: =SUM(AP$3:AP36) -> 58 | AQ37: =SUM(AQ$3:AQ36) -> 48 | AR37: =SUM(AR$3:AR36) -> 53 | AS37: =SUM(AS$3:AS36) -> 56 | AT37: =SUM(AT$3:AT36) -> 48 | AU37: =SUM(AU$3:AU36) -> 37 | AV37: =SUM(AV$3:AV36) -> 58 | AW37: =SUM(AW$3:AW36) -> 63 | AX37: =SUM(AX$3:AX36) -> 63 | AY37: =SUM(AY$3:AY36) -> 55 | AZ37: =SUM(AZ$3:AZ36) -> 51 | BA37: =SUM(BA$3:BA36) -> 42 | BB37: =SUM(BB$3:BB36) -> 71 | BC37: =SUM(BC$3:BC36) -> 58 | BD37: =SUM(BD$3:BD36) -> 74 | BE37: =SUM(BE$3:BE36) -> 65 | BF37: =SUM(BF$3:BF36) -> 55 | BG37: =SUM(BG$3:BG36) -> 73 | BH37: =SUM(BH$3:BH36) -> 48 | BI37: =SUM(BI$3:BI36) -> 58 | BJ37: =SUM(BJ$3:BJ36) -> 43 | BK37: =SUM(BK$3:BK36) -> 68 | BL37: =SUM(BL$3:BL36) -> 30 | BM37: =SUM(BM$3:BM36) -> 43 | BN37: =SUM(BN$3:BN36) -> 55 | BO37: =SUM(BO$3:BO36) -> 53 | BP37: =SUM(BP$3:BP36) -> 74 | BQ37: =SUM(BQ$3:BQ36) -> 48 | BR37: =SUM(BR$3:BR36) -> 50 | BS37: =SUM(BS$3:BS36) -> 64 | BT37: =SUM(BT$3:BT36) -> 75 | BU37: =SUM(BU$3:BU36) -> 58 | BV37: =SUM(BV$3:BV36) -> 56 | BW37: =SUM(BW$3:BW36) -> 49 | BX37: =SUM(BX$3:BX36) -> 50 | BY37: =SUM(BY$3:BY36) -> 58 | BZ37: =SUM(BZ$3:BZ36) -> 35 | CA37: =SUM(CA$3:CA36) -> 73 | CB37: =SUM(CB$3:CB36) -> 48 | CC37: =SUM(CC$3:CC36) -> 36 | CD37: =SUM(CD$3:CD36) -> 43 | CE37: =SUM(CE$3:CE36) -> 58 | CF37: =SUM(CF$3:CF36) -> 63

Sheet October
H1: Aidan Scanlon | I1: Aidan White | J1: Anastas Popov | K1: Andrew Keohan | L1: Andy Dunne | M1: Bobby Hynes | N1: Brendan Maguire | O1: Brian Haughton | P1: Brian Mullen | Q1: Brian Prendergast | R1: Caroline Carroll | S1: Cathal Thornton | T1: Chris Keohan | U1: Christina Morgan | V1: Ciara Walsh | W1: Ciaran Healy | X1: Ciaran O'Hart | Y1: Ciaran Rooney | Z1: Colm Cahill | AA1: Con McSweeney | AB1: Conor MacMahon | AC1: Craig Calvert | AD1: Darragh Kenny | AE1: Dave McGinley | AF1: David Cooney | AG1: David Lavelle | AH1: Dean Kelly | AI1: Derek McDonald | AJ1: Dylan Delaney | AK1: Dylan O'Riordan | AL1: Eoghan Farrelly | AM1: Frank McSweeney | AN1: Gareth Pierpoint | AO1: Gary Donnelly | AP1: Gary Fitzpatrick | AQ1: Gary McGurk | AR1: Gavin Morgan | AS1: Gerard McCluskey | AT1: Gerry Draper | AU1: Gerry Moore | AV1: Graham Pierpoint | AW1: Ian McSweeney | AX1: James Keville | AY1: Javier Suarez | AZ1: Jenny Behan | BA1: Joe Behan | BB1: Joe Turner | BC1: John Brophy | BD1: John Hempenstall | BE1: John Massey | BF1: Johno Percy | BG1: Jonathan Fox | BH1: Joseph Kavanagh | BI1: Keith Ryan | BJ1: Kieran Killeen | BK1: Liam Keohan | BL1: Lionel Knott | BM1: Micheal Joyce | BN1: Monica Collins | BO1: Niall Carroll | BP1: Niall Gregory | BQ1: Paul Moore | BR1: Paul Prendergast | BS1: Phil Doyle | BT1: Philip Jordan | BU1: Richard Johnston | BV1: Robert Hynes | BW1: Roisin Joyce | BX1: Ronan Rafferty | BY1: Rory Ellard | BZ1: Sarah Coward | CA1: Sean Cleary | CB1: Sean O'Mairtin | CC1: Shane Finnan | CD1: Shane Hempenstall | CE1: Simon Scanlon | CF1: Tommy Hamill
A2: Date | B2: Teams | F2: Time
A3: 2022-10-01 | B3: Arsenal | C3: 3 | D3: 1 | E3: Spurs | F3: 12:30:00 | H3: 10 | I3: 0 | J3: 0 | K3: 10 | L3: 5 | M3: 0 | N3: 5 | O3: 5 | P3: 5 | Q3: 0 | R3: 0 | S3: 0 | T3: 0 | U3: 5 | V3: 5 | W3: - | X3: 0 | Y3: 5 | Z3: 0 | AA3: 5 | AB3: 0 | AC3: 0 | AD3: 0 | AE3: 0 | AF3: 5 | AG3: 0 | AH3: 0 | AI3: 0 | AJ3: 0 | AK3: 5 | AL3: 0 | AM3: 0 | AN3: 0 | AO3: 0 | AP3: 0 | AQ3: 5 | AR3: 5 | AS3: 5 | AT3: 5 | AU3: 5 | AV3: 0 | AW3: 0 | AX3: 0 | AY3: 5 | AZ3: 0 | BA3: 0 | BB3: 0 | BC3: 0 | BD3: 0 | BE3: 0 | BF3: 0 | BG3: 5 | BH3: 0 | BI3: 5 | BJ3: 5 | BK3: 5 | BL3: 5 | BM3: 0 | BN3: 0 | BO3: 0 | BP3: 0 | BQ3: 0 | BR3: 5 | BS3: 5 | BT3: 0 | BU3: 5 | BV3: 0 | BW3: 0 | BX3: 0 | BY3: 0 | BZ3: 0 | CA3: 5 | CB3: 0 | CC3: 5 | CD3: 0 | CE3: 0 | CF3: 0
A4: 2022-10-01 | B4: Bournemouth | C4: 0 | D4: 0 | E4: Brentford | F4: 15:00:00 | H4: 0 | I4: 5 | J4: 0 | K4: 0 | L4: 0 | M4: 5 | N4: 5 | O4: 0 | P4: 5 | Q4: 0 | R4: 5 | S4: 0 | T4: 0 | U4: 5 | V4: 0 | W4: - | X4: 0 | Y4: 0 | Z4: 5 | AA4: 0 | AB4: 0 | AC4: 5 | AD4: 0 | AE4: 5 | AF4: 5 | AG4: 0 | AH4: 0 | AI4: 5 | AJ4: 0 | AK4: 0 | AL4: 5 | AM4: 0 | AN4: 0 | AO4: 0 | AP4: 0 | AQ4: 5 | AR4: 5 | AS4: 0 | AT4: 5 | AU4: 0 | AV4: 5 | AW4: 0 | AX4: 0 | AY4: 0 | AZ4: 0 | BA4: 0 | BB4: 5 | BC4: 0 | BD4: 0 | BE4: 10 | BF4: 0 | BG4: 0 | BH4: 0 | BI4: 0 | BJ4: 0 | BK4: 0 | BL4: 0 | BM4: 5 | BN4: 0 | BO4: 0 | BP4: 0 | BQ4: 5 | BR4: 5 | BS4: 0 | BT4: 0 | BU4: 0 | BV4: 5 | BW4: 5 | BX4: 5 | BY4: 5 | BZ4: 0 | CA4: 0 | CB4: 5 | CC4: 0 | CD4: 0 | CE4: 0 | CF4: 5
A5: 2022-10-01 | B5: Crystal Palace | C5: 1 | D5: 2 | E5: Chelsea | F5: 15:00:00 | H5: 5 | I5: 5 | J5: 5 | K5: 0 | L5: 0 | M5: 10 | N5: 10 | O5: 5 | P5: 10 | Q5: 10 | R5: 0 | S5: 10 | T5: 5 | U5: 5 | V5: 0 | W5: - | X5: 5 | Y5: 10 | Z5: 0 | AA5: 10 | AB5: 10 | AC5: 0 | AD5: 5 | AE5: 0 | AF5: 5 | AG5: 0 | AH5: 5 | AI5: 0 | AJ5: 10 | AK5: 0 | AL5: 0 | AM5: 10 | AN5: 10 | AO5: 5 | AP5: 0 | AQ5: 5 | AR5: 5 | AS5: 10 | AT5: 10 | AU5: 0 | AV5: 10 | AW5: 10 | AX5: 10 | AY5: 0 | AZ5: 0 | BA5: 5 | BB5: 0 | BC5: 5 | BD5: 5 | BE5: 0 | BF5: 0 | BG5: 5 | BH5: 10 | BI5: 0 | BJ5: 0 | BK5: 0 | BL5: 0 | BM5: 10 | BN5: 10 | BO5: 0 | BP5: 0 | BQ5: 0 | BR5: 10 | BS5: 5 | BT5: 5 | BU5: 0 | BV5: 0 | BW5: 5 | BX5: 0 | BY5: 10 | BZ5: 5 | CA5: 0 | CB5: 0 | CC5: 0 | CD5: 5 | CE5: 10 | CF5: 10
A6: 2022-10-01 | B6: Fulham | C6: 1 | D6: 4 | E6: Newcastle | F6: 15:00:00 | H6: 5 | I6: 0 | J6: 0 | K6: 0 | L6: 5 | M6: 0 | N6: 0 | O6: 0 | P6: 5 | Q6: 0 | R6: 0 | S6: 5 | T6: 0 | U6: 0 | V6: 5 | W6: - | X6: 0 | Y6: 0 | Z6: 0 | AA6: 0 | AB6: 5 | AC6: 0 | AD6: 0 | AE6: 0 | AF6: 0 | AG6: 5 | AH6: 0 | AI6: 5 | AJ6: 0 | AK6: 5 | AL6: 0 | AM6: 0 | AN6: 0 | AO6: 0 | AP6: 0 | AQ6: 5 | AR6: 0 | AS6: 0 | AT6: 0 | AU6: 0 | AV6: 0 | AW6: 0 | AX6: 0 | AY6: 0 | AZ6: 0 | BA6: 0 | BB6: 0 | BC6: 5 | BD6: 0 | BE6: 0 | BF6: 0 | BG6: 5 | BH6: 5 | BI6: 5 | BJ6: 0 | BK6: 5 | BL6: 0 | BM6: 0 | BN6: 0 | BO6: 0 | BP6: 0 | BQ6: 0 | BR6: 5 | BS6: 0 | BT6: 5 | BU6: 0 | BV6: 0 | BW6: 0 | BX6: 0 | BY6: 5 | BZ6: 0 | CA6: 0 | CB6: 0 | CC6: 0 | CD6: 5 | CE6: 5 | CF6: 0
A7: 2022-10-01 | B7: Liverpool | C7: 3 | D7: 3 | E7: Brighton | F7: 15:00:00 | H7: 0 | I7: 0 | J7: 0 | K7: 0 | L7: 0 | M7: 0 | N7: 0 | O7: 0 | P7: 0 | Q7: 0 | R7: 0 | S7: 0 | T7: 0 | U7: 0 | V7: 0 | W7: - | X7: 0 | Y7: 0 | Z7: 0 | AA7: 0 | AB7: 0 | AC7: 0 | AD7: 0 | AE7: 0 | AF7: 0 | AG7: 0 | AH7: 0 | AI7: 0 | AJ7: 0 | AK7: 0 | AL7: 5 | AM7: 0 | AN7: 0 | AO7: 0 | AP7: 0 | AQ7: 0 | AR7: 0 | AS7: 0 | AT7: 0 | AU7: 0 | AV7: 0 | AW7: 0 | AX7: 0 | AY7: 0 | AZ7: 0 | BA7: 0 | BB7: 0 | BC7: 0 | BD7: 0 | BE7: 5 | BF7: 0 | BG7: 0 | BH7: 0 | BI7: 0 | BJ7: 0 | BK7: 0 | BL7: 0 | BM7: 0 | BN7: 0 | BO7: 0 | BP7: 0 | BQ7: 0 | BR7: 0 | BS7: 0 | BT7: 0 | BU7: 0 | BV7: 0 | BW7: 0 | BX7: 0 | BY7: 0 | BZ7: 0 | CA7: 0 | CB7: 0 | CC7: 0 | CD7: 0 | CE7: 0 | CF7: 0
A8: 2022-10-01 | B8: Southampton | C8: 1 | D8: 2 | E8: Everton | F8: 15:00:00 | H8: 0 | I8: 0 | J8: 0 | K8: 0 | L8: 5 | M8: 0 | N8: 0 | O8: 0 | P8: 5 | Q8: 0 | R8: 0 | S8: 0 | T8: 0 | U8: 0 | V8: 0 | W8: - | X8: 0 | Y8: 0 | Z8: 0 | AA8: 0 | AB8: 0 | AC8: 0 | AD8: 0 | AE8: 0 | AF8: 0 | AG8: 0 | AH8: 5 | AI8: 10 | AJ8: 5 | AK8: 0 | AL8: 0 | AM8: 10 | AN8: 10 | AO8: 0 | AP8: 0 | AQ8: 0 | AR8: 0 | AS8: 0 | AT8: 0 | AU8: 0 | AV8: 0 | AW8: 0 | AX8: 0 | AY8: 0 | AZ8: 0 | BA8: 0 | BB8: 0 | BC8: 0 | BD8: 10 | BE8: 0 | BF8: 0 | BG8: 0 | BH8: 0 | BI8: 0 | BJ8: 0 | BK8: 0 | BL8: 5 | BM8: 10 | BN8: 0 | BO8: 5 | BP8: 0 | BQ8: 0 | BR8: 10 | BS8: 10 | BT8: 0 | BU8: 0 | BV8: 0 | BW8: 0 | BX8: 0 | BY8: 0 | BZ8: 0 | CA8: 10 | CB8: 0 | CC8: 0 | CD8: 5 | CE8: 0 | CF8: 10
A9: 2022-10-01 | B9: West Ham | C9: 2 | D9: 0 | E9: Wolves | F9: 17:30:00 | H9: 0 | I9: 5 | J9: 5 | K9: 5 | L9: 0 | M9: 0 | N9: 5 | O9: 10 | P9: 0 | Q9: 5 | R9: 5 | S9: 0 | T9: 5 | U9: 5 | V9: 5 | W9: - | X9: 5 | Y9: 10 | Z9: 0 | AA9: 5 | AB9: 0 | AC9: 5 | AD9: 5 | AE9: 5 | AF9: 0 | AG9: 0 | AH9: 10 | AI9: 0 | AJ9: 5 | AK9: 5 | AL9: 5 | AM9: 5 | AN9: 10 | AO9: 0 | AP9: 0 | AQ9: 5 | AR9: 0 | AS9: 5 | AT9: 10 | AU9: 0 | AV9: 5 | AW9: 0 | AX9: 10 | AY9: 5 | AZ9: 5 | BA9: 10 | BB9: 5 | BC9: 10 | BD9: 5 | BE9: 0 | BF9: 10 | BG9: 5 | BH9: 5 | BI9: 0 | BJ9: 5 | BK9: 5 | BL9: 0 | BM9: 0 | BN9: 0 | BO9: 0 | BP9: 0 | BQ9: 10 | BR9: 5 | BS9: 10 | BT9: 5 | BU9: 5 | BV9: 5 | BW9: 0 | BX9: 0 | BY9: 5 | BZ9: 5 | CA9: 0 | CB9: 10 | CC9: 5 | CD9: 0 | CE9: 0 | CF9: 10
A10: 2022-10-02 | B10: Man City | C10: 6 | D10: 3 | E10: Man Utd | F10: 14:00:00 | H10: 5 | I10: 5 | J10: 5 | K10: 5 | L10: 5 | M10: 5 | N10: 0 | O10: 5 | P10: 5 | Q10: 5 | R10: 5 | S10: 5 | T10: 5 | U10: 5 | V10: 0 | W10: - | X10: 5 | Y10: 5 | Z10: 0 | AA10: 5 | AB10: 0 | AC10: 0 | AD10: 5 | AE10: 0 | AF10: 5 | AG10: 5 | AH10: 5 | AI10: 0 | AJ10: 5 | AK10: 5 | AL10: 5 | AM10: 0 | AN10: 5 | AO10: 5 | AP10: 5 | AQ10: 0 | AR10: 5 | AS10: 5 | AT10: 5 | AU10: 5 | AV10: 5 | AW10: 5 | AX10: 5 | AY10: 5 | AZ10: 5 | BA10: 5 | BB10: 5 | BC10: 5 | BD10: 5 | BE10: 0 | BF10: 5 | BG10: 5 | BH10: 5 | BI10: 0 | BJ10: 5 | BK10: 0 | BL10: 5 | BM10: 5 | BN10: 5 | BO10: 5 | BP10: 5 | BQ10: 0 | BR10: 5 | BS10: 0 | BT10: 5 | BU10: 5 | BV10: 5 | BW10: 0 | BX10: 0 | BY10: 5 | BZ10: 5 | CA10: 5 | CB10: 5 | CC10: 5 | CD10: 5 | CE10: 0 | CF10: 5
A11: 2022-10-02 | B11: Leeds Utd | C11: 0 | D11: 0 | E11: Aston Villa | F11: 16:30:00 | H11: 0 | I11: 0 | J11: 0 | K11: 0 | L11: 0 | M11: 5 | N11: 0 | O11: 0 | P11: 0 | Q11: 0 | R11: 0 | S11: 0 | T11: 0 | U11: 0 | V11: 0 | W11: - | X11: 0 | Y11: 5 | Z11: 0 | AA11: 0 | AB11: 0 | AC11: 0 | AD11: 0 | AE11: 0 | AF11: 0 | AG11: 0 | AH11: 5 | AI11: 0 | AJ11: 5 | AK11: 5 | AL11: 5 | AM11: 0 | AN11: 0 | AO11: 0 | AP11: 0 | AQ11: 5 | AR11: 0 | AS11: 10 | AT11: 0 | AU11: 0 | AV11: 5 | AW11: 5 | AX11: 0 | AY11: 0 | AZ11: 5 | BA11: 0 | BB11: 0 | BC11: 10 | BD11: 0 | BE11: 10 | BF11: 0 | BG11: 0 | BH11: 5 | BI11: 0 | BJ11: 0 | BK11: 0 | BL11: 0 | BM11: 5 | BN11: 5 | BO11: 0 | BP11: 0 | BQ11: 0 | BR11: 0 | BS11: 0 | BT11: 5 | BU11: 0 | BV11: 0 | BW11: 0 | BX11: 0 | BY11: 5 | BZ11: 5 | CA11: 0 | CB11: 0 | CC11: 0 | CD11: 0 | CE11: 0 | CF11: 5
A12: 2022-10-03 | B12: Leicester | C12: 4 | D12: 0 | E12: Nottingham Forest | F12: 20:00:00 | H12: 0 | I12: 5 | J12: 0 | K12: 5 | L12: 0 | M12: 5 | N12: 5 | O12: 0 | P12: 0 | Q12: 5 | R12: 5 | S12: 0 | T12: 0 | U12: 0 | V12: 0 | W12: - | X12: 0 | Y12: 5 | Z12: 0 | AA12: 5 | AB12: 5 | AC12: 5 | AD12: 0 | AE12: 5 | AF12: 5 | AG12: 5 | AH12: 5 | AI12: 0 | AJ12: 5 | AK12: 5 | AL12: 5 | AM12: 5 | AN12: 5 | AO12: 5 | AP12: 0 | AQ12: 5 | AR12: 5 | AS12: 5 | AT12: 5 | AU12: 5 | AV12: 5 | AW12: 0 | AX12: 5 | AY12: 5 | AZ12: 0 | BA12: 5 | BB12: 5 | BC12: 5 | BD12: 0 | BE12: 0 | BF12: 5 | BG12: 5 | BH12: 5 | BI12: 0 | BJ12: 5 | BK12: 5 | BL12: 0 | BM12: 0 | BN12: 5 | BO12: 5 | BP12: 5 | BQ12: 5 | BR12: 5 | BS12: 0 | BT12: 5 | BU12: 0 | BV12: 5 | BW12: 5 | BX12: 5 | BY12: 5 | BZ12: 5 | CA12: 5 | CB12: 5 | CC12: 5 | CD12: 0 | CE12: 5 | CF12: 5
A13: 2022-10-08 | B13: Bournemouth | C13: 2 | D13: 1 | E13: Leicester | F13: 15:00:00 | H13: 0 | I13: 5 | J13: 5 | K13: 0 | L13: 0 | M13: 0 | N13: 0 | O13: 0 | P13: 0 | Q13: 0 | R13: 5 | S13: 0 | T13: 0 | U13: 5 | V13: 0 | W13: - | X13: 0 | Y13: 0 | Z13: 0 | AA13: 0 | AB13: 0 | AC13: 0 | AD13: 0 | AE13: 0 | AF13: 0 | AG13: 0 | AH13: 0 | AI13: 0 | AJ13: 0 | AK13: 0 | AL13: 0 | AM13: 5 | AN13: 0 | AO13: 0 | AP13: 0 | AQ13: 5 | AR13: 0 | AS13: 10 | AT13: 0 | AU13: 0 | AV13: 0 | AW13: 0 | AX13: 0 | AY13: 5 | AZ13: 0 | BA13: 5 | BB13: 0 | BC13: 5 | BD13: 0 | BE13: 0 | BF13: 0 | BG13: 0 | BH13: 0 | BI13: 0 | BJ13: 0 | BK13: 0 | BL13: 0 | BM13: 0 | BN13: 0 | BO13: 0 | BP13: 0 | BQ13: 0 | BR13: 0 | BS13: 10 | BT13: 0 | BU13: 0 | BV13: 0 | BW13: 10 | BX13: 0 | BY13: 0 | BZ13: 0 | CA13: 0 | CB13: 0 | CC13: 10 | CD13: 5 | CE13: 0 | CF13: 0
A14: 2022-10-08 | B14: Chelsea | C14: 3 | D14: 0 | E14: Wolves | F14: 15:00:00 | H14: 5 | I14: 5 | J14: 5 | K14: 5 | L14: 5 | M14: 5 | N14: 10 | O14: 5 | P14: 5 | Q14: 5 | R14: 5 | S14: 5 | T14: 5 | U14: 5 | V14: 5 | W14: - | X14: 5 | Y14: 5 | Z14: 5 | AA14: 5 | AB14: 10 | AC14: 10 | AD14: 5 | AE14: 5 | AF14: 5 | AG14: 5 | AH14: 10 | AI14: 5 | AJ14: 5 | AK14: 5 | AL14: 5 | AM14: 5 | AN14: 5 | AO14: 5 | AP14: 5 | AQ14: 5 | AR14: 5 | AS14: 5 | AT14: 5 | AU14: 10 | AV14: 5 | AW14: 5 | AX14: 5 | AY14: 5 | AZ14: 5 | BA14: 10 | BB14: 5 | BC14: 5 | BD14: 5 | BE14: 5 | BF14: 5 | BG14: 5 | BH14: 5 | BI14: 5 | BJ14: 5 | BK14: 0 | BL14: 5 | BM14: 5 | BN14: 5 | BO14: 5 | BP14: 5 | BQ14: 5 | BR14: 5 | BS14: 10 | BT14: 5 | BU14: 5 | BV14: 5 | BW14: 5 | BX14: 5 | BY14: 5 | BZ14: 5 | CA14: 5 | CB14: 5 | CC14: 5 | CD14: 5 | CE14: 10 | CF14: 5
A15: 2022-10-08 | B15: Man City | C15: 4 | D15: 0 | E15: Southampton | F15: 15:00:00 | H15: 5 | I15: 5 | J15: 5 | K15: 10 | L15: 5 | M15: 5 | N15: 10 | O15: 5 | P15: 10 | Q15: 5 | R15: 10 | S15: 10 | T15: 10 | U15: 5 | V15: 10 | W15: - | X15: 5 | Y15: 10 | Z15: 5 | AA15: 10 | AB15: 5 | AC15: 5 | AD15: 10 | AE15: 10 | AF15: 10 | AG15: 10 | AH15: 5 | AI15: 5 | AJ15: 5 | AK15: 10 | AL15: 5 | AM15: 5 | AN15: 5 | AO15: 5 | AP15: 10 | AQ15: 5 | AR15: 5 | AS15: 10 | AT15: 5 | AU15: 5 | AV15: 0 | AW15: 5 | AX15: 10 | AY15: 5 | AZ15: 10 | BA15: 5 | BB15: 5 | BC15: 10 | BD15: 10 | BE15: 10 | BF15: 5 | BG15: 10 | BH15: 10 | BI15: 5 | BJ15: 5 | BK15: 10 | BL15: 5 | BM15: 5 | BN15: 10 | BO15: 10 | BP15: 10 | BQ15: 10 | BR15: 10 | BS15: 10 | BT15: 5 | BU15: 5 | BV15: 5 | BW15: 5 | BX15: 5 | BY15: 10 | BZ15: 10 | CA15: 10 | CB15: 5 | CC15: 5 | CD15: 5 | CE15: 5 | CF15: 10
A16: 2022-10-08 | B16: Newcastle | C16: 5 | D16: 1 | E16: Brentford | F16: 15:00:00 | H16: 5 | I16: 0 | J16: 5 | K16: 0 | L16: 5 | M16: 5 | N16: 5 | O16: 5 | P16: 5 | Q16: 5 | R16: 5 | S16: 5 | T16: 5 | U16: 5 | V16: 0 | W16: - | X16: 5 | Y16: 5 | Z16: 5 | AA16: 5 | AB16: 5 | AC16: 5 | AD16: 5 | AE16: 5 | AF16: 5 | AG16: 5 | AH16: 5 | AI16: 5 | AJ16: 5 | AK16: 0 | AL16: 5 | AM16: 5 | AN16: 5 | AO16: 5 | AP16: 5 | AQ16: 5 | AR16: 5 | AS16: 0 | AT16: 5 | AU16: 5 | AV16: 5 | AW16: 0 | AX16: 5 | AY16: 5 | AZ16: 5 | BA16: 5 | BB16: 5 | BC16: 5 | BD16: 5 | BE16: 5 | BF16: 5 | BG16: 5 | BH16: 5 | BI16: 5 | BJ16: 0 | BK16: 5 | BL16: 5 | BM16: 5 | BN16: 0 | BO16: 0 | BP16: 5 | BQ16: 5 | BR16: 5 | BS16: 0 | BT16: 5 | BU16: 5 | BV16: 5 | BW16: 5 | BX16: 5 | BY16: 0 | BZ16: 0 | CA16: 5 | CB16: 5 | CC16: 5 | CD16: 5 | CE16: 5 | CF16: 0
A17: 2022-10-08 | B17: Brighton | C17: 0 | D17: 1 | E17: Spurs | F17: 17:30:00 | H17: 0 | I17: 5 | J17: 0 | K17: 5 | L17: 0 | M17: 0 | N17: 0 | O17: 5 | P17: 5 | Q17: 5 | R17: 5 | S17: 10 | T17: 5 | U17: 0 | V17: 5 | W17: - | X17: 0 | Y17: 0 | Z17: 5 | AA17: 0 | AB17: 5 | AC17: 0 | AD17: 5 | AE17: 0 | AF17: 0 | AG17: 5 | AH17: 5 | AI17: 0 | AJ17: 5 | AK17: 0 | AL17: 0 | AM17: 0 | AN17: 0 | AO17: 5 | AP17: 0 | AQ17: 0 | AR17: 0 | AS17: 5 | AT17: 5 | AU17: 0 | AV17: 5 | AW17: 5 | AX17: 0 | AY17: 0 | AZ17: 0 | BA17: 0 | BB17: 0 | BC17: 0 | BD17: 5 | BE17: 5 | BF17: 0 | BG17: 10 | BH17: 0 | BI17: 5 | BJ17: 0 | BK17: 5 | BL17: 0 | BM17: 5 | BN17: 5 | BO17: 0 | BP17: 5 | BQ17: 0 | BR17: 0 | BS17: 5 | BT17: 0 | BU17: 5 | BV17: 0 | BW17: 0 | BX17: 0 | BY17: 5 | BZ17: 5 | CA17: 5 | CB17: 0 | CC17: 0 | CD17: 0 | CE17: 0 | CF17: 5
A18: 2022-10-09 | B18: Crystal Palace | C18: 2 | D18: 1 | E18: Leeds Utd | F18: 14:00:00 | H18: 10 | I18: 0 | J18: 5 | K18: 10 | L18: 0 | M18: 10 | N18: 0 | O18: 10 | P18: 5 | Q18: 0 | R18: 5 | S18: 0 | T18: 0 | U18: 10 | V18: 0 | W18: - | X18: 5 | Y18: 10 | Z18: 10 | AA18: 10 | AB18: 0 | AC18: 5 | AD18: 0 | AE18: 10 | AF18: 5 | AG18: 5 | AH18: 5 | AI18: 10 | AJ18: 10 | AK18: 5 | AL18: 5 | AM18: 5 | AN18: 10 | AO18: 10 | AP18: 0 | AQ18: 5 | AR18: 5 | AS18: 5 | AT18: 10 | AU18: 0 | AV18: 5 | AW18: 10 | AX18: 5 | AY18: 5 | AZ18: 0 | BA18: 5 | BB18: 5 | BC18: 0 | BD18: 5 | BE18: 0 | BF18: 10 | BG18: 5 | BH18: 10 | BI18: 0 | BJ18: 0 | BK18: 10 | BL18: 0 | BM18: 10 | BN18: 0 | BO18: 10 | BP18: 5 | BQ18: 5 | BR18: 5 | BS18: 0 | BT18: 10 | BU18: 0 | BV18: 10 | BW18: 0 | BX18: 5 | BY18: 10 | BZ18: 0 | CA18: 10 | CB18: 5 | CC18: 10 | CD18: 5 | CE18: 5 | CF18: 5
A19: 2022-10-09 | B19: West Ham | C19: 3 | D19: 1 | E19: Fulham | F19: 14:00:00 | H19: 5 | I19: 5 | J19: 5 | K19: 5 | L19: 0 | M19: 5 | N19: 0 | O19: 5 | P19: 5 | Q19: 5 | R19: 5 | S19: 0 | T19: 0 | U19: 0 | V19: 5 | W19: - | X19: 5 | Y19: 5 | Z19: 5 | AA19: 5 | AB19: 5 | AC19: 5 | AD19: 5 | AE19: 5 | AF19: 10 | AG19: 5 | AH19: 5 | AI19: 0 | AJ19: 10 | AK19: 0 | AL19: 5 | AM19: 5 | AN19: 5 | AO19: 5 | AP19: 5 | AQ19: 5 | AR19: 5 | AS19: 5 | AT19: 5 | AU19: 0 | AV19: 5 | AW19: 5 | AX19: 5 | AY19: 5 | AZ19: 5 | BA19: 5 | BB19: 5 | BC19: 5 | BD19: 5 | BE19: 5 | BF19: 0 | BG19: 5 | BH19: 5 | BI19: 0 | BJ19: 5 | BK19: 10 | BL19: 5 | BM19: 0 | BN19: 0 | BO19: 5 | BP19: 0 | BQ19: 0 | BR19: 5 | BS19: 5 | BT19: 5 | BU19: 5 | BV19: 0 | BW19: 5 | BX19: 0 | BY19: 5 | BZ19: 0 | CA19: 5 | CB19: 5 | CC19: 5 | CD19: 5 | CE19: 10 | CF19: 5
A20: 2022-10-09 | B20: Arsenal | C20: 3 | D20: 2 | E20: Liverpool | F20: 16:30:00 | H20: 10 | I20: 5 | J20: 5 | K20: 0 | L20: 0 | M20: 0 | N20: 5 | O20: 0 | P20: 5 | Q20: 0 | R20: 5 | S20: 5 | T20: 0 | U20: 10 | V20: 5 | W20: - | X20: 0 | Y20: 5 | Z20: 5 | AA20: 5 | AB20: 0 | AC20: 5 | AD20: 5 | AE20: 0 | AF20: 0 | AG20: 0 | AH20: 0 | AI20: 5 | AJ20: 0 | AK20: 5 | AL20: 0 | AM20: 5 | AN20: 0 | AO20: 0 | AP20: 0 | AQ20: 0 | AR20: 5 | AS20: 0 | AT20: 0 | AU20: 10 | AV20: 5 | AW20: 0 | AX20: 0 | AY20: 5 | AZ20: 5 | BA20: 5 | BB20: 0 | BC20: 5 | BD20: 5 | BE20: 0 | BF20: 5 | BG20: 5 | BH20: 0 | BI20: 0 | BJ20: 0 | BK20: 0 | BL20: 0 | BM20: 5 | BN20: 0 | BO20: 10 | BP20: 0 | BQ20: 0 | BR20: 0 | BS20: 10 | BT20: 5 | BU20: 0 | BV20: 0 | BW20: 0 | BX20: 0 | BY20: 0 | BZ20: 0 | CA20: 5 | CB20: 0 | CC20: 5 | CD20: 5 | CE20: 5 | CF20: 0
A21: 2022-10-09 | B21: Everton | C21: 1 | D21: 2 | E21: Man Utd | F21: 19:00:00 | H21: 10 | I21: 10 | J21: 5 | K21: 5 | L21: 0 | M21: 0 | N21: 10 | O21: 10 | P21: 0 | Q21: 10 | R21: 0 | S21: 10 | T21: 10 | U21: 5 | V21: 0 | W21: - | X21: 0 | Y21: 10 | Z21: 0 | AA21: 0 | AB21: 5 | AC21: 5 | AD21: 5 | AE21: 10 | AF21: 0 | AG21: 0 | AH21: 5 | AI21: 10 | AJ21: 5 | AK21: 10 | AL21: 0 | AM21: 0 | AN21: 10 | AO21: 10 | AP21: 0 | AQ21: 0 | AR21: 10 | AS21: 10 | AT21: 10 | AU21: 0 | AV21: 0 | AW21: 5 | AX21: 0 | AY21: 0 | AZ21: 5 | BA21: 0 | BB21: 0 | BC21: 5 | BD21: 0 | BE21: 5 | BF21: 0 | BG21: 5 | BH21: 0 | BI21: 5 | BJ21: 0 | BK21: 10 | BL21: 5 | BM21: 0 | BN21: 10 | BO21: 0 | BP21: 0 | BQ21: 10 | BR21: 0 | BS21: 10 | BT21: 5 | BU21: 5 | BV21: 0 | BW21: 10 | BX21: 10 | BY21: 10 | BZ21: 0 | CA21: 5 | CB21: 10 | CC21: 0 | CD21: 0 | CE21: 5 | CF21: 0
A22: 2022-10-10 | B22: Nottingham Forest | C22: 1 | D22: 1 | E22: Aston Villa | F22: 20:00:00 | H22: 10 | I22: 5 | J22: 10 | K22: 0 | L22: 0 | M22: 0 | N22: 5 | O22: 0 | P22: 0 | Q22: 10 | R22: 10 | S22: 10 | T22: 0 | U22: 0 | V22: 0 | W22: - | X22: 5 | Y22: 0 | Z22: 10 | AA22: 5 | AB22: 0 | AC22: 0 | AD22: 0 | AE22: 10 | AF22: 0 | AG22: 0 | AH22: 0 | AI22: 0 | AJ22: 0 | AK22: 10 | AL22: 0 | AM22: 0 | AN22: 0 | AO22: 0 | AP22: 0 | AQ22: 5 | AR22: 5 | AS22: 5 | AT22: 0 | AU22: 5 | AV22: 10 | AW22: 5 | AX22: 0 | AY22: 0 | AZ22: 10 | BA22: 0 | BB22: 0 | BC22: 10 | BD22: 10 | BE22: 0 | BF22: 0 | BG22: 0 | BH22: 0 | BI22: 10 | BJ22: 5 | BK22: 0 | BL22: 10 | BM22: 0 | BN22: 0 | BO22: 0 | BP22: 0 | BQ22: 5 | BR22: 0 | BS22: 0 | BT22: 0 | BU22: 0 | BV22: 10 | BW22: 0 | BX22: 0 | BY22: 0 | BZ22: 0 | CA22: 10 | CB22: 0 | CC22: 0 | CD22: 0 | CE22: 0 | CF22: 10
A23: 2022-10-14 | B23: Brentford | C23: 2 | D23: 0 | E23: Brighton | F23: 20:00:00 | H23: 0 | I23: 0 | J23: 0 | K23: 5 | L23: 0 | M23: 0 | N23: 0 | O23: 0 | P23: 0 | Q23: 5 | R23: 0 | S23: 0 | T23: 5 | U23: 5 | V23: 0 | W23: - | X23: 0 | Y23: 0 | Z23: 5 | AA23: 0 | AB23: 0 | AC23: 5 | AD23: 0 | AE23: 5 | AF23: 0 | AG23: 0 | AH23: 0 | AI23: 0 | AJ23: 0 | AK23: 5 | AL23: 0 | AM23: 0 | AN23: 0 | AO23: 0 | AP23: 0 | AQ23: 0 | AR23: 5 | AS23: 10 | AT23: 0 | AU23: 0 | AV23: 0 | AW23: 0 | AX23: 0 | AY23: 5 | AZ23: 5 | BA23: 0 | BB23: 5 | BC23: 0 | BD23: 0 | BE23: 0 | BF23: 0 | BG23: 0 | BH23: 0 | BI23: 5 | BJ23: 5 | BK23: 0 | BL23: 0 | BM23: 0 | BN23: 0 | BO23: 0 | BP23: 0 | BQ23: 0 | BR23: 0 | BS23: 0 | BT23: 0 | BU23: 5 | BV23: 0 | BW23: 0 | BX23: 0 | BY23: 0 | BZ23: 5 | CA23: 0 | CB23: 0 | CC23: 5 | CD23: 10 | CE23: 5 | CF23: 0
A24: 2022-10-15 | B24: Leicester | C24: 0 | D24: 0 | E24: Crystal Palace | F24: 12:30:00 | H24: 5 | I24: 0 | J24: 0 | K24: 0 | L24: 0 | M24: 0 | N24: 5 | O24: 0 | P24: 0 | Q24: 0 | R24: 0 | S24: 5 | T24: 5 | U24: 0 | V24: 5 | W24: - | X24: 5 | Y24: 5 | Z24: 0 | AA24: 0 | AB24: 0 | AC24: 5 | AD24: 5 | AE24: 5 | AF24: 0 | AG24: 0 | AH24: 5 | AI24: 0 | AJ24: 0 | AK24: 0 | AL24: 0 | AM24: 5 | AN24: 0 | AO24: 0 | AP24: 5 | AQ24: 0 | AR24: 0 | AS24: 0 | AT24: 0 | AU24: 5 | AV24: 5 | AW24: 0 | AX24: 0 | AY24: 0 | AZ24: 0 | BA24: 0 | BB24: 5 | BC24: 5 | BD24: 0 | BE24: 0 | BF24: 5 | BG24: 0 | BH24: 5 | BI24: 5 | BJ24: 0 | BK24: 5 | BL24: 0 | BM24: 0 | BN24: 0 | BO24: 0 | BP24: 0 | BQ24: 0 | BR24: 0 | BS24: 0 | BT24: 0 | BU24: 0 | BV24: 0 | BW24: 10 | BX24: 5 | BY24: 0 | BZ24: 0 | CA24: 5 | CB24: 5 | CC24: 0 | CD24: 0 | CE24: 0 | CF24: 0
A25: 2022-10-15 | B25: Fulham | C25: 2 | D25: 2 | E25: Bournemouth | F25: 15:00:00 | H25: 0 | I25: 5 | J25: 0 | K25: 0 | L25: 0 | M25: 0 | N25: 0 | O25: 5 | P25: 0 | Q25: 0 | R25: 0 | S25: 0 | T25: 0 | U25: 0 | V25: 0 | W25: - | X25: 0 | Y25: 0 | Z25: 0 | AA25: 0 | AB25: 10 | AC25: 0 | AD25: 5 | AE25: 0 | AF25: 0 | AG25: 5 | AH25: 0 | AI25: 5 | AJ25: 10 | AK25: 0 | AL25: 0 | AM25: 0 | AN25: 0 | AO25: 0 | AP25: 0 | AQ25: 5 | AR25: 0 | AS25: 5 | AT25: 0 | AU25: 0 | AV25: 0 | AW25: 0 | AX25: 0 | AY25: 0 | AZ25: 0 | BA25: 10 | BB25: 0 | BC25: 0 | BD25: 0 | BE25: 0 | BF25: 0 | BG25: 5 | BH25: 0 | BI25: 0 | BJ25: 0 | BK25: 0 | BL25: 0 | BM25: 10 | BN25: 0 | BO25: 0 | BP25: 0 | BQ25: 0 | BR25: 0 | BS25: 0 | BT25: 5 | BU25: 0 | BV25: 0 | BW25: 5 | BX25: 0 | BY25: 0 | BZ25: 0 | CA25: 0 | CB25: 0 | CC25: 0 | CD25: 0 | CE25: 0 | CF25: 0
A26: 2022-10-15 | B26: Wolves | C26: 1 | D26: 0 | E26: Nottingham Forest | F26: 15:00:00 | H26: 0 | I26: 5 | J26: 10 | K26: 5 | L26: 10 | M26: 5 | N26: 5 | O26: 5 | P26: 5 | Q26: 10 | R26: 10 | S26: 0 | T26: 10 | U26: 0 | V26: 0 | W26: - | X26: 10 | Y26: 10 | Z26: 0 | AA26: 5 | AB26: 5 | AC26: 10 | AD26: 0 | AE26: 10 | AF26: 0 | AG26: 5 | AH26: 10 | AI26: 5 | AJ26: 0 | AK26: 0 | AL26: 5 | AM26: 10 | AN26: 0 | AO26: 5 | AP26: 10 | AQ26: 10 | AR26: 10 | AS26: 5 | AT26: 5 | AU26: 0 | AV26: 5 | AW26: 5 | AX26: 10 | AY26: 10 | AZ26: 5 | BA26: 5 | BB26: 10 | BC26: 5 | BD26: 0 | BE26: 0 | BF26: 10 | BG26: 10 | BH26: 5 | BI26: 0 | BJ26: 10 | BK26: 5 | BL26: 0 | BM26: 0 | BN26: 0 | BO26: 0 | BP26: 0 | BQ26: 5 | BR26: 5 | BS26: 0 | BT26: 5 | BU26: 5 | BV26: 10 | BW26: 5 | BX26: 10 | BY26: 5 | BZ26: 0 | CA26: 0 | CB26: 0 | CC26: 5 | CD26: 5 | CE26: 5 | CF26: 0
A27: 2022-10-15 | B27: Spurs | C27: 2 | D27: 0 | E27: Everton | F27: 17:30:00 | H27: 5 | I27: 10 | J27: 10 | K27: 5 | L27: 10 | M27: 10 | N27: 5 | O27: 5 | P27: 10 | Q27: 10 | R27: 10 | S27: 5 | T27: 5 | U27: 0 | V27: 5 | W27: - | X27: 5 | Y27: 10 | Z27: 0 | AA27: 10 | AB27: 10 | AC27: 10 | AD27: 10 | AE27: 5 | AF27: 5 | AG27: 5 | AH27: 5 | AI27: 5 | AJ27: 5 | AK27: 5 | AL27: 5 | AM27: 5 | AN27: 10 | AO27: 5 | AP27: 5 | AQ27: 5 | AR27: 10 | AS27: 10 | AT27: 5 | AU27: 10 | AV27: 10 | AW27: 5 | AX27: 5 | AY27: 5 | AZ27: 5 | BA27: 10 | BB27: 10 | BC27: 5 | BD27: 0 | BE27: 10 | BF27: 5 | BG27: 10 | BH27: 5 | BI27: 10 | BJ27: 5 | BK27: 5 | BL27: 5 | BM27: 5 | BN27: 10 | BO27: 10 | BP27: 10 | BQ27: 10 | BR27: 10 | BS27: 5 | BT27: 5 | BU27: 5 | BV27: 5 | BW27: 5 | BX27: 5 | BY27: 5 | BZ27: 5 | CA27: 5 | CB27: 10 | CC27: 5 | CD27: 10 | CE27: 10 | CF27: 10
A28: 2022-10-16 | B28: Aston Villa | C28: 0 | D28: 2 | E28: Chelsea | F28: 14:00:00 | H28: 5 | I28: 5 | J28: 10 | K28: 0 | L28: 5 | M28: 10 | N28: 10 | O28: 5 | P28: 10 | Q28: 10 | R28: 10 | S28: 10 | T28: 5 | U28: 5 | V28: 0 | W28: - | X28: 10 | Y28: 0 | Z28: 0 | AA28: 10 | AB28: 5 | AC28: 10 | AD28: 0 | AE28: 5 | AF28: 10 | AG28: 5 | AH28: 10 | AI28: 5 | AJ28: 10 | AK28: 5 | AL28: 5 | AM28: 5 | AN28: 10 | AO28: 10 | AP28: 5 | AQ28: 10 | AR28: 5 | AS28: 0 | AT28: 10 | AU28: 5 | AV28: 10 | AW28: 10 | AX28: 10 | AY28: 0 | AZ28: 0 | BA28: 5 | BB28: 5 | BC28: 5 | BD28: 10 | BE28: 5 | BF28: 10 | BG28: 10 | BH28: 5 | BI28: 10 | BJ28: 0 | BK28: 5 | BL28: 5 | BM28: 5 | BN28: 10 | BO28: 10 | BP28: 5 | BQ28: 0 | BR28: 10 | BS28: 5 | BT28: 10 | BU28: 5 | BV28: 0 | BW28: 5 | BX28: 5 | BY28: 5 | BZ28: 5 | CA28: 10 | CB28: 5 | CC28: 0 | CD28: 0 | CE28: 5 | CF28: 10
A29: 2022-10-16 | B29: Leeds Utd | C29: 0 | D29: 1 | E29: Arsenal | F29: 14:00:00 | H29: 5 | I29: 5 | J29: 5 | K29: 0 | L29: 5 | M29: 5 | N29: 5 | O29: 5 | P29: 5 | Q29: 0 | R29: 5 | S29: 5 | T29: 5 | U29: 0 | V29: 10 | W29: - | X29: 5 | Y29: 5 | Z29: 0 | AA29: 5 | AB29: 5 | AC29: 5 | AD29: 5 | AE29: 5 | AF29: 5 | AG29: 5 | AH29: 5 | AI29: 0 | AJ29: 5 | AK29: 5 | AL29: 5 | AM29: 5 | AN29: 5 | AO29: 5 | AP29: 5 | AQ29: 0 | AR29: 10 | AS29: 0 | AT29: 5 | AU29: 5 | AV29: 5 | AW29: 5 | AX29: 5 | AY29: 0 | AZ29: 0 | BA29: 5 | BB29: 5 | BC29: 5 | BD29: 5 | BE29: 5 | BF29: 5 | BG29: 5 | BH29: 5 | BI29: 5 | BJ29: - | BK29: 5 | BL29: 5 | BM29: 5 | BN29: 5 | BO29: 5 | BP29: 0 | BQ29: 5 | BR29: 5 | BS29: 5 | BT29: 5 | BU29: 5 | BV29: 5 | BW29: 10 | BX29: 0 | BY29: 5 | BZ29: 5 | CA29: 5 | CB29: 5 | CC29: 0 | CD29: 0 | CE29: 5 | CF29: 5
A30: 2022-10-16 | B30: Man Utd | C30: 0 | D30: 0 | E30: Newcastle | F30: 14:00:00 | H30: 0 | I30: 5 | J30: 0 | K30: 0 | L30: 5 | M30: 0 | N30: 0 | O30: 0 | P30: 0 | Q30: 0 | R30: 5 | S30: 5 | T30: 0 | U30: 0 | V30: 0 | W30: - | X30: 0 | Y30: 0 | Z30: 0 | AA30: 5 | AB30: 5 | AC30: 0 | AD30: 0 | AE30: 0 | AF30: 0 | AG30: 5 | AH30: 0 | AI30: 0 | AJ30: 0 | AK30: 5 | AL30: 0 | AM30: 5 | AN30: 0 | AO30: 0 | AP30: 0 | AQ30: 0 | AR30: 5 | AS30: 0 | AT30: 0 | AU30: 0 | AV30: 5 | AW30: 0 | AX30: 0 | AY30: 0 | AZ30: 0 | BA30: 10 | BB30: 5 | BC30: 5 | BD30: 0 | BE30: 0 | BF30: 0 | BG30: 0 | BH30: 0 | BI30: 0 | BJ30: - | BK30: 0 | BL30: 0 | BM30: 0 | BN30: 5 | BO30: 0 | BP30: 5 | BQ30: 5 | BR30: 0 | BS30: 0 | BT30: 0 | BU30: 0 | BV30: 0 | BW30: 5 | BX30: 0 | BY30: 0 | BZ30: 5 | CA30: 0 | CB30: 0 | CC30: 0 | CD30: 0 | CE30: 0 | CF30: 0
A31: 2022-10-16 | B31: Southampton | C31: 1 | D31: 1 | E31: West Ham | F31: 14:00:00 | H31: 10 | I31: 0 | J31: 0 | K31: 0 | L31: 10 | M31: 10 | N31: 0 | O31: 0 | P31: 0 | Q31: 0 | R31: 0 | S31: 0 | T31: 0 | U31: 0 | V31: 5 | W31: - | X31: 10 | Y31: 0 | Z31: 0 | AA31: 0 | AB31: 0 | AC31: 0 | AD31: 0 | AE31: 10 | AF31: 10 | AG31: 0 | AH31: 0 | AI31: 0 | AJ31: 0 | AK31: 5 | AL31: 0 | AM31: 0 | AN31: 0 | AO31: 0 | AP31: 10 | AQ31: 0 | AR31: 0 | AS31: 10 | AT31: 10 | AU31: 10 | AV31: 10 | AW31: 10 | AX31: 10 | AY31: 0 | AZ31: 0 | BA31: 0 | BB31: 10 | BC31: 0 | BD31: 0 | BE31: 0 | BF31: 0 | BG31: 0 | BH31: 0 | BI31: 10 | BJ31: - | BK31: 0 | BL31: 0 | BM31: 0 | BN31: 10 | BO31: 0 | BP31: 0 | BQ31: 0 | BR31: 10 | BS31: 0 | BT31: 0 | BU31: 0 | BV31: 10 | BW31: 0 | BX31: 10 | BY31: 10 | BZ31: 5 | CA31: 10 | CB31: 0 | CC31: 0 | CD31: 0 | CE31: 5 | CF31: 10
A32: 2022-10-16 | B32: Liverpool | C32: 1 | D32: 0 | E32: Man City | F32: 16:30:00 | H32: 0 | I32: 0 | J32: 0 | K32: 5 | L32: 5 | M32: 0 | N32: 0 | O32: 5 | P32: 0 | Q32: 0 | R32: 5 | S32: 0 | T32: 0 | U32: 5 | V32: 0 | W32: - | X32: 0 | Y32: 0 | Z32: 0 | AA32: 0 | AB32: 0 | AC32: 0 | AD32: 0 | AE32: 0 | AF32: 0 | AG32: 0 | AH32: 0 | AI32: 0 | AJ32: 0 | AK32: 5 | AL32: 0 | AM32: 5 | AN32: 5 | AO32: 5 | AP32: 0 | AQ32: 5 | AR32: 0 | AS32: 0 | AT32: 0 | AU32: 5 | AV32: 0 | AW32: 0 | AX32: 0 | AY32: 10 | AZ32: 5 | BA32: 0 | BB32: 10 | BC32: 0 | BD32: 0 | BE32: 0 | BF32: 0 | BG32: 0 | BH32: 5 | BI32: 0 | BJ32: - | BK32: 0 | BL32: 0 | BM32: 0 | BN32: 0 | BO32: 0 | BP32: 0 | BQ32: 5 | BR32: 0 | BS32: 0 | BT32: 0 | BU32: 5 | BV32: 5 | BW32: 0 | BX32: 0 | BY32: 0 | BZ32: 0 | CA32: 0 | CB32: 0 | CC32: 5 | CD32: 5 | CE32: 0 | CF32: 0
A33: 2022-10-18 | B33: Brighton | C33: 0 | D33: 0 | E33: Nottingham Forest | F33: 19:30:00 | H33: 0 | I33: 0 | J33: 0 | K33: 0 | L33: 0 | M33: 0 | N33: 0 | O33: 5 | P33: 0 | Q33: 0 | R33: 0 | S33: 0 | T33: 0 | U33: 0 | V33: 5 | W33: - | X33: 0 | Y33: 0 | Z33: 5 | AA33: 0 | AB33: 0 | AC33: 0 | AD33: 0 | AE33: 0 | AF33: 0 | AG33: 0 | AH33: 0 | AI33: 0 | AJ33: 0 | AK33: 0 | AL33: 0 | AM33: 0 | AN33: 0 | AO33: 0 | AP33: 0 | AQ33: 5 | AR33: 0 | AS33: 0 | AT33: 0 | AU33: 0 | AV33: 0 | AW33: 0 | AX33: 0 | AY33: - | AZ33: 0 | BA33: 0 | BB33: 0 | BC33: 0 | BD33: 0 | BE33: 0 | BF33: 0 | BG33: 0 | BH33: 0 | BI33: 0 | BJ33: - | BK33: 0 | BL33: 0 | BM33: 0 | BN33: 0 | BO33: 0 | BP33: 0 | BQ33: 0 | BR33: 0 | BS33: 0 | BT33: 0 | BU33: 0 | BV33: 0 | BW33: 5 | BX33: 0 | BY33: 0 | BZ33: 0 | CA33: 0 | CB33: 0 | CC33: - | CD33: 0 | CE33: 0 | CF33: 0
A34: 2022-10-18 | B34: Crystal Palace | C34: 2 | D34: 1 | E34: Wolves | F34: 20:15:00 | H34: 5 | I34: 5 | J34: 5 | K34: 5 | L34: 10 | M34: 0 | N34: 10 | O34: 5 | P34: 10 | Q34: 10 | R34: 5 | S34: 10 | T34: 5 | U34: 0 | V34: 0 | W34: - | X34: 5 | Y34: 5 | Z34: 0 | AA34: 0 | AB34: 0 | AC34: 5 | AD34: 10 | AE34: 10 | AF34: 5 | AG34: 5 | AH34: 5 | AI34: 0 | AJ34: 5 | AK34: 0 | AL34: 0 | AM34: 10 | AN34: 5 | AO34: 0 | AP34: 0 | AQ34: 5 | AR34: 5 | AS34: 0 | AT34: 5 | AU34: 10 | AV34: 5 | AW34: 0 | AX34: 0 | AY34: - | AZ34: 0 | BA34: 5 | BB34: 5 | BC34: 0 | BD34: 5 | BE34: 5 | BF34: 5 | BG34: 5 | BH34: 10 | BI34: 5 | BJ34: - | BK34: 10 | BL34: 10 | BM34: 5 | BN34: 5 | BO34: 10 | BP34: 10 | BQ34: 5 | BR34: 5 | BS34: 10 | BT34: 0 | BU34: 0 | BV34: 0 | BW34: 0 | BX34: 0 | BY34: 0 | BZ34: 10 | CA34: 5 | CB34: 5 | CC34: - | CD34: 5 | CE34: 5 | CF34: 5
A35: 2022-10-19 | B35: Bournemouth | C35: 0 | D35: 1 | E35: Southampton | F35: 19:30:00 | H35: 0 | I35: 0 | J35: 0 | K35: 0 | L35: 0 | M35: 0 | N35: 0 | O35: 0 | P35: 0 | Q35: 0 | R35: 0 | S35: 10 | T35: 0 | U35: 0 | V35: 0 | W35: - | X35: 0 | Y35: 0 | Z35: 0 | AA35: 0 | AB35: 5 | AC35: 0 | AD35: 0 | AE35: 0 | AF35: 0 | AG35: 10 | AH35: 5 | AI35: 0 | AJ35: 0 | AK35: 0 | AL35: 0 | AM35: 0 | AN35: 0 | AO35: 0 | AP35: 0 | AQ35: 0 | AR35: 0 | AS35: 0 | AT35: 0 | AU35: 0 | AV35: 0 | AW35: 0 | AX35: 5 | AY35: - | AZ35: 5 | BA35: 0 | BB35: 0 | BC35: 0 | BD35: 0 | BE35: 0 | BF35: 0 | BG35: 0 | BH35: 0 | BI35: 0 | BJ35: - | BK35: 5 | BL35: 0 | BM35: 5 | BN35: 0 | BO35: 0 | BP35: 0 | BQ35: 0 | BR35: 0 | BS35: 0 | BT35: 0 | BU35: 0 | BV35: 0 | BW35: 0 | BX35: 0 | BY35: 0 | BZ35: 10 | CA35: 0 | CB35: 0 | CC35: - | CD35: - | CE35: 10 | CF35: 0
A36: 2022-10-19 | B36: Brentford | C36: 0 | D36: 0 | E36: Chelsea | F36: 19:30:00 | H36: 0 | I36: 0 | J36: 0 | K36: - | L36: 0 | M36: 0 | N36: 0 | O36: 0 | P36: 0 | Q36: 5 | R36: 0 | S36: 0 | T36: 0 | U36: 0 | V36: 0 | W36: - | X36: 0 | Y36: 0 | Z36: 0 | AA36: 0 | AB36: 0 | AC36: 0 | AD36: 0 | AE36: 0 | AF36: 0 | AG36: 0 | AH36: 0 | AI36: 0 | AJ36: 0 | AK36: 5 | AL36: 0 | AM36: 0 | AN36: 0 | AO36: 0 | AP36: 0 | AQ36: 0 | AR36: 0 | AS36: 0 | AT36: 0 | AU36: 5 | AV36: 0 | AW36: 0 | AX36: 0 | AY36: - | AZ36: 5 | BA36: 0 | BB36: 0 | BC36: 0 | BD36: 0 | BE36: 0 | BF36: 0 | BG36: 0 | BH36: 0 | BI36: 5 | BJ36: - | BK36: 0 | BL36: 0 | BM36: 0 | BN36: 0 | BO36: 0 | BP36: 0 | BQ36: 5 | BR36: 0 | BS36: 0 | BT36: 0 | BU36: 0 | BV36: 0 | BW36: 0 | BX36: 0 | BY36: 0 | BZ36: 0 | CA36: 0 | CB36: 0 | CC36: - | CD36: - | CE36: 0 | CF36: 0
A37: 2022-10-19 | B37: Newcastle | C37: 1 | D37: 0 | E37: Everton | F37: 19:30:00 | H37: 5 | I37: 5 | J37: 10 | K37: - | L37: 5 | M37: 5 | N37: 0 | O37: 10 | P37: 5 | Q37: 5 | R37: 5 | S37: 5 | T37: 5 | U37: 5 | V37: 0 | W37: - | X37: 0 | Y37: 5 | Z37: 5 | AA37: 5 | AB37: 5 | AC37: 5 | AD37: 5 | AE37: 5 | AF37: 5 | AG37: 5 | AH37: 10 | AI37: 5 | AJ37: 5 | AK37: 0 | AL37: 0 | AM37: 5 | AN37: 5 | AO37: 0 | AP37: 0 | AQ37: 5 | AR37: 5 | AS37: 0 | AT37: 5 | AU37: 5 | AV37: 10 | AW37: 0 | AX37: 5 | AY37: - | AZ37: 5 | BA37: 5 | BB37: 5 | BC37: 5 | BD37: 0 | BE37: 5 | BF37: 10 | BG37: 10 | BH37: 5 | BI37: 5 | BJ37: - | BK37: 5 | BL37: 5 | BM37: 5 | BN37: 5 | BO37: 5 | BP37: 10 | BQ37: 10 | BR37: 10 | BS37: 5 | BT37: 10 | BU37: 5 | BV37: 5 | BW37: 5 | BX37: 5 | BY37: 5 | BZ37: 5 | CA37: 5 | CB37: 5 | CC37: - | CD37: - | CE37: 5 | CF37: 0
A38: 2022-10-19 | B38: Liverpool | C38: 1 | D38: 0 | E38: West Ham | F38: 19:30:00 | H38: 5 | I38: 5 | J38: 10 | K38: - | L38: 5 | M38: 5 | N38: 5 | O38: 5 | P38: 5 | Q38: 5 | R38: 5 | S38: 5 | T38: 5 | U38: 5 | V38: 5 | W38: - | X38: 5 | Y38: 5 | Z38: 5 | AA38: 5 | AB38: 5 | AC38: 5 | AD38: 5 | AE38: 5 | AF38: 5 | AG38: 5 | AH38: 5 | AI38: 5 | AJ38: 5 | AK38: 5 | AL38: 0 | AM38: 5 | AN38: 5 | AO38: 5 | AP38: 5 | AQ38: 5 | AR38: 5 | AS38: 5 | AT38: 5 | AU38: 5 | AV38: 5 | AW38: 10 | AX38: 5 | AY38: - | AZ38: 5 | BA38: 5 | BB38: 5 | BC38: 5 | BD38: 5 | BE38: 0 | BF38: 5 | BG38: 5 | BH38: 5 | BI38: 0 | BJ38: - | BK38: 5 | BL38: 5 | BM38: 5 | BN38: 10 | BO38: 5 | BP38: 5 | BQ38: 5 | BR38: 5 | BS38: 5 | BT38: 5 | BU38: 5 | BV38: 5 | BW38: 5 | BX38: 5 | BY38: 5 | BZ38: 5 | CA38: 0 | CB38: 5 | CC38: - | CD38: - | CE38: 5 | CF38: 5
A39: 2022-10-19 | B39: Man Utd | C39: 2 | D39: 0 | E39: Spurs | F39: 20:15:00 | H39: 5 | I39: 0 | J39: 5 | K39: - | L39: 0 | M39: 0 | N39: 5 | O39: 5 | P39: 0 | Q39: 5 | R39: 0 | S39: 0 | T39: 0 | U39: 5 | V39: 5 | W39: - | X39: 0 | Y39: 0 | Z39: 0 | AA39: 0 | AB39: 5 | AC39: 5 | AD39: 0 | AE39: 5 | AF39: 0 | AG39: 0 | AH39: 0 | AI39: 0 | AJ39: 5 | AK39: 0 | AL39: 0 | AM39: 0 | AN39: 0 | AO39: 0 | AP39: 0 | AQ39: 0 | AR39: 5 | AS39: 0 | AT39: 0 | AU39: 0 | AV39: 0 | AW39: 0 | AX39: 0 | AY39: - | AZ39: 5 | BA39: 0 | BB39: 0 | BC39: 0 | BD39: 0 | BE39: 0 | BF39: 0 | BG39: 0 | BH39: 0 | BI39: 5 | BJ39: - | BK39: 5 | BL39: 0 | BM39: 0 | BN39: 0 | BO39: 5 | BP39: 0 | BQ39: 0 | BR39: 0 | BS39: 5 | BT39: 5 | BU39: 0 | BV39: 5 | BW39: 5 | BX39: 5 | BY39: 5 | BZ39: 0 | CA39: 0 | CB39: 0 | CC39: - | CD39: - | CE39: 5 | CF39: 0
A40: 2022-10-20 | B40: Fulham | C40: 3 | D40: 0 | E40: Aston Villa | F40: 19:30:00 | H40: 0 | I40: 5 | J40: 5 | K40: - | L40: 0 | M40: 0 | N40: 5 | O40: 0 | P40: 0 | Q40: 0 | R40: 5 | S40: 5 | T40: 5 | U40: 10 | V40: 0 | W40: - | X40: 5 | Y40: 0 | Z40: 0 | AA40: 5 | AB40: 5 | AC40: 5 | AD40: 5 | AE40: 5 | AF40: 5 | AG40: 0 | AH40: 0 | AI40: 0 | AJ40: 5 | AK40: 0 | AL40: 0 | AM40: 0 | AN40: 0 | AO40: 5 | AP40: 0 | AQ40: 5 | AR40: 5 | AS40: 5 | AT40: 0 | AU40: 5 | AV40: 0 | AW40: 0 | AX40: 0 | AY40: - | AZ40: 5 | BA40: 0 | BB40: 5 | BC40: 0 | BD40: 5 | BE40: 0 | BF40: 5 | BG40: 5 | BH40: 0 | BI40: 0 | BJ40: - | BK40: 0 | BL40: 0 | BM40: 5 | BN40: 5 | BO40: 5 | BP40: 5 | BQ40: 5 | BR40: 0 | BS40: 5 | BT40: 0 | BU40: 5 | BV40: 5 | BW40: 5 | BX40: 0 | BY40: 0 | BZ40: 0 | CA40: 0 | CB40: 5 | CC40: - | CD40: - | CE40: 0 | CF40: 5
A41: 2022-10-20 | B41: Leicester | C41: 2 | D41: 0 | E41: Leeds Utd | F41: 20:15:00 | H41: 5 | I41: 0 | J41: 5 | K41: - | L41: 5 | M41: 5 | N41: 0 | O41: 0 | P41: 0 | Q41: 0 | R41: 0 | S41: 0 | T41: 0 | U41: 0 | V41: 0 | W41: - | X41: 5 | Y41: 0 | Z41: 5 | AA41: 0 | AB41: 10 | AC41: 5 | AD41: 0 | AE41: 5 | AF41: 5 | AG41: 0 | AH41: 0 | AI41: 0 | AJ41: 5 | AK41: 5 | AL41: 0 | AM41: 5 | AN41: 5 | AO41: 0 | AP41: 0 | AQ41: 5 | AR41: 5 | AS41: 10 | AT41: 10 | AU41: 10 | AV41: 5 | AW41: 0 | AX41: 5 | AY41: - | AZ41: 0 | BA41: 0 | BB41: 5 | BC41: 0 | BD41: 5 | BE41: 5 | BF41: 0 | BG41: 5 | BH41: 0 | BI41: 0 | BJ41: - | BK41: 0 | BL41: 5 | BM41: 0 | BN41: 5 | BO41: 5 | BP41: 10 | BQ41: 0 | BR41: 10 | BS41: 0 | BT41: 5 | BU41: 0 | BV41: 5 | BW41: 10 | BX41: 5 | BY41: 5 | BZ41: 5 | CA41: 5 | CB41: 0 | CC41: - | CD41: - | CE41: 5 | CF41: 0
A42: 2022-10-22 | B42: Nottingham Forest | C42: 1 | D42: 0 | E42: Liverpool | F42: 12:30:00 | H42: 0 | I42: 0 | J42: 0 | K42: - | L42: 0 | M42: 0 | N42: 0 | O42: 0 | P42: 5 | Q42: 0 | R42: 0 | S42: 5 | T42: 0 | U42: 0 | V42: 0 | W42: - | X42: 5 | Y42: 0 | Z42: 0 | AA42: 0 | AB42: 0 | AC42: 0 | AD42: 0 | AE42: 0 | AF42: 0 | AG42: 0 | AH42: 0 | AI42: 5 | AJ42: 0 | AK42: 0 | AL42: 0 | AM42: 0 | AN42: 0 | AO42: 0 | AP42: 0 | AQ42: 0 | AR42: 0 | AS42: 5 | AT42: 0 | AU42: 0 | AV42: 0 | AW42: 10 | AX42: 0 | AY42: - | AZ42: 0 | BA42: 0 | BB42: 0 | BC42: 0 | BD42: 5 | BE42: 0 | BF42: 0 | BG42: 0 | BH42: 0 | BI42: 0 | BJ42: - | BK42: 0 | BL42: 5 | BM42: 0 | BN42: 0 | BO42: 0 | BP42: 0 | BQ42: 0 | BR42: 0 | BS42: 0 | BT42: 0 | BU42: 0 | BV42: 0 | BW42: 0 | BX42: 0 | BY42: 0 | BZ42: 0 | CA42: 0 | CB42: 0 | CC42: - | CD42: 0 | CE42: 0 | CF42: 0
A43: 2022-10-22 | B43: Everton | C43: 3 | D43: 0 | E43: Crystal Palace | F43: 15:00:00 | H43: 0 | I43: 0 | J43: 0 | K43: - | L43: 5 | M43: 0 | N43: 0 | O43: 5 | P43: 5 | Q43: 5 | R43: 0 | S43: 5 | T43: 5 | U43: 5 | V43: 0 | W43: - | X43: 5 | Y43: 0 | Z43: 0 | AA43: 0 | AB43: 0 | AC43: 0 | AD43: 0 | AE43: 5 | AF43: 0 | AG43: 0 | AH43: 5 | AI43: 5 | AJ43: 0 | AK43: 0 | AL43: 5 | AM43: 0 | AN43: 5 | AO43: 0 | AP43: 0 | AQ43: 5 | AR43: 5 | AS43: 0 | AT43: 5 | AU43: 0 | AV43: 5 | AW43: 5 | AX43: 0 | AY43: - | AZ43: 0 | BA43: 0 | BB43: 0 | BC43: 5 | BD43: 5 | BE43: 0 | BF43: 5 | BG43: 0 | BH43: 0 | BI43: 0 | BJ43: - | BK43: 0 | BL43: 5 | BM43: 0 | BN43: 0 | BO43: 0 | BP43: 5 | BQ43: 0 | BR43: 0 | BS43: 0 | BT43: 0 | BU43: 5 | BV43: 5 | BW43: 0 | BX43: 0 | BY43: 0 | BZ43: 0 | CA43: 0 | CB43: 0 | CC43: - | CD43: 0 | CE43: 5 | CF43: 0
A44: 2022-10-22 | B44: Man City | C44: 3 | D44: 1 | E44: Brighton | F44: 15:00:00 | H44: 5 | I44: 5 | J44: 5 | K44: - | L44: 5 | M44: 5 | N44: 5 | O44: 5 | P44: 5 | Q44: 5 | R44: 5 | S44: 5 | T44: 5 | U44: 5 | V44: 10 | W44: - | X44: 0 | Y44: 5 | Z44: 5 | AA44: 5 | AB44: 5 | AC44: 5 | AD44: 5 | AE44: 5 | AF44: 5 | AG44: 5 | AH44: 5 | AI44: 5 | AJ44: 10 | AK44: 5 | AL44: 5 | AM44: 5 | AN44: 10 | AO44: 5 | AP44: 5 | AQ44: 10 | AR44: 5 | AS44: 5 | AT44: 5 | AU44: 5 | AV44: 5 | AW44: 5 | AX44: 5 | AY44: - | AZ44: 10 | BA44: 5 | BB44: 5 | BC44: 5 | BD44: 5 | BE44: 0 | BF44: 5 | BG44: 5 | BH44: 5 | BI44: 5 | BJ44: - | BK44: 5 | BL44: 5 | BM44: 5 | BN44: 5 | BO44: 5 | BP44: 5 | BQ44: 5 | BR44: 5 | BS44: 5 | BT44: 5 | BU44: 5 | BV44: 5 | BW44: 5 | BX44: 5 | BY44: 10 | BZ44: 10 | CA44: 5 | CB44: 5 | CC44: - | CD44: 10 | CE44: 5 | CF44: 5
A45: 2022-10-22 | B45: Chelsea | C45: 1 | D45: 1 | E45: Man Utd | F45: 17:30:00 | H45: 0 | I45: 5 | J45: 0 | K45: - | L45: 0 | M45: 10 | N45: 0 | O45: 10 | P45: 0 | Q45: 0 | R45: 0 | S45: 0 | T45: 0 | U45: 0 | V45: 0 | W45: - | X45: 10 | Y45: 0 | Z45: 10 | AA45: 5 | AB45: 0 | AC45: 0 | AD45: 0 | AE45: 10 | AF45: 0 | AG45: 0 | AH45: 10 | AI45: 0 | AJ45: 10 | AK45: 10 | AL45: 5 | AM45: 0 | AN45: 0 | AO45: 10 | AP45: 5 | AQ45: 10 | AR45: 0 | AS45: 0 | AT45: 0 | AU45: 5 | AV45: 0 | AW45: 0 | AX45: 10 | AY45: - | AZ45: 0 | BA45: 5 | BB45: 0 | BC45: 10 | BD45: 0 | BE45: 5 | BF45: 0 | BG45: 0 | BH45: 0 | BI45: 0 | BJ45: - | BK45: 0 | BL45: 0 | BM45: 0 | BN45: 0 | BO45: 10 | BP45: 0 | BQ45: 0 | BR45: 0 | BS45: 0 | BT45: 0 | BU45: 5 | BV45: 10 | BW45: 0 | BX45: 0 | BY45: 0 | BZ45: 5 | CA45: 0 | CB45: 0 | CC45: - | CD45: 0 | CE45: 0 | CF45: 0
A46: 2022-10-23 | B46: Aston Villa | C46: 4 | D46: 0 | E46: Brentford | F46: 14:00:00 | H46: 0 | I46: 5 | J46: 0 | K46: - | L46: 5 | M46: 0 | N46: 0 | O46: 5 | P46: 5 | Q46: 5 | R46: 5 | S46: 5 | T46: 0 | U46: 5 | V46: 0 | W46: - | X46: 0 | Y46: 5 | Z46: 0 | AA46: 0 | AB46: 0 | AC46: 0 | AD46: 0 | AE46: 0 | AF46: 0 | AG46: 0 | AH46: 5 | AI46: 5 | AJ46: 0 | AK46: 0 | AL46: 0 | AM46: 0 | AN46: 5 | AO46: 0 | AP46: 0 | AQ46: 0 | AR46: 0 | AS46: 5 | AT46: 5 | AU46: 0 | AV46: 0 | AW46: 5 | AX46: 0 | AY46: - | AZ46: 0 | BA46: 0 | BB46: 0 | BC46: 0 | BD46: 5 | BE46: 0 | BF46: 0 | BG46: 0 | BH46: 5 | BI46: 0 | BJ46: - | BK46: 0 | BL46: 5 | BM46: 0 | BN46: 0 | BO46: 0 | BP46: 0 | BQ46: 0 | BR46: 5 | BS46: 0 | BT46: 5 | BU46: 0 | BV46: 0 | BW46: 0 | BX46: 0 | BY46: 0 | BZ46: 0 | CA46: 0 | CB46: 0 | CC46: - | CD46: 0 | CE46: 0 | CF46: 0
A47: 2022-10-23 | B47: Leeds Utd | C47: 2 | D47: 3 | E47: Fulham | F47: 14:00:00 | H47: 0 | I47: 5 | J47: 0 | K47: - | L47: 0 | M47: 0 | N47: 0 | O47: 0 | P47: 0 | Q47: 0 | R47: 5 | S47: 0 | T47: 5 | U47: 10 | V47: 0 | W47: - | X47: 0 | Y47: 0 | Z47: 0 | AA47: 0 | AB47: 0 | AC47: 0 | AD47: 5 | AE47: 0 | AF47: 5 | AG47: 5 | AH47: 0 | AI47: 0 | AJ47: 0 | AK47: 5 | AL47: 0 | AM47: 5 | AN47: 0 | AO47: 5 | AP47: 0 | AQ47: 0 | AR47: 0 | AS47: 0 | AT47: 0 | AU47: 0 | AV47: 0 | AW47: 0 | AX47: 0 | AY47: - | AZ47: 0 | BA47: 0 | BB47: 0 | BC47: 0 | BD47: 0 | BE47: 0 | BF47: 0 | BG47: 0 | BH47: 5 | BI47: 5 | BJ47: - | BK47: 0 | BL47: 0 | BM47: 0 | BN47: 5 | BO47: 0 | BP47: 0 | BQ47: 5 | BR47: 0 | BS47: 0 | BT47: 5 | BU47: 0 | BV47: 5 | BW47: 5 | BX47: 0 | BY47: 5 | BZ47: 0 | CA47: 5 | CB47: 0 | CC47: - | CD47: 5 | CE47: 5 | CF47: 0
A48: 2022-10-23 | B48: Southampton | C48: 1 | D48: 1 | E48: Arsenal | F48: 14:00:00 | H48: 0 | I48: 0 | J48: 0 | K48: - | L48: 0 | M48: 0 | N48: 0 | O48: 0 | P48: 0 | Q48: 10 | R48: 0 | S48: 0 | T48: 10 | U48: 0 | V48: 0 | W48: - | X48: 0 | Y48: 0 | Z48: 0 | AA48: 0 | AB48: 0 | AC48: 0 | AD48: 0 | AE48: 0 | AF48: 0 | AG48: 0 | AH48: 10 | AI48: 0 | AJ48: 0 | AK48: 0 | AL48: 0 | AM48: 0 | AN48: 0 | AO48: 0 | AP48: 0 | AQ48: 10 | AR48: 0 | AS48: 0 | AT48: 0 | AU48: 0 | AV48: 0 | AW48: 0 | AX48: 0 | AY48: - | AZ48: 5 | BA48: 0 | BB48: 0 | BC48: 0 | BD48: 0 | BE48: 5 | BF48: 0 | BG48: 0 | BH48: 0 | BI48: 0 | BJ48: - | BK48: 0 | BL48: 0 | BM48: 0 | BN48: 0 | BO48: 0 | BP48: 0 | BQ48: 0 | BR48: 0 | BS48: 0 | BT48: 0 | BU48: 0 | BV48: 0 | BW48: 0 | BX48: 0 | BY48: 0 | BZ48: 0 | CA48: 0 | CB48: 0 | CC48: - | CD48: 0 | CE48: 0 | CF48: 0
A49: 2022-10-23 | B49: Wolves | C49: 0 | D49: 4 | E49: Leicester | F49: 14:00:00 | H49: 0 | I49: 0 | J49: 0 | K49: - | L49: 0 | M49: 0 | N49: 0 | O49: 0 | P49: 0 | Q49: 0 | R49: 0 | S49: 0 | T49: 0 | U49: 0 | V49: 0 | W49: - | X49: 0 | Y49: 0 | Z49: 0 | AA49: 0 | AB49: 0 | AC49: 0 | AD49: 0 | AE49: 0 | AF49: 0 | AG49: 0 | AH49: 5 | AI49: 0 | AJ49: 0 | AK49: 0 | AL49: 0 | AM49: 0 | AN49: 0 | AO49: 0 | AP49: 0 | AQ49: 0 | AR49: 0 | AS49: 5 | AT49: 0 | AU49: 5 | AV49: 0 | AW49: 0 | AX49: 0 | AY49: - | AZ49: 5 | BA49: 0 | BB49: 0 | BC49: 0 | BD49: 0 | BE49: 0 | BF49: 5 | BG49: 5 | BH49: 0 | BI49: 0 | BJ49: - | BK49: 5 | BL49: 0 | BM49: 0 | BN49: 0 | BO49: 0 | BP49: 5 | BQ49: 0 | BR49: 0 | BS49: 0 | BT49: 5 | BU49: 0 | BV49: 0 | BW49: 0 | BX49: 0 | BY49: 0 | BZ49: 5 | CA49: 5 | CB49: 0 | CC49: - | CD49: 5 | CE49: 5 | CF49: 0
A50: 2022-10-23 | B50: Spurs | C50: 1 | D50: 2 | E50: Newcastle | F50: 16:30:00 | H50: 10 | I50: 0 | J50: 0 | K50: - | L50: 0 | M50: 0 | N50: 0 | O50: 0 | P50: 0 | Q50: 0 | R50: 0 | S50: 0 | T50: 0 | U50: 5 | V50: 0 | W50: - | X50: 0 | Y50: 0 | Z50: 0 | AA50: 0 | AB50: 0 | AC50: 0 | AD50: 0 | AE50: 0 | AF50: 0 | AG50: 0 | AH50: 0 | AI50: 0 | AJ50: 0 | AK50: 10 | AL50: 0 | AM50: 0 | AN50: 0 | AO50: 5 | AP50: 5 | AQ50: 0 | AR50: 0 | AS50: 0 | AT50: 0 | AU50: 0 | AV50: 0 | AW50: 0 | AX50: 0 | AY50: - | AZ50: 0 | BA50: 0 | BB50: 0 | BC50: 0 | BD50: 0 | BE50: 0 | BF50: 0 | BG50: 0 | BH50: 0 | BI50: 0 | BJ50: - | BK50: 0 | BL50: 0 | BM50: 0 | BN50: 0 | BO50: 0 | BP50: 0 | BQ50: 0 | BR50: 0 | BS50: 0 | BT50: 0 | BU50: 5 | BV50: 0 | BW50: 0 | BX50: 0 | BY50: 0 | BZ50: 0 | CA50: 0 | CB50: 0 | CC50: - | CD50: 0 | CE50: 0 | CF50: 0
A51: 2022-10-24 | B51: West Ham | C51: 2 | D51: 0 | E51: Bournemouth | F51: 20:00:00 | H51: 10 | I51: 0 | J51: 5 | K51: - | L51: 5 | M51: 10 | N51: 10 | O51: 10 | P51: 5 | Q51: 10 | R51: 10 | S51: 5 | T51: 10 | U51: 5 | V51: 10 | W51: - | X51: 0 | Y51: 10 | Z51: 10 | AA51: 10 | AB51: 10 | AC51: 10 | AD51: 5 | AE51: 5 | AF51: 5 | AG51: 5 | AH51: 10 | AI51: 5 | AJ51: 5 | AK51: 0 | AL51: 5 | AM51: 5 | AN51: 5 | AO51: 5 | AP51: 5 | AQ51: 10 | AR51: 5 | AS51: 5 | AT51: 10 | AU51: 10 | AV51: 10 | AW51: 5 | AX51: 10 | AY51: - | AZ51: 10 | BA51: 10 | BB51: 5 | BC51: 0 | BD51: 5 | BE51: 0 | BF51: 10 | BG51: 5 | BH51: 10 | BI51: 10 | BJ51: - | BK51: 0 | BL51: 0 | BM51: 5 | BN51: 0 | BO51: 5 | BP51: 5 | BQ51: 5 | BR51: 10 | BS51: 5 | BT51: 10 | BU51: 10 | BV51: 10 | BW51: 0 | BX51: 10 | BY51: 10 | BZ51: 0 | CA51: 10 | CB51: 10 | CC51: 0 | CD51: 5 | CE51: 10 | CF51: 5
A52: 2022-10-29 | B52: Leicester | C52: 0 | D52: 1 | E52: Man City | F52: 12:30:00 | H52: 5 | I52: 5 | J52: 5 | K52: 5 | L52: 5 | M52: 0 | N52: 5 | O52: 5 | P52: 5 | Q52: 0 | R52: 5 | S52: 5 | T52: 5 | U52: 0 | V52: 5 | W52: - | X52: 5 | Y52: 5 | Z52: 5 | AA52: 5 | AB52: 5 | AC52: 5 | AD52: 5 | AE52: 5 | AF52: 5 | AG52: 5 | AH52: 5 | AI52: - | AJ52: 5 | AK52: 5 | AL52: 0 | AM52: 5 | AN52: 5 | AO52: 5 | AP52: 5 | AQ52: 5 | AR52: 5 | AS52: 5 | AT52: 5 | AU52: 0 | AV52: 5 | AW52: 5 | AX52: 5 | AY52: 5 | AZ52: 5 | BA52: 5 | BB52: 5 | BC52: 10 | BD52: 5 | BE52: 5 | BF52: 5 | BG52: 5 | BH52: 5 | BI52: 5 | BJ52: - | BK52: 5 | BL52: 0 | BM52: 5 | BN52: 5 | BO52: 5 | BP52: 5 | BQ52: 5 | BR52: 5 | BS52: 5 | BT52: 5 | BU52: 5 | BV52: 5 | BW52: 10 | BX52: 5 | BY52: 5 | BZ52: 5 | CA52: 5 | CB52: 5 | CC52: 0 | CD52: 5 | CE52: 5 | CF52: 5
A53: 2022-10-29 | B53: Bournemouth | C53: 2 | D53: 3 | E53: Spurs | F53: 15:00:00 | H53: 5 | I53: 5 | J53: 5 | K53: 5 | L53: 5 | M53: 5 | N53: 5 | O53: 5 | P53: 5 | Q53: 5 | R53: 0 | S53: 5 | T53: 5 | U53: 0 | V53: 0 | W53: - | X53: 5 | Y53: 5 | Z53: 5 | AA53: 5 | AB53: 5 | AC53: 5 | AD53: 5 | AE53: 5 | AF53: 0 | AG53: 5 | AH53: 5 | AI53: - | AJ53: 5 | AK53: 5 | AL53: 5 | AM53: 5 | AN53: 5 | AO53: 0 | AP53: 0 | AQ53: 5 | AR53: 5 | AS53: 5 | AT53: 5 | AU53: 0 | AV53: 5 | AW53: 5 | AX53: 5 | AY53: 5 | AZ53: 5 | BA53: 5 | BB53: 5 | BC53: 0 | BD53: 5 | BE53: 5 | BF53: 5 | BG53: 5 | BH53: 5 | BI53: 5 | BJ53: - | BK53: 5 | BL53: 0 | BM53: 5 | BN53: 5 | BO53: 0 | BP53: 5 | BQ53: 5 | BR53: 0 | BS53: 5 | BT53: 5 | BU53: 5 | BV53: 5 | BW53: 5 | BX53: 0 | BY53: 5 | BZ53: 5 | CA53: 5 | CB53: 5 | CC53: 0 | CD53: 5 | CE53: 5 | CF53: 5
A54: 2022-10-29 | B54: Brentford | C54: 1 | D54: 1 | E54: Wolves | F54: 15:00:00 | H54: 0 | I54: 0 | J54: 0 | K54: 0 | L54: 0 | M54: 10 | N54: 0 | O54: 0 | P54: 10 | Q54: 0 | R54: 0 | S54: 0 | T54: 0 | U54: 0 | V54: 10 | W54: - | X54: 0 | Y54: 0 | Z54: 10 | AA54: 0 | AB54: 5 | AC54: 0 | AD54: 0 | AE54: 0 | AF54: 0 | AG54: 10 | AH54: 10 | AI54: - | AJ54: 0 | AK54: 0 | AL54: 0 | AM54: 0 | AN54: 0 | AO54: 0 | AP54: 0 | AQ54: 10 | AR54: 0 | AS54: 0 | AT54: 0 | AU54: 0 | AV54: 5 | AW54: 0 | AX54: 0 | AY54: 5 | AZ54: 0 | BA54: 0 | BB54: 0 | BC54: 0 | BD54: 0 | BE54: 0 | BF54: 0 | BG54: 0 | BH54: 0 | BI54: 0 | BJ54: - | BK54: 0 | BL54: 0 | BM54: 10 | BN54: 0 | BO54: 5 | BP54: 0 | BQ54: 10 | BR54: 0 | BS54: 0 | BT54: 10 | BU54: 0 | BV54: 0 | BW54: 0 | BX54: 0 | BY54: 0 | BZ54: 0 | CA54: 0 | CB54: 10 | CC54: 0 | CD54: 0 | CE54: 0 | CF54: 0
A55: 2022-10-29 | B55: Brighton | C55: 4 | D55: 1 | E55: Chelsea | F55: 15:00:00 | H55: 0 | I55: 0 | J55: 0 | K55: 0 | L55: 0 | M55: 0 | N55: 0 | O55: 0 | P55: 0 | Q55: 0 | R55: 0 | S55: 0 | T55: 0 | U55: 0 | V55: 5 | W55: - | X55: 0 | Y55: 0 | Z55: 0 | AA55: 0 | AB55: 0 | AC55: 0 | AD55: 0 | AE55: 0 | AF55: 0 | AG55: 0 | AH55: 0 | AI55: - | AJ55: 0 | AK55: 0 | AL55: 0 | AM55: 0 | AN55: 0 | AO55: 0 | AP55: 0 | AQ55: 0 | AR55: 0 | AS55: 0 | AT55: 0 | AU55: 0 | AV55: 0 | AW55: 0 | AX55: 0 | AY55: 0 | AZ55: 0 | BA55: 0 | BB55: 0 | BC55: 0 | BD55: 0 | BE55: 0 | BF55: 0 | BG55: 0 | BH55: 0 | BI55: 0 | BJ55: - | BK55: 0 | BL55: 0 | BM55: 0 | BN55: 0 | BO55: 0 | BP55: 0 | BQ55: 0 | BR55: 0 | BS55: 0 | BT55: 0 | BU55: 0 | BV55: 0 | BW55: 0 | BX55: 5 | BY55: 0 | BZ55: 0 | CA55: 0 | CB55: 0 | CC55: 0 | CD55: 0 | CE55: 0 | CF55: 0
A56: 2022-10-29 | B56: Crystal Palace | C56: 1 | D56: 0 | E56: Southampton | F56: 15:00:00 | H56: 10 | I56: 0 | J56: 5 | K56: 5 | L56: 10 | M56: 5 | N56: 5 | O56: 5 | P56: 10 | Q56: 5 | R56: 5 | S56: 5 | T56: 10 | U56: 5 | V56: 0 | W56: - | X56: 5 | Y56: 5 | Z56: 5 | AA56: 5 | AB56: 5 | AC56: 0 | AD56: 0 | AE56: 5 | AF56: 5 | AG56: 5 | AH56: 0 | AI56: - | AJ56: 5 | AK56: 10 | AL56: 5 | AM56: 0 | AN56: 5 | AO56: 5 | AP56: 5 | AQ56: 10 | AR56: 5 | AS56: 5 | AT56: 5 | AU56: 10 | AV56: 10 | AW56: 0 | AX56: 5 | AY56: 0 | AZ56: 0 | BA56: 5 | BB56: 10 | BC56: 0 | BD56: 10 | BE56: 5 | BF56: 5 | BG56: 10 | BH56: 0 | BI56: 10 | BJ56: - | BK56: 5 | BL56: 0 | BM56: 0 | BN56: 0 | BO56: 0 | BP56: 5 | BQ56: 0 | BR56: 5 | BS56: 10 | BT56: 10 | BU56: 0 | BV56: 0 | BW56: 5 | BX56: 5 | BY56: 5 | BZ56: 0 | CA56: 5 | CB56: 5 | CC56: 0 | CD56: 5 | CE56: 5 | CF56: 10
A57: 2022-10-29 | B57: Newcastle | C57: 4 | D57: 0 | E57: Aston Villa | F57: 15:00:00 | H57: 5 | I57: 0 | J57: 5 | K57: 5 | L57: 5 | M57: 5 | N57: 5 | O57: 5 | P57: 0 | Q57: 5 | R57: 5 | S57: 5 | T57: 5 | U57: 5 | V57: 0 | W57: - | X57: 5 | Y57: 5 | Z57: 5 | AA57: 5 | AB57: 5 | AC57: 0 | AD57: 0 | AE57: 5 | AF57: 5 | AG57: 5 | AH57: 5 | AI57: - | AJ57: 5 | AK57: 5 | AL57: 5 | AM57: 5 | AN57: 5 | AO57: 0 | AP57: 5 | AQ57: 5 | AR57: 5 | AS57: 5 | AT57: 5 | AU57: 5 | AV57: 5 | AW57: 5 | AX57: 5 | AY57: 5 | AZ57: 5 | BA57: 5 | BB57: 5 | BC57: 5 | BD57: 5 | BE57: 5 | BF57: 5 | BG57: 5 | BH57: 5 | BI57: 5 | BJ57: - | BK57: 5 | BL57: 5 | BM57: 5 | BN57: 5 | BO57: 5 | BP57: 0 | BQ57: 5 | BR57: 5 | BS57: 0 | BT57: 5 | BU57: 5 | BV57: 5 | BW57: 5 | BX57: 5 | BY57: 5 | BZ57: 0 | CA57: 5 | CB57: 5 | CC57: 0 | CD57: 5 | CE57: 5 | CF57: 0
A58: 2022-10-29 | B58: Fulham | C58: 0 | D58: 0 | E58: Everton | F58: 17:30:00 | H58: 0 | I58: 0 | J58: 0 | K58: 0 | L58: 0 | M58: 5 | N58: 5 | O58: 5 | P58: 0 | Q58: 0 | R58: 0 | S58: 0 | T58: 5 | U58: 0 | V58: 0 | W58: - | X58: 5 | Y58: 0 | Z58: 0 | AA58: 0 | AB58: 10 | AC58: 0 | AD58: 0 | AE58: 5 | AF58: 5 | AG58: 0 | AH58: 0 | AI58: - | AJ58: 0 | AK58: 5 | AL58: 5 | AM58: 5 | AN58: 5 | AO58: 0 | AP58: 5 | AQ58: 10 | AR58: 0 | AS58: 0 | AT58: 5 | AU58: 0 | AV58: 5 | AW58: 0 | AX58: 5 | AY58: 5 | AZ58: 0 | BA58: 5 | BB58: 0 | BC58: 10 | BD58: 0 | BE58: 0 | BF58: 0 | BG58: 0 | BH58: 5 | BI58: 5 | BJ58: - | BK58: 5 | BL58: 0 | BM58: 5 | BN58: 5 | BO58: 5 | BP58: 0 | BQ58: 5 | BR58: 5 | BS58: 0 | BT58: 0 | BU58: 0 | BV58: 0 | BW58: 0 | BX58: 5 | BY58: 5 | BZ58: 0 | CA58: 5 | CB58: 0 | CC58: 0 | CD58: 0 | CE58: 0 | CF58: 5
A59: 2022-10-29 | B59: Liverpool | C59: 1 | D59: 2 | E59: Leeds Utd | F59: 19:45:00 | H59: 0 | I59: 0 | J59: 0 | K59: 0 | L59: 0 | M59: 0 | N59: 0 | O59: 0 | P59: 0 | Q59: 0 | R59: 0 | S59: 0 | T59: 0 | U59: 0 | V59: 0 | W59: - | X59: 0 | Y59: 0 | Z59: 0 | AA59: 0 | AB59: 0 | AC59: 0 | AD59: 0 | AE59: 0 | AF59: 0 | AG59: 0 | AH59: 0 | AI59: - | AJ59: 0 | AK59: 0 | AL59: 0 | AM59: 0 | AN59: 0 | AO59: 0 | AP59: 0 | AQ59: 0 | AR59: 0 | AS59: 0 | AT59: 0 | AU59: 0 | AV59: 0 | AW59: 0 | AX59: 0 | AY59: 0 | AZ59: 0 | BA59: 0 | BB59: 0 | BC59: 0 | BD59: 0 | BE59: 0 | BF59: 0 | BG59: 0 | BH59: 0 | BI59: 0 | BJ59: - | BK59: 0 | BL59: 0 | BM59: 0 | BN59: 0 | BO59: 0 | BP59: 0 | BQ59: 0 | BR59: 0 | BS59: 0 | BT59: 0 | BU59: 0 | BV59: 0 | BW59: 0 | BX59: 0 | BY59: 0 | BZ59: 0 | CA59: 0 | CB59: 0 | CC59: 0 | CD59: 0 | CE59: 0 | CF59: 0
A60: 2022-10-30 | B60: Arsenal | C60: 5 | D60: 0 | E60: Nottingham Forest | F60: 14:00:00 | H60: 5 | I60: 5 | J60: 5 | K60: 5 | L60: 5 | M60: 5 | N60: 5 | O60: 5 | P60: 5 | Q60: 5 | R60: 5 | S60: 5 | T60: 5 | U60: 5 | V60: 5 | W60: - | X60: 5 | Y60: 5 | Z60: 5 | AA60: 5 | AB60: 5 | AC60: 5 | AD60: 5 | AE60: 5 | AF60: 5 | AG60: 5 | AH60: 5 | AI60: - | AJ60: 5 | AK60: 5 | AL60: 5 | AM60: 5 | AN60: 5 | AO60: 5 | AP60: 5 | AQ60: 5 | AR60: 5 | AS60: 5 | AT60: 5 | AU60: 5 | AV60: 5 | AW60: 5 | AX60: 5 | AY60: 5 | AZ60: 5 | BA60: 5 | BB60: 5 | BC60: 5 | BD60: 5 | BE60: 5 | BF60: 5 | BG60: 5 | BH60: 5 | BI60: 5 | BJ60: - | BK60: 5 | BL60: 5 | BM60: 5 | BN60: 5 | BO60: 5 | BP60: 5 | BQ60: 5 | BR60: 5 | BS60: 5 | BT60: 5 | BU60: 5 | BV60: 5 | BW60: 5 | BX60: 5 | BY60: 5 | BZ60: 5 | CA60: 5 | CB60: 5 | CC60: 0 | CD60: 5 | CE60: 5 | CF60: 5
A61: 2022-10-30 | B61: Man Utd | C61: 1 | D61: 0 | E61: West Ham | F61: 16:30:00 | H61: 5 | I61: 5 | J61: 5 | K61: 0 | L61: 0 | M61: 5 | N61: 5 | O61: 5 | P61: 5 | Q61: 5 | R61: 0 | S61: 5 | T61: 5 | U61: 5 | V61: 10 | W61: - | X61: 5 | Y61: 5 | Z61: 5 | AA61: 0 | AB61: 5 | AC61: 5 | AD61: 5 | AE61: 5 | AF61: 5 | AG61: 0 | AH61: 5 | AI61: - | AJ61: 5 | AK61: 5 | AL61: 5 | AM61: 0 | AN61: 5 | AO61: 5 | AP61: 5 | AQ61: 5 | AR61: 5 | AS61: 5 | AT61: 5 | AU61: 0 | AV61: 5 | AW61: 10 | AX61: 5 | AY61: 5 | AZ61: 5 | BA61: 5 | BB61: 5 | BC61: 10 | BD61: 5 | BE61: 5 | BF61: 5 | BG61: 10 | BH61: 5 | BI61: 5 | BJ61: - | BK61: 5 | BL61: 5 | BM61: 0 | BN61: 5 | BO61: 0 | BP61: 10 | BQ61: 5 | BR61: 5 | BS61: 5 | BT61: 5 | BU61: 5 | BV61: 5 | BW61: 10 | BX61: 5 | BY61: 5 | BZ61: 10 | CA61: 5 | CB61: 5 | CC61: 0 | CD61: 10 | CE61: 5 | CF61: 10
A63: Golden Boots
A64: Bruno Fernandes - Man United | D64: =COUNT(G64:GV64) -> 3 | E64: =0+0+0+1+0+0 -> 1 | X64: =2*$E64 -> 2 | AI64: =2*$E64 -> 2 | AW64: =2*$E64 -> 2
A65: Diogo Jota - Liverpool | D65: 1 | E65: =0+0+0+0+0+0 -> 0 | BW65: =2*$E65 -> 0
A66: Harry Kane - Tottenham | D66: 52 | E66: =1+1+1+0+1+0 -> 4 | H66: =2*$E66 -> 8 | I66: 8 | J66: 8 | K66: 8 | L66: 8 | M66: 8 | N66: 8 | O66: 8 | Q66: 8 | S66: =2*$E66 -> 8 | U66: =2*$E66 -> 8 | V66: =2*$E66 -> 8 | W66: =2*$E66 -> 8 | X66: =2*$E66 -> 8 | Y66: =2*$E66 -> 8 | Z66: =2*$E66 -> 8 | AA66: 8 | AB66: 8 | AC66: 8 | AD66: 8 | AE66: 8 | AF66: 8 | AH66: =2*$E66 -> 8 | AJ66: =2*$E66 -> 8 | AL66: =2*$E66 -> 8 | AM66: 8 | AN66: 8 | AO66: 8 | AP66: 8 | AQ66: =2*$E66 -> 8 | AR66: 8 | AT66: 8 | AV66: =2*$E66 -> 8 | AW66: 8 | AX66: =2*$E66 -> 8 | BC66: =2*$E66 -> 8 | BD66: =2*$E66 -> 8 | BG66: =2*$E66 -> 8 | BH66: =2*$E66 -> 8 | BI66: =2*$E66 -> 8 | BM66: =2*$E66 -> 8 | BO66: =2*$E66 -> 8 | BP66: =2*$E66 -> 8 | BQ66: =2*$E66 -> 8 | BS66: =2*$E66 -> 8 | BU66: =2*$E66 -> 8 | BV66: =2*$E66 -> 8 | BY66: =2*$E66 -> 8 | CA66: =2*$E66 -> 8 | CB66: =2*$E66 -> 8 | CE66: =2*$E66 -> 8 | CF66: =2*$E66 -> 8
A67: Kevin de Bruyne - Man City | D67: 4 | E67: =0+0+0+1+1 -> 2 | K67: =2*$E67 -> 4 | BA67: =2*$E67 -> 4 | BL67: =2*$E67 -> 4 | BZ67: =2*$E67 -> 4
A68: Mohamed Salah - Liverpool | D68: 69 | E68: =0+0+1+0+0+1 -> 2 | H68: =2*$E68 -> 4 | I68: =2*$E68 -> 4 | J68: =2*$E68 -> 4 | L68: =2*$E68 -> 4 | M68: 4 | N68: 4 | O68: 4 | P68: 4 | Q68: 4 | R68: 4 | S68: 4 | T68: 4 | U68: 4 | V68: 4 | W68: 4 | Y68: =2*$E68 -> 4 | AA68: =2*$E68 -> 4 | AB68: =2*$E68 -> 4 | AC68: =2*$E68 -> 4 | AD68: =2*$E68 -> 4 | AE68: =2*$E68 -> 4 | AF68: =2*$E68 -> 4 | AG68: 4 | AH68: =2*$E68 -> 4 | AJ68: 4 | AK68: 4 | AL68: 4 | AM68: 4 | AN68: 4 | AO68: 4 | AP68: 4 | AQ68: =2*$E68 -> 4 | AR68: =2*$E68 -> 4 | AS68: =2*$E68 -> 4 | AT68: 4 | AU68: =2*$E68 -> 4 | AV68: =2*$E68 -> 4 | AX68: =2*$E68 -> 4 | AY68: =2*$E68 -> 4 | AZ68: =2*$E68 -> 4 | BA68: =2*$E68 -> 4 | BB68: =2*$E68 -> 4 | BC68: =2*$E68 -> 4 | BE68: =2*$E68 -> 4 | BF68: =2*$E68 -> 4 | BG68: =2*$E68 -> 4 | BH68: =2*$E68 -> 4 | BI68: 4 | BJ68: =2*$E68 -> 4 | BK68: 4 | BL68: =2*$E68 -> 4 | BM68: =2*$E68 -> 4 | BN68: 4 | BO68: 4 | BQ68: =2*$E68 -> 4 | BR68: 4 | BT68: =2*$E68 -> 4 | BU68: 4 | BV68: 4 | BW68: 4 | BX68: 4 | BY68: 4 | BZ68: =2*$E68 -> 4 | CA68: =2*$E68 -> 4 | CB68: 4 | CC68: 4 | CD68: 4 | CE68: 4 | CF68: 4
A69: Son Heung-min - Tottenham | D69: 23 | E69: =0+0+0+0+0+0 -> 0 | P69: =2*$E69 -> 0 | R69: =2*$E69 -> 0 | T69: =2*$E69 -> 0 | Z69: =2*$E69 -> 0 | AG69: =2*$E69 -> 0 | AI69: =2*$E69 -> 0 | AK69: =2*$E69 -> 0 | AS69: =2*$E69 -> 0 | AY69: =2*$E69 -> 0 | AZ69: =2*$E69 -> 0 | BB69: =2*$E69 -> 0 | BD69: =2*$E69 -> 0 | BE69: =2*$E69 -> 0 | BF69: =2*$E69 -> 0 | BJ69: =2*$E69 -> 0 | BK69: =2*$E69 -> 0 | BP69: =2*$E69 -> 0 | BR69: =2*$E69 -> 0 | BS69: =2*$E69 -> 0 | BT69: =2*$E69 -> 0 | BX69: =2*$E69 -> 0 | CC69: =2*$E69 -> 0 | CD69: =2*$E69 -> 0
A70: Wilfried Zaha - Crystal Palace | D70: 2 | E70: =0+0+0+1+0+0 -> 1 | AU70: =2*$E70 -> 2 | BN70: =2*$E70 -> 2
A72: New Kids On The Block 102
A73: Darwin Nunez - Liverpool | D73: =COUNT(G73:GV73) -> 9 | E73: =0+1+0+1+0+0 -> 2 | J73: =2*$E73 -> 4 | O73: =2*$E73 -> 4 | R73: =2*$E73 -> 4 | U73: =2*$E73 -> 4 | AZ73: =2*$E73 -> 4 | BB73: =2*$E73 -> 4 | BL73: =2*$E73 -> 4 | BZ73: =2*$E73 -> 4 | CC73: =2*$E73 -> 4
A74: Erling Haaland - Man City | D74: =COUNT(G74:GV74) -> 52 | E74: =3+1+0+2+0 -> 6 | H74: =2*$E74 -> 12 | I74: =2*$E74 -> 12 | K74: =2*$E74 -> 12 | L74: =2*$E74 -> 12 | M74: =2*$E74 -> 12 | S74: =2*$E74 -> 12 | T74: =2*$E74 -> 12 | W74: =2*$E74 -> 12 | X74: =2*$E74 -> 12 | Y74: =2*$E74 -> 12 | AA74: =2*$E74 -> 12 | AC74: =2*$E74 -> 12 | AD74: =2*$E74 -> 12 | AE74: =2*$E74 -> 12 | AF74: =2*$E74 -> 12 | AG74: 12 | AH74: =2*$E74 -> 12 | AJ74: 12 | AK74: 12 | AL74: 12 | AM74: 12 | AN74: 12 | AP74: 12 | AQ74: =2*$E74 -> 12 | AR74: =2*$E74 -> 12 | AT74: 12 | AV74: =2*$E74 -> 12 | AW74: 12 | AX74: =2*$E74 -> 12 | AY74: 12 | BC74: =2*$E74 -> 12 | BD74: 12 | BE74: 12 | BF74: 12 | BG74: 12 | BH74: 12 | BI74: 12 | BM74: =2*$E74 -> 12 | BO74: =2*$E74 -> 12 | BP74: 12 | BQ74: 12 | BR74: 12 | BS74: 12 | BT74: 12 | BU74: 12 | BW74: =2*$E74 -> 12 | BX74: =2*$E74 -> 12 | BY74: =2*$E74 -> 12 | CA74: =2*$E74 -> 12 | CB74: =2*$E74 -> 12 | CE74: =2*$E74 -> 12 | CF74: =2*$E74 -> 12
A75: Gabriel Jesus - Arsenal | D75: =COUNT(G75:GV75) -> 13 | E75: =1+0+0+0+0 -> 1 | N75: =2*$E75 -> 2 | P75: =2*$E75 -> 2 | Q75: =2*$E75 -> 2 | Z75: =2*$E75 -> 2 | AB75: =2*$E75 -> 2 | AI75: =2*$E75 -> 2 | AO75: =2*$E75 -> 2 | AU75: =2*$E75 -> 2 | BA75: =2*$E75 -> 2 | BJ75: =2*$E75 -> 2 | BK75: =2*$E75 -> 2 | BV75: =2*$E75 -> 2 | CD75: =2*$E75 -> 2
A76: Raheem Sterling - Chelsea | D76: =COUNT(G76:GV76) -> 3 | E76: =0+0+0+0+0+0 -> 0 | V76: =2*$E76 -> 0 | AS76: =2*$E76 -> 0 | BN76: =2*$E76 -> 0
A78: Total Points - October | H78: =SUM(H$3:H77) -> 224 | I78: =SUM(I$3:I77) -> 189 | J78: =SUM(J$3:J77) -> 196 | K78: =SUM(K$3:K77) -> 139 | L78: =SUM(L$3:L77) -> 184 | M78: =SUM(M$3:M77) -> 204 | N78: =SUM(N$3:N77) -> 194 | O78: =SUM(O$3:O77) -> 216 | P78: =SUM(P$3:P77) -> 196 | Q78: =SUM(Q$3:Q77) -> 209 | R78: =SUM(R$3:R77) -> 193 | S78: =SUM(S$3:S77) -> 219 | T78: =SUM(T$3:T77) -> 196 | U78: =SUM(U$3:U77) -> 181 | V78: =SUM(V$3:V77) -> 152 | W78: =SUM(W$3:W77) -> 24 | X78: =SUM(X$3:X77) -> 187 | Y78: =SUM(Y$3:Y77) -> 209 | Z78: =SUM(Z$3:Z77) -> 155 | AA78: =SUM(AA$3:AA77) -> 194 | AB78: =SUM(AB$3:AB77) -> 204 | AC78: =SUM(AC$3:AC77) -> 189 | AD78: =SUM(AD$3:AD77) -> 164 | AE78: =SUM(AE$3:AE77) -> 234 | AF78: =SUM(AF$3:AF77) -> 184 | AG78: =SUM(AG$3:AG77) -> 171 | AH78: =SUM(AH$3:AH77) -> 244 | AI78: =SUM(AI$3:AI77) -> 119 | AJ78: =SUM(AJ$3:AJ77) -> 219 | AK78: =SUM(AK$3:AK77) -> 211 | AL78: =SUM(AL$3:AL77) -> 149 | AM78: =SUM(AM$3:AM77) -> 194 | AN78: =SUM(AN$3:AN77) -> 214 | AO78: =SUM(AO$3:AO77) -> 164 | AP78: =SUM(AP$3:AP77) -> 149 | AQ78: =SUM(AQ$3:AQ77) -> 259 | AR78: =SUM(AR$3:AR77) -> 214 | AS78: =SUM(AS$3:AS77) -> 214 | AT78: =SUM(AT$3:AT77) -> 229 | AU78: =SUM(AU$3:AU77) -> 183 | AV78: =SUM(AV$3:AV77) -> 239 | AW78: =SUM(AW$3:AW77) -> 187 | AX78: =SUM(AX$3:AX77) -> 204 | AY78: =SUM(AY$3:AY77) -> 136 | AZ78: =SUM(AZ$3:AZ77) -> 173 | BA78: =SUM(BA$3:BA77) -> 190 | BB78: =SUM(BB$3:BB77) -> 188 | BC78: =SUM(BC$3:BC77) -> 214 | BD78: =SUM(BD$3:BD77) -> 190 | BE78: =SUM(BE$3:BE77) -> 151 | BF78: =SUM(BF$3:BF77) -> 181 | BG78: =SUM(BG$3:BG77) -> 229 | BH78: =SUM(BH$3:BH77) -> 199 | BI78: =SUM(BI$3:BI77) -> 194 | BJ78: =SUM(BJ$3:BJ77) -> 66 | BK78: =SUM(BK$3:BK77) -> 176 | BL78: =SUM(BL$3:BL77) -> 137 | BM78: =SUM(BM$3:BM77) -> 189 | BN78: =SUM(BN$3:BN77) -> 171 | BO78: =SUM(BO$3:BO77) -> 184 | BP78: =SUM(BP$3:BP77) -> 170 | BQ78: =SUM(BQ$3:BQ77) -> 199 | BR78: =SUM(BR$3:BR77) -> 216 | BS78: =SUM(BS$3:BS77) -> 195 | BT78: =SUM(BT$3:BT77) -> 216 | BU78: =SUM(BU$3:BU77) -> 169 | BV78: =SUM(BV$3:BV77) -> 189 | BW78: =SUM(BW$3:BW77) -> 201 | BX78: =SUM(BX$3:BX77) -> 161 | BY78: =SUM(BY$3:BY77) -> 219 | BZ78: =SUM(BZ$3:BZ77) -> 167 | CA78: =SUM(CA$3:CA77) -> 219 | CB78: =SUM(CB$3:CB77) -> 184 | CC78: =SUM(CC$3:CC77) -> 93 | CD78: =SUM(CD$3:CD77) -> 156 | CE78: =SUM(CE$3:CE77) -> 219 | CF78: =SUM(CF$3:CF77) -> 214

Sheet November
H1: Aidan Scanlon | I1: Aidan White | J1: Anastas Popov | K1: Andrew Keohan | L1: Andy Dunne | M1: Bobby Hynes | N1: Brendan Maguire | O1: Brian Haughton | P1: Brian Mullen | Q1: Brian Prendergast | R1: Caroline Carroll | S1: Cathal Thornton | T1: Chris Keohan | U1: Christina Morgan | V1: Ciara Walsh | W1: Ciaran Healy | X1: Ciaran O'Hart | Y1: Ciaran Rooney | Z1: Colm Cahill | AA1: Con McSweeney | AB1: Conor MacMahon | AC1: Craig Calvert | AD1: Darragh Kenny | AE1: Dave McGinley | AF1: David Cooney | AG1: David Lavelle | AH1: Dean Kelly | AI1: Derek McDonald | AJ1: Dylan Delaney | AK1: Dylan O'Riordan | AL1: Eoghan Farrelly | AM1: Frank McSweeney | AN1: Gareth Pierpoint | AO1: Gary Donnelly | AP1: Gary Fitzpatrick | AQ1: Gary McGurk | AR1: Gavin Morgan | AS1: Gerard McCluskey | AT1: Gerry Draper | AU1: Gerry Moore | AV1: Graham Pierpoint | AW1: Ian McSweeney | AX1: James Keville | AY1: Javier Suarez | AZ1: Jenny Behan | BA1: Joe Behan | BB1: Joe Turner | BC1: John Brophy | BD1: John Hempenstall | BE1: John Massey | BF1: Johno Percy | BG1: Jonathan Fox | BH1: Joseph Kavanagh | BI1: Keith Ryan | BJ1: Kieran Killeen | BK1: Liam Keohan | BL1: Lionel Knott | BM1: Micheal Joyce | BN1: Monica Collins | BO1: Niall Carroll | BP1: Niall Gregory | BQ1: Paul Moore | BR1: Paul Prendergast | BS1: Phil Doyle | BT1: Philip Jordan | BU1: Richard Johnston | BV1: Robert Hynes | BW1: Roisin Joyce | BX1: Ronan Rafferty | BY1: Rory Ellard | BZ1: Sarah Coward | CA1: Sean Cleary | CB1: Sean O'Mairtin | CC1: Shane Finnan | CD1: Shane Hempenstall | CE1: Simon Scanlon | CF1: Tommy Hamill
A2: Date | B2: Teams | F2: Time
A3: 2022-11-05 | B3: Leeds Utd | C3: 4 | D3: 3 | E3: Bournemouth | F3: 15:00:00 | H3: 5 | I3: 5 | J3: 5 | K3: - | L3: 5 | M3: 5 | N3: 5 | O3: 0 | P3: 5 | Q3: 5 | R3: 5 | S3: 0 | T3: 5 | U3: 5 | V3: 5 | W3: - | X3: 5 | Y3: 5 | Z3: 5 | AA3: 5 | AB3: 0 | AC3: 0 | AD3: 5 | AE3: 5 | AF3: 5 | AG3: 0 | AH3: 5 | AI3: 5 | AJ3: 5 | AK3: 5 | AL3: 5 | AM3: 5 | AN3: 5 | AO3: 5 | AP3: 0 | AQ3: 5 | AR3: 5 | AS3: 5 | AT3: 5 | AU3: 5 | AV3: 5 | AW3: 5 | AX3: 5 | AY3: - | AZ3: 5 | BA3: 5 | BB3: 5 | BC3: 0 | BD3: 5 | BE3: 5 | BF3: 5 | BG3: 5 | BH3: 0 | BI3: 5 | BJ3: - | BK3: 5 | BL3: 5 | BM3: 5 | BN3: 0 | BO3: 5 | BP3: 5 | BQ3: 0 | BR3: 5 | BS3: 5 | BT3: 5 | BU3: 5 | BV3: 5 | BW3: 5 | BX3: 5 | BY3: 0 | BZ3: 5 | CA3: 5 | CB3: 5 | CC3: - | CD3: 5 | CE3: 5 | CF3: 5
A4: 2022-11-05 | B4: Man City | C4: 2 | D4: 1 | E4: Fulham | F4: 15:00:00 | H4: 5 | I4: 5 | J4: 5 | K4: - | L4: 5 | M4: 5 | N4: 5 | O4: 5 | P4: 5 | Q4: 5 | R4: 5 | S4: 5 | T4: 5 | U4: 0 | V4: 10 | W4: - | X4: 5 | Y4: 5 | Z4: 5 | AA4: 5 | AB4: 5 | AC4: 5 | AD4: 5 | AE4: 5 | AF4: 5 | AG4: 5 | AH4: 5 | AI4: 5 | AJ4: 5 | AK4: 5 | AL4: 5 | AM4: 5 | AN4: 5 | AO4: 5 | AP4: 5 | AQ4: 5 | AR4: 5 | AS4: 10 | AT4: 5 | AU4: 0 | AV4: 5 | AW4: 5 | AX4: 5 | AY4: - | AZ4: 5 | BA4: 5 | BB4: 5 | BC4: 5 | BD4: 5 | BE4: 5 | BF4: 5 | BG4: 5 | BH4: 5 | BI4: 5 | BJ4: - | BK4: 5 | BL4: 5 | BM4: 5 | BN4: 5 | BO4: 5 | BP4: 5 | BQ4: 5 | BR4: 5 | BS4: 5 | BT4: 5 | BU4: 5 | BV4: 5 | BW4: 5 | BX4: 5 | BY4: 5 | BZ4: 5 | CA4: 5 | CB4: 5 | CC4: - | CD4: 5 | CE4: 10 | CF4: 5
A5: 2022-11-05 | B5: Nottingham Forest | C5: 2 | D5: 2 | E5: Brentford | F5: 15:00:00 | H5: 5 | I5: 0 | J5: 0 | K5: - | L5: 5 | M5: 0 | N5: 5 | O5: 5 | P5: 5 | Q5: 0 | R5: 0 | S5: 0 | T5: 5 | U5: 0 | V5: 5 | W5: - | X5: 5 | Y5: 5 | Z5: 5 | AA5: 5 | AB5: 0 | AC5: 0 | AD5: 0 | AE5: 5 | AF5: 5 | AG5: 0 | AH5: 5 | AI5: 5 | AJ5: 5 | AK5: 5 | AL5: 0 | AM5: 5 | AN5: 5 | AO5: 0 | AP5: 0 | AQ5: 5 | AR5: 5 | AS5: 0 | AT5: 5 | AU5: 5 | AV5: 5 | AW5: 0 | AX5: 5 | AY5: - | AZ5: 10 | BA5: 5 | BB5: 0 | BC5: 5 | BD5: 5 | BE5: 5 | BF5: 0 | BG5: 0 | BH5: 5 | BI5: 0 | BJ5: - | BK5: 0 | BL5: 5 | BM5: 5 | BN5: 0 | BO5: 5 | BP5: 0 | BQ5: 0 | BR5: 0 | BS5: 5 | BT5: 0 | BU5: 0 | BV5: 5 | BW5: 0 | BX5: 0 | BY5: 0 | BZ5: 5 | CA5: 0 | CB5: 10 | CC5: - | CD5: 0 | CE5: 0 | CF5: 0
A6: 2022-11-05 | B6: Wolves | C6: 2 | D6: 3 | E6: Brighton | F6: 15:00:00 | H6: 10 | I6: 5 | J6: 5 | K6: - | L6: 0 | M6: 5 | N6: 5 | O6: 0 | P6: 5 | Q6: 0 | R6: 5 | S6: 0 | T6: 5 | U6: 0 | V6: 5 | W6: - | X6: 5 | Y6: 5 | Z6: 0 | AA6: 5 | AB6: 0 | AC6: 5 | AD6: 0 | AE6: 0 | AF6: 0 | AG6: 5 | AH6: 5 | AI6: 5 | AJ6: 5 | AK6: 5 | AL6: 5 | AM6: 5 | AN6: 5 | AO6: 5 | AP6: 5 | AQ6: 0 | AR6: 5 | AS6: 0 | AT6: 5 | AU6: 0 | AV6: 5 | AW6: 5 | AX6: 0 | AY6: - | AZ6: 5 | BA6: 5 | BB6: 5 | BC6: 5 | BD6: 5 | BE6: 5 | BF6: 5 | BG6: 5 | BH6: 5 | BI6: 5 | BJ6: - | BK6: 5 | BL6: 5 | BM6: 0 | BN6: 5 | BO6: 5 | BP6: 0 | BQ6: 5 | BR6: 0 | BS6: 5 | BT6: 5 | BU6: 0 | BV6: 5 | BW6: 5 | BX6: 5 | BY6: 5 | BZ6: 5 | CA6: 5 | CB6: 5 | CC6: - | CD6: 5 | CE6: 0 | CF6: 0
A7: 2022-11-05 | B7: Everton | C7: 0 | D7: 2 | E7: Leicester | F7: 17:30:00 | H7: 0 | I7: 0 | J7: 0 | K7: - | L7: 0 | M7: 0 | N7: 0 | O7: 0 | P7: 0 | Q7: 0 | R7: 0 | S7: 5 | T7: 0 | U7: 0 | V7: 0 | W7: - | X7: 0 | Y7: 0 | Z7: 0 | AA7: 0 | AB7: 0 | AC7: 0 | AD7: 0 | AE7: 0 | AF7: 0 | AG7: 5 | AH7: 0 | AI7: 0 | AJ7: 0 | AK7: 0 | AL7: 0 | AM7: 0 | AN7: 0 | AO7: 0 | AP7: 0 | AQ7: 0 | AR7: 0 | AS7: 0 | AT7: 0 | AU7: 0 | AV7: 0 | AW7: 0 | AX7: 0 | AY7: 0 | AZ7: 0 | BA7: 0 | BB7: 0 | BC7: 0 | BD7: 0 | BE7: 0 | BF7: 0 | BG7: 0 | BH7: 0 | BI7: 0 | BJ7: - | BK7: 5 | BL7: 5 | BM7: 5 | BN7: 0 | BO7: 0 | BP7: 0 | BQ7: 0 | BR7: 0 | BS7: 5 | BT7: 0 | BU7: 0 | BV7: 0 | BW7: 0 | BX7: 5 | BY7: 0 | BZ7: 0 | CA7: 0 | CB7: 0 | CC7: - | CD7: 0 | CE7: 0 | CF7: 0
A8: 2022-11-06 | B8: Chelsea | C8: 0 | D8: 1 | E8: Arsenal | F8: 12:00:00 | H8: 0 | I8: 0 | J8: 0 | K8: - | L8: 0 | M8: 0 | N8: 5 | O8: 0 | P8: 5 | Q8: 0 | R8: 0 | S8: 5 | T8: 5 | U8: 5 | V8: 0 | W8: - | X8: 0 | Y8: 5 | Z8: 0 | AA8: 5 | AB8: 5 | AC8: 0 | AD8: 5 | AE8: 0 | AF8: 0 | AG8: 5 | AH8: 0 | AI8: 0 | AJ8: 0 | AK8: 5 | AL8: 0 | AM8: 0 | AN8: 10 | AO8: 0 | AP8: 0 | AQ8: 0 | AR8: 5 | AS8: 0 | AT8: 0 | AU8: 5 | AV8: 0 | AW8: 0 | AX8: 0 | AY8: 5 | AZ8: 0 | BA8: 10 | BB8: 0 | BC8: 0 | BD8: 0 | BE8: 0 | BF8: 5 | BG8: 0 | BH8: 0 | BI8: 0 | BJ8: - | BK8: 5 | BL8: 0 | BM8: 5 | BN8: 0 | BO8: 0 | BP8: 0 | BQ8: 0 | BR8: 5 | BS8: 5 | BT8: 5 | BU8: 5 | BV8: 0 | BW8: 5 | BX8: 0 | BY8: 0 | BZ8: 0 | CA8: 0 | CB8: 0 | CC8: - | CD8: 0 | CE8: 0 | CF8: 0
A9: 2022-11-06 | B9: Aston Villa | C9: 3 | D9: 1 | E9: Man Utd | F9: 14:00:00 | H9: 0 | I9: 0 | J9: 0 | K9: - | L9: 0 | M9: 0 | N9: 0 | O9: 0 | P9: 0 | Q9: 0 | R9: 0 | S9: 0 | T9: 0 | U9: 0 | V9: 0 | W9: - | X9: 0 | Y9: 0 | Z9: 0 | AA9: 0 | AB9: 0 | AC9: 0 | AD9: 0 | AE9: 0 | AF9: 5 | AG9: 0 | AH9: 0 | AI9: 0 | AJ9: 0 | AK9: 0 | AL9: 0 | AM9: 0 | AN9: 0 | AO9: 0 | AP9: 0 | AQ9: 0 | AR9: 0 | AS9: 0 | AT9: 0 | AU9: 0 | AV9: 0 | AW9: 0 | AX9: 0 | AY9: 0 | AZ9: 0 | BA9: 0 | BB9: 0 | BC9: 5 | BD9: 0 | BE9: 0 | BF9: 0 | BG9: 0 | BH9: 0 | BI9: 0 | BJ9: - | BK9: 0 | BL9: 0 | BM9: 0 | BN9: 0 | BO9: 0 | BP9: 0 | BQ9: 0 | BR9: 0 | BS9: 0 | BT9: 0 | BU9: 0 | BV9: 0 | BW9: 0 | BX9: 0 | BY9: 0 | BZ9: 0 | CA9: 0 | CB9: 0 | CC9: - | CD9: 0 | CE9: 5 | CF9: 0
A10: 2022-11-06 | B10: Southampton | C10: 1 | D10: 4 | E10: Newcastle | F10: 14:00:00 | H10: 5 | I10: 5 | J10: 5 | K10: - | L10: 5 | M10: 0 | N10: 0 | O10: 5 | P10: 5 | Q10: 5 | R10: 5 | S10: 5 | T10: 5 | U10: 5 | V10: 5 | W10: - | X10: 0 | Y10: 5 | Z10: 5 | AA10: 5 | AB10: 0 | AC10: 5 | AD10: 0 | AE10: 5 | AF10: 5 | AG10: 5 | AH10: 5 | AI10: 0 | AJ10: 5 | AK10: 5 | AL10: 5 | AM10: 5 | AN10: 5 | AO10: 5 | AP10: 5 | AQ10: 5 | AR10: 5 | AS10: 0 | AT10: 5 | AU10: 0 | AV10: 5 | AW10: 5 | AX10: 5 | AY10: 5 | AZ10: 5 | BA10: 0 | BB10: 5 | BC10: 5 | BD10: 5 | BE10: 5 | BF10: 5 | BG10: 5 | BH10: 5 | BI10: 5 | BJ10: - | BK10: 5 | BL10: 5 | BM10: 5 | BN10: 5 | BO10: 5 | BP10: 5 | BQ10: 5 | BR10: 5 | BS10: 5 | BT10: 5 | BU10: 5 | BV10: 0 | BW10: 5 | BX10: 0 | BY10: 5 | BZ10: 0 | CA10: 5 | CB10: 5 | CC10: - | CD10: 5 | CE10: 0 | CF10: 5
A11: 2022-11-06 | B11: West Ham | C11: 1 | D11: 2 | E11: Crystal Palace | F11: 14:00:00 | H11: 0 | I11: 0 | J11: 0 | K11: - | L11: 0 | M11: 0 | N11: 0 | O11: 0 | P11: 0 | Q11: 0 | R11: 0 | S11: 0 | T11: 0 | U11: 0 | V11: 0 | W11: - | X11: 0 | Y11: 0 | Z11: 0 | AA11: 0 | AB11: 0 | AC11: 0 | AD11: 0 | AE11: 0 | AF11: 0 | AG11: 0 | AH11: 0 | AI11: 0 | AJ11: 0 | AK11: 10 | AL11: 0 | AM11: 0 | AN11: 0 | AO11: 0 | AP11: 10 | AQ11: 0 | AR11: 0 | AS11: 5 | AT11: 0 | AU11: 0 | AV11: 0 | AW11: 0 | AX11: 10 | AY11: 5 | AZ11: 0 | BA11: 0 | BB11: 0 | BC11: 0 | BD11: 0 | BE11: 0 | BF11: 0 | BG11: 0 | BH11: 0 | BI11: 0 | BJ11: - | BK11: 0 | BL11: 0 | BM11: 0 | BN11: 0 | BO11: 0 | BP11: 0 | BQ11: 0 | BR11: 0 | BS11: 0 | BT11: 0 | BU11: 0 | BV11: 0 | BW11: 0 | BX11: 0 | BY11: 0 | BZ11: 5 | CA11: 0 | CB11: 0 | CC11: - | CD11: 0 | CE11: 0 | CF11: 0
A12: 2022-11-06 | B12: Spurs | C12: 1 | D12: 2 | E12: Liverpool | F12: 16:30:00 | H12: 0 | I12: 0 | J12: 0 | K12: - | L12: 10 | M12: 10 | N12: 0 | O12: 10 | P12: 0 | Q12: 0 | R12: 0 | S12: 0 | T12: 10 | U12: 5 | V12: 0 | W12: - | X12: 0 | Y12: 10 | Z12: 0 | AA12: 10 | AB12: 10 | AC12: 0 | AD12: 0 | AE12: 0 | AF12: 0 | AG12: 5 | AH12: 10 | AI12: 0 | AJ12: 0 | AK12: 5 | AL12: 0 | AM12: 10 | AN12: 5 | AO12: 5 | AP12: 5 | AQ12: 5 | AR12: 0 | AS12: 5 | AT12: 10 | AU12: 0 | AV12: 0 | AW12: 10 | AX12: 0 | AY12: 5 | AZ12: 0 | BA12: 0 | BB12: 5 | BC12: 0 | BD12: 0 | BE12: 0 | BF12: 0 | BG12: 5 | BH12: 10 | BI12: 0 | BJ12: - | BK12: 5 | BL12: 5 | BM12: 10 | BN12: 0 | BO12: 0 | BP12: 0 | BQ12: 5 | BR12: 10 | BS12: 0 | BT12: 10 | BU12: 5 | BV12: 10 | BW12: 0 | BX12: 0 | BY12: 10 | BZ12: 10 | CA12: 0 | CB12: 10 | CC12: - | CD12: 0 | CE12: 0 | CF12: 0
A13: 2022-11-12 | B13: Man City | C13: 1 | D13: 2 | E13: Brentford | F13: 12:30:00 | H13: 0 | I13: 0 | J13: 0 | K13: - | L13: 0 | M13: 0 | N13: 0 | O13: 0 | P13: 0 | Q13: 0 | R13: 0 | S13: 0 | T13: 0 | U13: 0 | V13: 0 | W13: - | X13: 0 | Y13: 0 | Z13: 0 | AA13: 0 | AB13: 0 | AC13: 0 | AD13: 0 | AE13: 0 | AF13: 0 | AG13: 0 | AH13: 0 | AI13: 0 | AJ13: 0 | AK13: 0 | AL13: 0 | AM13: 0 | AN13: 0 | AO13: 0 | AP13: 0 | AQ13: 0 | AR13: 0 | AS13: 0 | AT13: 0 | AU13: 0 | AV13: 0 | AW13: 0 | AX13: 0 | AY13: - | AZ13: 0 | BA13: 0 | BB13: 0 | BC13: 5 | BD13: 0 | BE13: 0 | BF13: 0 | BG13: 0 | BH13: 0 | BI13: 0 | BJ13: - | BK13: 0 | BL13: 0 | BM13: 0 | BN13: 0 | BO13: 0 | BP13: 0 | BQ13: 0 | BR13: 0 | BS13: 0 | BT13: 0 | BU13: 0 | BV13: 0 | BW13: 0 | BX13: 0 | BY13: 0 | BZ13: 0 | CA13: 0 | CB13: 0 | CC13: - | CD13: 0 | CE13: 0 | CF13: 0
A14: 2022-11-12 | B14: Bournemouth | C14: 3 | D14: 0 | E14: Everton | F14: 15:00:00 | H14: 0 | I14: 0 | J14: 0 | K14: - | L14: 0 | M14: 0 | N14: 5 | O14: 0 | P14: 0 | Q14: 5 | R14: 5 | S14: 0 | T14: 0 | U14: 5 | V14: 0 | W14: - | X14: 0 | Y14: 0 | Z14: 5 | AA14: 0 | AB14: 0 | AC14: 5 | AD14: 5 | AE14: 0 | AF14: 0 | AG14: 5 | AH14: 0 | AI14: 0 | AJ14: 5 | AK14: 0 | AL14: 0 | AM14: 0 | AN14: 0 | AO14: 0 | AP14: 5 | AQ14: 0 | AR14: 5 | AS14: 5 | AT14: 0 | AU14: 5 | AV14: 0 | AW14: 0 | AX14: 5 | AY14: - | AZ14: 5 | BA14: 0 | BB14: 5 | BC14: 0 | BD14: 5 | BE14: 0 | BF14: 0 | BG14: 5 | BH14: 5 | BI14: 0 | BJ14: - | BK14: 0 | BL14: 5 | BM14: 5 | BN14: 0 | BO14: 5 | BP14: 5 | BQ14: 0 | BR14: 0 | BS14: 5 | BT14: 0 | BU14: 0 | BV14: 0 | BW14: 0 | BX14: 0 | BY14: 0 | BZ14: 0 | CA14: 0 | CB14: 5 | CC14: - | CD14: 0 | CE14: 0 | CF14: 0
A15: 2022-11-12 | B15: Liverpool | C15: 3 | D15: 1 | E15: Southampton | F15: 15:00:00 | H15: 10 | I15: 5 | J15: 5 | K15: - | L15: 5 | M15: 5 | N15: 0 | O15: 0 | P15: 5 | Q15: 5 | R15: 5 | S15: 5 | T15: 5 | U15: 5 | V15: 5 | W15: - | X15: 5 | Y15: 5 | Z15: 5 | AA15: 5 | AB15: 10 | AC15: 5 | AD15: 5 | AE15: 5 | AF15: 5 | AG15: 10 | AH15: 5 | AI15: 0 | AJ15: 5 | AK15: 5 | AL15: 10 | AM15: 5 | AN15: 5 | AO15: 5 | AP15: 5 | AQ15: 5 | AR15: 5 | AS15: 5 | AT15: 5 | AU15: 5 | AV15: 5 | AW15: 5 | AX15: 5 | AY15: - | AZ15: 5 | BA15: 5 | BB15: 5 | BC15: 5 | BD15: 5 | BE15: 10 | BF15: 5 | BG15: 5 | BH15: 5 | BI15: 5 | BJ15: - | BK15: 10 | BL15: 5 | BM15: 5 | BN15: 5 | BO15: 5 | BP15: 0 | BQ15: 5 | BR15: 5 | BS15: 5 | BT15: 5 | BU15: 5 | BV15: 5 | BW15: 5 | BX15: 10 | BY15: 10 | BZ15: 5 | CA15: 0 | CB15: 5 | CC15: - | CD15: 5 | CE15: 0 | CF15: 5
A16: 2022-11-12 | B16: Nottingham Forest | C16: 1 | D16: 0 | E16: Crystal Palace | F16: 15:00:00 | H16: 0 | I16: 0 | J16: 0 | K16: - | L16: 0 | M16: 0 | N16: 5 | O16: 0 | P16: 0 | Q16: 10 | R16: 0 | S16: 0 | T16: 0 | U16: 5 | V16: 0 | W16: - | X16: 0 | Y16: 0 | Z16: 5 | AA16: 0 | AB16: 0 | AC16: 0 | AD16: 0 | AE16: 0 | AF16: 0 | AG16: 10 | AH16: 0 | AI16: 0 | AJ16: 0 | AK16: 0 | AL16: 0 | AM16: 5 | AN16: 0 | AO16: 0 | AP16: 0 | AQ16: 10 | AR16: 0 | AS16: 0 | AT16: 0 | AU16: 0 | AV16: 0 | AW16: 0 | AX16: 0 | AY16: - | AZ16: 5 | BA16: 0 | BB16: 10 | BC16: 0 | BD16: 5 | BE16: 5 | BF16: 0 | BG16: 0 | BH16: 0 | BI16: 0 | BJ16: - | BK16: 0 | BL16: 0 | BM16: 0 | BN16: 0 | BO16: 0 | BP16: 5 | BQ16: 0 | BR16: 0 | BS16: 0 | BT16: 0 | BU16: 10 | BV16: 0 | BW16: 0 | BX16: 0 | BY16: 0 | BZ16: 0 | CA16: 0 | CB16: 0 | CC16: - | CD16: 5 | CE16: 0 | CF16: 0
A17: 2022-11-12 | B17: Spurs | C17: 4 | D17: 3 | E17: Leeds Utd | F17: 15:00:00 | H17: 5 | I17: 5 | J17: 5 | K17: - | L17: 5 | M17: 5 | N17: 5 | O17: 0 | P17: 5 | Q17: 5 | R17: 5 | S17: 5 | T17: 5 | U17: 0 | V17: 5 | W17: - | X17: 5 | Y17: 5 | Z17: 5 | AA17: 5 | AB17: 0 | AC17: 5 | AD17: 5 | AE17: 5 | AF17: 5 | AG17: 5 | AH17: 5 | AI17: 5 | AJ17: 5 | AK17: 0 | AL17: 5 | AM17: 5 | AN17: 5 | AO17: 5 | AP17: 5 | AQ17: 5 | AR17: 5 | AS17: 5 | AT17: 5 | AU17: 5 | AV17: 5 | AW17: 5 | AX17: 5 | AY17: - | AZ17: 5 | BA17: 5 | BB17: 5 | BC17: 5 | BD17: 5 | BE17: 5 | BF17: 5 | BG17: 5 | BH17: 5 | BI17: 5 | BJ17: - | BK17: 0 | BL17: 5 | BM17: 5 | BN17: 5 | BO17: 5 | BP17: 5 | BQ17: 5 | BR17: 5 | BS17: 5 | BT17: 5 | BU17: 0 | BV17: 5 | BW17: 5 | BX17: 5 | BY17: 5 | BZ17: 5 | CA17: 5 | CB17: 5 | CC17: - | CD17: 5 | CE17: 5 | CF17: 0
A18: 2022-11-12 | B18: West Ham | C18: 0 | D18: 2 | E18: Leicester | F18: 15:00:00 | H18: 0 | I18: 0 | J18: 0 | K18: - | L18: 0 | M18: 0 | N18: 0 | O18: 0 | P18: 0 | Q18: 0 | R18: 5 | S18: 10 | T18: 0 | U18: 0 | V18: 0 | W18: - | X18: 0 | Y18: 0 | Z18: 0 | AA18: 0 | AB18: 0 | AC18: 10 | AD18: 0 | AE18: 0 | AF18: 0 | AG18: 0 | AH18: 0 | AI18: 0 | AJ18: 0 | AK18: 0 | AL18: 0 | AM18: 0 | AN18: 0 | AO18: 0 | AP18: 5 | AQ18: 0 | AR18: 0 | AS18: 5 | AT18: 5 | AU18: 0 | AV18: 0 | AW18: 0 | AX18: 0 | AY18: - | AZ18: 0 | BA18: 0 | BB18: 0 | BC18: 0 | BD18: 0 | BE18: 0 | BF18: 0 | BG18: 0 | BH18: 0 | BI18: 0 | BJ18: - | BK18: 5 | BL18: 5 | BM18: 0 | BN18: 0 | BO18: 0 | BP18: 0 | BQ18: 0 | BR18: 5 | BS18: 0 | BT18: 5 | BU18: 0 | BV18: 0 | BW18: 0 | BX18: 5 | BY18: 0 | BZ18: 0 | CA18: 0 | CB18: 0 | CC18: - | CD18: 10 | CE18: 0 | CF18: 0
A19: 2022-11-12 | B19: Newcastle | C19: 1 | D19: 0 | E19: Chelsea | F19: 17:30:00 | H19: 5 | I19: 5 | J19: 5 | K19: - | L19: 5 | M19: 0 | N19: 5 | O19: 0 | P19: 5 | Q19: 5 | R19: 5 | S19: 5 | T19: 5 | U19: 0 | V19: 5 | W19: - | X19: 5 | Y19: 5 | Z19: 5 | AA19: 0 | AB19: 5 | AC19: 5 | AD19: 5 | AE19: 0 | AF19: 0 | AG19: 0 | AH19: 0 | AI19: 0 | AJ19: 0 | AK19: 5 | AL19: 5 | AM19: 0 | AN19: 0 | AO19: 0 | AP19: 0 | AQ19: 0 | AR19: 5 | AS19: 0 | AT19: 5 | AU19: 5 | AV19: 5 | AW19: 0 | AX19: 5 | AY19: - | AZ19: 5 | BA19: 0 | BB19: 10 | BC19: 0 | BD19: 5 | BE19: 5 | BF19: 5 | BG19: 5 | BH19: 10 | BI19: 10 | BJ19: - | BK19: 5 | BL19: 0 | BM19: 0 | BN19: 5 | BO19: 5 | BP19: 0 | BQ19: 0 | BR19: 5 | BS19: 5 | BT19: 0 | BU19: 0 | BV19: 0 | BW19: 0 | BX19: 5 | BY19: 0 | BZ19: 5 | CA19: 5 | CB19: 5 | CC19: - | CD19: 5 | CE19: 5 | CF19: 0
A20: 2022-11-12 | B20: Wolves | C20: 0 | D20: 2 | E20: Arsenal | F20: 19:45:00 | H20: 5 | I20: 10 | J20: 10 | K20: - | L20: 5 | M20: 5 | N20: 10 | O20: 0 | P20: 10 | Q20: 0 | R20: 10 | S20: 5 | T20: 10 | U20: 0 | V20: 5 | W20: - | X20: 10 | Y20: 10 | Z20: 0 | AA20: 10 | AB20: 5 | AC20: 10 | AD20: 5 | AE20: 5 | AF20: 10 | AG20: 5 | AH20: 10 | AI20: 5 | AJ20: 10 | AK20: 10 | AL20: 10 | AM20: 10 | AN20: 10 | AO20: 5 | AP20: 5 | AQ20: 0 | AR20: 5 | AS20: 5 | AT20: 5 | AU20: 5 | AV20: 10 | AW20: 10 | AX20: 5 | AY20: - | AZ20: 0 | BA20: 10 | BB20: 5 | BC20: 10 | BD20: 0 | BE20: 5 | BF20: 10 | BG20: 5 | BH20: 5 | BI20: 10 | BJ20: - | BK20: 5 | BL20: 10 | BM20: 5 | BN20: 10 | BO20: 5 | BP20: 0 | BQ20: 5 | BR20: 10 | BS20: 5 | BT20: 10 | BU20: 5 | BV20: 5 | BW20: 5 | BX20: 0 | BY20: 10 | BZ20: 5 | CA20: 10 | CB20: 5 | CC20: - | CD20: 5 | CE20: 10 | CF20: 5
A21: 2022-11-13 | B21: Brighton | C21: 1 | D21: 2 | E21: Aston Villa | F21: 14:00:00 | H21: 0 | I21: 0 | J21: 0 | K21: - | L21: 0 | M21: 0 | N21: 0 | O21: 0 | P21: 0 | Q21: 0 | R21: 0 | S21: 10 | T21: 10 | U21: 0 | V21: 0 | W21: - | X21: 0 | Y21: 0 | Z21: 0 | AA21: 0 | AB21: 0 | AC21: 0 | AD21: 0 | AE21: 0 | AF21: 0 | AG21: 0 | AH21: 0 | AI21: 0 | AJ21: 0 | AK21: 5 | AL21: 0 | AM21: 0 | AN21: 0 | AO21: 0 | AP21: 0 | AQ21: 5 | AR21: 0 | AS21: 0 | AT21: 0 | AU21: 0 | AV21: 0 | AW21: 0 | AX21: 0 | AY21: - | AZ21: - | BA21: 0 | BB21: 0 | BC21: 0 | BD21: 0 | BE21: 0 | BF21: 0 | BG21: 0 | BH21: 0 | BI21: 0 | BJ21: - | BK21: 0 | BL21: 0 | BM21: 0 | BN21: 0 | BO21: 0 | BP21: 0 | BQ21: 0 | BR21: 0 | BS21: 0 | BT21: 0 | BU21: 0 | BV21: 0 | BW21: 0 | BX21: 0 | BY21: 0 | BZ21: 5 | CA21: 0 | CB21: 0 | CC21: - | CD21: 0 | CE21: 0 | CF21: 10
A22: 2022-11-13 | B22: Fulham | C22: 1 | D22: 2 | E22: Man Utd | F22: 16:30:00 | H22: 5 | I22: 5 | J22: 10 | K22: - | L22: 0 | M22: 10 | N22: 5 | O22: 10 | P22: 5 | Q22: 10 | R22: 10 | S22: 10 | T22: 10 | U22: 0 | V22: 5 | W22: - | X22: 5 | Y22: 5 | Z22: 0 | AA22: 10 | AB22: 10 | AC22: 10 | AD22: 10 | AE22: 10 | AF22: 0 | AG22: 5 | AH22: 5 | AI22: 5 | AJ22: 10 | AK22: 0 | AL22: 5 | AM22: 0 | AN22: 10 | AO22: 5 | AP22: 0 | AQ22: 5 | AR22: 0 | AS22: 10 | AT22: 10 | AU22: 0 | AV22: 0 | AW22: 5 | AX22: 10 | AY22: - | AZ22: - | BA22: 5 | BB22: 10 | BC22: 0 | BD22: 0 | BE22: 10 | BF22: 10 | BG22: 5 | BH22: 5 | BI22: 5 | BJ22: - | BK22: 5 | BL22: 10 | BM22: 0 | BN22: 10 | BO22: 5 | BP22: 0 | BQ22: 0 | BR22: 10 | BS22: 5 | BT22: 5 | BU22: 10 | BV22: 0 | BW22: 10 | BX22: 5 | BY22: 5 | BZ22: 10 | CA22: 5 | CB22: 10 | CC22: - | CD22: 5 | CE22: 5 | CF22: 0
A24: Golden Boots
A25: Bruno Fernandes - Man United | D25: =COUNT(G25:GV25) -> 3 | E25: =0+0 -> 0 | X25: =2*$E25 -> 0 | AI25: =2*$E25 -> 0 | AW25: =2*$E25 -> 0
A26: Diogo Jota - Liverpool | D26: 1 | E26: =0+0 -> 0 | BW26: =2*$E26 -> 0
A27: Harry Kane - Tottenham | D27: 52 | E27: =1+1 -> 2 | H27: =2*$E27 -> 4 | I27: 4 | J27: 4 | K27: 4 | L27: 4 | M27: 4 | N27: 4 | O27: 4 | Q27: 4 | S27: =2*$E27 -> 4 | U27: =2*$E27 -> 4 | V27: =2*$E27 -> 4 | W27: =2*$E27 -> 4 | X27: =2*$E27 -> 4 | Y27: =2*$E27 -> 4 | Z27: =2*$E27 -> 4 | AA27: 4 | AB27: 4 | AC27: 4 | AD27: 4 | AE27: 4 | AF27: 4 | AH27: =2*$E27 -> 4 | AJ27: =2*$E27 -> 4 | AL27: =2*$E27 -> 4 | AM27: 4 | AN27: 4 | AO27: 4 | AP27: 4 | AQ27: =2*$E27 -> 4 | AR27: 4 | AT27: 4 | AV27: =2*$E27 -> 4 | AW27: 4 | AX27: =2*$E27 -> 4 | BC27: =2*$E27 -> 4 | BD27: =2*$E27 -> 4 | BG27: =2*$E27 -> 4 | BH27: =2*$E27 -> 4 | BI27: =2*$E27 -> 4 | BM27: =2*$E27 -> 4 | BO27: =2*$E27 -> 4 | BP27: =2*$E27 -> 4 | BQ27: =2*$E27 -> 4 | BS27: =2*$E27 -> 4 | BU27: =2*$E27 -> 4 | BV27: =2*$E27 -> 4 | BY27: =2*$E27 -> 4 | CA27: =2*$E27 -> 4 | CB27: =2*$E27 -> 4 | CE27: =2*$E27 -> 4 | CF27: =2*$E27 -> 4
A28: Kevin de Bruyne - Man City | D28: 4 | E28: =0+0 -> 0 | K28: =2*$E28 -> 0 | BA28: =2*$E28 -> 0 | BL28: =2*$E28 -> 0 | BZ28: =2*$E28 -> 0
A29: Mohamed Salah - Liverpool | D29: 69 | E29: =2+0 -> 2 | H29: =2*$E29 -> 4 | I29: =2*$E29 -> 4 | J29: =2*$E29 -> 4 | L29: =2*$E29 -> 4 | M29: 4 | N29: 4 | O29: 4 | P29: 4 | Q29: 4 | R29: 4 | S29: 4 | T29: 4 | U29: 4 | V29: 4 | W29: 4 | Y29: =2*$E29 -> 4 | AA29: =2*$E29 -> 4 | AB29: =2*$E29 -> 4 | AC29: =2*$E29 -> 4 | AD29: =2*$E29 -> 4 | AE29: =2*$E29 -> 4 | AF29: =2*$E29 -> 4 | AG29: 4 | AH29: =2*$E29 -> 4 | AJ29: 4 | AK29: 4 | AL29: 4 | AM29: 4 | AN29: 4 | AO29: 4 | AP29: 4 | AQ29: =2*$E29 -> 4 | AR29: =2*$E29 -> 4 | AS29: =2*$E29 -> 4 | AT29: 4 | AU29: =2*$E29 -> 4 | AV29: =2*$E29 -> 4 | AX29: =2*$E29 -> 4 | AY29: =2*$E29 -> 4 | AZ29: =2*$E29 -> 4 | BA29: =2*$E29 -> 4 | BB29: =2*$E29 -> 4 | BC29: =2*$E29 -> 4 | BE29: =2*$E29 -> 4 | BF29: =2*$E29 -> 4 | BG29: =2*$E29 -> 4 | BH29: =2*$E29 -> 4 | BI29: 4 | BJ29: =2*$E29 -> 4 | BK29: 4 | BL29: =2*$E29 -> 4 | BM29: =2*$E29 -> 4 | BN29: 4 | BO29: 4 | BQ29: =2*$E29 -> 4 | BR29: 4 | BT29: =2*$E29 -> 4 | BU29: 4 | BV29: 4 | BW29: 4 | BX29: 4 | BY29: 4 | BZ29: =2*$E29 -> 4 | CA29: =2*$E29 -> 4 | CB29: 4 | CC29: 4 | CD29: 4 | CE29: 4 | CF29: 4
A30: Son Heung-min - Tottenham | D30: 23 | E30: =0+0 -> 0 | P30: =2*$E30 -> 0 | R30: =2*$E30 -> 0 | T30: =2*$E30 -> 0 | Z30: =2*$E30 -> 0 | AG30: =2*$E30 -> 0 | AI30: =2*$E30 -> 0 | AK30: =2*$E30 -> 0 | AS30: =2*$E30 -> 0 | AY30: =2*$E30 -> 0 | AZ30: =2*$E30 -> 0 | BB30: =2*$E30 -> 0 | BD30: =2*$E30 -> 0 | BE30: =2*$E30 -> 0 | BF30: =2*$E30 -> 0 | BJ30: =2*$E30 -> 0 | BK30: =2*$E30 -> 0 | BP30: =2*$E30 -> 0 | BR30: =2*$E30 -> 0 | BS30: =2*$E30 -> 0 | BT30: =2*$E30 -> 0 | BX30: =2*$E30 -> 0 | CC30: =2*$E30 -> 0 | CD30: =2*$E30 -> 0
A31: Wilfried Zaha - Crystal Palace | D31: 2 | E31: =1+0 -> 1 | AU31: =2*$E31 -> 2 | BN31: =2*$E31 -> 2
A33: New Kids On The Block 102
A34: Darwin Nunez - Liverpool | D34: =COUNT(G34:GV34) -> 9 | E34: =0+2 -> 2 | J34: =2*$E34 -> 4 | O34: =2*$E34 -> 4 | R34: =2*$E34 -> 4 | U34: =2*$E34 -> 4 | AZ34: =2*$E34 -> 4 | BB34: =2*$E34 -> 4 | BL34: =2*$E34 -> 4 | BZ34: =2*$E34 -> 4 | CC34: =2*$E34 -> 4
A35: Erling Haaland - Man City | D35: =COUNT(G35:GV35) -> 52 | E35: =1+0 -> 1 | H35: =2*$E35 -> 2 | I35: =2*$E35 -> 2 | K35: =2*$E35 -> 2 | L35: =2*$E35 -> 2 | M35: =2*$E35 -> 2 | S35: =2*$E35 -> 2 | T35: =2*$E35 -> 2 | W35: =2*$E35 -> 2 | X35: =2*$E35 -> 2 | Y35: =2*$E35 -> 2 | AA35: =2*$E35 -> 2 | AC35: =2*$E35 -> 2 | AD35: =2*$E35 -> 2 | AE35: =2*$E35 -> 2 | AF35: =2*$E35 -> 2 | AG35: 2 | AH35: =2*$E35 -> 2 | AJ35: 2 | AK35: 2 | AL35: 2 | AM35: 2 | AN35: 2 | AP35: 2 | AQ35: =2*$E35 -> 2 | AR35: =2*$E35 -> 2 | AT35: 2 | AV35: =2*$E35 -> 2 | AW35: 2 | AX35: =2*$E35 -> 2 | AY35: 2 | BC35: =2*$E35 -> 2 | BD35: 2 | BE35: 2 | BF35: 2 | BG35: 2 | BH35: 2 | BI35: 2 | BM35: =2*$E35 -> 2 | BO35: =2*$E35 -> 2 | BP35: 2 | BQ35: 2 | BR35: 2 | BS35: 2 | BT35: 2 | BU35: 2 | BW35: =2*$E35 -> 2 | BX35: =2*$E35 -> 2 | BY35: =2*$E35 -> 2 | CA35: =2*$E35 -> 2 | CB35: =2*$E35 -> 2 | CE35: =2*$E35 -> 2 | CF35: =2*$E35 -> 2
A36: Gabriel Jesus - Arsenal | D36: =COUNT(G36:GV36) -> 13 | E36: =0+0 -> 0 | N36: =2*$E36 -> 0 | P36: =2*$E36 -> 0 | Q36: =2*$E36 -> 0 | Z36: =2*$E36 -> 0 | AB36: =2*$E36 -> 0 | AI36: =2*$E36 -> 0 | AO36: =2*$E36 -> 0 | AU36: =2*$E36 -> 0 | BA36: =2*$E36 -> 0 | BJ36: =2*$E36 -> 0 | BK36: =2*$E36 -> 0 | BV36: =2*$E36 -> 0 | CD36: =2*$E36 -> 0
A37: Raheem Sterling - Chelsea | D37: =COUNT(G37:GV37) -> 3 | E37: =0+0 -> 0 | V37: =2*$E37 -> 0 | AS37: =2*$E37 -> 0 | BN37: =2*$E37 -> 0
A39: Total Points - November | H39: =SUM(H$3:H38) -> 70 | I39: =SUM(I$3:I38) -> 60 | J39: =SUM(J$3:J38) -> 67 | K39: =SUM(K$3:K38) -> 6 | L39: =SUM(L$3:L38) -> 60 | M39: =SUM(M$3:M38) -> 60 | N39: =SUM(N$3:N38) -> 68 | O39: =SUM(O$3:O38) -> 47 | P39: =SUM(P$3:P38) -> 64 | Q39: =SUM(Q$3:Q38) -> 63 | R39: =SUM(R$3:R38) -> 73 | S39: =SUM(S$3:S38) -> 80 | T39: =SUM(T$3:T38) -> 91 | U39: =SUM(U$3:U38) -> 47 | V39: =SUM(V$3:V38) -> 63 | W39: =SUM(W$3:W38) -> 10 | X39: =SUM(X$3:X38) -> 56 | Y39: =SUM(Y$3:Y38) -> 80 | Z39: =SUM(Z$3:Z38) -> 49 | AA39: =SUM(AA$3:AA38) -> 80 | AB39: =SUM(AB$3:AB38) -> 58 | AC39: =SUM(AC$3:AC38) -> 75 | AD39: =SUM(AD$3:AD38) -> 60 | AE39: =SUM(AE$3:AE38) -> 55 | AF39: =SUM(AF$3:AF38) -> 55 | AG39: =SUM(AG$3:AG38) -> 76 | AH39: =SUM(AH$3:AH38) -> 70 | AI39: =SUM(AI$3:AI38) -> 35 | AJ39: =SUM(AJ$3:AJ38) -> 70 | AK39: =SUM(AK$3:AK38) -> 76 | AL39: =SUM(AL$3:AL38) -> 65 | AM39: =SUM(AM$3:AM38) -> 70 | AN39: =SUM(AN$3:AN38) -> 80 | AO39: =SUM(AO$3:AO38) -> 53 | AP39: =SUM(AP$3:AP38) -> 65 | AQ39: =SUM(AQ$3:AQ38) -> 65 | AR39: =SUM(AR$3:AR38) -> 65 | AS39: =SUM(AS$3:AS38) -> 64 | AT39: =SUM(AT$3:AT38) -> 80 | AU39: =SUM(AU$3:AU38) -> 46 | AV39: =SUM(AV$3:AV38) -> 60 | AW39: =SUM(AW$3:AW38) -> 61 | AX39: =SUM(AX$3:AX38) -> 75 | AY39: =SUM(AY$3:AY38) -> 26 | AZ39: =SUM(AZ$3:AZ38) -> 63 | BA39: =SUM(BA$3:BA38) -> 59 | BB39: =SUM(BB$3:BB38) -> 83 | BC39: =SUM(BC$3:BC38) -> 60 | BD39: =SUM(BD$3:BD38) -> 56 | BE39: =SUM(BE$3:BE38) -> 71 | BF39: =SUM(BF$3:BF38) -> 66 | BG39: =SUM(BG$3:BG38) -> 65 | BH39: =SUM(BH$3:BH38) -> 75 | BI39: =SUM(BI$3:BI38) -> 65 | BJ39: =SUM(BJ$3:BJ38) -> 4 | BK39: =SUM(BK$3:BK38) -> 69 | BL39: =SUM(BL$3:BL38) -> 83 | BM39: =SUM(BM$3:BM38) -> 70 | BN39: =SUM(BN$3:BN38) -> 56 | BO39: =SUM(BO$3:BO38) -> 65 | BP39: =SUM(BP$3:BP38) -> 36 | BQ39: =SUM(BQ$3:BQ38) -> 45 | BR39: =SUM(BR$3:BR38) -> 76 | BS39: =SUM(BS$3:BS38) -> 71 | BT39: =SUM(BT$3:BT38) -> 71 | BU39: =SUM(BU$3:BU38) -> 65 | BV39: =SUM(BV$3:BV38) -> 53 | BW39: =SUM(BW$3:BW38) -> 56 | BX39: =SUM(BX$3:BX38) -> 56 | BY39: =SUM(BY$3:BY38) -> 65 | BZ39: =SUM(BZ$3:BZ38) -> 78 | CA39: =SUM(CA$3:CA38) -> 55 | CB39: =SUM(CB$3:CB38) -> 85 | CC39: =SUM(CC$3:CC38) -> 8 | CD39: =SUM(CD$3:CD38) -> 64 | CE39: =SUM(CE$3:CE38) -> 55 | CF39: =SUM(CF$3:CF38) -> 45

Sheet December
H1: Aidan Scanlon | I1: Aidan White | J1: Anastas Popov | K1: Andrew Keohan | L1: Andy Dunne | M1: Bobby Hynes | N1: Brendan Maguire | O1: Brian Haughton | P1: Brian Mullen | Q1: Brian Prendergast | R1: Caroline Carroll | S1: Cathal Thornton | T1: Chris Keohan | U1: Christina Morgan | V1: Ciara Walsh | W1: Ciaran Healy | X1: Ciaran O'Hart | Y1: Ciaran Rooney | Z1: Colm Cahill | AA1: Con McSweeney | AB1: Conor MacMahon | AC1: Craig Calvert | AD1: Darragh Kenny | AE1: Dave McGinley | AF1: David Cooney | AG1: David Lavelle | AH1: Dean Kelly | AI1: Derek McDonald | AJ1: Dylan Delaney | AK1: Dylan O'Riordan | AL1: Eoghan Farrelly | AM1: Frank McSweeney | AN1: Gareth Pierpoint | AO1: Gary Donnelly | AP1: Gary Fitzpatrick | AQ1: Gary McGurk | AR1: Gavin Morgan | AS1: Gerard McCluskey | AT1: Gerry Draper | AU1: Gerry Moore | AV1: Graham Pierpoint | AW1: Ian McSweeney | AX1: James Keville | AY1: Javier Suarez | AZ1: Jenny Behan | BA1: Joe Behan | BB1: Joe Turner | BC1: John Brophy | BD1: John Hempenstall | BE1: John Massey | BF1: Johno Percy | BG1: Jonathan Fox | BH1: Joseph Kavanagh | BI1: Keith Ryan | BJ1: Kieran Killeen | BK1: Liam Keohan | BL1: Lionel Knott | BM1: Micheal Joyce | BN1: Monica Collins | BO1: Niall Carroll | BP1: Niall Gregory | BQ1: Paul Moore | BR1: Paul Prendergast | BS1: Phil Doyle | BT1: Philip Jordan | BU1: Richard Johnston | BV1: Robert Hynes | BW1: Roisin Joyce | BX1: Ronan Rafferty | BY1: Rory Ellard | BZ1: Sarah Coward | CA1: Sean Cleary | CB1: Sean O'Mairtin | CC1: Shane Finnan | CD1: Shane Hempenstall | CE1: Simon Scanlon | CF1: Tommy Hamill
A2: Date | B2: Teams | F2: Time
A3: 2022-12-26 | B3: Brentford | C3: 2 | D3: 2 | E3: Spurs | F3: 12:30:00 | H3: 0 | I3: 5 | J3: 0 | K3: - | L3: 0 | M3: 5 | N3: 5 | O3: 0 | P3: 0 | Q3: 0 | R3: 0 | S3: 0 | T3: 0 | U3: 0 | V3: 0 | W3: - | X3: 0 | Y3: 5 | Z3: 0 | AA3: 0 | AB3: 0 | AC3: 5 | AD3: 0 | AE3: 5 | AF3: 10 | AG3: 0 | AH3: 0 | AI3: - | AJ3: 0 | AK3: 0 | AL3: 0 | AM3: 0 | AN3: 5 | AO3: 0 | AP3: 0 | AQ3: 5 | AR3: 5 | AS3: 0 | AT3: 10 | AU3: 5 | AV3: 5 | AW3: 0 | AX3: 0 | AY3: - | AZ3: 0 | BA3: 10 | BB3: 10 | BC3: 0 | BD3: 0 | BE3: 5 | BF3: 5 | BG3: 0 | BH3: 0 | BI3: 0 | BJ3: 0 | BK3: 0 | BL3: 0 | BM3: 0 | BN3: 0 | BO3: 10 | BP3: 0 | BQ3: 0 | BR3: 0 | BS3: 0 | BT3: 0 | BU3: 0 | BV3: 0 | BW3: 0 | BX3: 10 | BY3: 5 | BZ3: 0 | CA3: 0 | CB3: 5 | CC3: - | CD3: - | CE3: 0 | CF3: 5
A4: 2022-12-26 | B4: Crystal Palace | C4: 0 | D4: 3 | E4: Fulham | F4: 15:00:00 | H4: 0 | I4: 0 | J4: 0 | K4: - | L4: 0 | M4: 0 | N4: 0 | O4: 0 | P4: 0 | Q4: 0 | R4: 0 | S4: 0 | T4: 0 | U4: 5 | V4: 0 | W4: - | X4: 0 | Y4: 0 | Z4: 0 | AA4: 0 | AB4: 0 | AC4: 0 | AD4: 0 | AE4: 0 | AF4: 0 | AG4: 0 | AH4: 0 | AI4: - | AJ4: 0 | AK4: 0 | AL4: 0 | AM4: 0 | AN4: 0 | AO4: 0 | AP4: 0 | AQ4: 0 | AR4: 0 | AS4: 0 | AT4: 0 | AU4: 0 | AV4: 0 | AW4: 0 | AX4: 0 | AY4: 0 | AZ4: 0 | BA4: 0 | BB4: 0 | BC4: 0 | BD4: 0 | BE4: 0 | BF4: 0 | BG4: 0 | BH4: 0 | BI4: 5 | BJ4: 0 | BK4: 0 | BL4: 0 | BM4: 5 | BN4: 0 | BO4: 0 | BP4: 0 | BQ4: 0 | BR4: 0 | BS4: 0 | BT4: 0 | BU4: 0 | BV4: 0 | BW4: 0 | BX4: 0 | BY4: 0 | BZ4: 0 | CA4: 0 | CB4: 0 | CC4: - | CD4: - | CE4: 0 | CF4: 0
A5: 2022-12-26 | B5: Everton | C5: 1 | D5: 2 | E5: Wolves | F5: 15:00:00 | H5: 0 | I5: 0 | J5: 0 | K5: - | L5: 0 | M5: 0 | N5: 0 | O5: 0 | P5: 0 | Q5: 0 | R5: 10 | S5: 0 | T5: 0 | U5: 0 | V5: 0 | W5: - | X5: 0 | Y5: 0 | Z5: 0 | AA5: 0 | AB5: 0 | AC5: 0 | AD5: 0 | AE5: 0 | AF5: 0 | AG5: 0 | AH5: 0 | AI5: - | AJ5: 0 | AK5: 0 | AL5: 0 | AM5: 0 | AN5: 0 | AO5: 0 | AP5: 0 | AQ5: 0 | AR5: 0 | AS5: 0 | AT5: 0 | AU5: 0 | AV5: 0 | AW5: 0 | AX5: 10 | AY5: 0 | AZ5: 0 | BA5: 0 | BB5: 0 | BC5: 5 | BD5: 0 | BE5: 0 | BF5: 0 | BG5: 0 | BH5: 0 | BI5: 0 | BJ5: 0 | BK5: 0 | BL5: 0 | BM5: 10 | BN5: 10 | BO5: 0 | BP5: 0 | BQ5: 0 | BR5: 0 | BS5: 10 | BT5: 0 | BU5: 0 | BV5: 0 | BW5: 0 | BX5: 0 | BY5: 0 | BZ5: 0 | CA5: 0 | CB5: 10 | CC5: - | CD5: - | CE5: 0 | CF5: 0
A6: 2022-12-26 | B6: Leicester | C6: 0 | D6: 3 | E6: Newcastle | F6: 15:00:00 | H6: 5 | I6: 5 | J6: 5 | K6: - | L6: 0 | M6: 0 | N6: 5 | O6: 0 | P6: 5 | Q6: 0 | R6: 5 | S6: 0 | T6: 5 | U6: 5 | V6: 0 | W6: - | X6: 0 | Y6: 5 | Z6: 0 | AA6: 0 | AB6: 0 | AC6: 5 | AD6: 0 | AE6: 0 | AF6: 0 | AG6: 0 | AH6: 0 | AI6: - | AJ6: 5 | AK6: 5 | AL6: 5 | AM6: 5 | AN6: 5 | AO6: 0 | AP6: 0 | AQ6: 0 | AR6: 5 | AS6: 0 | AT6: 5 | AU6: 0 | AV6: 5 | AW6: 0 | AX6: 0 | AY6: 5 | AZ6: 0 | BA6: 5 | BB6: 5 | BC6: 5 | BD6: 0 | BE6: 0 | BF6: 5 | BG6: 5 | BH6: 5 | BI6: 5 | BJ6: 5 | BK6: 5 | BL6: 0 | BM6: 0 | BN6: 5 | BO6: 5 | BP6: 0 | BQ6: 5 | BR6: 5 | BS6: 5 | BT6: 0 | BU6: 5 | BV6: 0 | BW6: 5 | BX6: 0 | BY6: 5 | BZ6: 0 | CA6: 5 | CB6: 0 | CC6: - | CD6: - | CE6: 10 | CF6: 5
A7: 2022-12-26 | B7: Southampton | C7: 1 | D7: 3 | E7: Brighton | F7: 15:00:00 | H7: 5 | I7: 0 | J7: 0 | K7: - | L7: 0 | M7: 5 | N7: 0 | O7: 0 | P7: 5 | Q7: 0 | R7: 0 | S7: 0 | T7: 0 | U7: 0 | V7: 0 | W7: - | X7: 0 | Y7: 0 | Z7: 0 | AA7: 0 | AB7: 0 | AC7: 0 | AD7: 0 | AE7: 0 | AF7: 0 | AG7: 0 | AH7: 0 | AI7: - | AJ7: 0 | AK7: 5 | AL7: 0 | AM7: 5 | AN7: 0 | AO7: 0 | AP7: 5 | AQ7: 0 | AR7: 0 | AS7: 0 | AT7: 0 | AU7: 5 | AV7: 5 | AW7: 5 | AX7: 5 | AY7: 0 | AZ7: 0 | BA7: 0 | BB7: 0 | BC7: 0 | BD7: 0 | BE7: 0 | BF7: 0 | BG7: 5 | BH7: 0 | BI7: 5 | BJ7: 5 | BK7: 5 | BL7: 5 | BM7: 0 | BN7: 0 | BO7: 0 | BP7: 0 | BQ7: 5 | BR7: 0 | BS7: 10 | BT7: 5 | BU7: 5 | BV7: 0 | BW7: 5 | BX7: 0 | BY7: 5 | BZ7: 0 | CA7: 5 | CB7: 5 | CC7: - | CD7: - | CE7: 0 | CF7: 0
A8: 2022-12-26 | B8: Aston Villa | C8: 1 | D8: 3 | E8: Liverpool | F8: 17:30:00 | H8: 5 | I8: 5 | J8: 5 | K8: - | L8: 0 | M8: 5 | N8: 5 | O8: 5 | P8: 5 | Q8: 0 | R8: 5 | S8: 0 | T8: 10 | U8: 10 | V8: 0 | W8: - | X8: 5 | Y8: 5 | Z8: 5 | AA8: 5 | AB8: 0 | AC8: 5 | AD8: 5 | AE8: 5 | AF8: 0 | AG8: 0 | AH8: 10 | AI8: - | AJ8: 5 | AK8: 10 | AL8: 5 | AM8: 5 | AN8: 5 | AO8: 0 | AP8: 10 | AQ8: 10 | AR8: 0 | AS8: 0 | AT8: 5 | AU8: 5 | AV8: 5 | AW8: 5 | AX8: 5 | AY8: 10 | AZ8: 10 | BA8: 5 | BB8: 5 | BC8: 5 | BD8: 0 | BE8: 0 | BF8: 0 | BG8: 5 | BH8: 5 | BI8: 5 | BJ8: 5 | BK8: 10 | BL8: 10 | BM8: 5 | BN8: 5 | BO8: 0 | BP8: 5 | BQ8: 5 | BR8: 5 | BS8: 0 | BT8: 5 | BU8: 5 | BV8: 5 | BW8: 5 | BX8: 0 | BY8: 5 | BZ8: 5 | CA8: 5 | CB8: 5 | CC8: - | CD8: - | CE8: 5 | CF8: 0
A9: 2022-12-26 | B9: Arsenal | C9: 3 | D9: 1 | E9: West Ham | F9: 20:00:00 | H9: 10 | I9: 5 | J9: 5 | K9: - | L9: 5 | M9: 5 | N9: 5 | O9: 5 | P9: 5 | Q9: 5 | R9: 5 | S9: 5 | T9: 5 | U9: 5 | V9: 10 | W9: - | X9: 5 | Y9: 5 | Z9: 0 | AA9: 5 | AB9: 5 | AC9: 5 | AD9: 5 | AE9: 5 | AF9: 5 | AG9: 5 | AH9: 5 | AI9: - | AJ9: 0 | AK9: 10 | AL9: 5 | AM9: 5 | AN9: 5 | AO9: 5 | AP9: 5 | AQ9: 0 | AR9: 5 | AS9: 5 | AT9: 5 | AU9: 5 | AV9: 5 | AW9: 5 | AX9: 5 | AY9: 5 | AZ9: 0 | BA9: 5 | BB9: 5 | BC9: 5 | BD9: 5 | BE9: 0 | BF9: 5 | BG9: 5 | BH9: 0 | BI9: 10 | BJ9: 0 | BK9: 5 | BL9: 5 | BM9: 5 | BN9: 0 | BO9: 5 | BP9: 0 | BQ9: 5 | BR9: 5 | BS9: 5 | BT9: 5 | BU9: 5 | BV9: 0 | BW9: 5 | BX9: 5 | BY9: 5 | BZ9: 5 | CA9: 5 | CB9: 5 | CC9: - | CD9: - | CE9: 10 | CF9: 5
A10: 2022-12-27 | B10: Chelsea | C10: 2 | D10: 0 | E10: Bournemouth | F10: 17:30:00 | H10: 5 | I10: 10 | J10: 10 | K10: - | L10: 10 | M10: 10 | N10: 10 | O10: 5 | P10: 10 | Q10: 5 | R10: 0 | S10: 5 | T10: 5 | U10: 5 | V10: 10 | W10: - | X10: 10 | Y10: 10 | Z10: 5 | AA10: 10 | AB10: 5 | AC10: 5 | AD10: 10 | AE10: 10 | AF10: 10 | AG10: 5 | AH10: 10 | AI10: - | AJ10: 5 | AK10: 10 | AL10: 5 | AM10: 10 | AN10: 5 | AO10: 5 | AP10: 5 | AQ10: 10 | AR10: 10 | AS10: 5 | AT10: 10 | AU10: 5 | AV10: 10 | AW10: 5 | AX10: 5 | AY10: 10 | AZ10: 5 | BA10: 10 | BB10: 10 | BC10: 10 | BD10: 5 | BE10: 0 | BF10: 10 | BG10: 5 | BH10: 5 | BI10: 10 | BJ10: 10 | BK10: 5 | BL10: 5 | BM10: 5 | BN10: 5 | BO10: 10 | BP10: 10 | BQ10: 5 | BR10: 10 | BS10: 5 | BT10: 10 | BU10: 5 | BV10: 5 | BW10: 5 | BX10: 0 | BY10: 10 | BZ10: 5 | CA10: 5 | CB10: 10 | CC10: - | CD10: - | CE10: 5 | CF10: 5
A11: 2022-12-27 | B11: Man Utd | C11: 3 | D11: 0 | E11: Nottingham Forest | F11: 20:00:00 | H11: 10 | I11: 5 | J11: 10 | K11: - | L11: 5 | M11: 10 | N11: 5 | O11: 5 | P11: 5 | Q11: 5 | R11: 5 | S11: 5 | T11: 5 | U11: 10 | V11: 5 | W11: - | X11: 10 | Y11: 5 | Z11: 5 | AA11: 5 | AB11: 5 | AC11: 10 | AD11: 5 | AE11: 5 | AF11: 10 | AG11: 5 | AH11: 5 | AI11: - | AJ11: 5 | AK11: 5 | AL11: 10 | AM11: 5 | AN11: 5 | AO11: 5 | AP11: 10 | AQ11: 10 | AR11: 10 | AS11: 5 | AT11: 5 | AU11: 5 | AV11: 10 | AW11: 5 | AX11: 5 | AY11: 5 | AZ11: 10 | BA11: 5 | BB11: 5 | BC11: 10 | BD11: 5 | BE11: - | BF11: 10 | BG11: 5 | BH11: 5 | BI11: 5 | BJ11: 5 | BK11: 5 | BL11: 5 | BM11: 5 | BN11: 5 | BO11: 5 | BP11: 5 | BQ11: 5 | BR11: 5 | BS11: 5 | BT11: 10 | BU11: 0 | BV11: 5 | BW11: 5 | BX11: 5 | BY11: 5 | BZ11: 5 | CA11: 10 | CB11: 5 | CC11: - | CD11: - | CE11: 5 | CF11: 5
A12: 2022-12-28 | B12: Leeds Utd | C12: 1 | D12: 3 | E12: Man City | F12: 20:00:00 | H12: 5 | I12: 10 | J12: 10 | K12: - | L12: 0 | M12: 10 | N12: 5 | O12: 5 | P12: 10 | Q12: 0 | R12: 5 | S12: 0 | T12: 5 | U12: 5 | V12: 5 | W12: - | X12: 10 | Y12: 5 | Z12: 5 | AA12: 5 | AB12: 0 | AC12: 5 | AD12: 0 | AE12: 10 | AF12: 10 | AG12: 0 | AH12: 5 | AI12: - | AJ12: 5 | AK12: 5 | AL12: 5 | AM12: 5 | AN12: 5 | AO12: 0 | AP12: 5 | AQ12: 0 | AR12: 5 | AS12: 0 | AT12: 5 | AU12: 10 | AV12: 5 | AW12: 5 | AX12: 5 | AY12: 5 | AZ12: 5 | BA12: 5 | BB12: 5 | BC12: 5 | BD12: 0 | BE12: - | BF12: 5 | BG12: 5 | BH12: 5 | BI12: 5 | BJ12: 0 | BK12: 5 | BL12: 10 | BM12: 10 | BN12: 5 | BO12: 5 | BP12: 10 | BQ12: 5 | BR12: 5 | BS12: 5 | BT12: 5 | BU12: 5 | BV12: 10 | BW12: 10 | BX12: 5 | BY12: 5 | BZ12: 5 | CA12: 5 | CB12: 10 | CC12: - | CD12: - | CE12: 5 | CF12: 10
A13: 2022-12-30 | B13: West Ham | C13: 0 | D13: 2 | E13: Brentford | F13: 19:45:00 | H13: 0 | I13: 0 | J13: 0 | K13: - | L13: 0 | M13: 0 | N13: 0 | O13: 0 | P13: 0 | Q13: 0 | R13: 5 | S13: 0 | T13: 0 | U13: 0 | V13: 10 | W13: - | X13: 0 | Y13: 0 | Z13: 0 | AA13: 0 | AB13: 0 | AC13: 0 | AD13: 0 | AE13: 0 | AF13: 0 | AG13: 0 | AH13: 0 | AI13: 0 | AJ13: 0 | AK13: 0 | AL13: 0 | AM13: 0 | AN13: 0 | AO13: 0 | AP13: 0 | AQ13: 0 | AR13: 0 | AS13: 0 | AT13: 0 | AU13: 0 | AV13: 0 | AW13: 0 | AX13: 0 | AY13: 0 | AZ13: 0 | BA13: 0 | BB13: 0 | BC13: 0 | BD13: - | BE13: - | BF13: 0 | BG13: 0 | BH13: 0 | BI13: 0 | BJ13: 0 | BK13: 0 | BL13: 0 | BM13: 0 | BN13: 0 | BO13: 0 | BP13: 0 | BQ13: 0 | BR13: 0 | BS13: 0 | BT13: 0 | BU13: 0 | BV13: 0 | BW13: 0 | BX13: 0 | BY13: 0 | BZ13: 0 | CA13: 0 | CB13: 0 | CC13: - | CD13: - | CE13: 5 | CF13: 0
A14: 2022-12-30 | B14: Liverpool | C14: 2 | D14: 1 | E14: Leicester | F14: 20:00:00 | H14: 10 | I14: 5 | J14: 5 | K14: - | L14: 5 | M14: 10 | N14: 5 | O14: 5 | P14: 5 | Q14: 10 | R14: 5 | S14: 10 | T14: 5 | U14: 5 | V14: 5 | W14: - | X14: 10 | Y14: 5 | Z14: 5 | AA14: 5 | AB14: 10 | AC14: 5 | AD14: 5 | AE14: 5 | AF14: 5 | AG14: 5 | AH14: 5 | AI14: 10 | AJ14: 5 | AK14: 5 | AL14: 5 | AM14: 5 | AN14: 5 | AO14: 10 | AP14: 10 | AQ14: 5 | AR14: 5 | AS14: 10 | AT14: 5 | AU14: 5 | AV14: 5 | AW14: 10 | AX14: 5 | AY14: 5 | AZ14: - | BA14: 5 | BB14: 5 | BC14: 5 | BD14: - | BE14: - | BF14: 10 | BG14: 5 | BH14: 5 | BI14: 5 | BJ14: 5 | BK14: 5 | BL14: 5 | BM14: 5 | BN14: 0 | BO14: 5 | BP14: 10 | BQ14: 5 | BR14: 5 | BS14: 5 | BT14: 5 | BU14: 5 | BV14: 10 | BW14: 5 | BX14: 5 | BY14: 5 | BZ14: 10 | CA14: 5 | CB14: 5 | CC14: - | CD14: - | CE14: 5 | CF14: 5
A15: 2022-12-31 | B15: Wolves | C15: 0 | D15: 1 | E15: Man Utd | F15: 12:30:00 | H15: 5 | I15: 5 | J15: 5 | K15: - | L15: 5 | M15: 10 | N15: 5 | O15: 5 | P15: 5 | Q15: 0 | R15: 5 | S15: 0 | T15: 5 | U15: 5 | V15: 5 | W15: - | X15: 5 | Y15: 5 | Z15: 5 | AA15: 5 | AB15: 0 | AC15: 10 | AD15: 5 | AE15: 5 | AF15: 10 | AG15: 5 | AH15: 10 | AI15: 5 | AJ15: 5 | AK15: 5 | AL15: 5 | AM15: 5 | AN15: 5 | AO15: 0 | AP15: 0 | AQ15: 0 | AR15: 10 | AS15: 0 | AT15: 5 | AU15: 5 | AV15: 0 | AW15: 5 | AX15: 5 | AY15: 5 | AZ15: 5 | BA15: 10 | BB15: 0 | BC15: 0 | BD15: - | BE15: - | BF15: 10 | BG15: 10 | BH15: 5 | BI15: 5 | BJ15: 5 | BK15: 5 | BL15: 5 | BM15: 5 | BN15: 5 | BO15: 0 | BP15: 0 | BQ15: 0 | BR15: 0 | BS15: 5 | BT15: 5 | BU15: 5 | BV15: 5 | BW15: 0 | BX15: 5 | BY15: 10 | BZ15: 10 | CA15: 5 | CB15: 0 | CC15: - | CD15: - | CE15: 5 | CF15: 10
A16: 2022-12-31 | B16: Bournemouth | C16: 0 | D16: 2 | E16: Crystal Palace | F16: 15:00:00 | H16: 0 | I16: 5 | J16: 0 | K16: - | L16: 5 | M16: 0 | N16: 0 | O16: 0 | P16: 0 | Q16: 0 | R16: 0 | S16: 0 | T16: 0 | U16: 0 | V16: 5 | W16: - | X16: 0 | Y16: 5 | Z16: 5 | AA16: 0 | AB16: 0 | AC16: 0 | AD16: 0 | AE16: 0 | AF16: 0 | AG16: 5 | AH16: 0 | AI16: 0 | AJ16: 5 | AK16: 5 | AL16: 0 | AM16: 0 | AN16: 0 | AO16: 0 | AP16: 0 | AQ16: 0 | AR16: 0 | AS16: 0 | AT16: 0 | AU16: 0 | AV16: 0 | AW16: 5 | AX16: 0 | AY16: 0 | AZ16: 0 | BA16: 0 | BB16: 0 | BC16: 0 | BD16: - | BE16: - | BF16: 0 | BG16: 5 | BH16: 0 | BI16: 0 | BJ16: 0 | BK16: 0 | BL16: 0 | BM16: 0 | BN16: 0 | BO16: 0 | BP16: 0 | BQ16: 0 | BR16: 0 | BS16: 0 | BT16: 0 | BU16: 0 | BV16: 0 | BW16: 0 | BX16: 0 | BY16: 5 | BZ16: 0 | CA16: 0 | CB16: 0 | CC16: - | CD16: - | CE16: 0 | CF16: 0
A17: 2022-12-31 | B17: Fulham | C17: 2 | D17: 1 | E17: Southampton | F17: 15:00:00 | H17: 0 | I17: 5 | J17: 5 | K17: - | L17: 0 | M17: 10 | N17: 0 | O17: 0 | P17: 5 | Q17: 10 | R17: 5 | S17: 10 | T17: 5 | U17: 5 | V17: 0 | W17: - | X17: 5 | Y17: 10 | Z17: 0 | AA17: 10 | AB17: 10 | AC17: 5 | AD17: 10 | AE17: 10 | AF17: 5 | AG17: 10 | AH17: 10 | AI17: 0 | AJ17: 10 | AK17: 0 | AL17: 0 | AM17: 5 | AN17: 5 | AO17: 10 | AP17: 5 | AQ17: 5 | AR17: 5 | AS17: 10 | AT17: 5 | AU17: 5 | AV17: 5 | AW17: 0 | AX17: 10 | AY17: 5 | AZ17: 0 | BA17: 10 | BB17: 5 | BC17: 0 | BD17: - | BE17: - | BF17: 10 | BG17: 5 | BH17: 0 | BI17: 5 | BJ17: 0 | BK17: 10 | BL17: 5 | BM17: 0 | BN17: 0 | BO17: 5 | BP17: 10 | BQ17: 5 | BR17: 0 | BS17: 10 | BT17: 10 | BU17: 0 | BV17: 10 | BW17: 10 | BX17: 5 | BY17: 10 | BZ17: 5 | CA17: 0 | CB17: 5 | CC17: - | CD17: - | CE17: 5 | CF17: 10
A18: 2022-12-31 | B18: Man City | C18: 1 | D18: 1 | E18: Everton | F18: 15:00:00 | H18: 0 | I18: 0 | J18: 0 | K18: - | L18: 0 | M18: 0 | N18: 0 | O18: 0 | P18: 0 | Q18: 0 | R18: 0 | S18: 0 | T18: 0 | U18: 0 | V18: 0 | W18: - | X18: 0 | Y18: 0 | Z18: 0 | AA18: 0 | AB18: 0 | AC18: 0 | AD18: 0 | AE18: 0 | AF18: 0 | AG18: 0 | AH18: 0 | AI18: 0 | AJ18: 0 | AK18: 0 | AL18: 0 | AM18: 0 | AN18: 0 | AO18: 0 | AP18: 0 | AQ18: 0 | AR18: 0 | AS18: - | AT18: 0 | AU18: 0 | AV18: 0 | AW18: 0 | AX18: 0 | AY18: 0 | AZ18: 0 | BA18: 0 | BB18: 0 | BC18: 0 | BD18: - | BE18: - | BF18: 0 | BG18: 0 | BH18: 0 | BI18: 0 | BJ18: 0 | BK18: 0 | BL18: 0 | BM18: 0 | BN18: 0 | BO18: 0 | BP18: 0 | BQ18: 0 | BR18: 0 | BS18: 0 | BT18: 0 | BU18: 0 | BV18: 0 | BW18: 0 | BX18: 0 | BY18: 0 | BZ18: 0 | CA18: 0 | CB18: 0 | CC18: - | CD18: - | CE18: 0 | CF18: 0
A19: 2022-12-31 | B19: Newcastle | C19: 0 | D19: 0 | E19: Leeds Utd | F19: 15:00:00 | H19: 0 | I19: 0 | J19: 0 | K19: - | L19: 0 | M19: 0 | N19: 0 | O19: 0 | P19: 0 | Q19: 0 | R19: 0 | S19: 0 | T19: 0 | U19: 0 | V19: 10 | W19: - | X19: 0 | Y19: 0 | Z19: 0 | AA19: 0 | AB19: 0 | AC19: 0 | AD19: 0 | AE19: 0 | AF19: 0 | AG19: 0 | AH19: 0 | AI19: 0 | AJ19: 0 | AK19: 0 | AL19: 0 | AM19: 0 | AN19: 0 | AO19: 0 | AP19: 0 | AQ19: 0 | AR19: 0 | AS19: - | AT19: 0 | AU19: 0 | AV19: 0 | AW19: 0 | AX19: 0 | AY19: 0 | AZ19: 5 | BA19: 0 | BB19: 0 | BC19: 0 | BD19: - | BE19: - | BF19: 0 | BG19: 0 | BH19: 0 | BI19: 0 | BJ19: 5 | BK19: 0 | BL19: 0 | BM19: 5 | BN19: 0 | BO19: 0 | BP19: 0 | BQ19: 0 | BR19: 0 | BS19: 0 | BT19: 0 | BU19: 5 | BV19: 0 | BW19: 0 | BX19: 0 | BY19: 0 | BZ19: 5 | CA19: 0 | CB19: 0 | CC19: - | CD19: - | CE19: 0 | CF19: 0
A20: 2022-12-31 | B20: Brighton | C20: 2 | D20: 4 | E20: Arsenal | F20: 17:30:00 | H20: 5 | I20: 5 | J20: 5 | K20: - | L20: 5 | M20: 0 | N20: 5 | O20: 5 | P20: 5 | Q20: 0 | R20: 5 | S20: 0 | T20: 0 | U20: 5 | V20: 10 | W20: - | X20: 5 | Y20: 5 | Z20: 0 | AA20: 5 | AB20: 0 | AC20: 5 | AD20: 5 | AE20: 0 | AF20: 0 | AG20: 5 | AH20: 5 | AI20: 0 | AJ20: 5 | AK20: 5 | AL20: 5 | AM20: 5 | AN20: 5 | AO20: 0 | AP20: 0 | AQ20: 5 | AR20: 5 | AS20: - | AT20: 0 | AU20: 5 | AV20: 0 | AW20: 0 | AX20: 0 | AY20: 0 | AZ20: 5 | BA20: 5 | BB20: 5 | BC20: 5 | BD20: - | BE20: - | BF20: 0 | BG20: 5 | BH20: 0 | BI20: 5 | BJ20: 5 | BK20: 5 | BL20: 0 | BM20: 5 | BN20: 0 | BO20: 5 | BP20: 5 | BQ20: 5 | BR20: 5 | BS20: 0 | BT20: 5 | BU20: 5 | BV20: 5 | BW20: 5 | BX20: 0 | BY20: 5 | BZ20: 5 | CA20: 5 | CB20: 0 | CC20: - | CD20: - | CE20: 5 | CF20: 0
A22: Golden Boots
A23: Bruno Fernandes - Man United | D23: =COUNT(G23:GV23) -> 3 | E23: =0+0 -> 0 | X23: =2*$E23 -> 0 | AI23: =2*$E23 -> 0 | AW23: =2*$E23 -> 0
A24: Diogo Jota - Liverpool | D24: 1 | E24: =0+0 -> 0 | BW24: =2*$E24 -> 0
A25: Harry Kane - Tottenham | D25: 52 | E25: =1 -> 1 | H25: =2*$E25 -> 2 | I25: 2 | J25: 2 | K25: 2 | L25: 2 | M25: 2 | N25: 2 | O25: 2 | Q25: 2 | S25: =2*$E25 -> 2 | U25: =2*$E25 -> 2 | V25: =2*$E25 -> 2 | W25: =2*$E25 -> 2 | X25: =2*$E25 -> 2 | Y25: =2*$E25 -> 2 | Z25: =2*$E25 -> 2 | AA25: 2 | AB25: 2 | AC25: 2 | AD25: 2 | AE25: 2 | AF25: 2 | AH25: =2*$E25 -> 2 | AJ25: =2*$E25 -> 2 | AL25: =2*$E25 -> 2 | AM25: 2 | AN25: 2 | AO25: 2 | AP25: 2 | AQ25: =2*$E25 -> 2 | AR25: 2 | AT25: 2 | AV25: =2*$E25 -> 2 | AW25: 2 | AX25: =2*$E25 -> 2 | BC25: =2*$E25 -> 2 | BD25: =2*$E25 -> 2 | BG25: =2*$E25 -> 2 | BH25: =2*$E25 -> 2 | BI25: =2*$E25 -> 2 | BM25: =2*$E25 -> 2 | BO25: =2*$E25 -> 2 | BP25: =2*$E25 -> 2 | BQ25: =2*$E25 -> 2 | BS25: =2*$E25 -> 2 | BU25: =2*$E25 -> 2 | BV25: =2*$E25 -> 2 | BY25: =2*$E25 -> 2 | CA25: =2*$E25 -> 2 | CB25: =2*$E25 -> 2 | CE25: =2*$E25 -> 2 | CF25: =2*$E25 -> 2
A26: Kevin de Bruyne - Man City | D26: 4 | E26: =0+0 -> 0 | K26: =2*$E26 -> 0 | BA26: =2*$E26 -> 0 | BL26: =2*$E26 -> 0 | BZ26: =2*$E26 -> 0
A27: Mohamed Salah - Liverpool | D27: 69 | E27: =1+0 -> 1 | H27: =2*$E27 -> 2 | I27: =2*$E27 -> 2 | J27: =2*$E27 -> 2 | L27: =2*$E27 -> 2 | M27: 2 | N27: 2 | O27: 2 | P27: 2 | Q27: 2 | R27: 2 | S27: 2 | T27: 2 | U27: 2 | V27: 2 | W27: 2 | Y27: =2*$E27 -> 2 | AA27: =2*$E27 -> 2 | AB27: =2*$E27 -> 2 | AC27: =2*$E27 -> 2 | AD27: =2*$E27 -> 2 | AE27: =2*$E27 -> 2 | AF27: =2*$E27 -> 2 | AG27: 2 | AH27: =2*$E27 -> 2 | AJ27: 2 | AK27: 2 | AL27: 2 | AM27: 2 | AN27: 2 | AO27: 2 | AP27: 2 | AQ27: =2*$E27 -> 2 | AR27: =2*$E27 -> 2 | AS27: =2*$E27 -> 2 | AT27: 2 | AU27: =2*$E27 -> 2 | AV27: =2*$E27 -> 2 | AX27: =2*$E27 -> 2 | AY27: =2*$E27 -> 2 | AZ27: =2*$E27 -> 2 | BA27: =2*$E27 -> 2 | BB27: =2*$E27 -> 2 | BC27: =2*$E27 -> 2 | BE27: =2*$E27 -> 2 | BF27: =2*$E27 -> 2 | BG27: =2*$E27 -> 2 | BH27: =2*$E27 -> 2 | BI27: 2 | BJ27: =2*$E27 -> 2 | BK27: 2 | BL27: =2*$E27 -> 2 | BM27: =2*$E27 -> 2 | BN27: 2 | BO27: 2 | BQ27: =2*$E27 -> 2 | BR27: 2 | BT27: =2*$E27 -> 2 | BU27: 2 | BV27: 2 | BW27: 2 | BX27: 2 | BY27: 2 | BZ27: =2*$E27 -> 2 | CA27: =2*$E27 -> 2 | CB27: 2 | CC27: 2 | CD27: 2 | CE27: 2 | CF27: 2
A28: Son Heung-min - Tottenham | D28: 23 | E28: =0 -> 0 | P28: =2*$E28 -> 0 | R28: =2*$E28 -> 0 | T28: =2*$E28 -> 0 | Z28: =2*$E28 -> 0 | AG28: =2*$E28 -> 0 | AI28: =2*$E28 -> 0 | AK28: =2*$E28 -> 0 | AS28: =2*$E28 -> 0 | AY28: =2*$E28 -> 0 | AZ28: =2*$E28 -> 0 | BB28: =2*$E28 -> 0 | BD28: =2*$E28 -> 0 | BE28: =2*$E28 -> 0 | BF28: =2*$E28 -> 0 | BJ28: =2*$E28 -> 0 | BK28: =2*$E28 -> 0 | BP28: =2*$E28 -> 0 | BR28: =2*$E28 -> 0 | BS28: =2*$E28 -> 0 | BT28: =2*$E28 -> 0 | BX28: =2*$E28 -> 0 | CC28: =2*$E28 -> 0 | CD28: =2*$E28 -> 0
A29: Wilfried Zaha - Crystal Palace | D29: 2 | E29: =0+0 -> 0 | AU29: =2*$E29 -> 0 | BN29: =2*$E29 -> 0
A31: New Kids On The Block 102
A32: Darwin Nunez - Liverpool | D32: =COUNT(G32:GV32) -> 9 | E32: =0+0 -> 0 | J32: =2*$E32 -> 0 | O32: =2*$E32 -> 0 | R32: =2*$E32 -> 0 | U32: =2*$E32 -> 0 | AZ32: =2*$E32 -> 0 | BB32: =2*$E32 -> 0 | BL32: =2*$E32 -> 0 | BZ32: =2*$E32 -> 0 | CC32: =2*$E32 -> 0
A33: Erling Haaland - Man City | D33: =COUNT(G33:GV33) -> 52 | E33: =2+1 -> 3 | H33: =2*$E33 -> 6 | I33: =2*$E33 -> 6 | K33: =2*$E33 -> 6 | L33: =2*$E33 -> 6 | M33: =2*$E33 -> 6 | S33: =2*$E33 -> 6 | T33: =2*$E33 -> 6 | W33: =2*$E33 -> 6 | X33: =2*$E33 -> 6 | Y33: =2*$E33 -> 6 | AA33: =2*$E33 -> 6 | AC33: =2*$E33 -> 6 | AD33: =2*$E33 -> 6 | AE33: =2*$E33 -> 6 | AF33: =2*$E33 -> 6 | AG33: 6 | AH33: =2*$E33 -> 6 | AJ33: 6 | AK33: 6 | AL33: 6 | AM33: 6 | AN33: 6 | AP33: 6 | AQ33: =2*$E33 -> 6 | AR33: =2*$E33 -> 6 | AT33: 6 | AV33: =2*$E33 -> 6 | AW33: 6 | AX33: =2*$E33 -> 6 | AY33: 6 | BC33: =2*$E33 -> 6 | BD33: 6 | BE33: 6 | BF33: 6 | BG33: 6 | BH33: 6 | BI33: 6 | BM33: =2*$E33 -> 6 | BO33: =2*$E33 -> 6 | BP33: 6 | BQ33: 6 | BR33: 6 | BS33: 6 | BT33: 6 | BU33: 6 | BW33: =2*$E33 -> 6 | BX33: =2*$E33 -> 6 | BY33: =2*$E33 -> 6 | CA33: =2*$E33 -> 6 | CB33: =2*$E33 -> 6 | CE33: =2*$E33 -> 6 | CF33: =2*$E33 -> 6
A34: Gabriel Jesus - Arsenal | D34: =COUNT(G34:GV34) -> 13 | E34: =0+0 -> 0 | N34: =2*$E34 -> 0 | P34: =2*$E34 -> 0 | Q34: =2*$E34 -> 0 | Z34: =2*$E34 -> 0 | AB34: =2*$E34 -> 0 | AI34: =2*$E34 -> 0 | AO34: =2*$E34 -> 0 | AU34: =2*$E34 -> 0 | BA34: =2*$E34 -> 0 | BJ34: =2*$E34 -> 0 | BK34: =2*$E34 -> 0 | BV34: =2*$E34 -> 0 | CD34: =2*$E34 -> 0
A35: Raheem Sterling - Chelsea | D35: =COUNT(G35:GV35) -> 3 | E35: =0 -> 0 | V35: =2*$E35 -> 0 | AS35: =2*$E35 -> 0 | BN35: =2*$E35 -> 0
A37: Total Points - December | H37: =SUM(H$3:H36) -> 75 | I37: =SUM(I$3:I36) -> 80 | J37: =SUM(J$3:J36) -> 69 | K37: =SUM(K$3:K36) -> 8 | L37: =SUM(L$3:L36) -> 50 | M37: =SUM(M$3:M36) -> 90 | N37: =SUM(N$3:N36) -> 59 | O37: =SUM(O$3:O36) -> 44 | P37: =SUM(P$3:P36) -> 67 | Q37: =SUM(Q$3:Q36) -> 39 | R37: =SUM(R$3:R36) -> 62 | S37: =SUM(S$3:S36) -> 45 | T37: =SUM(T$3:T36) -> 58 | U37: =SUM(U$3:U36) -> 69 | V37: =SUM(V$3:V36) -> 79 | W37: =SUM(W$3:W36) -> 10 | X37: =SUM(X$3:X36) -> 73 | Y37: =SUM(Y$3:Y36) -> 80 | Z37: =SUM(Z$3:Z36) -> 37 | AA37: =SUM(AA$3:AA36) -> 65 | AB37: =SUM(AB$3:AB36) -> 39 | AC37: =SUM(AC$3:AC36) -> 75 | AD37: =SUM(AD$3:AD36) -> 60 | AE37: =SUM(AE$3:AE36) -> 70 | AF37: =SUM(AF$3:AF36) -> 75 | AG37: =SUM(AG$3:AG36) -> 53 | AH37: =SUM(AH$3:AH36) -> 75 | AI37: =SUM(AI$3:AI36) -> 15 | AJ37: =SUM(AJ$3:AJ36) -> 65 | AK37: =SUM(AK$3:AK36) -> 78 | AL37: =SUM(AL$3:AL36) -> 60 | AM37: =SUM(AM$3:AM36) -> 70 | AN37: =SUM(AN$3:AN36) -> 65 | AO37: =SUM(AO$3:AO36) -> 39 | AP37: =SUM(AP$3:AP36) -> 65 | AQ37: =SUM(AQ$3:AQ36) -> 60 | AR37: =SUM(AR$3:AR36) -> 75 | AS37: =SUM(AS$3:AS36) -> 37 | AT37: =SUM(AT$3:AT36) -> 70 | AU37: =SUM(AU$3:AU36) -> 62 | AV37: =SUM(AV$3:AV36) -> 70 | AW37: =SUM(AW$3:AW36) -> 58 | AX37: =SUM(AX$3:AX36) -> 70 | AY37: =SUM(AY$3:AY36) -> 63 | AZ37: =SUM(AZ$3:AZ36) -> 47 | BA37: =SUM(BA$3:BA36) -> 77 | BB37: =SUM(BB$3:BB36) -> 62 | BC37: =SUM(BC$3:BC36) -> 65 | BD37: =SUM(BD$3:BD36) -> 23 | BE37: =SUM(BE$3:BE36) -> 13 | BF37: =SUM(BF$3:BF36) -> 78 | BG37: =SUM(BG$3:BG36) -> 75 | BH37: =SUM(BH$3:BH36) -> 45 | BI37: =SUM(BI$3:BI36) -> 80 | BJ37: =SUM(BJ$3:BJ36) -> 52 | BK37: =SUM(BK$3:BK36) -> 67 | BL37: =SUM(BL$3:BL36) -> 57 | BM37: =SUM(BM$3:BM36) -> 75 | BN37: =SUM(BN$3:BN36) -> 42 | BO37: =SUM(BO$3:BO36) -> 65 | BP37: =SUM(BP$3:BP36) -> 63 | BQ37: =SUM(BQ$3:BQ36) -> 60 | BR37: =SUM(BR$3:BR36) -> 53 | BS37: =SUM(BS$3:BS36) -> 73 | BT37: =SUM(BT$3:BT36) -> 73 | BU37: =SUM(BU$3:BU36) -> 60 | BV37: =SUM(BV$3:BV36) -> 59 | BW37: =SUM(BW$3:BW36) -> 68 | BX37: =SUM(BX$3:BX36) -> 48 | BY37: =SUM(BY$3:BY36) -> 90 | BZ37: =SUM(BZ$3:BZ36) -> 62 | CA37: =SUM(CA$3:CA36) -> 65 | CB37: =SUM(CB$3:CB36) -> 75 | CC37: =SUM(CC$3:CC36) -> 2 | CD37: =SUM(CD$3:CD36) -> 2 | CE37: =SUM(CE$3:CE36) -> 75 | CF37: =SUM(CF$3:CF36) -> 70

Sheet January
H1: Aidan Scanlon | I1: Aidan White | J1: Anastas Popov | K1: Andrew Keohan | L1: Andy Dunne | M1: Bobby Hynes | N1: Brendan Maguire | O1: Brian Haughton | P1: Brian Mullen | Q1: Brian Prendergast | R1: Caroline Carroll | S1: Cathal Thornton | T1: Chris Keohan | U1: Christina Morgan | V1: Ciara Walsh | W1: Ciaran Healy | X1: Ciaran O'Hart | Y1: Ciaran Rooney | Z1: Colm Cahill | AA1: Con McSweeney | AB1: Conor MacMahon | AC1: Craig Calvert | AD1: Darragh Kenny | AE1: Dave McGinley | AF1: David Cooney | AG1: David Lavelle | AH1: Dean Kelly | AI1: Derek McDonald | AJ1: Dylan Delaney | AK1: Dylan O'Riordan | AL1: Eoghan Farrelly | AM1: Frank McSweeney | AN1: Gareth Pierpoint | AO1: Gary Donnelly | AP1: Gary Fitzpatrick | AQ1: Gary McGurk | AR1: Gavin Morgan | AS1: Gerard McCluskey | AT1: Gerry Draper | AU1: Gerry Moore | AV1: Graham Pierpoint | AW1: Ian McSweeney | AX1: James Keville | AY1: Javier Suarez | AZ1: Jenny Behan | BA1: Joe Behan | BB1: Joe Turner | BC1: John Brophy | BD1: John Hempenstall | BE1: John Massey | BF1: Johno Percy | BG1: Jonathan Fox | BH1: Joseph Kavanagh | BI1: Keith Ryan | BJ1: Kieran Killeen | BK1: Liam Keohan | BL1: Lionel Knott | BM1: Micheal Joyce | BN1: Monica Collins | BO1: Niall Carroll | BP1: Niall Gregory | BQ1: Paul Moore | BR1: Paul Prendergast | BS1: Phil Doyle | BT1: Philip Jordan | BU1: Richard Johnston | BV1: Robert Hynes | BW1: Roisin Joyce | BX1: Ronan Rafferty | BY1: Rory Ellard | BZ1: Sarah Coward | CA1: Sean Cleary | CB1: Sean O'Mairtin | CC1: Shane Finnan | CD1: Shane Hempenstall | CE1: Simon Scanlon | CF1: Tommy Hamill
A2: Date | B2: Teams | F2: Time
A3: 2023-01-01 | B3: Spurs | C3: 0 | D3: 2 | E3: Aston Villa | F3: 14:00:00 | H3: 0 | I3: 0 | J3: 0 | K3: - | L3: 0 | M3: 0 | N3: 0 | O3: 0 | P3: 0 | Q3: 0 | R3: 0 | S3: 0 | T3: 0 | U3: 0 | V3: 0 | W3: - | X3: 0 | Y3: 0 | Z3: 0 | AA3: 0 | AB3: 0 | AC3: 0 | AD3: 0 | AE3: 0 | AF3: 0 | AG3: 0 | AH3: 0 | AI3: 0 | AJ3: 0 | AK3: 0 | AL3: 0 | AM3: 0 | AN3: 0 | AO3: 0 | AP3: 0 | AQ3: 0 | AR3: 0 | AS3: - | AT3: 0 | AU3: 0 | AV3: 0 | AW3: 0 | AX3: 0 | AY3: 0 | AZ3: 0 | BA3: 0 | BB3: 0 | BC3: 0 | BD3: - | BE3: - | BF3: 0 | BG3: 0 | BH3: 0 | BI3: 0 | BJ3: 0 | BK3: 0 | BL3: 0 | BM3: 0 | BN3: 0 | BO3: 0 | BP3: 0 | BQ3: 0 | BR3: 0 | BS3: 0 | BT3: 0 | BU3: 0 | BV3: 0 | BW3: 0 | BX3: 0 | BY3: 0 | BZ3: 5 | CA3: 0 | CB3: 0 | CC3: - | CD3: - | CE3: 0 | CF3: 0
A4: 2023-01-01 | B4: Nottingham Forest | C4: 1 | D4: 1 | E4: Chelsea | F4: 16:30:00 | H4: 0 | I4: 0 | J4: 0 | K4: - | L4: 0 | M4: 0 | N4: 0 | O4: 0 | P4: 0 | Q4: 0 | R4: 0 | S4: 0 | T4: 0 | U4: 0 | V4: 0 | W4: - | X4: 0 | Y4: 0 | Z4: 0 | AA4: 0 | AB4: 0 | AC4: 0 | AD4: 0 | AE4: 0 | AF4: 0 | AG4: 0 | AH4: 0 | AI4: 0 | AJ4: 0 | AK4: 0 | AL4: 0 | AM4: 0 | AN4: 0 | AO4: 0 | AP4: 10 | AQ4: 0 | AR4: 0 | AS4: - | AT4: 0 | AU4: 10 | AV4: 0 | AW4: 0 | AX4: 0 | AY4: 0 | AZ4: 0 | BA4: 0 | BB4: 0 | BC4: 0 | BD4: - | BE4: - | BF4: 0 | BG4: 0 | BH4: 0 | BI4: 0 | BJ4: 0 | BK4: 0 | BL4: 0 | BM4: 0 | BN4: 0 | BO4: 0 | BP4: 0 | BQ4: 0 | BR4: 0 | BS4: 0 | BT4: 0 | BU4: 0 | BV4: 10 | BW4: 0 | BX4: 10 | BY4: 0 | BZ4: 0 | CA4: 0 | CB4: 0 | CC4: - | CD4: - | CE4: 0 | CF4: 0
A5: 2023-01-02 | B5: Brentford | C5: 3 | D5: 1 | E5: Liverpool | F5: 17:30:00 | H5: 0 | I5: 0 | J5: 0 | K5: - | L5: 0 | M5: 0 | N5: 0 | O5: 0 | P5: 0 | Q5: 0 | R5: 0 | S5: - | T5: 0 | U5: 0 | V5: 5 | W5: - | X5: 0 | Y5: 0 | Z5: 5 | AA5: 0 | AB5: 5 | AC5: 0 | AD5: 0 | AE5: 0 | AF5: 0 | AG5: 0 | AH5: 0 | AI5: 5 | AJ5: 0 | AK5: 0 | AL5: 0 | AM5: 0 | AN5: 0 | AO5: - | AP5: 0 | AQ5: 0 | AR5: 0 | AS5: - | AT5: 0 | AU5: 0 | AV5: 0 | AW5: 0 | AX5: 0 | AY5: 0 | AZ5: 0 | BA5: 0 | BB5: 0 | BC5: 0 | BD5: - | BE5: - | BF5: 0 | BG5: 0 | BH5: 0 | BI5: 0 | BJ5: 0 | BK5: 0 | BL5: 0 | BM5: 0 | BN5: 0 | BO5: 0 | BP5: 0 | BQ5: 0 | BR5: 0 | BS5: 0 | BT5: 0 | BU5: 0 | BV5: 0 | BW5: 0 | BX5: 0 | BY5: 0 | BZ5: 0 | CA5: 0 | CB5: 0 | CC5: - | CD5: - | CE5: 0 | CF5: 0
A6: 2023-01-03 | B6: Arsenal | C6: 0 | D6: 0 | E6: Newcastle | F6: 19:45:00 | H6: 0 | I6: 5 | J6: 0 | K6: - | L6: 5 | M6: 0 | N6: 0 | O6: 0 | P6: 0 | Q6: 0 | R6: 0 | S6: - | T6: 5 | U6: 0 | V6: 0 | W6: - | X6: 0 | Y6: 0 | Z6: 0 | AA6: 0 | AB6: 0 | AC6: 0 | AD6: 5 | AE6: 0 | AF6: 5 | AG6: 5 | AH6: 0 | AI6: 0 | AJ6: 5 | AK6: 0 | AL6: 5 | AM6: 5 | AN6: 0 | AO6: - | AP6: 0 | AQ6: 0 | AR6: 0 | AS6: - | AT6: 0 | AU6: 0 | AV6: 5 | AW6: 0 | AX6: 5 | AY6: 0 | AZ6: 0 | BA6: 0 | BB6: 5 | BC6: 0 | BD6: - | BE6: - | BF6: 5 | BG6: 0 | BH6: 5 | BI6: 5 | BJ6: 5 | BK6: 0 | BL6: 5 | BM6: 0 | BN6: 0 | BO6: 0 | BP6: 5 | BQ6: 0 | BR6: 0 | BS6: 0 | BT6: 5 | BU6: 0 | BV6: 5 | BW6: 0 | BX6: 0 | BY6: 0 | BZ6: 0 | CA6: 0 | CB6: 0 | CC6: - | CD6: - | CE6: 5 | CF6: 0
A7: 2023-01-03 | B7: Everton | C7: 1 | D7: 4 | E7: Brighton | F7: 19:45:00 | H7: 0 | I7: 0 | J7: 5 | K7: - | L7: 0 | M7: 0 | N7: 0 | O7: 0 | P7: 0 | Q7: 0 | R7: 0 | S7: - | T7: 0 | U7: 0 | V7: 0 | W7: - | X7: 0 | Y7: 5 | Z7: 0 | AA7: 0 | AB7: 0 | AC7: 0 | AD7: 5 | AE7: 0 | AF7: 0 | AG7: 5 | AH7: 0 | AI7: 0 | AJ7: 5 | AK7: 5 | AL7: 0 | AM7: 0 | AN7: 0 | AO7: - | AP7: 0 | AQ7: 0 | AR7: 0 | AS7: - | AT7: 5 | AU7: 0 | AV7: 5 | AW7: 0 | AX7: 5 | AY7: 0 | AZ7: 5 | BA7: 0 | BB7: 0 | BC7: 0 | BD7: - | BE7: - | BF7: 0 | BG7: 5 | BH7: 0 | BI7: 0 | BJ7: 0 | BK7: 5 | BL7: 5 | BM7: 0 | BN7: 0 | BO7: 0 | BP7: 0 | BQ7: 5 | BR7: 0 | BS7: 5 | BT7: 0 | BU7: 0 | BV7: 0 | BW7: 5 | BX7: 0 | BY7: 5 | BZ7: 0 | CA7: 0 | CB7: 0 | CC7: - | CD7: - | CE7: 0 | CF7: 0
A8: 2023-01-03 | B8: Leicester | C8: 0 | D8: 1 | E8: Fulham | F8: 19:45:00 | H8: 0 | I8: 0 | J8: 0 | K8: - | L8: 0 | M8: 0 | N8: 0 | O8: 0 | P8: 0 | Q8: 0 | R8: 0 | S8: - | T8: 0 | U8: 5 | V8: 0 | W8: - | X8: 0 | Y8: 0 | Z8: 0 | AA8: 0 | AB8: 0 | AC8: 0 | AD8: 5 | AE8: 0 | AF8: 0 | AG8: 0 | AH8: 0 | AI8: 0 | AJ8: 0 | AK8: 10 | AL8: 0 | AM8: 0 | AN8: 0 | AO8: - | AP8: 0 | AQ8: 0 | AR8: 0 | AS8: - | AT8: 0 | AU8: 0 | AV8: 0 | AW8: 0 | AX8: 0 | AY8: 0 | AZ8: 0 | BA8: 0 | BB8: 0 | BC8: 0 | BD8: - | BE8: - | BF8: 0 | BG8: 0 | BH8: 0 | BI8: 5 | BJ8: 0 | BK8: 0 | BL8: 0 | BM8: 0 | BN8: 0 | BO8: 0 | BP8: 0 | BQ8: 0 | BR8: 0 | BS8: 0 | BT8: 0 | BU8: 0 | BV8: 0 | BW8: 0 | BX8: 0 | BY8: 0 | BZ8: 0 | CA8: 0 | CB8: 0 | CC8: - | CD8: - | CE8: 5 | CF8: 5
A9: 2023-01-03 | B9: Man Utd | C9: 3 | D9: 0 | E9: Bournemouth | F9: 20:00:00 | H9: 10 | I9: 5 | J9: 10 | K9: - | L9: 5 | M9: 10 | N9: 10 | O9: 10 | P9: 5 | Q9: 5 | R9: 10 | S9: - | T9: 10 | U9: 5 | V9: 5 | W9: - | X9: 5 | Y9: 10 | Z9: 5 | AA9: 10 | AB9: 5 | AC9: 10 | AD9: 5 | AE9: 5 | AF9: 5 | AG9: 5 | AH9: 10 | AI9: 5 | AJ9: 5 | AK9: 5 | AL9: 5 | AM9: 5 | AN9: 5 | AO9: - | AP9: 10 | AQ9: 5 | AR9: 5 | AS9: - | AT9: 10 | AU9: 5 | AV9: 5 | AW9: 5 | AX9: 10 | AY9: 5 | AZ9: 5 | BA9: 5 | BB9: 5 | BC9: 0 | BD9: - | BE9: - | BF9: 10 | BG9: 5 | BH9: 10 | BI9: 5 | BJ9: 5 | BK9: 10 | BL9: 5 | BM9: 5 | BN9: 5 | BO9: 10 | BP9: 5 | BQ9: 10 | BR9: 5 | BS9: 10 | BT9: 10 | BU9: 0 | BV9: 5 | BW9: 5 | BX9: 10 | BY9: 5 | BZ9: 5 | CA9: 5 | CB9: 5 | CC9: - | CD9: - | CE9: 10 | CF9: 5
A10: 2023-01-04 | B10: Southampton | C10: 0 | D10: 1 | E10: Nottingham Forest | F10: 19:30:00 | H10: 0 | I10: 0 | J10: 0 | K10: - | L10: 0 | M10: 0 | N10: 0 | O10: 0 | P10: 5 | Q10: 0 | R10: 5 | S10: - | T10: 0 | U10: 0 | V10: 0 | W10: - | X10: 0 | Y10: 0 | Z10: 0 | AA10: 0 | AB10: 0 | AC10: 0 | AD10: 0 | AE10: 0 | AF10: 0 | AG10: 0 | AH10: 0 | AI10: 0 | AJ10: 5 | AK10: 0 | AL10: 0 | AM10: 0 | AN10: 0 | AO10: - | AP10: 0 | AQ10: 0 | AR10: 0 | AS10: - | AT10: 5 | AU10: 0 | AV10: 0 | AW10: 0 | AX10: 0 | AY10: 0 | AZ10: 0 | BA10: 0 | BB10: 0 | BC10: 0 | BD10: - | BE10: - | BF10: 0 | BG10: 0 | BH10: 0 | BI10: 0 | BJ10: 0 | BK10: 0 | BL10: 0 | BM10: 0 | BN10: 0 | BO10: 5 | BP10: 0 | BQ10: 0 | BR10: 0 | BS10: 5 | BT10: 0 | BU10: 5 | BV10: 0 | BW10: 0 | BX10: 0 | BY10: 0 | BZ10: 0 | CA10: 10 | CB10: 0 | CC10: - | CD10: - | CE10: 0 | CF10: 0
A11: 2023-01-04 | B11: Leeds Utd | C11: 2 | D11: 2 | E11: West Ham | F11: 19:45:00 | H11: 0 | I11: 0 | J11: 0 | K11: - | L11: 0 | M11: 0 | N11: 0 | O11: 0 | P11: 10 | Q11: 0 | R11: 0 | S11: - | T11: 0 | U11: 0 | V11: 0 | W11: - | X11: 5 | Y11: 5 | Z11: 0 | AA11: 0 | AB11: 0 | AC11: 0 | AD11: 0 | AE11: 5 | AF11: 0 | AG11: 0 | AH11: 0 | AI11: 10 | AJ11: 0 | AK11: 5 | AL11: 0 | AM11: 10 | AN11: 5 | AO11: - | AP11: 0 | AQ11: 0 | AR11: 0 | AS11: - | AT11: 0 | AU11: 0 | AV11: 5 | AW11: 0 | AX11: 5 | AY11: 0 | AZ11: 0 | BA11: 0 | BB11: 5 | BC11: 0 | BD11: - | BE11: - | BF11: 0 | BG11: 0 | BH11: 0 | BI11: 5 | BJ11: 10 | BK11: 0 | BL11: 0 | BM11: 0 | BN11: 0 | BO11: 0 | BP11: 0 | BQ11: 10 | BR11: 0 | BS11: 10 | BT11: 0 | BU11: 10 | BV11: 5 | BW11: 0 | BX11: 0 | BY11: 5 | BZ11: 0 | CA11: 0 | CB11: 0 | CC11: - | CD11: - | CE11: 0 | CF11: 0
A12: 2023-01-04 | B12: Aston Villa | C12: 1 | D12: 1 | E12: Wolves | F12: 20:00:00 | H12: 0 | I12: 0 | J12: 0 | K12: - | L12: 0 | M12: 0 | N12: 0 | O12: 0 | P12: 0 | Q12: 0 | R12: 0 | S12: - | T12: 0 | U12: 0 | V12: 0 | W12: - | X12: 0 | Y12: 0 | Z12: 0 | AA12: 0 | AB12: 0 | AC12: 0 | AD12: 0 | AE12: 0 | AF12: 0 | AG12: 10 | AH12: 10 | AI12: 0 | AJ12: 0 | AK12: 0 | AL12: 0 | AM12: 0 | AN12: 0 | AO12: - | AP12: 0 | AQ12: 0 | AR12: 0 | AS12: - | AT12: 0 | AU12: 0 | AV12: 10 | AW12: 0 | AX12: 10 | AY12: 5 | AZ12: 0 | BA12: 0 | BB12: 5 | BC12: 10 | BD12: - | BE12: - | BF12: 0 | BG12: 0 | BH12: 0 | BI12: 0 | BJ12: 5 | BK12: 0 | BL12: 0 | BM12: 0 | BN12: 0 | BO12: 0 | BP12: 10 | BQ12: 10 | BR12: 0 | BS12: 0 | BT12: 0 | BU12: 5 | BV12: 0 | BW12: 0 | BX12: 0 | BY12: 10 | BZ12: 0 | CA12: 0 | CB12: 5 | CC12: - | CD12: - | CE12: 0 | CF12: 0
A13: 2023-01-04 | B13: Crystal Palace | C13: 0 | D13: 4 | E13: Spurs | F13: 20:00:00 | H13: 0 | I13: 0 | J13: 5 | K13: - | L13: 0 | M13: 0 | N13: 5 | O13: 0 | P13: 0 | Q13: 5 | R13: 0 | S13: - | T13: 5 | U13: 0 | V13: 5 | W13: - | X13: 5 | Y13: 0 | Z13: 5 | AA13: 5 | AB13: 0 | AC13: 5 | AD13: 0 | AE13: 0 | AF13: 5 | AG13: 5 | AH13: 5 | AI13: 5 | AJ13: 0 | AK13: 0 | AL13: 5 | AM13: 0 | AN13: 0 | AO13: - | AP13: 0 | AQ13: 5 | AR13: 0 | AS13: - | AT13: 0 | AU13: 0 | AV13: 5 | AW13: 5 | AX13: 5 | AY13: 5 | AZ13: 0 | BA13: 0 | BB13: 0 | BC13: 5 | BD13: - | BE13: - | BF13: 5 | BG13: 5 | BH13: 5 | BI13: 0 | BJ13: 5 | BK13: 0 | BL13: 0 | BM13: 0 | BN13: 0 | BO13: 0 | BP13: 5 | BQ13: 5 | BR13: 0 | BS13: 0 | BT13: 5 | BU13: 5 | BV13: 0 | BW13: 0 | BX13: 0 | BY13: 5 | BZ13: 5 | CA13: 5 | CB13: 0 | CC13: - | CD13: - | CE13: 5 | CF13: 0
A14: 2023-01-05 | B14: Chelsea | C14: 0 | D14: 1 | E14: Man City | F14: 20:00:00 | H14: 5 | I14: 5 | J14: 10 | K14: - | L14: 0 | M14: 5 | N14: 0 | O14: 5 | P14: 5 | Q14: 5 | R14: 5 | S14: - | T14: 5 | U14: 5 | V14: 5 | W14: - | X14: 0 | Y14: 5 | Z14: 0 | AA14: 5 | AB14: 0 | AC14: 5 | AD14: 5 | AE14: 5 | AF14: 0 | AG14: 5 | AH14: 5 | AI14: 0 | AJ14: 5 | AK14: 5 | AL14: 5 | AM14: 0 | AN14: 5 | AO14: - | AP14: 5 | AQ14: 0 | AR14: 0 | AS14: - | AT14: 10 | AU14: 0 | AV14: 5 | AW14: 5 | AX14: 5 | AY14: 0 | AZ14: 0 | BA14: 5 | BB14: 0 | BC14: 5 | BD14: - | BE14: - | BF14: 5 | BG14: 5 | BH14: 5 | BI14: 5 | BJ14: 0 | BK14: 5 | BL14: 0 | BM14: 5 | BN14: 5 | BO14: 0 | BP14: 5 | BQ14: 5 | BR14: 0 | BS14: 5 | BT14: 5 | BU14: 5 | BV14: 5 | BW14: 5 | BX14: 5 | BY14: 5 | BZ14: 0 | CA14: 5 | CB14: 0 | CC14: - | CD14: - | CE14: 5 | CF14: 0
A15: 2023-01-12 | B15: Fulham | E15: Chelsea | F15: 20:00:00
A16: 2023-01-13 | B16: Aston Villa | E16: Leeds Utd | F16: 20:00:00
A17: 2023-01-14 | B17: Man Utd | E17: Man City | F17: 12:30:00
A18: 2023-01-14 | B18: Brighton | E18: Liverpool | F18: 15:00:00
A19: 2023-01-14 | B19: Everton | E19: Southampton | F19: 15:00:00
A20: 2023-01-14 | B20: Nottingham Forest | E20: Leicester | F20: 15:00:00
A21: 2023-01-14 | B21: Wolves | E21: West Ham | F21: 15:00:00
A22: 2023-01-14 | B22: Brentford | E22: Bournemouth | F22: 17:30:00
A23: 2023-01-15 | B23: Chelsea | E23: Crystal Palace | F23: 14:00:00
A24: 2023-01-15 | B24: Newcastle | E24: Fulham | F24: 14:00:00
A25: 2023-01-15 | B25: Spurs | E25: Arsenal | F25: 16:30:00
A26: 2023-01-19 | B26: Man City | E26: Spurs | F26: 20:00:00
A27: 2023-01-21 | B27: Liverpool | E27: Chelsea | F27: 12:30:00
A28: 2023-01-21 | B28: Bournemouth | E28: Nottingham Forest | F28: 15:00:00
A29: 2023-01-21 | B29: Leicester | E29: Brighton | F29: 15:00:00
A30: 2023-01-21 | B30: Southampton | E30: Aston Villa | F30: 15:00:00
A31: 2023-01-21 | B31: West Ham | E31: Everton | F31: 15:00:00
A32: 2023-01-21 | B32: Crystal Palace | E32: Newcastle | F32: 17:30:00
A33: 2023-01-22 | B33: Leeds Utd | E33: Brentford | F33: 14:00:00
A34: 2023-01-22 | B34: Man City | E34: Wolves | F34: 15:00:00
A35: 2023-01-22 | B35: Arsenal | E35: Man Utd | F35: 15:00:00
A36: 2023-01-23 | B36: Fulham | E36: Spurs | F36: 20:00:00
A38: Golden Boots
A39: Bruno Fernandes - Man United | D39: =COUNT(G39:GV39) -> 3 | E39: =0 -> 0 | X39: =2*$E39 -> 0 | AI39: =2*$E39 -> 0 | AW39: =2*$E39 -> 0
A40: Diogo Jota - Liverpool | D40: 1 | E40: =0 -> 0 | BW40: =2*$E40 -> 0
A41: Harry Kane - Tottenham | D41: 52 | E41: =0+2 -> 2 | H41: =2*$E41 -> 4 | I41: 4 | J41: 4 | K41: 4 | L41: 4 | M41: 4 | N41: 4 | O41: 4 | Q41: 4 | S41: =2*$E41 -> 4 | U41: =2*$E41 -> 4 | V41: =2*$E41 -> 4 | W41: =2*$E41 -> 4 | X41: =2*$E41 -> 4 | Y41: =2*$E41 -> 4 | Z41: =2*$E41 -> 4 | AA41: 4 | AB41: 4 | AC41: 4 | AD41: 4 | AE41: 4 | AF41: 4 | AH41: =2*$E41 -> 4 | AJ41: =2*$E41 -> 4 | AL41: =2*$E41 -> 4 | AM41: 4 | AN41: 4 | AO41: 4 | AP41: 4 | AQ41: =2*$E41 -> 4 | AR41: 4 | AT41: 4 | AV41: =2*$E41 -> 4 | AW41: 4 | AX41: =2*$E41 -> 4 | BC41: =2*$E41 -> 4 | BD41: =2*$E41 -> 4 | BG41: =2*$E41 -> 4 | BH41: =2*$E41 -> 4 | BI41: =2*$E41 -> 4 | BM41: =2*$E41 -> 4 | BO41: =2*$E41 -> 4 | BP41: =2*$E41 -> 4 | BQ41: =2*$E41 -> 4 | BS41: =2*$E41 -> 4 | BU41: =2*$E41 -> 4 | BV41: =2*$E41 -> 4 | BY41: =2*$E41 -> 4 | CA41: =2*$E41 -> 4 | CB41: =2*$E41 -> 4 | CE41: =2*$E41 -> 4 | CF41: =2*$E41 -> 4
A42: Kevin de Bruyne - Man City | D42: 4 | E42: =0 -> 0 | K42: =2*$E42 -> 0 | BA42: =2*$E42 -> 0 | BL42: =2*$E42 -> 0 | BZ42: =2*$E42 -> 0
A43: Mohamed Salah - Liverpool | D43: 69 | E43: =0 -> 0 | H43: =2*$E43 -> 0 | I43: =2*$E43 -> 0 | J43: =2*$E43 -> 0 | L43: =2*$E43 -> 0 | M43: 0 | N43: 0 | O43: 0 | P43: 0 | Q43: 0 | R43: 0 | S43: 0 | T43: 0 | U43: 0 | V43: 0 | W43: 0 | Y43: =2*$E43 -> 0 | AA43: =2*$E43 -> 0 | AB43: =2*$E43 -> 0 | AC43: =2*$E43 -> 0 | AD43: =2*$E43 -> 0 | AE43: =2*$E43 -> 0 | AF43: =2*$E43 -> 0 | AG43: 0 | AH43: =2*$E43 -> 0 | AJ43: 0 | AK43: 0 | AL43: 0 | AM43: 0 | AN43: 0 | AO43: 0 | AP43: 0 | AQ43: =2*$E43 -> 0 | AR43: =2*$E43 -> 0 | AS43: =2*$E43 -> 0 | AT43: 0 | AU43: =2*$E43 -> 0 | AV43: =2*$E43 -> 0 | AX43: =2*$E43 -> 0 | AY43: =2*$E43 -> 0 | AZ43: =2*$E43 -> 0 | BA43: =2*$E43 -> 0 | BB43: =2*$E43 -> 0 | BC43: =2*$E43 -> 0 | BE43: =2*$E43 -> 0 | BF43: =2*$E43 -> 0 | BG43: =2*$E43 -> 0 | BH43: =2*$E43 -> 0 | BI43: 0 | BJ43: =2*$E43 -> 0 | BK43: 0 | BL43: =2*$E43 -> 0 | BM43: =2*$E43 -> 0 | BN43: 0 | BO43: 0 | BQ43: =2*$E43 -> 0 | BR43: 0 | BT43: =2*$E43 -> 0 | BU43: 0 | BV43: 0 | BW43: 0 | BX43: 0 | BY43: 0 | BZ43: =2*$E43 -> 0 | CA43: =2*$E43 -> 0 | CB43: 0 | CC43: 0 | CD43: 0 | CE43: 0 | CF43: 0
A44: Son Heung-min - Tottenham | D44: 23 | E44: =0+1 -> 1 | P44: =2*$E44 -> 2 | R44: =2*$E44 -> 2 | T44: =2*$E44 -> 2 | Z44: =2*$E44 -> 2 | AG44: =2*$E44 -> 2 | AI44: =2*$E44 -> 2 | AK44: =2*$E44 -> 2 | AS44: =2*$E44 -> 2 | AY44: =2*$E44 -> 2 | AZ44: =2*$E44 -> 2 | BB44: =2*$E44 -> 2 | BD44: =2*$E44 -> 2 | BE44: =2*$E44 -> 2 | BF44: =2*$E44 -> 2 | BJ44: =2*$E44 -> 2 | BK44: =2*$E44 -> 2 | BP44: =2*$E44 -> 2 | BR44: =2*$E44 -> 2 | BS44: =2*$E44 -> 2 | BT44: =2*$E44 -> 2 | BX44: =2*$E44 -> 2 | CC44: =2*$E44 -> 2 | CD44: =2*$E44 -> 2
A45: Wilfried Zaha - Crystal Palace | D45: 2 | E45: =0 -> 0 | AU45: =2*$E45 -> 0 | BN45: =2*$E45 -> 0
A47: New Kids On The Block 102
A48: Darwin Nunez - Liverpool | D48: =COUNT(G48:GV48) -> 9 | E48: =0 -> 0 | J48: =2*$E48 -> 0 | O48: =2*$E48 -> 0 | R48: =2*$E48 -> 0 | U48: =2*$E48 -> 0 | AZ48: =2*$E48 -> 0 | BB48: =2*$E48 -> 0 | BL48: =2*$E48 -> 0 | BZ48: =2*$E48 -> 0 | CC48: =2*$E48 -> 0
A49: Erling Haaland - Man City | D49: =COUNT(G49:GV49) -> 52 | E49: =0 -> 0 | H49: =2*$E49 -> 0 | I49: =2*$E49 -> 0 | K49: =2*$E49 -> 0 | L49: =2*$E49 -> 0 | M49: =2*$E49 -> 0 | S49: =2*$E49 -> 0 | T49: =2*$E49 -> 0 | W49: =2*$E49 -> 0 | X49: =2*$E49 -> 0 | Y49: =2*$E49 -> 0 | AA49: =2*$E49 -> 0 | AC49: =2*$E49 -> 0 | AD49: =2*$E49 -> 0 | AE49: =2*$E49 -> 0 | AF49: =2*$E49 -> 0 | AG49: 0 | AH49: =2*$E49 -> 0 | AJ49: 0 | AK49: 0 | AL49: 0 | AM49: 0 | AN49: 0 | AP49: 0 | AQ49: =2*$E49 -> 0 | AR49: =2*$E49 -> 0 | AT49: 0 | AV49: =2*$E49 -> 0 | AW49: 0 | AX49: =2*$E49 -> 0 | AY49: 0 | BC49: =2*$E49 -> 0 | BD49: 0 | BE49: 0 | BF49: 0 | BG49: 0 | BH49: 0 | BI49: 0 | BM49: =2*$E49 -> 0 | BO49: =2*$E49 -> 0 | BP49: 0 | BQ49: 0 | BR49: 0 | BS49: 0 | BT49: 0 | BU49: 0 | BW49: =2*$E49 -> 0 | BX49: =2*$E49 -> 0 | BY49: =2*$E49 -> 0 | CA49: =2*$E49 -> 0 | CB49: =2*$E49 -> 0 | CE49: =2*$E49 -> 0 | CF49: =2*$E49 -> 0
A50: Gabriel Jesus - Arsenal | D50: =COUNT(G50:GV50) -> 13 | E50: =0 -> 0 | N50: =2*$E50 -> 0 | P50: =2*$E50 -> 0 | Q50: =2*$E50 -> 0 | Z50: =2*$E50 -> 0 | AB50: =2*$E50 -> 0 | AI50: =2*$E50 -> 0 | AO50: =2*$E50 -> 0 | AU50: =2*$E50 -> 0 | BA50: =2*$E50 -> 0 | BJ50: =2*$E50 -> 0 | BK50: =2*$E50 -> 0 | BV50: =2*$E50 -> 0 | CD50: =2*$E50 -> 0
A51: Raheem Sterling - Chelsea | D51: =COUNT(G51:GV51) -> 3 | E51: =1+0 -> 1 | V51: =2*$E51 -> 2 | AS51: =2*$E51 -> 2 | BN51: =2*$E51 -> 2
A53: Total Points - January | H53: =SUM(H$3:H52) -> 19 | I53: =SUM(I$3:I52) -> 19 | J53: =SUM(J$3:J52) -> 34 | K53: =SUM(K$3:K52) -> 4 | L53: =SUM(L$3:L52) -> 14 | M53: =SUM(M$3:M52) -> 19 | N53: =SUM(N$3:N52) -> 19 | O53: =SUM(O$3:O52) -> 19 | P53: =SUM(P$3:P52) -> 27 | Q53: =SUM(Q$3:Q52) -> 19 | R53: =SUM(R$3:R52) -> 22 | S53: =SUM(S$3:S52) -> 4 | T53: =SUM(T$3:T52) -> 27 | U53: =SUM(U$3:U52) -> 19 | V53: =SUM(V$3:V52) -> 26 | W53: =SUM(W$3:W52) -> 4 | X53: =SUM(X$3:X52) -> 19 | Y53: =SUM(Y$3:Y52) -> 29 | Z53: =SUM(Z$3:Z52) -> 21 | AA53: =SUM(AA$3:AA52) -> 24 | AB53: =SUM(AB$3:AB52) -> 14 | AC53: =SUM(AC$3:AC52) -> 24 | AD53: =SUM(AD$3:AD52) -> 29 | AE53: =SUM(AE$3:AE52) -> 19 | AF53: =SUM(AF$3:AF52) -> 19 | AG53: =SUM(AG$3:AG52) -> 37 | AH53: =SUM(AH$3:AH52) -> 34 | AI53: =SUM(AI$3:AI52) -> 27 | AJ53: =SUM(AJ$3:AJ52) -> 29 | AK53: =SUM(AK$3:AK52) -> 32 | AL53: =SUM(AL$3:AL52) -> 24 | AM53: =SUM(AM$3:AM52) -> 24 | AN53: =SUM(AN$3:AN52) -> 19 | AO53: =SUM(AO$3:AO52) -> 4 | AP53: =SUM(AP$3:AP52) -> 29 | AQ53: =SUM(AQ$3:AQ52) -> 14 | AR53: =SUM(AR$3:AR52) -> 9 | AS53: =SUM(AS$3:AS52) -> 4 | AT53: =SUM(AT$3:AT52) -> 34 | AU53: =SUM(AU$3:AU52) -> 15 | AV53: =SUM(AV$3:AV52) -> 44 | AW53: =SUM(AW$3:AW52) -> 19 | AX53: =SUM(AX$3:AX52) -> 49 | AY53: =SUM(AY$3:AY52) -> 17 | AZ53: =SUM(AZ$3:AZ52) -> 12 | BA53: =SUM(BA$3:BA52) -> 10 | BB53: =SUM(BB$3:BB52) -> 22 | BC53: =SUM(BC$3:BC52) -> 24 | BD53: =SUM(BD$3:BD52) -> 6 | BE53: =SUM(BE$3:BE52) -> 2 | BF53: =SUM(BF$3:BF52) -> 27 | BG53: =SUM(BG$3:BG52) -> 24 | BH53: =SUM(BH$3:BH52) -> 29 | BI53: =SUM(BI$3:BI52) -> 29 | BJ53: =SUM(BJ$3:BJ52) -> 32 | BK53: =SUM(BK$3:BK52) -> 22 | BL53: =SUM(BL$3:BL52) -> 15 | BM53: =SUM(BM$3:BM52) -> 14 | BN53: =SUM(BN$3:BN52) -> 12 | BO53: =SUM(BO$3:BO52) -> 19 | BP53: =SUM(BP$3:BP52) -> 36 | BQ53: =SUM(BQ$3:BQ52) -> 49 | BR53: =SUM(BR$3:BR52) -> 7 | BS53: =SUM(BS$3:BS52) -> 41 | BT53: =SUM(BT$3:BT52) -> 27 | BU53: =SUM(BU$3:BU52) -> 34 | BV53: =SUM(BV$3:BV52) -> 34 | BW53: =SUM(BW$3:BW52) -> 15 | BX53: =SUM(BX$3:BX52) -> 27 | BY53: =SUM(BY$3:BY52) -> 39 | BZ53: =SUM(BZ$3:BZ52) -> 15 | CA53: =SUM(CA$3:CA52) -> 29 | CB53: =SUM(CB$3:CB52) -> 14 | CC53: =SUM(CC$3:CC52) -> 2 | CD53: =SUM(CD$3:CD52) -> 2 | CE53: =SUM(CE$3:CE52) -> 34 | CF53: =SUM(CF$3:CF52) -> 14

Sheet February
A2: Date | B2: Teams | F2: Time
A3: 2023-02-04 | B3: Aston Villa | E3: Leicester | F3: 15:00:00
A4: 2023-02-04 | B4: Brentford | E4: Southampton | F4: 15:00:00
A5: 2023-02-04 | B5: Brighton | E5: Bournemouth | F5: 15:00:00
A6: 2023-02-04 | B6: Chelsea | E6: Fulham | F6: 15:00:00
A7: 2023-02-04 | B7: Everton | E7: Arsenal | F7: 15:00:00
A8: 2023-02-04 | B8: Man Utd | E8: Crystal Palace | F8: 15:00:00
A9: 2023-02-04 | B9: Newcastle | E9: West Ham | F9: 15:00:00
A10: 2023-02-04 | B10: Nottingham Forest | E10: Leeds Utd | F10: 15:00:00
A11: 2023-02-04 | B11: Spurs | E11: Man City | F11: 15:00:00
A12: 2023-02-04 | B12: Wolves | E12: Liverpool | F12: 15:00:00
A13: 2023-02-11 | B13: Arsenal | E13: Brentford | F13: 15:00:00
A14: 2023-02-11 | B14: Bournemouth | E14: Newcastle | F14: 15:00:00
A15: 2023-02-11 | B15: Crystal Palace | E15: Brighton | F15: 15:00:00
A16: 2023-02-11 | B16: Fulham | E16: Nottingham Forest | F16: 15:00:00
A17: 2023-02-11 | B17: Leeds Utd | E17: Man Utd | F17: 15:00:00
A18: 2023-02-11 | B18: Leicester | E18: Spurs | F18: 15:00:00
A19: 2023-02-11 | B19: Liverpool | E19: Everton | F19: 15:00:00
A20: 2023-02-11 | B20: Man City | E20: Aston Villa | F20: 15:00:00
A21: 2023-02-11 | B21: Southampton | E21: Wolves | F21: 15:00:00
A22: 2023-02-11 | B22: West Ham | E22: Chelsea | F22: 15:00:00
A23: 2023-02-18 | B23: Aston Villa | E23: Arsenal | F23: 15:00:00
A24: 2023-02-18 | B24: Brentford | E24: Crystal Palace | F24: 15:00:00
A25: 2023-02-18 | B25: Brighton | E25: Fulham | F25: 15:00:00
A26: 2023-02-18 | B26: Chelsea | E26: Southampton | F26: 15:00:00
A27: 2023-02-18 | B27: Everton | E27: Leeds Utd | F27: 15:00:00
A28: 2023-02-18 | B28: Man Utd | E28: Leicester | F28: 15:00:00
A29: 2023-02-18 | B29: Newcastle | E29: Liverpool | F29: 15:00:00
A30: 2023-02-18 | B30: Nottingham Forest | E30: Man City | F30: 15:00:00
A31: 2023-02-18 | B31: Spurs | E31: West Ham | F31: 15:00:00
A32: 2023-02-18 | B32: Wolves | E32: Bournemouth | F32: 15:00:00
A33: 2023-02-25 | B33: Bournemouth | E33: Man City | F33: 15:00:00
A34: 2023-02-25 | B34: Crystal Palace | E34: Liverpool | F34: 15:00:00
A35: 2023-02-25 | B35: Everton | E35: Aston Villa | F35: 15:00:00
A36: 2023-02-25 | B36: Fulham | E36: Wolves | F36: 15:00:00
A37: 2023-02-25 | B37: Leeds Utd | E37: Southampton | F37: 15:00:00
A38: 2023-02-25 | B38: Leicester | E38: Arsenal | F38: 15:00:00
A39: 2023-02-25 | B39: Man Utd | E39: Brentford | F39: 15:00:00
A40: 2023-02-25 | B40: Newcastle | E40: Brighton | F40: 15:00:00
A41: 2023-02-25 | B41: Spurs | E41: Chelsea | F41: 15:00:00
A42: 2023-02-25 | B42: West Ham | E42: Nottingham Forest | F42: 15:00:00

Sheet March
A2: Date | B2: Teams | F2: Time
A3: 2023-03-04 | B3: Arsenal | E3: Bournemouth | F3: 15:00:00
A4: 2023-03-04 | B4: Aston Villa | E4: Crystal Palace | F4: 15:00:00
A5: 2023-03-04 | B5: Brentford | E5: Fulham | F5: 15:00:00
A6: 2023-03-04 | B6: Brighton | E6: West Ham | F6: 15:00:00
A7: 2023-03-04 | B7: Chelsea | E7: Leeds Utd | F7: 15:00:00
A8: 2023-03-04 | B8: Liverpool | E8: Man Utd | F8: 15:00:00
A9: 2023-03-04 | B9: Man City | E9: Newcastle | F9: 15:00:00
A10: 2023-03-04 | B10: Nottingham Forest | E10: Everton | F10: 15:00:00
A11: 2023-03-04 | B11: Southampton | E11: Leicester | F11: 15:00:00
A12: 2023-03-04 | B12: Wolves | E12: Spurs | F12: 15:00:00
A13: 2023-03-11 | B13: Bournemouth | E13: Liverpool | F13: 15:00:00
A14: 2023-03-11 | B14: Crystal Palace | E14: Man City | F14: 15:00:00
A15: 2023-03-11 | B15: Everton | E15: Brentford | F15: 15:00:00
A16: 2023-03-11 | B16: Fulham | E16: Arsenal | F16: 15:00:00
A17: 2023-03-11 | B17: Leeds Utd | E17: Brighton | F17: 15:00:00
A18: 2023-03-11 | B18: Leicester | E18: Chelsea | F18: 15:00:00
A19: 2023-03-11 | B19: Man Utd | E19: Southampton | F19: 15:00:00
A20: 2023-03-11 | B20: Newcastle | E20: Wolves | F20: 15:00:00
A21: 2023-03-11 | B21: Spurs | E21: Nottingham Forest | F21: 15:00:00
A22: 2023-03-11 | B22: West Ham | E22: Aston Villa | F22: 15:00:00
A23: 2023-03-18 | B23: Arsenal | E23: Crystal Palace | F23: 15:00:00
A24: 2023-03-18 | B24: Aston Villa | E24: Bournemouth | F24: 15:00:00
A25: 2023-03-18 | B25: Brentford | E25: Leicester | F25: 15:00:00
A26: 2023-03-18 | B26: Brighton | E26: Man Utd | F26: 15:00:00
A27: 2023-03-18 | B27: Chelsea | E27: Everton | F27: 15:00:00
A28: 2023-03-18 | B28: Liverpool | E28: Fulham | F28: 15:00:00
A29: 2023-03-18 | B29: Man City | E29: West Ham | F29: 15:00:00
A30: 2023-03-18 | B30: Nottingham Forest | E30: Newcastle | F30: 15:00:00
A31: 2023-03-18 | B31: Southampton | E31: Spurs | F31: 15:00:00
A32: 2023-03-18 | B32: Wolves | E32: Leeds Utd | F32: 15:00:00

Sheet April
A2: Date | B2: Teams | F2: Time
A3: 2023-04-01 | B3: Arsenal | E3: Leeds Utd | F3: 15:00:00
A4: 2023-04-01 | B4: Bournemouth | E4: Fulham | F4: 15:00:00
A5: 2023-04-01 | B5: Brighton | E5: Brentford | F5: 15:00:00
A6: 2023-04-01 | B6: Chelsea | E6: Aston Villa | F6: 15:00:00
A7: 2023-04-01 | B7: Crystal Palace | E7: Leicester | F7: 15:00:00
A8: 2023-04-01 | B8: Everton | E8: Spurs | F8: 15:00:00
A9: 2023-04-01 | B9: Man City | E9: Liverpool | F9: 15:00:00
A10: 2023-04-01 | B10: Newcastle | E10: Man Utd | F10: 15:00:00
A11: 2023-04-01 | B11: Nottingham Forest | E11: Wolves | F11: 15:00:00
A12: 2023-04-01 | B12: West Ham | E12: Southampton | F12: 15:00:00
A13: 2023-04-08 | B13: Aston Villa | E13: Nottingham Forest | F13: 15:00:00
A14: 2023-04-08 | B14: Brentford | E14: Newcastle | F14: 15:00:00
A15: 2023-04-08 | B15: Fulham | E15: West Ham | F15: 15:00:00
A16: 2023-04-08 | B16: Leeds Utd | E16: Crystal Palace | F16: 15:00:00
A17: 2023-04-08 | B17: Leicester | E17: Bournemouth | F17: 15:00:00
A18: 2023-04-08 | B18: Liverpool | E18: Arsenal | F18: 15:00:00
A19: 2023-04-08 | B19: Man Utd | E19: Everton | F19: 15:00:00
A20: 2023-04-08 | B20: Southampton | E20: Man City | F20: 15:00:00
A21: 2023-04-08 | B21: Spurs | E21: Brighton | F21: 15:00:00
A22: 2023-04-08 | B22: Wolves | E22: Chelsea | F22: 15:00:00
A23: 2023-04-15 | B23: Aston Villa | E23: Newcastle | F23: 15:00:00
A24: 2023-04-15 | B24: Chelsea | E24: Brighton | F24: 15:00:00
A25: 2023-04-15 | B25: Everton | E25: Fulham | F25: 15:00:00
A26: 2023-04-15 | B26: Leeds Utd | E26: Liverpool | F26: 15:00:00
A27: 2023-04-15 | B27: Man City | E27: Leicester | F27: 15:00:00
A28: 2023-04-15 | B28: Nottingham Forest | E28: Man Utd | F28: 15:00:00
A29: 2023-04-15 | B29: Southampton | E29: Crystal Palace | F29: 15:00:00
A30: 2023-04-15 | B30: Spurs | E30: Bournemouth | F30: 15:00:00
A31: 2023-04-15 | B31: West Ham | E31: Arsenal | F31: 15:00:00
A32: 2023-04-15 | B32: Wolves | E32: Brentford | F32: 15:00:00
A33: 2023-04-22 | B33: Arsenal | E33: Southampton | F33: 15:00:00
A34: 2023-04-22 | B34: Bournemouth | E34: West Ham | F34: 15:00:00
A35: 2023-04-22 | B35: Brentford | E35: Aston Villa | F35: 15:00:00
A36: 2023-04-22 | B36: Brighton | E36: Man City | F36: 15:00:00
A37: 2023-04-22 | B37: Crystal Palace | E37: Everton | F37: 15:00:00
A38: 2023-04-22 | B38: Fulham | E38: Leeds Utd | F38: 15:00:00
A39: 2023-04-22 | B39: Leicester | E39: Wolves | F39: 15:00:00
A40: 2023-04-22 | B40: Liverpool | E40: Nottingham Forest | F40: 15:00:00
A41: 2023-04-22 | B41: Man Utd | E41: Chelsea | F41: 15:00:00
A42: 2023-04-22 | B42: Newcastle | E42: Spurs | F42: 15:00:00
A43: 2023-04-25 | B43: Everton | E43: Newcastle | F43: 19:45:00
A44: 2023-04-25 | B44: Leeds Utd | E44: Leicester | F44: 19:45:00
A45: 2023-04-25 | B45: Nottingham Forest | E45: Brighton | F45: 19:45:00
A46: 2023-04-25 | B46: Spurs | E46: Man Utd | F46: 19:45:00
A47: 2023-04-25 | B47: West Ham | E47: Liverpool | F47: 19:45:00
A48: 2023-04-25 | B48: Wolves | E48: Crystal Palace | F48: 19:45:00
A49: 2023-04-25 | B49: Aston Villa | E49: Fulham | F49: 20:00:00
A50: 2023-04-26 | B50: Chelsea | E50: Brentford | F50: 19:45:00
A51: 2023-04-26 | B51: Southampton | E51: Bournemouth | F51: 19:45:00
A52: 2023-04-26 | B52: Man City | E52: Arsenal | F52: 20:00:00
A53: 2023-04-29 | B53: Arsenal | E53: Chelsea | F53: 15:00:00
A54: 2023-04-29 | B54: Bournemouth | E54: Leeds Utd | F54: 15:00:00
A55: 2023-04-29 | B55: Brentford | E55: Nottingham Forest | F55: 15:00:00
A56: 2023-04-29 | B56: Brighton | E56: Wolves | F56: 15:00:00
A57: 2023-04-29 | B57: Crystal Palace | E57: West Ham | F57: 15:00:00
A58: 2023-04-29 | B58: Fulham | E58: Man City | F58: 15:00:00
A59: 2023-04-29 | B59: Leicester | E59: Everton | F59: 15:00:00
A60: 2023-04-29 | B60: Liverpool | E60: Spurs | F60: 15:00:00
A61: 2023-04-29 | B61: Man Utd | E61: Aston Villa | F61: 15:00:00
A62: 2023-04-29 | B62: Newcastle | E62: Southampton | F62: 15:00:00

Sheet May
A2: Date | B2: Teams | F2: Time
A3: 2023-05-06 | B3: Bournemouth | E3: Chelsea | F3: 15:00:00
A4: 2023-05-06 | B4: Brighton | E4: Everton | F4: 15:00:00
A5: 2023-05-06 | B5: Fulham | E5: Leicester | F5: 15:00:00
A6: 2023-05-06 | B6: Liverpool | E6: Brentford | F6: 15:00:00
A7: 2023-05-06 | B7: Man City | E7: Leeds Utd | F7: 15:00:00
A8: 2023-05-06 | B8: Newcastle | E8: Arsenal | F8: 15:00:00
A9: 2023-05-06 | B9: Nottingham Forest | E9: Southampton | F9: 15:00:00
A10: 2023-05-06 | B10: Spurs | E10: Crystal Palace | F10: 15:00:00
A11: 2023-05-06 | B11: West Ham | E11: Man Utd | F11: 15:00:00
A12: 2023-05-06 | B12: Wolves | E12: Aston Villa | F12: 15:00:00
A13: 2023-05-13 | B13: Arsenal | E13: Brighton | F13: 15:00:00
A14: 2023-05-13 | B14: Aston Villa | E14: Spurs | F14: 15:00:00
A15: 2023-05-13 | B15: Brentford | E15: West Ham | F15: 15:00:00
A16: 2023-05-13 | B16: Chelsea | E16: Nottingham Forest | F16: 15:00:00
A17: 2023-05-13 | B17: Crystal Palace | E17: Bournemouth | F17: 15:00:00
A18: 2023-05-13 | B18: Everton | E18: Man City | F18: 15:00:00
A19: 2023-05-13 | B19: Leeds Utd | E19: Newcastle | F19: 15:00:00
A20: 2023-05-13 | B20: Leicester | E20: Liverpool | F20: 15:00:00
A21: 2023-05-13 | B21: Man Utd | E21: Wolves | F21: 15:00:00
A22: 2023-05-13 | B22: Southampton | E22: Fulham | F22: 15:00:00
A23: 2023-05-20 | B23: Bournemouth | E23: Man Utd | F23: 15:00:00
A24: 2023-05-20 | B24: Brighton | E24: Southampton | F24: 15:00:00
A25: 2023-05-20 | B25: Fulham | E25: Crystal Palace | F25: 15:00:00
A26: 2023-05-20 | B26: Liverpool | E26: Aston Villa | F26: 15:00:00
A27: 2023-05-20 | B27: Man City | E27: Chelsea | F27: 15:00:00
A28: 2023-05-20 | B28: Newcastle | E28: Leicester | F28: 15:00:00
A29: 2023-05-20 | B29: Nottingham Forest | E29: Arsenal | F29: 15:00:00
A30: 2023-05-20 | B30: Spurs | E30: Brentford | F30: 15:00:00
A31: 2023-05-20 | B31: West Ham | E31: Leeds Utd | F31: 15:00:00
A32: 2023-05-20 | B32: Wolves | E32: Everton | F32: 15:00:00
A33: 2023-05-28 | B33: Arsenal | E33: Wolves | F33: 16:00:00
A34: 2023-05-28 | B34: Aston Villa | E34: Brighton | F34: 16:00:00
A35: 2023-05-28 | B35: Brentford | E35: Man City | F35: 16:00:00
A36: 2023-05-28 | B36: Chelsea | E36: Newcastle | F36: 16:00:00
A37: 2023-05-28 | B37: Crystal Palace | E37: Nottingham Forest | F37: 16:00:00
A38: 2023-05-28 | B38: Everton | E38: Bournemouth | F38: 16:00:00
A39: 2023-05-28 | B39: Leeds Utd | E39: Spurs | F39: 16:00:00
A40: 2023-05-28 | B40: Leicester | E40: West Ham | F40: 16:00:00
A41: 2023-05-28 | B41: Man Utd | E41: Fulham | F41: 16:00:00
A42: 2023-05-28 | B42: Southampton | E42: Liverpool | F42: 16:00:00

Sheet Mini Leagues
A3: Prendergast Maguire Financial Services | G3: Alumni CIT
A4: No. | B4: Act. | C4: Name | D4: Team | E4: Pts | G4: No. | H4: Act. | I4: Name | J4: Team | K4: Pts
A5: 1 | B5: =SUMIF(Overall!$B$3:$B$79,C5,Overall!$A$3:$A$79) -> 7 | C5: Sean Cleary | D5: Sean's Superstars | E5: =VLOOKUP(C5,Overall!$B$3:$N$79,13,FALSE) -> 641 | G5: 1 | H5: =SUMIF(Overall!$B$3:$B$79,I5,Overall!$A$3:$A$79) -> 6 | I5: Anastas Popov | J5: Super Strong Saints | K5: =VLOOKUP(I5,Overall!$B$3:$N$79,13,FALSE) -> 644
A6: 2 | B6: =SUMIF(Overall!$B$3:$B$79,C6,Overall!$A$3:$A$79) -> 16 | C6: Dylan Delaney | D6: Only Kruls and Horses | E6: =VLOOKUP(C6,Overall!$B$3:$N$79,13,FALSE) -> 616 | G6: 2 | H6: =SUMIF(Overall!$B$3:$B$79,I6,Overall!$A$3:$A$79) -> 12 | I6: Gerry Draper | J6: Everton 10 | K6: =VLOOKUP(I6,Overall!$B$3:$N$79,13,FALSE) -> 626
A7: 3 | B7: =SUMIF(Overall!$B$3:$B$79,C7,Overall!$A$3:$A$79) -> 22 | C7: Simon Scanlon | D7: Braygulls Utd Celtic | E7: =VLOOKUP(C7,Overall!$B$3:$N$79,13,FALSE) -> 601 | G7: 3 | H7: =SUMIF(Overall!$B$3:$B$79,I7,Overall!$A$3:$A$79) -> 28 | I7: Gavin Morgan | J7: Seventeenth Season Syndrome | K7: =VLOOKUP(I7,Overall!$B$3:$N$79,13,FALSE) -> 586
A8: 4 | B8: =SUMIF(Overall!$B$3:$B$79,C8,Overall!$A$3:$A$79) -> 46 | C8: Brendan Maguire | D8: Cantthinkofone | E8: =VLOOKUP(C8,Overall!$B$3:$N$79,13,FALSE) -> 544 | G8: 4 | H8: =SUMIF(Overall!$B$3:$B$79,I8,Overall!$A$3:$A$79) -> 31 | I8: Con McSweeney | J8: Coola_Boolas | K8: =VLOOKUP(I8,Overall!$B$3:$N$79,13,FALSE) -> 576
A9: 5 | B9: =SUMIF(Overall!$B$3:$B$79,C9,Overall!$A$3:$A$79) -> 58 | C9: Paul Prendergast | D9: The Untouchables | E9: =VLOOKUP(C9,Overall!$B$3:$N$79,13,FALSE) -> 524 | G9: 5 | H9: =SUMIF(Overall!$B$3:$B$79,I9,Overall!$A$3:$A$79) -> 34 | I9: Brian Prendergast | J9: Up The Arsenal | K9: =VLOOKUP(I9,Overall!$B$3:$N$79,13,FALSE) -> 574
A10: 6 | B10: =SUMIF(Overall!$B$3:$B$79,C10,Overall!$A$3:$A$79) -> 61 | C10: Ciara Walsh | D10: Kirvin Kicks | E10: =VLOOKUP(C10,Overall!$B$3:$N$79,13,FALSE) -> 512 | G10: 6 | H10: =SUMIF(Overall!$B$3:$B$79,I10,Overall!$A$3:$A$79) -> 36 | I10: Aidan White | J10: The Ings vs Watkins Conundrum | K10: =VLOOKUP(I10,Overall!$B$3:$N$79,13,FALSE) -> 571
G11: 7 | H11: =SUMIF(Overall!$B$3:$B$79,I11,Overall!$A$3:$A$79) -> 45 | I11: Joe Turner | J11: What Would Jan Molby Do? | K11: =VLOOKUP(I11,Overall!$B$3:$N$79,13,FALSE) -> 547
G12: 8 | H12: =SUMIF(Overall!$B$3:$B$79,I12,Overall!$A$3:$A$79) -> 62 | I12: John Hempenstall | J12: Real SoSo Bad | K12: =VLOOKUP(I12,Overall!$B$3:$N$79,13,FALSE) -> 505
G13: 9 | H13: =SUMIF(Overall!$B$3:$B$79,I13,Overall!$A$3:$A$79) -> 65 | I13: Christina Morgan | J13: Mwahahahaha | K13: =VLOOKUP(I13,Overall!$B$3:$N$79,13,FALSE) -> 494
A15: Mo Salah's Lonely Hearts Club Band
A16: No. | B16: Act. | C16: Name | D16: Team | E16: Pts
A17: 1 | B17: =SUMIF(Overall!$B$3:$B$79,C17,Overall!$A$3:$A$79) -> 8 | C17: Gary McGurk | D17: Darwin Innit! | E17: =VLOOKUP(C17,Overall!$B$3:$N$79,13,FALSE) -> 636
A18: 2 | B18: =SUMIF(Overall!$B$3:$B$79,C18,Overall!$A$3:$A$79) -> 9 | C18: Jonathan Fox | D18: For Fox Sake, Not Again | E18: =VLOOKUP(C18,Overall!$B$3:$N$79,13,FALSE) -> 636 | G18: Wicklow / Wexford All Stars
A19: 3 | B19: =SUMIF(Overall!$B$3:$B$79,C19,Overall!$A$3:$A$79) -> 18 | C19: Paul Moore | D19: TAA - The Scouser In Our Team | E19: =VLOOKUP(C19,Overall!$B$3:$N$79,13,FALSE) -> 606 | G19: No. | H19: Act. | I19: Name | J19: Team | K19: Pts
A20: 4 | B20: =SUMIF(Overall!$B$3:$B$79,C20,Overall!$A$3:$A$79) -> 19 | C20: Frank McSweeney | D20: Pool Abu | E20: =VLOOKUP(C20,Overall!$B$3:$N$79,13,FALSE) -> 601 | G20: 1 | H20: =SUMIF(Overall!$B$3:$B$79,I20,Overall!$A$3:$A$79) -> 2 | I20: Rory Ellard | J20: Ipspich | K20: =VLOOKUP(I20,Overall!$B$3:$N$79,13,FALSE) -> 676
A21: 5 | B21: =SUMIF(Overall!$B$3:$B$79,C21,Overall!$A$3:$A$79) -> 20 | C21: Gareth Pierpoint | D21: Allison Wonderland | E21: =VLOOKUP(C21,Overall!$B$3:$N$79,13,FALSE) -> 601 | G21: 2 | H21: =SUMIF(Overall!$B$3:$B$79,I21,Overall!$A$3:$A$79) -> 13 | I21: Keith Ryan | J21: Ain't No Mountain High Enough | K21: =VLOOKUP(I21,Overall!$B$3:$N$79,13,FALSE) -> 626
A22: 6 | B22: =SUMIF(Overall!$B$3:$B$79,C22,Overall!$A$3:$A$79) -> 24 | C22: Bobby Hynes | D22: Dancing In The Dark | E22: =VLOOKUP(C22,Overall!$B$3:$N$79,13,FALSE) -> 596 | G22: 3 | H22: =SUMIF(Overall!$B$3:$B$79,I22,Overall!$A$3:$A$79) -> 21 | I22: John Brophy | J22: Carrig ABU | K22: =VLOOKUP(I22,Overall!$B$3:$N$79,13,FALSE) -> 601
A23: 7 | B23: =SUMIF(Overall!$B$3:$B$79,C23,Overall!$A$3:$A$79) -> 33 | C23: Joseph Kavanagh | D23: Cherry Orchard Thieves | E23: =VLOOKUP(C23,Overall!$B$3:$N$79,13,FALSE) -> 576 | G23: 4 | H23: =SUMIF(Overall!$B$3:$B$79,I23,Overall!$A$3:$A$79) -> 22 | I23: Simon Scanlon | J23: Braygulls Utd Celtic | K23: =VLOOKUP(I23,Overall!$B$3:$N$79,13,FALSE) -> 601
A24: 8 | B24: =SUMIF(Overall!$B$3:$B$79,C24,Overall!$A$3:$A$79) -> 41 | C24: Richard Johnston | D24: If All U Have Is A Hammer Then Everything Is…. | E24: =VLOOKUP(C24,Overall!$B$3:$N$79,13,FALSE) -> 561 | G24: 5 | H24: =SUMIF(Overall!$B$3:$B$79,I24,Overall!$A$3:$A$79) -> 24 | I24: Bobby Hynes | J24: Dancing In The Dark | K24: =VLOOKUP(I24,Overall!$B$3:$N$79,13,FALSE) -> 596
A25: 9 | B25: =SUMIF(Overall!$B$3:$B$79,C25,Overall!$A$3:$A$79) -> 44 | C25: Caroline Carroll | D25: Carrie's Crusaders | E25: =VLOOKUP(C25,Overall!$B$3:$N$79,13,FALSE) -> 547 | G25: 6 | H25: =SUMIF(Overall!$B$3:$B$79,I25,Overall!$A$3:$A$79) -> 25 | I25: Ciaran O'Hart | J25: Riverchapel Plate | K25: =VLOOKUP(I25,Overall!$B$3:$N$79,13,FALSE) -> 591
A26: 10 | B26: =SUMIF(Overall!$B$3:$B$79,C26,Overall!$A$3:$A$79) -> 45 | C26: Joe Turner | D26: What Would Jan Molby Do? | E26: =VLOOKUP(C26,Overall!$B$3:$N$79,13,FALSE) -> 547 | G26: 7 | H26: =SUMIF(Overall!$B$3:$B$79,I26,Overall!$A$3:$A$79) -> 36 | I26: Aidan White | J26: The Ings vs Watkins Conundrum | K26: =VLOOKUP(I26,Overall!$B$3:$N$79,13,FALSE) -> 571
A27: 11 | B27: =SUMIF(Overall!$B$3:$B$79,C27,Overall!$A$3:$A$79) -> 48 | C27: Niall Carroll | D27: Rubber's Magic Bus | E27: =VLOOKUP(C27,Overall!$B$3:$N$79,13,FALSE) -> 541 | G27: 8 | H27: =SUMIF(Overall!$B$3:$B$79,I27,Overall!$A$3:$A$79) -> 41 | I27: Richard Johnston | J27: If All U Have Is A Hammer Then Everything Is…. | K27: =VLOOKUP(I27,Overall!$B$3:$N$79,13,FALSE) -> 561
A28: 12 | B28: =SUMIF(Overall!$B$3:$B$79,C28,Overall!$A$3:$A$79) -> 49 | C28: Brian Haughton | D28: Jurgen's Mighty Reds | E28: =VLOOKUP(C28,Overall!$B$3:$N$79,13,FALSE) -> 539 | G28: 9 | H28: =SUMIF(Overall!$B$3:$B$79,I28,Overall!$A$3:$A$79) -> 44 | I28: Caroline Carroll | J28: Carrie's Crusaders | K28: =VLOOKUP(I28,Overall!$B$3:$N$79,13,FALSE) -> 547
A29: 13 | B29: =SUMIF(Overall!$B$3:$B$79,C29,Overall!$A$3:$A$79) -> 51 | C29: Johno Percy | D29: Mo Money Mo Salah | E29: =VLOOKUP(C29,Overall!$B$3:$N$79,13,FALSE) -> 534 | G29: 10 | H29: =SUMIF(Overall!$B$3:$B$79,I29,Overall!$A$3:$A$79) -> 45 | I29: Joe Turner | J29: What Would Jan Molby Do? | K29: =VLOOKUP(I29,Overall!$B$3:$N$79,13,FALSE) -> 547
A30: 14 | B30: =SUMIF(Overall!$B$3:$B$79,C30,Overall!$A$3:$A$79) -> 53 | C30: Andy Dunne | D30: Steve McMahon's Tackle | E30: =VLOOKUP(C30,Overall!$B$3:$N$79,13,FALSE) -> 531 | G30: 11 | H30: =SUMIF(Overall!$B$3:$B$79,I30,Overall!$A$3:$A$79) -> 48 | I30: Niall Carroll | J30: Rubber's Magic Bus | K30: =VLOOKUP(I30,Overall!$B$3:$N$79,13,FALSE) -> 541
A31: 15 | B31: =SUMIF(Overall!$B$3:$B$79,C31,Overall!$A$3:$A$79) -> 58 | C31: Paul Prendergast | D31: The Untouchables | E31: =VLOOKUP(C31,Overall!$B$3:$N$79,13,FALSE) -> 524 | G31: 12 | H31: =SUMIF(Overall!$B$3:$B$79,I31,Overall!$A$3:$A$79) -> 49 | I31: Brian Haughton | J31: Jurgen's Mighty Reds | K31: =VLOOKUP(I31,Overall!$B$3:$N$79,13,FALSE) -> 539
A32: 16 | B32: =SUMIF(Overall!$B$3:$B$79,C32,Overall!$A$3:$A$79) -> 66 | C32: Gary Donnelly | D32: GarWin Nunez | E32: =VLOOKUP(C32,Overall!$B$3:$N$79,13,FALSE) -> 494 | G32: 13 | H32: =SUMIF(Overall!$B$3:$B$79,I32,Overall!$A$3:$A$79) -> 52 | I32: Brian Mullen | J32: Boris Cuts His Hair With A Knife And Fork | K32: =VLOOKUP(I32,Overall!$B$3:$N$79,13,FALSE) -> 532
A33: 17 | B33: =SUMIF(Overall!$B$3:$B$79,C33,Overall!$A$3:$A$79) -> 67 | C33: Lionel Knott | D33: The Best Redabbey Reds | E33: =VLOOKUP(C33,Overall!$B$3:$N$79,13,FALSE) -> 485 | G33: 14 | H33: =SUMIF(Overall!$B$3:$B$79,I33,Overall!$A$3:$A$79) -> 53 | I33: Andy Dunne | J33: Steve McMahon's Tackle | K33: =VLOOKUP(I33,Overall!$B$3:$N$79,13,FALSE) -> 531
A34: 18 | B34: =SUMIF(Overall!$B$3:$B$79,C34,Overall!$A$3:$A$79) -> 70 | C34: Javier Suarez | D34: Cafu Con Leche | E34: =VLOOKUP(C34,Overall!$B$3:$N$79,13,FALSE) -> 454 | G34: 15 | H34: =SUMIF(Overall!$B$3:$B$79,I34,Overall!$A$3:$A$79) -> 54 | I34: Niall Gregory | J34: Yid Army | K34: =VLOOKUP(I34,Overall!$B$3:$N$79,13,FALSE) -> 530
A35: 19 | B35: =SUMIF(Overall!$B$3:$B$79,C35,Overall!$A$3:$A$79) -> 73 | C35: Shane Hempenstall | D35: Ham Salah | E35: =VLOOKUP(C35,Overall!$B$3:$N$79,13,FALSE) -> 417 | G35: 16 | H35: =SUMIF(Overall!$B$3:$B$79,I35,Overall!$A$3:$A$79) -> 58 | I35: Paul Prendergast | J35: The Untouchables | K35: =VLOOKUP(I35,Overall!$B$3:$N$79,13,FALSE) -> 524
G36: 17 | H36: =SUMIF(Overall!$B$3:$B$79,I36,Overall!$A$3:$A$79) -> 62 | I36: John Hempenstall | J36: Real SoSo Bad | K36: =VLOOKUP(I36,Overall!$B$3:$N$79,13,FALSE) -> 505
G37: 18 | H37: =SUMIF(Overall!$B$3:$B$79,I37,Overall!$A$3:$A$79) -> 73 | I37: Shane Hempenstall | J37: Ham Salah | K37: =VLOOKUP(I37,Overall!$B$3:$N$79,13,FALSE) -> 417
A40: The Behan Counters
A41: No. | B41: Act. | C41: Name | D41: Team | E41: Pts
A42: 1 | B42: =SUMIF(Overall!$B$3:$B$79,C42,Overall!$A$3:$A$79) -> 15 | C42: Dave McGinley | D42: Clucko > Seanie O'Shea | E42: =VLOOKUP(C42,Overall!$B$3:$N$79,13,FALSE) -> 616 | G42: The Draper / Farrelly Whiskey Faceoff
A43: 2 | B43: =SUMIF(Overall!$B$3:$B$79,C43,Overall!$A$3:$A$79) -> 27 | C43: Roisin Joyce | D43: WAW | E43: =VLOOKUP(C43,Overall!$B$3:$N$79,13,FALSE) -> 591 | G43: No. | H43: Act. | I43: Name | J43: Team | K43: Pts
A44: 3 | B44: =SUMIF(Overall!$B$3:$B$79,C44,Overall!$A$3:$A$79) -> 42 | C44: Joe Behan | D44: In It To Win It I Wish | E44: =VLOOKUP(C44,Overall!$B$3:$N$79,13,FALSE) -> 560 | G44: 1 | H44: =SUMIF(Overall!$B$3:$B$79,I44,Overall!$A$3:$A$79) -> 12 | I44: Gerry Draper | J44: Everton 10 | K44: =VLOOKUP(I44,Overall!$B$3:$N$79,13,FALSE) -> 626
A45: 4 | B45: =SUMIF(Overall!$B$3:$B$79,C45,Overall!$A$3:$A$79) -> 43 | C45: Micheal Joyce | D45: Marsching On | E45: =VLOOKUP(C45,Overall!$B$3:$N$79,13,FALSE) -> 551 | G45: 2 | H45: =SUMIF(Overall!$B$3:$B$79,I45,Overall!$A$3:$A$79) -> 47 | I45: Eoghan Farrelly | J45: Definitely Last Chance Saloon! | K45: =VLOOKUP(I45,Overall!$B$3:$N$79,13,FALSE) -> 541
A46: 5 | B46: =SUMIF(Overall!$B$3:$B$79,C46,Overall!$A$3:$A$79) -> 59 | C46: Jenny Behan | D46: Offside Again | E46: =VLOOKUP(C46,Overall!$B$3:$N$79,13,FALSE) -> 517
A47: 6 | B47: =SUMIF(Overall!$B$3:$B$79,C47,Overall!$A$3:$A$79) -> 70 | C47: Javier Suarez | D47: Cafu Con Leche | E47: =VLOOKUP(C47,Overall!$B$3:$N$79,13,FALSE) -> 454

Sheet Jokers
A1: No. | B1: Player | C1: Team Name | D1: Joker | E1: 1 | F1: 2 | G1: 3 | H1: 4 | I1: 5 | J1: 6 | K1: 7 | L1: 8 | M1: 9 | N1: 10 | O1: 11 | P1: 12 | Q1: 13 | R1: 14 | S1: 15 | T1: 16 | U1: 17 | V1: 18 | W1: 19 | X1: 20 | Y1: 21 | Z1: 22 | AA1: 23 | AB1: 24 | AC1: 25 | AD1: 26 | AE1: 27 | AF1: 28 | AG1: 29 | AH1: 30 | AI1: Total
A2: 1 | B2: Aidan Scanlon | C2: St Pats | AI2: =COUNTIF(E2:AH2,"a") -> 0
A3: 2 | B3: Aidan White | C3: The Ings vs Watkins Conundrum | D3: 1-0 | E3: a | F3: a | AI3: 2
A4: 3 | B4: Anastas Popov | C4: Super Strong Saints | D4: 1-0 | E4: a | F4: a | G4: a | H4: a | I4: a | J4: a | K4: a | L4: a | M4: a | AI4: 9
A5: 4 | B5: Andrew Keohan | C5: Allstar Assholes | D5: 3-1 | E5: a | F5: a | G5: a | H5: a | I5: a | J5: a | K5: a | L5: a | M5: a | N5: a | O5: a | P5: a | Q5: a | R5: a | S5: a | T5: a | U5: a | V5: a | W5: a | X5: a | Y5: a | Z5: a | AA5: a | AB5: a | AC5: a | AD5: a | AE5: a | AF5: a | AG5: a | AH5: a | AI5: 30
A6: 5 | B6: Andy Dunne | C6: Steve McMahon's Tackle | D6: 2-0 | E6: a | F6: a | G6: a | H6: a | I6: a | J6: a | K6: a | L6: a | M6: a | N6: a | O6: a | P6: a | AI6: 12
A7: 6 | B7: Bobby Hynes | C7: Dancing In The Dark | D7: 2-1 | E7: a | F7: a | G7: a | AI7: 3
A8: 7 | B8: Brendan Maguire | C8: Cantthinkofone | D8: 2-0 | E8: a | AI8: 1
A9: 8 | B9: Brian Haughton | C9: Jurgen's Mighty Reds | D9: 1-1 | E9: a | F9: a | G9: a | H9: a | I9: a | J9: a | K9: a | L9: a | AI9: 8
A10: 9 | B10: Brian Mullen | C10: Boris Cuts His Hair With A Knife And Fork | D10: 2-1 | E10: a | F10: a | G10: a | H10: a | I10: a | J10: a | K10: a | L10: a | M10: a | N10: a | O10: a | AI10: 11
A11: 10 | B11: Brian Prendergast | C11: Up The Arsenal | D11: 2-1 | E11: a | F11: a | G11: a | H11: a | I11: a | J11: a | K11: a | L11: a | M11: a | N11: a | O11: a | P11: a | Q11: a | R11: a | S11: a | T11: a | U11: a | V11: a | W11: a | X11: a | Y11: a | Z11: a | AA11: a | AB11: a | AC11: a | AD11: a | AE11: a | AF11: a | AI11: 28
A12: 11 | B12: Caroline Carroll | C12: Carrie's Crusaders | AI12: 0
A13: 12 | B13: Cathal Thornton | C13: Game of Stones | D13: 2-1 | E13: a | F13: a | G13: a | H13: a | I13: a | J13: a | K13: a | L13: a | M13: a | N13: a | O13: a | P13: a | Q13: a | R13: a | S13: a | T13: a | U13: a | V13: a | W13: a | X13: a | Y13: a | Z13: a | AA13: a | AB13: a | AC13: a | AD13: a | AE13: a | AF13: a | AG13: a | AH13: a | AI13: 30
A14: 13 | B14: Chris Keohan | C14: Chicken Tikka Mo Salah | D14: 2-1 | E14: a | F14: a | AI14: 2
A15: 14 | B15: Christina Morgan | C15: Mwahahahaha | D15: 1-0 | E15: a | F15: a | AI15: =COUNTIF(E15:AH15,"a") -> 2
A16: 15 | B16: Ciara Walsh | C16: Kirvin Kicks | D16: 1-0 | E16: a | F16: a | G16: a | H16: a | I16: a | J16: a | K16: a | L16: a | M16: a | N16: a | O16: a | P16: a | Q16: a | AI16: =COUNTIF(E16:AH16,"a") -> 13
A17: 16 | B17: Ciaran Healy | C17: I Forgot Again This Week | D17: 1-0 | E17: a | F17: a | G17: a | H17: a | I17: a | J17: a | K17: a | L17: a | M17: a | N17: a | O17: a | P17: a | Q17: a | R17: a | S17: a | T17: a | U17: a | V17: a | W17: a | X17: a | Y17: a | Z17: a | AA17: a | AB17: a | AC17: a | AD17: a | AE17: a | AF17: a | AG17: a | AH17: a | AI17: 30
A18: 17 | B18: Ciaran O'Hart | C18: Riverchapel Plate | AI18: 0
A19: 18 | B19: Ciaran Rooney | C19: 1014 | AI19: 0
A20: 19 | B20: Colm Cahill | C20: COYS FC | D20: 2-1 | E20: a | F20: a | G20: a | H20: a | I20: a | J20: a | K20: a | L20: a | M20: a | N20: a | O20: a | P20: a | Q20: a | R20: a | AI20: 14
A21: 20 | B21: Con McSweeney | C21: Coola_Boolas | D21: 1-0 | E21: a | AI21: 1
A22: 21 | B22: Conor MacMahon | C22: Fu@#ing Cowboys Ted | D22: 2-1 | E22: a | F22: a | G22: a | H22: a | I22: a | J22: a | K22: a | L22: a | M22: a | N22: a | O22: a | P22: a | Q22: a | R22: a | S22: a | T22: a | U22: a | V22: a | W22: a | X22: a | Y22: a | Z22: a | AA22: a | AB22: a | AC22: a | AD22: a | AE22: a | AF22: a | AG22: a | AH22: a | AI22: 30
A23: 22 | B23: Craig Calvert | C23: Ten Fags Army | AI23: 0
A24: 23 | B24: Darragh Kenny | C24: Fox Hunters | D24: 2-1 | E24: a | F24: a | AI24: 2
A25: 24 | B25: Dave McGinley | C25: Clucko > Seanie O'Shea | D25: 2-1 | E25: a | F25: a | G25: a | H25: a | I25: a | AI25: 5
A26: 25 | B26: David Cooney | C26: Tuchel Says It's Chilly | D26: 2-1 | E26: a | AI26: 1
A27: 26 | B27: David Lavelle | C27: Black & Amber | D27: 1-0 | E27: a | F27: a | G27: a | H27: a | I27: a | J27: a | K27: a | L27: a | M27: a | N27: a | O27: a | P27: a | Q27: a | R27: a | S27: a | T27: a | U27: a | V27: a | W27: a | X27: a | AI27: 20
A28: 27 | B28: Dean Kelly | C28: Drean Team | AI28: 0
A29: 28 | B29: Derek McDonald | C29: Closet Scouser | D29: 2-1 | E29: a | F29: a | G29: a | H29: a | I29: a | J29: a | K29: a | L29: a | M29: a | N29: a | O29: a | P29: a | Q29: a | R29: a | S29: a | T29: a | U29: a | V29: a | W29: a | X29: a | Y29: a | Z29: a | AA29: a | AB29: a | AC29: a | AD29: a | AE29: a | AF29: a | AG29: a | AH29: a | AI29: 30
A30: 29 | B30: Dylan Delaney | C30: Only Kruls and Horses | AI30: 0
A31: 30 | B31: Dylan O'Riordan | C31: Yurty Ahearn's Golden Spoon | D31: 2-1 | E31: a | F31: a | G31: a | AI31: 3
A32: 31 | B32: Eoghan Farrelly | C32: Definitely Last Chance Saloon! | D32: 1-1 | E32: a | F32: a | G32: a | H32: a | I32: a | J32: a | K32: a | L32: a | AI32: 8
A33: 32 | B33: Frank McSweeney | C33: Pool Abu | D33: 1-0 | E33: a | F33: a | G33: a | H33: a | I33: a | J33: a | K33: a | L33: a | M33: a | N33: a | O33: a | P33: a | Q33: a | AI33: 13
A34: 33 | B34: Gareth Pierpoint | C34: Allison Wonderland | AI34: 0
A35: 34 | B35: Gary Donnelly | C35: GarWin Nunez | D35: 2-1 | E35: a | F35: a | G35: a | H35: a | I35: a | J35: a | K35: a | L35: a | M35: a | N35: a | O35: a | P35: a | Q35: a | R35: a | S35: a | T35: a | U35: a | V35: a | W35: a | X35: a | Y35: a | Z35: a | AA35: a | AB35: a | AC35: a | AD35: a | AE35: a | AF35: a | AG35: a | AH35: a | AI35: 30
A36: 35 | B36: Gary Fitzpatrick | C36: Werner's Originals | D36: 2-0 | E36: a | F36: a | G36: a | AI36: 3
A37: 36 | B37: Gary McGurk | C37: Darwin Innit! | D37: 1-0 | E37: a | F37: a | AI37: 2
A38: 37 | B38: Gavin Goodwin | C38: Gorey United FC | AI38: 0
A39: 38 | B39: Gavin Morgan | C39: Seventeenth Season Syndrome | AI39: 0
A40: 39 | B40: Gerry Draper | C40: Everton 10 | AI40: 0
A41: 40 | B41: Gerry Moore | C41: A Hat Trick of Gabriels | D41: 2-1 | E41: a | F41: a | G41: a | AI41: 3
A42: 41 | B42: Graham Pierpoint | C42: Klopp's Kops | AI42: 0
A43: 42 | B43: Ian McSweeney | C43: The Dread Pirate Roberts | D43: 1-0 | E43: a | F43: a | G43: a | H43: a | I43: a | J43: a | K43: a | L43: a | M43: a | N43: a | AI43: 10
A44: 43 | B44: James Keville | C44: Doesn't Mata | D44: 1-0 | E44: a | AI44: 1
A45: 44 | B45: Javier Suarez | C45: Cafu Con Leche | D45: 1-0 | E45: a | F45: a | G45: a | H45: a | I45: a | J45: a | K45: a | L45: a | M45: a | N45: a | O45: a | P45: a | Q45: a | R45: a | S45: a | T45: a | U45: a | V45: a | W45: a | X45: a | Y45: a | Z45: a | AA45: a | AB45: a | AC45: a | AD45: a | AE45: a | AF45: a | AG45: a | AH45: a | AI45: 30
A46: 45 | B46: Jenny Behan | C46: Offside Again | D46: 2-1 | E46: a | F46: a | G46: a | H46: a | I46: a | J46: a | K46: a | L46: a | M46: a | N46: a | O46: a | P46: a | Q46: a | R46: a | S46: a | T46: a | U46: a | V46: a | W46: a | X46: a | Y46: a | Z46: a | AA46: a | AB46: a | AC46: a | AD46: a | AE46: a | AF46: a | AG46: a | AH46: a | AI46: 30
A47: 46 | B47: Joe Behan | C47: In It To Win It I Wish | AI47: 0
A48: 47 | B48: Joe Turner | C48: What Would Jan Molby Do? | AI48: 0
A49: 48 | B49: John Brophy | C49: Carrig ABU | AI49: 0
A50: 49 | B50: John Hempenstall | C50: Real SoSo Bad | D50: 2-1 | E50: a | F50: a | G50: a | H50: a | I50: a | J50: a | K50: a | L50: a | M50: a | N50: a | O50: a | P50: a | Q50: a | R50: a | S50: a | T50: a | U50: a | V50: a | W50: a | X50: a | Y50: a | Z50: a | AA50: a | AB50: a | AC50: a | AD50: a | AE50: a | AF50: a | AG50: a | AH50: a | AI50: 30
A51: 50 | B51: John Massey | C51: Geezers On Tour | D51: 0-0 | E51: a | F51: a | G51: a | H51: a | I51: a | J51: a | K51: a | L51: a | M51: a | N51: a | O51: a | P51: a | Q51: a | R51: a | S51: a | T51: a | U51: a | V51: a | W51: a | X51: a | Y51: a | Z51: a | AA51: a | AB51: a | AC51: a | AD51: a | AE51: a | AF51: a | AG51: a | AH51: a | AI51: 30
A52: 51 | B52: Johno Percy | C52: Mo Money Mo Salah | AI52: 0
A53: 52 | B53: Jonathan Fox | C53: For Fox Sake, Not Again | AI53: 0
A54: 53 | B54: Joseph Kavanagh | C54: Cherry Orchard Thieves | AI54: 0
A55: 54 | B55: Keith Ryan | C55: Ain't No Mountain High Enough | AI55: 0
A56: 55 | B56: Kieran Killeen | C56: Wanderers | D56: 1-0 | E56: a | F56: a | G56: a | H56: a | I56: a | J56: a | K56: a | L56: a | M56: a | N56: a | O56: a | P56: a | Q56: a | R56: a | S56: a | T56: a | U56: a | V56: a | W56: a | X56: a | Y56: a | Z56: a | AA56: a | AB56: a | AC56: a | AD56: a | AE56: a | AF56: a | AG56: a | AH56: a | AI56: 30
A57: 56 | B57: Liam Keohan | C57: Artekkers | AI57: 0
A58: 57 | B58: Lionel Knott | C58: The Best Redabbey Reds | D58: 2-1 | E58: a | F58: a | G58: a | H58: a | I58: a | J58: a | K58: a | L58: a | M58: a | N58: a | O58: a | P58: a | Q58: a | R58: a | AI58: 14
A59: 58 | B59: Micheal Joyce | C59: Marsching On | D59: 1-1 | E59: a | F59: a | AI59: 2
A60: 59 | B60: Monica Collins | C60: Monica's Legs Eleven | D60: 2-1 | E60: a | F60: a | G60: a | H60: a | I60: a | J60: a | K60: a | L60: a | M60: a | N60: a | O60: a | P60: a | AI60: 12
A61: 60 | B61: Niall Carroll | C61: Rubber's Magic Bus | AI61: 0
A62: 61 | B62: Niall Gregory | C62: Yid Army | AI62: 0
A63: 62 | B63: Paul Moore | C63: TAA - The Scouser In Our Team | D63: 1-0 | E63: a | AI63: 1
A64: 63 | B64: Paul Prendergast | C64: The Untouchables | D64: 2-0 | E64: a | AI64: 1
A65: 64 | B65: Phil Doyle | C65: FC Muertos Errantes | AI65: 0
A66: 65 | B66: Philip Jordan | C66: Frankie's Army | AI66: 0
A67: 66 | B67: Ralph Goodwin | C67: Hunt Down The Foxes | AI67: 0
A68: 67 | B68: Richard Johnston | C68: If All U Have Is A Hammer Then Everything Is…. | D68: 1-0 | E68: a | F68: a | G68: a | H68: a | I68: a | J68: a | K68: a | L68: a | M68: a | N68: a | O68: a | AI68: 11
A69: 68 | B69: Robert Hynes | C69: Georgia Best | AI69: 0
A70: 69 | B70: Roisin Joyce | C70: WAW | D70: 1-1 | E70: a | F70: a | AI70: 2
A71: 70 | B71: Ronan Rafferty | C71: Ragballrovers | AI71: 0
A72: 71 | B72: Rory Ellard | C72: Ipspich | AI72: 0
A73: 72 | B73: Sarah Coward | C73: Nancy's Army | D73: 2-0 | E73: a | F73: a | G73: a | H73: a | I73: a | J73: a | K73: a | L73: a | M73: a | N73: a | O73: a | P73: a | Q73: a | R73: a | S73: a | AI73: 15
A74: 73 | B74: Sean Cleary | C74: Sean's Superstars | D74: 3-1 | E74: a | AI74: 1
A75: 74 | B75: Sean O'Mairtin | C75: Creweless | D75: 2-1 | E75: a | F75: a | AI75: 2
A76: 75 | B76: Shane Finnan | C76: Interlocking Spurs | D76: 2-1 | E76: a | F76: a | G76: a | H76: a | I76: a | J76: a | K76: a | L76: a | M76: a | N76: a | O76: a | P76: a | Q76: a | R76: a | S76: a | T76: a | U76: a | V76: a | W76: a | X76: a | Y76: a | Z76: a | AA76: a | AB76: a | AC76: a | AD76: a | AE76: a | AF76: a | AG76: a | AH76: a | AI76: 30
A77: 76 | B77: Shane Hempenstall | C77: Ham Salah | D77: 2-0 | E77: a | F77: a | G77: a | H77: a | I77: a | J77: a | K77: a | L77: a | M77: a | N77: a | O77: a | P77: a | Q77: a | R77: a | S77: a | T77: a | U77: a | V77: a | W77: a | X77: a | Y77: a | Z77: a | AA77: a | AB77: a | AC77: a | AD77: a | AE77: a | AF77: a | AG77: a | AH77: a | AI77: 30
A78: 77 | B78: Simon Scanlon | C78: Braygulls Utd Celtic | D78: 2-1 | E78: a | F78: a | G78: a | H78: a | I78: a | J78: a | K78: a | L78: a | M78: a | N78: a | O78: a | P78: a | Q78: a | R78: a | S78: a | T78: a | U78: a | V78: a | W78: a | X78: a | AI78: 20
A79: 78 | B79: Tommy Hamill | C79: Omeath All-Stars | D79: 2-1 | E79: a | F79: a | G79: a | H79: a | I79: a | AI79: 5
A80: 79 | B80: Gerard McCluskey | C80: Breffni_Blues | D80: 2-1 | E80: a | F80: a | G80: a | H80: a | I80: a | J80: a | K80: a | L80: a | M80: a | N80: a | O80: a | P80: a | Q80: a | R80: a | S80: a | T80: a | U80: a | V80: a | W80: a | X80: a | Y80: a | Z80: a | AA80: a | AB80: a | AC80: a | AD80: a | AE80: a | AF80: a | AG80: a | AH80: a | AI80: 30
